Workbook

Sheet FE Project Database (hidden)
H1: CHAPSAT Project Database | O1: Model translation and set up to right --> | AG1: MODEL SET UP | AS1: =IF(ErrorLine1="","","ENABLE MACROS") ->  | AY1: INPUT (Edit) | AZ1: RESULTS (No Edits)
O2: In general, do not insert columns and rows. Insert cells. Be aware of calculation areas to right. | AG2: SET UP INDEX. | AJ2: RELCOST Options for CHAPSAT
D3: DO NOT ADD OR DELETE ROWS WITHOUT MODIFICATIONS TO INTEGRATED TOOLS | T3: Setting up | AG3: 1. Options | AJ3: Use EIA or Constant Inflation for Energy Sources | AK3: Constant
T4: Demember 2016 | AG4: 2. Translation of project database to engine | AJ4: Energy Calculations Include Operating Factor? | AK4: True
AG5: 3. Sensitivity analysis set up | AJ5: Operation in Construction Year? | AK5: True
AG6: 4. Project Database (Main)
G7: Project Database Instructions | I7: Copy values from other tools only into light yellow cells. You may edit yellow cells as needed. The top two bright yellow cells will appear on scenario menus and figures and graphs. Edit as needed.
I8: Project developers only: To expand database, insert columns near end of range and copy columns across. Be sure to insert entire columns. Be sure to copy all fields down to orange line. Insert and copy corresponding areas in calc area to right and on Project Database (calc only) sheet
H9: CHP SECTIONS | I9: CHP INPUTS | J9: Units | K9: Paste values from GilMore or CHAPSAT | M9: ='Project Database (calcs only)'!L40 -> 3 | N9: ='Project Database (calcs only)'!M40 -> 4 | O9: ='Project Database (calcs only)'!N40 -> 5 | P9: ='Project Database (calcs only)'!O40 -> 6 | Q9: ='Project Database (calcs only)'!P40 -> 7 | R9: ='Project Database (calcs only)'!Q40 -> 8 | S9: ='Project Database (calcs only)'!R40 -> 9 | T9: ='Project Database (calcs only)'!S40 -> 10 | AG9: PRICE SENSITIVITY ANALYSIS SET UP | AU9: DO NOT COPY PAST THIS COLUMN
F10: =F9+1 -> 1 | I10: Name to Appear on Scenario Menus | K10: Test Project 1 | AD10: DO NOT COPY PROJECT DATABASE PAST THIS COLUMN
F11: 2 | I11: Scenario Description for Subtitles on Graphs, Tables and Proformas | K11: =K14 -> Stilly-Natural Milk dairy digester | AG11: Revenue Prices | AH11: Fuel | AI11: Labels on Sensitivity Pallette and Spider Diagrams | AJ11: Referenced by "Incentive Model" and Reference to WhatIf Links | AK11: Reference From WhatIf Tab | AL11: Notes
F12: 3 | I12: Escalation Above Inflation - Electricity | AF12: =AE153 -> Revenue 1 | AG12: =AG153 ->  | AH12: =AH160 ->  | AI12: Electricity Price | AJ12: =AK12 -> 1 | AK12: =WhatIf!B82 -> 1
F13: 4 | I13: Escalation Above Inflation - Natural Gas | AF13: =AE161 -> Revenue 2 | AG13: =AG161 ->  | AH13: =AH168 ->  | AI13: Electricity Sales Price | AJ13: 1 | AK13: =WhatIf!B83 -> 1
F14: 5 | H14: General | I14: Facility Name | K14: Stilly-Natural Milk dairy digester | AF14: =AE169 -> Revenue 3 | AG14: =AG169 ->  | AH14: =AH36 -> Propane | AI14: =CONCATENATE(AH14," Price") -> Propane Price | AJ14: 1 | AK14: =WhatIf!B84 -> 1
F15: 6 | I15: Location (City, State) | K15: 0 | AF15: =AE177 -> Revenue 4 | AG15: =AG177 ->  | AH15: - | AI15: Heat Sales Price | AJ15: 1 | AK15: =WhatIf!B85 -> 1
F16: 7 | I16: Project Description | K16: 0 | AF16: =AE185 -> Revenue 5 | AG16: =AG185 ->  | AH16: =AH192 ->  | AI16: Biogas Sales Price | AJ16: 1 | AK16: =WhatIf!B86 -> 1
F17: 8 | I17: Elevation of location (feet) | K17: 1000 | AF17: =AE193 -> Revenue 6 | AG17: =AG193 ->  | AH17: =AH200 ->  | AI17: Liquid Fertilizer Price | AJ17: 1.3 | AK17: =WhatIf!B87 -> 1.3
F18: 9 | AF18: =AE201 -> Revenue 7 | AG18: =AG201 ->  | AH18: =AH208 ->  | AI18: Compost Price | AJ18: 1 | AK18: =WhatIf!B88 -> 1
F19: 10 | AF19: =AE209 -> Revenue 8 | AG19: =AG209 ->  | AH19: =AH216 ->  | AI19: Bedding Price | AJ19: 1 | AK19: =WhatIf!B89 -> 1
F20: 11 | I20: Sector | K20: Agricultural | AF20: =AE217 -> Revenue 9 | AG20: =AG217 ->  | AH20: =AH224 ->  | AI20: Fiber Sales Price | AJ20: 1 | AK20: =WhatIf!B90 -> 1
F21: 12 | I21: Project Life | K21: 15 | AF21: =AE225 -> Revenue 10 | AG21: =AG225 ->  | AH21: =AH232 ->  | AJ21: 1 | AK21: =WhatIf!B91 -> 1
F22: 13 | I22: First Year of Project | K22: 2017 | AF22: =AE233 -> Other Revenues | AG22: =AG233 ->  | AJ22: 1 | AK22: =WhatIf!B92 -> 1
F23: 14 | I23: Taxable Entity? | K23: False | AG23: Purchase Prices
F24: 15 | I24: Discount Rate | K24: 0.1 | AF24: =AE266 -> Purchase 1 | AG24: =AG266 ->  | AH24: =AH37 -> Digester Gas | AI24: =IF(AH24=AH14,"Linked - Baseline Heating Fuel",CONCATENATE(AH24," Price")) -> Digester Gas Price | AJ24: =IF(AH24=AH14,AK14,AK24) -> 1 | AK24: =WhatIf!B94 -> 1
F25: 16 | I25: General Inflation | K25: 0.025 | AF25: =AE274 -> Purchase 2 | AG25: =AG274 ->  | AH25: =AH281 ->  | AI25: Linked - Baseline Electricity Price | AJ25: =AK12 -> 1 | AK25: =WhatIf!B95 -> 1 | AL25: Linked to baseline electricity
F26: 17 | H26: CHP System (for Tables) | I26: Prime Mover Type | K26: Reciprocating Engine | AF26: =AE282 -> Purchase 3 | AG26: =AG282 ->  | AH26: =AH38 -> Digester Gas | AI26: =IF(AH26=AH24,"Linked - CHP Fuel",IF(AH26=AH14,"Linked - Baseline Heating Fuel",CONCATENATE(AH26," Price"))) -> Linked - CHP Fuel | AJ26: =IF(AH26=AH24,AJ24,IF(AH26=AH14,AK14,AK26)) -> 1 | AK26: =WhatIf!B96 -> 1 | AL26: Linked to CHP Fuel if same, then to Baseline if same
F27: 18 | I27: Prime Mover Description | K27: 0 | AF27: =AE290 -> Purchase 4 | AG27: =AG290 ->  | AH27: =AH297 ->  | AI27: Gas Treatment Media Cost | AJ27: =AK27 -> 1 | AK27: =WhatIf!B97 -> 1
F28: 19 | I28: Number of Units | K28: 1 | AF28: =AE298 -> Purchase 5 | AG28: =AG298 ->  | AH28: =AH305 ->  | AI28: Disposal Expense | AJ28: 1 | AK28: =WhatIf!B98 -> 1
F29: 20 | I29: CHP Rated Capacity, kW | K29: 800 | AF29: =AE306 -> Purchase 6 | AG29: =AG306 ->  | AH29: =AH313 ->  | AI29: - | AJ29: 1 | AK29: =WhatIf!B99 -> 1
F30: 21 | I30: CHP Net Electric Output, kW (derated) | K30: 773.6 | AF30: =AE314 -> Purchase 7 | AG30: =AG314 ->  | AH30: =AH321 ->  | AI30: =CONCATENATE(AG30," Price") ->  | AJ30: 1 | AK30: =WhatIf!B100 -> 1
F31: 22 | I31: Electric Heat Rate, Btu/kWh | K31: 9856.751704 | AF31: =AE322 -> Purchase 8 | AG31: =AG322 ->  | AH31: =AH329 ->  | AI31: =CONCATENATE(AG31," Price") ->  | AJ31: 1 | AK31: =WhatIf!B101 -> 1
F32: 23 | I32: Thermal Output, Btu/kWh | K32: 4437.5 | AF32: =AE330 -> Purchase 9 | AG32: =AG330 ->  | AH32: =AH337 -> 0 | AI32: =CONCATENATE(AG32," Price") ->  | AJ32: 1 | AK32: =WhatIf!B102 -> 1
F33: 24 | I33: Electric Efficiency, % | K33: 0.3461586639 | AF33: =AE338 -> Purchase 10 | AG33: =AG338 ->  | AH33: =AH345 -> 0 | AI33: =CONCATENATE(AG33," Price") ->  | AJ33: 1 | AK33: =WhatIf!B103 -> 1
F34: 25 | I34: CHP Efficiency (%) | K34: 0.7963576882
F35: 26 | H35: Optional Inputs for Tables | I35: Number of Holstein Cows | K35: 1075 | AG35: SELECTED SCENARIO FUELS
F36: 27 | I36: Number of Jersey Cows | K36: 1842.857143 | AG36: ='Incentive Model'!E211 -> Fuel Source: Baseline Heating Source | AH36: ='Incentive Model'!F211 -> Propane
F37: 28 | I37: Wet cow equivalent | K37: 5920 | AG37: ='Incentive Model'!E212 -> Fuel Source: CHP Fuel | AH37: ='Incentive Model'!F212 -> Digester Gas
F38: 29 | I38: Target manure volume (gal/cow/day) | AG38: ='Incentive Model'!E213 -> Fuel Source: Biomass Boiler Fuel (Biomass Boiler Analysis) | AH38: ='Incentive Model'!F213 -> Digester Gas
F39: 30 | I39: Digester Retention Time HRT (days) | AG39: ='Incentive Model'!E214 -> Fuel Source: Residual Boiler Fuel | AH39: ='Incentive Model'!F214 -> Digester Gas
F40: 31 | I40: Digester Size (gallons) | AG40: ='Incentive Model'!E215 -> Fuel Source: HRSG | AH40: ='Incentive Model'!F215 -> 0
F41: 32 | I41: Number of Digester Tanks | AG41: ='Incentive Model'!E216 -> 0 | AH41: ='Incentive Model'!F216 -> 0
F42: =F41+1 -> 33 | I42: 0
F43: 34 | I43: 0
F44: 35 | I44: 0
F45: 36 | I45: 0 | AG45: 2. TRANSLATION OF PROJECT DATABASE - "Breadboard wiring"
F46: 37 | I46: 0
F47: 38 | I47: 0 | AE47: ENGINE SECTIONS | AG47: TRANSLATION TO ENGINE | AH47: Copy To Engine | AI47: 2 | AJ47: =AI47+1 -> 3 | AK47: 4 | AL47: 5 | AM47: 6 | AN47: 7 | AO47: 8 | AP47: 9 | AQ47: 10 | AR47: GENERIC ENGINE KEY | AS47: ENGINE SECTIONS
F48: 39 | I48: 0 | AG48: Name to Appear on Scenario Menus | AH48: =K10 -> Test Project 1 | AI48: 0 | AJ48: 0 | AK48: 0 | AL48: 0 | AM48: 0 | AN48: 0 | AO48: 0 | AP48: 0 | AQ48: 0 | AR48: Name to Appear on Scenario Menus
F49: 40 | I49: 0 | U49: =T49+T50+T51 -> 0 | AG49: Scenario Description for Subtitles on Graphs, Tables and Proformas | AH49: Stilly-Natural Milk dairy digester | AI49: 0 | AJ49: 0 | AK49: 0 | AL49: 0 | AM49: 0 | AN49: 0 | AO49: 0 | AP49: 0 | AQ49: 0 | AR49: Scenario Description for Subtitles on Graphs, Tables and Proformas
F50: 41 | I50: 0 | AG50: Escalation Above Inflation - Electricity | AH50: =IF(OR(K12=$M$687,K12=""),0,K12) -> 0 | AI50: 0 | AJ50: 0 | AK50: 0 | AL50: 0 | AM50: 0 | AN50: 0 | AO50: 0 | AP50: 0 | AQ50: 0
F51: 42 | I51: 0 | AG51: Escalation Above Inflation - Natural Gas | AH51: =IF(OR(K13=$K$738,K13=""),0,K13) -> 0 | AI51: 0 | AJ51: 0 | AK51: 0 | AL51: 0 | AM51: 0 | AN51: 0 | AO51: 0 | AP51: 0 | AQ51: 0
F52: 43 | I52: 0 | AC52: =I14 -> Facility Name | AF52: General | AG52: Facility Name | AH52: =K14 -> Stilly-Natural Milk dairy digester | AI52: =L14 -> 0 | AJ52: 0 | AK52: 0 | AL52: 0 | AM52: 0 | AN52: 0 | AO52: 0 | AP52: 0 | AQ52: 0 | AR52: Plant Name | AS52: General
F53: 44 | I53: 0 | AC53: =I15 -> Location (City, State) | AG53: Location (City, State) | AH53: =K15 -> 0 | AI53: 0 | AJ53: 0 | AK53: 0 | AL53: 0 | AM53: 0 | AN53: 0 | AO53: 0 | AP53: 0 | AQ53: 0 | AR53: Location
F54: 45 | I54: 0 | AC54: Project Description | AG54: CHP Alternative Description | AH54: 0 | AI54: 0 | AJ54: 0 | AK54: 0 | AL54: 0 | AM54: 0 | AN54: 0 | AO54: 0 | AP54: 0 | AQ54: 0 | AR54: Project Description
F55: 46 | I55: 0 | AC55: Elevation of location (feet) | AG55: Elevation of location (feet) | AH55: 1000 | AI55: 0 | AJ55: 0 | AK55: 0 | AL55: 0 | AM55: 0 | AN55: 0 | AO55: 0 | AP55: 0 | AQ55: 0 | AR55: Model Notes 1
F56: 47 | H56: Fuel Sources | I56: Fuel Source: Baseline Heating Source | K56: Propane | L56: =#REF! ->  | M56: =#REF! ->  | N56: =#REF! ->  | O56: =#REF! ->  | P56: =#REF! ->  | Q56: =#REF! ->  | R56: =#REF! ->  | S56: =#REF! ->  | T56: =#REF! ->  | AC56: 0 | AG56: =I18 -> 0 | AH56: 0 | AI56: 0 | AJ56: 0 | AK56: 0 | AL56: 0 | AM56: 0 | AN56: 0 | AO56: 0 | AP56: 0 | AQ56: 0 | AR56: Model Notes 2
F57: 48 | I57: Fuel Source: CHP Fuel | K57: Propane | L57: =#REF! ->  | M57: =#REF! ->  | N57: =#REF! ->  | O57: =#REF! ->  | P57: =#REF! ->  | Q57: =#REF! ->  | R57: =#REF! ->  | S57: =#REF! ->  | T57: =#REF! ->  | AC57: 0 | AG57: =I19 -> 0 | AH57: 0 | AI57: 0 | AJ57: 0 | AK57: 0 | AL57: 0 | AM57: 0 | AN57: 0 | AO57: 0 | AP57: 0 | AQ57: 0 | AR57: Model Notes 3
F58: 49 | I58: Fuel Source: Residual Boiler Fuel | K58: Propane | L58: =#REF! ->  | M58: =#REF! ->  | N58: =#REF! ->  | O58: =#REF! ->  | P58: =#REF! ->  | Q58: =#REF! ->  | R58: =#REF! ->  | S58: =#REF! ->  | T58: =#REF! ->  | AC58: Sector | AG58: Sector | AH58: Agricultural | AI58: 0 | AJ58: 0 | AK58: 0 | AL58: 0 | AM58: 0 | AN58: 0 | AO58: 0 | AP58: 0 | AQ58: 0
F59: 50 | AC59: Project Life | AG59: Project Life | AH59: 15 | AI59: 0 | AJ59: 0 | AK59: 0 | AL59: 0 | AM59: 0 | AN59: 0 | AO59: 0 | AP59: 0 | AQ59: 0 | AR59: Project Life
F60: 51 | AC60: First Year of Project | AG60: First Year of Project | AH60: 2017 | AI60: 0 | AJ60: 0 | AK60: 0 | AL60: 0 | AM60: 0 | AN60: 0 | AO60: 0 | AP60: 0 | AQ60: 0 | AR60: First Year of Project
F61: 52 | AC61: Taxable Entity? | AG61: Taxable Entity? | AH61: False | AI61: 0 | AJ61: 0 | AK61: 0 | AL61: 0 | AM61: 0 | AN61: 0 | AO61: 0 | AP61: 0 | AQ61: 0 | AR61: Taxable entity?
F62: 53 | H62: Operating Factor | I62: Operating Hours | K62: 8760 | AC62: Discount Rate | AG62: Discount Rate | AH62: 0.1 | AI62: 0 | AJ62: 0 | AK62: 0 | AL62: 0 | AM62: 0 | AN62: 0 | AO62: 0 | AP62: 0 | AQ62: 0 | AR62: Discount rate
F63: 54 | AC63: General Inflation | AG63: General Inflation | AH63: 0.025 | AI63: 0 | AJ63: 0 | AK63: 0 | AL63: 0 | AM63: 0 | AN63: 0 | AO63: 0 | AP63: 0 | AQ63: 0 | AR63: General inflation rate | AS63: Blanks for Model Specific Details
F64: 55 | I64: Operation in First Year (%), as percent of availability | K64: 1 | AC64: Prime Mover Type | AF64: CHP System | AG64: =I26 -> Prime Mover Type | AH64: Reciprocating Engine | AI64: 0 | AJ64: 0 | AK64: 0 | AL64: 0 | AM64: 0 | AN64: 0 | AO64: 0 | AP64: 0 | AQ64: 0
F65: 56 | AC65: Prime Mover Description | AG65: Prime Mover Description | AH65: 0 | AI65: 0 | AJ65: 0 | AK65: 0 | AL65: 0 | AM65: 0 | AN65: 0 | AO65: 0 | AP65: 0 | AQ65: 0
F66: 57 | I66: CHP Availability (%) | K66: 0.92 | AC66: Number of Units | AG66: Number of Units | AH66: 1 | AI66: 0 | AJ66: 0 | AK66: 0 | AL66: 0 | AM66: 0 | AN66: 0 | AO66: 0 | AP66: 0 | AQ66: 0
F67: 58 | I67: Resource Depletion Rate | K67: 0 | AC67: CHP Rated Capacity, kW | AG67: CHP Rated Capacity, kW | AH67: 800 | AI67: 0 | AJ67: 0 | AK67: 0 | AL67: 0 | AM67: 0 | AN67: 0 | AO67: 0 | AP67: 0 | AQ67: 0
F68: 59 | H68: For Incentive Data (Required) | I68: Capacity (kW) | K68: 0 | AC68: CHP Net Electric Output, kW (derated) | AG68: CHP Net Electric Output, kW (derated) | AH68: 773.6 | AI68: =L30 -> 0 | AJ68: =M30 -> 0 | AK68: =N30 -> 0 | AL68: =O30 -> 0 | AM68: =P30 -> 0 | AN68: =Q30 -> 0 | AO68: =R30 -> 0 | AP68: =S30 -> 0 | AQ68: =T30 -> 0
F69: 60 | I69: Annual Electricity Savings (kWh/year) | K69: 0 | AC69: Electric Heat Rate, Btu/kWh | AG69: Electric Heat Rate, Btu/kWh | AH69: 9856.751704 | AI69: 0 | AJ69: 0 | AK69: 0 | AL69: 0 | AM69: 0 | AN69: 0 | AO69: 0 | AP69: 0 | AQ69: 0
F70: 61 | I70: Annual Fuel Savings (MMBtu/year) | K70: 1203.8072 | AC70: Thermal Output, Btu/kWh | AG70: Thermal Output, Btu/kWh | AH70: 4437.5 | AI70: 0 | AJ70: 0 | AK70: 0 | AL70: 0 | AM70: 0 | AN70: 0 | AO70: 0 | AP70: 0 | AQ70: 0
F71: 62 | I71: Generated Electricity (kWh per year) | K71: 5976702.72 | AC71: Electric Efficiency, % | AG71: Electric Efficiency, % | AH71: 0.3461586639 | AI71: 0 | AJ71: 0 | AK71: 0 | AL71: 0 | AM71: 0 | AN71: 0 | AO71: 0 | AP71: 0 | AQ71: 0
F72: 63 | I72: Offset Thermal Efficiency | K72: 0.8 | AC72: CHP Efficiency (%) | AG72: CHP Efficiency (%) | AH72: 0.7963576882 | AI72: 0 | AJ72: 0 | AK72: 0 | AL72: 0 | AM72: 0 | AN72: 0 | AO72: 0 | AP72: 0 | AQ72: 0
F73: 64 | I73: Purchased CHP Fuel (MMBtu per year) | K73: 2585.545175 | AC73: Number of Holstein Cows | AF73: Optional Model Inputs for Tables | AG73: Number of Holstein Cows | AH73: 1075 | AI73: 0 | AJ73: 0 | AK73: 0 | AL73: 0 | AM73: 0 | AN73: 0 | AO73: 0 | AP73: 0 | AQ73: 0
F74: =F73+1 -> 65 | I74: Annual Heat Recovered (MMBtu per year) | K74: 22020.85384 | AC74: Number of Jersey Cows | AG74: Number of Jersey Cows | AH74: 1842.857143 | AI74: 0 | AJ74: 0 | AK74: 0 | AL74: 0 | AM74: 0 | AN74: 0 | AO74: 0 | AP74: 0 | AQ74: 0
F75: 66 | I75: Carbon Emissions Reductions (metric tonnes) | K75: 20720 | AC75: Wet cow equivalent | AG75: Wet cow equivalent | AH75: 5920 | AI75: 0 | AJ75: 0 | AK75: 0 | AL75: 0 | AM75: 0 | AN75: 0 | AO75: 0 | AP75: 0 | AQ75: 0
F76: 67 | I76: CHP Full Installed Cost | K76: 8545000 | AC76: Target manure volume (gal/cow/day) | AG76: Target manure volume (gal/cow/day) | AH76: 0 | AI76: 0 | AJ76: 0 | AK76: 0 | AL76: 0 | AM76: 0 | AN76: 0 | AO76: 0 | AP76: 0 | AQ76: 0
F77: 68 | H77: Capital Expenditures | I77: CONTINGENCY | K77: 0.1 | AC77: Digester Retention Time HRT (days) | AG77: Digester Retention Time HRT (days) | AH77: 0 | AI77: 0 | AJ77: 0 | AK77: 0 | AL77: 0 | AM77: 0 | AN77: 0 | AO77: 0 | AP77: 0 | AQ77: 0 | BD77: SENSITIVITY SET UP - REVENUES AND PURCHASES
F78: 69 | I78: DIGESTER | AC78: Digester Size (gallons) | AG78: Digester Size (gallons) | AH78: 0 | AI78: 0 | AJ78: 0 | AK78: 0 | AL78: 0 | AM78: 0 | AN78: 0 | AO78: 0 | AP78: 0 | AQ78: 0
F79: 70 | I79: =#REF! ->  | K79: 5920000 | AC79: Number of Digester Tanks | AG79: Number of Digester Tanks | AH79: 0 | AI79: 0 | AJ79: 0 | AK79: 0 | AL79: 0 | AM79: 0 | AN79: 0 | AO79: 0 | AP79: 0 | AQ79: 0
F80: 71 | I80: =#REF! ->  | K80: 0 | AC80: 0 | AG80: 0 | AH80: 0 | AI80: 0 | AJ80: 0 | AK80: 0 | AL80: 0 | AM80: 0 | AN80: 0 | AO80: 0 | AP80: 0 | AQ80: 0
F81: 72 | I81: =#REF! ->  | K81: 50000 | AC81: 0 | AG81: 0 | AH81: 0 | AI81: 0 | AJ81: 0 | AK81: 0 | AL81: 0 | AM81: 0 | AN81: 0 | AO81: 0 | AP81: 0 | AQ81: 0
F82: 73 | I82: =#REF! ->  | K82: 150000 | AC82: 0 | AG82: 0 | AH82: 0 | AI82: 0 | AJ82: 0 | AK82: 0 | AL82: 0 | AM82: 0 | AN82: 0 | AO82: 0 | AP82: 0 | AQ82: 0
F83: 74 | I83: =#REF! ->  | K83: 0 | AC83: 0 | AG83: 0 | AH83: 0 | AI83: 0 | AJ83: 0 | AK83: 0 | AL83: 0 | AM83: 0 | AN83: 0 | AO83: 0 | AP83: 0 | AQ83: 0
F84: 75 | I84: =#REF! ->  | K84: 0 | AB84: =is ->  | AC84: 0 | AG84: 0 | AH84: 0 | AI84: 0 | AJ84: 0 | AK84: 0 | AL84: 0 | AM84: 0 | AN84: 0 | AO84: 0 | AP84: 0 | AQ84: 0
F85: 76 | I85: =#REF! ->  | K85: 0 | AC85: 0 | AG85: 0 | AH85: 0 | AI85: 0 | AJ85: 0 | AK85: 0 | AL85: 0 | AM85: 0 | AN85: 0 | AO85: 0 | AP85: 0 | AQ85: 0
F86: 77 | I86: =#REF! ->  | K86: 0 | AC86: 0 | AG86: 0 | AH86: 0 | AI86: 0 | AJ86: 0 | AK86: 0 | AL86: 0 | AM86: 0 | AN86: 0 | AO86: 0 | AP86: 0 | AQ86: 0
F87: 78 | I87: =#REF! ->  | K87: 0 | AC87: 0 | AG87: 0 | AH87: 0 | AI87: 0 | AJ87: 0 | AK87: 0 | AL87: 0 | AM87: 0 | AN87: 0 | AO87: 0 | AP87: 0 | AQ87: 0
F88: 79 | I88: =#REF! ->  | K88: 0 | AC88: 0 | AG88: 0 | AH88: 0 | AI88: 0 | AJ88: 0 | AK88: 0 | AL88: 0 | AM88: 0 | AN88: 0 | AO88: 0 | AP88: 0 | AQ88: 0
F89: 80 | I89: ENERGY PLANT | AC89: 0 | AG89: 0 | AH89: 0 | AI89: 0 | AJ89: 0 | AK89: 0 | AL89: 0 | AM89: 0 | AN89: 0 | AO89: 0 | AP89: 0 | AQ89: 0
F90: 81 | I90: =#REF! ->  | K90: 2160000 | AC90: 0 | AG90: 0 | AH90: 0 | AI90: 0 | AJ90: 0 | AK90: 0 | AL90: 0 | AM90: 0 | AN90: 0 | AO90: 0 | AP90: 0 | AQ90: 0
F91: 82 | I91: =#REF! ->  | K91: 150000 | AC91: 0 | AG91: 0 | AH91: 0 | AI91: 0 | AJ91: 0 | AK91: 0 | AL91: 0 | AM91: 0 | AN91: 0 | AO91: 0 | AP91: 0 | AQ91: 0
F92: 83 | I92: =#REF! ->  | K92: 115000 | AC92: 0 | AG92: 0 | AH92: 0 | AI92: 0 | AJ92: 0 | AK92: 0 | AL92: 0 | AM92: 0 | AN92: 0 | AO92: 0 | AP92: 0 | AQ92: 0
F93: 84 | I93: =#REF! ->  | K93: 0 | AC93: 0 | AG93: 0 | AH93: 0 | AI93: 0 | AJ93: 0 | AK93: 0 | AL93: 0 | AM93: 0 | AN93: 0 | AO93: 0 | AP93: 0 | AQ93: 0
F94: 85 | I94: =#REF! ->  | K94: 0 | AF94: Fuel Sources | AG94: Fuel Source: Baseline Heating Source | AH94: =K56 -> Propane
F95: 86 | I95: =#REF! ->  | K95: 0 | AG95: Fuel Source: CHP Fuel | AH95: Propane
F96: 87 | I96: =#REF! ->  | K96: 0 | AC96: ='Incentive Model'!F14 -> Scenario 1 | AG96: Fuel Source: Residual Boiler Fuel | AH96: Propane
F97: 88 | I97: =#REF! ->  | K97: 0 | AI97: =L68 -> 0 | AJ97: 0 | AK97: 0 | AL97: 0 | AM97: 0 | AN97: 0 | AO97: 0 | AP97: 0 | AQ97: 0
F98: 89 | I98: =#REF! ->  | K98: 0 | AI98: 0 | AJ98: 0 | AK98: 0 | AL98: 0 | AM98: 0 | AN98: 0 | AO98: 0 | AP98: 0 | AQ98: 0
F99: 90 | I99: =#REF! ->  | K99: 0
F100: 91 | I100: PROFESSIONAL AND LEGAL | AF100: Operating Factor | AG100: Operating Hours | AH100: =K62 -> 8760 | AI100: =L40 -> 0 | AJ100: 0 | AK100: 0 | AL100: 0 | AM100: 0 | AN100: 0 | AO100: 0 | AP100: 0 | AQ100: 0 | AR100: Operating Hours | AS100: Operating Factor
F101: 92 | I101: =#REF! ->  | K101: 0 | AG101: Dispatch Factor, Year 0 | AH101: 1 | AI101: 1 | AJ101: 1 | AK101: 1 | AL101: 1 | AM101: 1 | AN101: 1 | AO101: 1 | AP101: 1 | AQ101: 1 | AR101: Dispatch Factor, Year 0
F102: 93 | I102: =#REF! ->  | K102: 0 | AG102: Operation in First Year (%), as percent of availability | AH102: =K64 -> 1 | AI102: =L42 -> 0 | AJ102: 0 | AK102: 0 | AL102: 0 | AM102: 0 | AN102: 0 | AO102: 0 | AP102: 0 | AQ102: 0 | AR102: Availability, Year 0
F103: 94 | I103: =#REF! ->  | K103: 0 | AG103: Dispatch Factor, Year 1 | AH103: 1 | AI103: 1 | AJ103: 1 | AK103: 1 | AL103: 1 | AM103: 1 | AN103: 1 | AO103: 1 | AP103: 1 | AQ103: 1 | AR103: Dispatch Factor, Year 1
F104: 95 | I104: =#REF! ->  | K104: 0 | AG104: CHP Availability (%) | AH104: =K66 -> 0.92 | AI104: =L41 -> 0 | AJ104: 0 | AK104: 0 | AL104: 0 | AM104: 0 | AN104: 0 | AO104: 0 | AP104: 0 | AQ104: 0 | AR104: Availability, Year 1
F105: 96 | I105: =#REF! ->  | K105: 0 | AG105: Resource Depletion Rate | AH105: =K67 -> 0 | AI105: 0 | AJ105: 0 | AK105: 0 | AL105: 0 | AM105: 0 | AN105: 0 | AO105: 0 | AP105: 0 | AQ105: 0 | AR105: Resource Depletion Rate
F106: 97 | H106: Grants | I106: GRANTS | AF106: For Incentive Data (Required) | AG106: Capacity (kW) | AH106: =#REF! ->  | AI106: =AI66*AI67 -> 0 | AJ106: 0 | AK106: 0 | AL106: 0 | AM106: 0 | AN106: 0 | AO106: 0 | AP106: 0 | AQ106: 0 | AR106: Generated Electricity | AT106: Capacity (kW)
F107: 98 | I107: =#REF! ->  | J107: Use Incent Model | K107: =#REF! ->  | AG107: Annual Electricity Savings (kWh/year) | AH107: =#REF! ->  | AI107: =L78 -> 0 | AJ107: 0 | AK107: 0 | AL107: 0 | AM107: 0 | AN107: 0 | AO107: 0 | AP107: 0 | AQ107: 0 | AR107: Offset Thermal Efficiency | AT107: Annual Electricity Savings (kWh/year)
F108: 99 | I108: =#REF! ->  | J108: Use Incent Model | K108: =#REF! ->  | AG108: Annual Fuel Savings (MMBtu/year) | AH108: =#REF! ->  | AI108: =-L79 -> 0 | AJ108: 0 | AK108: 0 | AL108: 0 | AM108: 0 | AN108: 0 | AO108: 0 | AP108: 0 | AQ108: 0 | AR108: Purchased CHP Fuel | AT108: Annual Fuel Savings (MMBtu/year)
F109: 100 | I109: =#REF! ->  | K109: =#REF! ->  | AG109: Generated Electricity (kWh per year) | AH109: =#REF! ->  | AI109: =L70 -> 0 | AJ109: 0 | AK109: 0 | AL109: 0 | AM109: 0 | AN109: 0 | AO109: 0 | AP109: 0 | AQ109: 0 | AR109: Annual Heat Recovered | AT109: Generated Electricity (kWh per year)
F110: 101 | I110: =#REF! ->  | K110: =#REF! ->  | AG110: Offset Thermal Efficiency | AH110: =#REF! ->  | AI110: =L43 -> 0 | AJ110: 0 | AK110: 0 | AL110: 0 | AM110: 0 | AN110: 0 | AO110: 0 | AP110: 0 | AQ110: 0 | AT110: Offset Thermal Efficiency
F111: 102 | I111: =#REF! ->  | K111: =#REF! ->  | AG111: Purchased CHP Fuel (MMBtu per year) | AH111: =#REF! ->  | AI111: =L73 -> 0 | AJ111: 0 | AK111: 0 | AL111: 0 | AM111: 0 | AN111: 0 | AO111: 0 | AP111: 0 | AQ111: 0 | AT111: Purchased CHP Fuel (MMBtu per year)
F112: 103 | I112: =#REF! ->  | K112: =#REF! ->  | AG112: Annual Heat Recovered (MMBtu per year) | AH112: =#REF! ->  | AI112: =L77 -> 0 | AJ112: 0 | AK112: 0 | AL112: 0 | AM112: 0 | AN112: 0 | AO112: 0 | AP112: 0 | AQ112: 0 | AT112: Annual Heat Recovered (MMBtu per year)
F113: 104 | I113: =#REF! ->  | K113: =#REF! ->  | AG113: Carbon Emissions Reductions (metric tonnes) | AH113: =#REF! ->  | AI113: =#REF!-#REF! ->  | AJ113: =M172-M178 -> 0 | AK113: 0 | AL113: 0 | AM113: 0 | AN113: 0 | AO113: 0 | AP113: 0 | AQ113: 0 | AT113: Carbon Emissions Reductions (metric tons)
F114: 105 | I114: =#REF! ->  | K114: =#REF! ->  | AG114: CHP Full Installed Cost | AH114: =#REF! ->  | AI114: =L53 -> 0 | AJ114: 0 | AK114: 0 | AL114: 0 | AM114: 0 | AN114: 0 | AO114: 0 | AP114: 0 | AQ114: 0 | AT114: CHP Full Installed Cost
F115: 106 | I115: =#REF! ->  | K115: =#REF! ->  | AE115: CapEx 1 | AF115: Capital Expenditures | AG115: =I78 -> DIGESTER | AH115: True | AI115: True | AJ115: True | AK115: True | AL115: True | AM115: True | AN115: True | AO115: True | AP115: True | AQ115: True | AR115: CapEx Category 1 Desc | AS115: Capital Expenditures
F116: 107 | I116: =#REF! ->  | K116: =#REF! ->  | AE116: 1 | AH116: =K79 -> 5920000 | AI116: =L59 -> 0 | AJ116: =M59 -> 0 | AK116: =N59 -> 0 | AL116: =O59 -> 0 | AM116: =P59 -> 0 | AN116: =Q59 -> 0 | AO116: =R59 -> 0 | AP116: =S59 -> 0 | AQ116: =T59 -> 0 | AR116: Cat 1 Item
F117: 108 | H117: Prod Inc | I117: PRODUCTION INCENTIVES, PRICES | AE117: 2 | AH117: 0 | AI117: 0 | AJ117: 0 | AK117: 0 | AL117: 0 | AM117: 0 | AN117: 0 | AO117: 0 | AP117: 0 | AQ117: 0 | AR117: Cat 1 Item
F118: 109 | I118: Carbon Offset Price, $ per metric tonne CO2 | J118: Use Incent Model | K118: =#REF! ->  | AE118: 3 | AH118: 50000 | AI118: 0 | AJ118: 0 | AK118: 0 | AL118: 0 | AM118: 0 | AN118: 0 | AO118: 0 | AP118: 0 | AQ118: 0 | AR118: Cat 1 Item
F119: 110 | G119: 7 | I119: RECS, $ per kWh | K119: =#REF! ->  | AE119: 4 | AH119: 150000 | AI119: 0 | AJ119: 0 | AK119: 0 | AL119: 0 | AM119: 0 | AN119: 0 | AO119: 0 | AP119: 0 | AQ119: 0 | AR119: Cat 1 Item
F120: 111 | G120: 8 | H120: Revenues | I120: =#REF! ->  | K120: =#REF! ->  | AE120: 5 | AH120: 0 | AI120: 0 | AJ120: 0 | AK120: 0 | AL120: 0 | AM120: 0 | AN120: 0 | AO120: 0 | AP120: 0 | AQ120: 0 | AR120: Cat 1 Item
F121: 112 | I121: =#REF! ->  | K121: =#REF! ->  | AE121: 6 | AH121: 0 | AI121: 0 | AJ121: 0 | AK121: 0 | AL121: 0 | AM121: 0 | AN121: 0 | AO121: 0 | AP121: 0 | AQ121: 0 | AR121: Cat 1 Item
F122: 113 | I122: =#REF! ->  | K122: =#REF! ->  | AE122: 7 | AH122: 0 | AI122: 0 | AJ122: 0 | AK122: 0 | AL122: 0 | AM122: 0 | AN122: 0 | AO122: 0 | AP122: 0 | AQ122: 0 | AR122: Cat 1 Item
F123: 114 | I123: =#REF! ->  | K123: =#REF! ->  | AE123: 8 | AH123: 0 | AI123: 0 | AJ123: 0 | AK123: 0 | AL123: 0 | AM123: 0 | AN123: 0 | AO123: 0 | AP123: 0 | AQ123: 0 | AR123: Cat 1 Item
F124: 115 | I124: =#REF! ->  | K124: =#REF! ->  | AE124: 9 | AH124: 0 | AI124: 0 | AJ124: 0 | AK124: 0 | AL124: 0 | AM124: 0 | AN124: 0 | AO124: 0 | AP124: 0 | AQ124: 0 | AR124: Cat 1 Item
F125: 116 | I125: =#REF! ->  | K125: =#REF! ->  | AE125: 10 | AH125: 0 | AI125: 0 | AJ125: 0 | AK125: 0 | AL125: 0 | AM125: 0 | AN125: 0 | AO125: 0 | AP125: 0 | AQ125: 0 | AR125: Cat 1 Item
F126: 117 | I126: =#REF! ->  | K126: =#REF! -> 
F127: 118 | G127: 9 | I127: =#REF! ->  | K127: =#REF! ->  | AE127: CapEx 1 | AG127: =I89 -> ENERGY PLANT | AH127: True | AI127: True | AJ127: True | AK127: True | AL127: True | AM127: True | AN127: True | AO127: True | AP127: True | AQ127: True | AR127: CapEx Category 2 Desc
F128: 119 | I128: =#REF! ->  | K128: =#REF! ->  | AE128: 1 | AH128: =K90 -> 2160000 | AI128: =L90 -> 0 | AJ128: =M90 -> 0 | AK128: =N90 -> 0 | AL128: =O90 -> 0 | AM128: =P90 -> 0 | AN128: =Q90 -> 0 | AO128: =R90 -> 0 | AP128: =S90 -> 0 | AQ128: =T90 -> 0 | AR128: Cat 2 Item
F129: 120 | I129: =#REF! ->  | K129: =#REF! ->  | AE129: 2 | AH129: 150000 | AI129: 0 | AJ129: 0 | AK129: 0 | AL129: 0 | AM129: 0 | AN129: 0 | AO129: 0 | AP129: 0 | AQ129: 0 | AR129: Cat 2 Item
F130: 121 | I130: =#REF! ->  | K130: =#REF! ->  | AE130: 3 | AH130: 115000 | AI130: 0 | AJ130: 0 | AK130: 0 | AL130: 0 | AM130: 0 | AN130: 0 | AO130: 0 | AP130: 0 | AQ130: 0 | AR130: Cat 2 Item
F131: 122 | I131: =#REF! ->  | K131: =#REF! ->  | AE131: 4 | AH131: 0 | AI131: 0 | AJ131: 0 | AK131: 0 | AL131: 0 | AM131: 0 | AN131: 0 | AO131: 0 | AP131: 0 | AQ131: 0 | AR131: Cat 2 Item
F132: 123 | I132: =#REF! ->  | K132: =#REF! ->  | AE132: 5 | AH132: 0 | AI132: 0 | AJ132: 0 | AK132: 0 | AL132: 0 | AM132: 0 | AN132: 0 | AO132: 0 | AP132: 0 | AQ132: 0 | AR132: Cat 2 Item
F133: 124 | I133: =#REF! ->  | K133: =#REF! ->  | AE133: 6 | AH133: 0 | AI133: 0 | AJ133: 0 | AK133: 0 | AL133: 0 | AM133: 0 | AN133: 0 | AO133: 0 | AP133: 0 | AQ133: 0 | AR133: Cat 2 Item
F134: 125 | G134: 10 | I134: =#REF! ->  | K134: =#REF! ->  | AE134: 7 | AH134: 0 | AI134: 0 | AJ134: 0 | AK134: 0 | AL134: 0 | AM134: 0 | AN134: 0 | AO134: 0 | AP134: 0 | AQ134: 0 | AR134: Cat 2 Item
F135: 126 | I135: =#REF! ->  | K135: =#REF! ->  | AE135: 8 | AH135: 0 | AI135: 0 | AJ135: 0 | AK135: 0 | AL135: 0 | AM135: 0 | AN135: 0 | AO135: 0 | AP135: 0 | AQ135: 0 | AR135: Cat 2 Item
F136: 127 | I136: =#REF! ->  | K136: =#REF! ->  | AE136: 9 | AH136: 0 | AI136: 0 | AJ136: 0 | AK136: 0 | AL136: 0 | AM136: 0 | AN136: 0 | AO136: 0 | AP136: 0 | AQ136: 0 | AR136: Cat 2 Item
F137: 128 | I137: =#REF! ->  | K137: =#REF! ->  | AE137: 10 | AH137: 0 | AI137: 0 | AJ137: 0 | AK137: 0 | AL137: 0 | AM137: 0 | AN137: 0 | AO137: 0 | AP137: 0 | AQ137: 0 | AR137: Cat 2 Item
F138: =F137+1 -> 129 | I138: =#REF! ->  | K138: =#REF! -> 
F139: 130 | I139: =#REF! ->  | K139: =#REF! ->  | AE139: CapEx 1 | AG139: =I100 -> PROFESSIONAL AND LEGAL | AH139: True | AI139: True | AJ139: True | AK139: True | AL139: True | AM139: True | AN139: True | AO139: True | AP139: True | AQ139: True | AR139: CapEx Category 3 Desc
F140: 131 | I140: =#REF! ->  | K140: =#REF! ->  | AE140: 1 | AH140: =K101 -> 0 | AI140: =L52 -> 0 | AJ140: 0 | AK140: 0 | AL140: 0 | AM140: 0 | AN140: 0 | AO140: 0 | AP140: 0 | AQ140: 0 | AR140: Cat 3 Item
F141: 132 | I141: =#REF! ->  | K141: =#REF! ->  | AE141: 2 | AH141: =K102 -> 0 | AR141: Cat 3 Item
F142: 133 | I142: =#REF! ->  | K142: =#REF! ->  | AE142: 3 | AH142: =K103 -> 0 | AR142: Cat 3 Item
F143: 134 | I143: =#REF! ->  | K143: =#REF! ->  | AE143: 4 | AH143: =K104 -> 0 | AR143: Cat 3 Item
F144: 135 | I144: =#REF! ->  | K144: =#REF! ->  | AE144: 5 | AH144: =K105 -> 0 | AR144: Cat 3 Item
F145: 136 | I145: =#REF! ->  | K145: =#REF! ->  | AE145: 6 | AR145: Cat 3 Item
F146: 137 | I146: =#REF! ->  | K146: =#REF! ->  | AE146: 7 | AR146: Cat 3 Item
F147: 138 | I147: =#REF! ->  | K147: =#REF! ->  | AE147: 8 | AR147: Cat 3 Item
F148: 139 | I148: =#REF! ->  | K148: =#REF! ->  | AE148: 9 | AR148: Cat 3 Item
I149: =#REF! ->  | K149: =#REF! ->  | AE149: 10 | AR149: Cat 3 Item
F150: =F148+1 -> 140 | I150: =#REF! ->  | K150: =#REF! -> 
F151: 141 | I151: =#REF! ->  | K151: =#REF! ->  | AE151: Below the Line | AG151: Contractor Profit Factor | AH151: =#REF! ->  | AI151: =L56 ->  | AR151: Contractor Profit Factor
F152: 142 | I152: =#REF! ->  | K152: =#REF! ->  | AG152: Contingencies | AR152: Contigencies
F153: 143 | I153: =#REF! ->  | K153: =#REF! ->  | AE153: Revenue 1 | AF153: Sales & Savings | AG153: ='FE Project Database'!I120 ->  | AR153: Revenue 1 | AS153: Sales & Savings
F154: 144 | I154: =#REF! ->  | K154: =#REF! ->  | AG154: Unit | AH154: ='FE Project Database'!K121 ->  | AI154: =#REF! ->  | AJ154: =M121 -> 0 | AK154: 0 | AL154: 0 | AM154: 0 | AN154: 0 | AO154: 0 | AP154: 0 | AQ154: 0 | AR154: Unit
F155: 145 | I155: =#REF! ->  | K155: =#REF! ->  | AG155: Taxable | AH155: ='FE Project Database'!K124 ->  | AI155: =#REF! ->  | AJ155: =M124 -> 0 | AK155: 0 | AL155: 0 | AM155: 0 | AN155: 0 | AO155: 0 | AP155: 0 | AQ155: 0 | AR155: Taxable
F156: 146 | I156: =#REF! ->  | K156: =#REF! ->  | AG156: Apply Operating | AH156: ='FE Project Database'!K$125 ->  | AI156: =#REF! ->  | AJ156: =M$125 -> 0 | AK156: 0 | AL156: 0 | AM156: 0 | AN156: 0 | AO156: 0 | AP156: 0 | AQ156: 0 | AR156: Apply Operating
F157: 147 | I157: =#REF! ->  | K157: =#REF! ->  | AG157: Units Sold (per year) | AH157: ='FE Project Database'!K120 ->  | AI157: =#REF! ->  | AJ157: =M120 -> 0 | AK157: 0 | AL157: 0 | AM157: 0 | AN157: 0 | AO157: 0 | AP157: 0 | AQ157: 0 | AR157: Units Sold (per year)
F158: 148 | I158: =#REF! ->  | K158: =#REF! ->  | AG158: Unit Cost | AH158: ='FE Project Database'!K122 ->  | AI158: =#REF! ->  | AJ158: =M122 -> 0 | AK158: 0 | AL158: 0 | AM158: 0 | AN158: 0 | AO158: 0 | AP158: 0 | AQ158: 0 | AR158: Unit Cost
F159: 149 | I159: =#REF! ->  | K159: =#REF! ->  | AG159: Escalation Relative to Inflation (or like Elec or Nat Gas | AH159: ='FE Project Database'!K123 ->  | AI159: =#REF! ->  | AJ159: 0 | AK159: 0 | AL159: 0 | AM159: 0 | AN159: 0 | AO159: 0 | AP159: 0 | AQ159: 0 | AR159: Annual Escalation Relative to Inflation
F160: 150 | I160: =#REF! ->  | K160: =#REF! ->  | AG160: Fuel Source | AH160: ='FE Project Database'!K$126 ->  | AI160: =#REF! ->  | AJ160: =M$126 -> 0 | AK160: 0 | AL160: 0 | AM160: 0 | AN160: 0 | AO160: 0 | AP160: 0 | AQ160: 0 | AR160: Blank
F161: 151 | I161: =#REF! ->  | K161: =#REF! ->  | AE161: Revenue 2 | AG161: ='FE Project Database'!I127 ->  | AR161: Revenue 2
F162: 152 | I162: =#REF! ->  | K162: =#REF! ->  | AG162: Unit | AH162: ='FE Project Database'!K128 ->  | AI162: =#REF! ->  | AJ162: =M128 -> 0 | AK162: 0 | AL162: 0 | AM162: 0 | AN162: 0 | AO162: 0 | AP162: 0 | AQ162: 0 | AR162: Unit
F163: 153 | I163: =#REF! ->  | K163: =#REF! ->  | AG163: Taxable | AH163: ='FE Project Database'!K124 ->  | AI163: =#REF! ->  | AJ163: =M124 -> 0 | AK163: 0 | AL163: 0 | AM163: 0 | AN163: 0 | AO163: 0 | AP163: 0 | AQ163: 0 | AR163: Taxable
F164: 154 | I164: =#REF! ->  | K164: =#REF! ->  | AG164: Apply Operating | AH164: ='FE Project Database'!K$132 ->  | AI164: =#REF! ->  | AJ164: =M$132 -> 0 | AK164: 0 | AL164: 0 | AM164: 0 | AN164: 0 | AO164: 0 | AP164: 0 | AQ164: 0 | AR164: Apply Operating
F165: 155 | I165: =#REF! ->  | K165: =#REF! ->  | AG165: Units Sold (per year) | AH165: ='FE Project Database'!K127 ->  | AI165: =#REF! ->  | AJ165: =M127 -> 0 | AK165: 0 | AL165: 0 | AM165: 0 | AN165: 0 | AO165: 0 | AP165: 0 | AQ165: 0
F166: 156 | I166: =#REF! ->  | K166: =#REF! ->  | AG166: Unit Cost | AH166: ='FE Project Database'!K129 ->  | AI166: =#REF! ->  | AJ166: =M129 -> 0 | AK166: 0 | AL166: 0 | AM166: 0 | AN166: 0 | AO166: 0 | AP166: 0 | AQ166: 0 | AR166: Units Sold (per year)
F167: 157 | I167: =#REF! ->  | K167: =#REF! ->  | AG167: Escalation Relative to Inflation (or like Elec or Nat Gas | AH167: ='FE Project Database'!K130 ->  | AI167: =#REF! ->  | AJ167: 0 | AK167: 0 | AL167: 0 | AM167: 0 | AN167: 0 | AO167: 0 | AP167: 0 | AQ167: 0 | AR167: Unit Cost
F168: 158 | I168: =#REF! ->  | K168: =#REF! ->  | AG168: Fuel Source | AH168: ='FE Project Database'!K$133 ->  | AI168: =#REF! ->  | AJ168: =M$133 -> 0 | AK168: 0 | AL168: 0 | AM168: 0 | AN168: 0 | AO168: 0 | AP168: 0 | AQ168: 0 | AR168: Annual Escalation Relative to Inflation
F169: 159 | I169: =#REF! ->  | K169: =#REF! ->  | AE169: Revenue 3 | AG169: ='FE Project Database'!I134 ->  | AR169: Revenue 3
F170: 160 | I170: =#REF! ->  | K170: =#REF! ->  | AG170: Unit | AH170: ='FE Project Database'!K135 ->  | AI170: =#REF! ->  | AJ170: =M135 -> 0 | AK170: 0 | AL170: 0 | AM170: 0 | AN170: 0 | AO170: 0 | AP170: 0 | AQ170: 0 | AR170: Unit
F171: 161 | I171: =#REF! ->  | K171: =#REF! ->  | AG171: Taxable | AH171: ='FE Project Database'!K138 ->  | AI171: =#REF! ->  | AJ171: =M138 -> 0 | AK171: 0 | AL171: 0 | AM171: 0 | AN171: 0 | AO171: 0 | AP171: 0 | AQ171: 0 | AR171: Taxable
F172: 162 | I172: =#REF! ->  | K172: =#REF! ->  | AG172: Apply Operating | AH172: ='FE Project Database'!$K$139 ->  | AI172: ='FE Project Database'!$K$139 ->  | AJ172: ='FE Project Database'!$K$139 ->  | AK172: ='FE Project Database'!$K$139 ->  | AL172: ='FE Project Database'!$K$139 ->  | AM172: ='FE Project Database'!$K$139 ->  | AN172: ='FE Project Database'!$K$139 ->  | AO172: ='FE Project Database'!$K$139 ->  | AP172: ='FE Project Database'!$K$139 ->  | AQ172: ='FE Project Database'!$K$139 ->  | AR172: Apply Operating
F173: 163 | I173: =#REF! ->  | K173: =#REF! ->  | AG173: Units Sold (per year) | AH173: ='FE Project Database'!K134 ->  | AI173: =#REF! ->  | AJ173: =M134 -> 0 | AK173: 0 | AL173: 0 | AM173: 0 | AN173: 0 | AO173: 0 | AP173: 0 | AQ173: 0 | AR173: Units Sold (per year)
F174: 164 | I174: =#REF! ->  | K174: =#REF! ->  | AG174: Unit Cost | AH174: ='FE Project Database'!K136 ->  | AI174: =#REF! ->  | AJ174: =M136 -> 0 | AK174: 0 | AL174: 0 | AM174: 0 | AN174: 0 | AO174: 0 | AP174: 0 | AQ174: 0 | AR174: Unit Cost
F175: 165 | I175: =#REF! ->  | K175: =#REF! ->  | AG175: Escalation Relative to Inflation (or like Elec or Nat Gas | AH175: ='FE Project Database'!K137 ->  | AI175: =#REF! ->  | AJ175: 0 | AK175: 0 | AL175: 0 | AM175: 0 | AN175: 0 | AO175: 0 | AP175: 0 | AQ175: 0 | AR175: Annual Escalation Relative to Inflation
F176: 166 | I176: =#REF! ->  | K176: =#REF! ->  | AG176: Fuel Source | AH176: ='FE Project Database'!K$140 ->  | AI176: =#REF! ->  | AJ176: =M$140 -> 0 | AK176: 0 | AL176: 0 | AM176: 0 | AN176: 0 | AO176: 0 | AP176: 0 | AQ176: 0 | AR176: Blank
F177: 167 | I177: =#REF! ->  | K177: =#REF! ->  | AE177: Revenue 4 | AG177: ='FE Project Database'!I141 ->  | AR177: Revenue 4
F178: 168 | I178: =#REF! ->  | K178: =#REF! ->  | AG178: Unit | AH178: ='FE Project Database'!K142 ->  | AI178: =#REF! ->  | AJ178: =M142 -> 0 | AK178: 0 | AL178: 0 | AM178: 0 | AN178: 0 | AO178: 0 | AP178: 0 | AQ178: 0 | AR178: Unit
F179: 169 | I179: =#REF! ->  | K179: =#REF! ->  | AG179: Taxable | AH179: ='FE Project Database'!K145 ->  | AI179: =#REF! ->  | AJ179: =M145 -> 0 | AK179: 0 | AL179: 0 | AM179: 0 | AN179: 0 | AO179: 0 | AP179: 0 | AQ179: 0 | AR179: Taxable
F180: 170 | I180: =#REF! ->  | K180: =#REF! ->  | AG180: Apply Operating | AH180: ='FE Project Database'!K$146 ->  | AI180: =#REF! ->  | AJ180: =M$146 -> 0 | AK180: 0 | AL180: 0 | AM180: 0 | AN180: 0 | AO180: 0 | AP180: 0 | AQ180: 0 | AR180: Apply Operating
F181: 171 | I181: =#REF! ->  | K181: =#REF! ->  | AG181: Units Sold (per year) | AH181: ='FE Project Database'!K141 ->  | AI181: =#REF! ->  | AJ181: =M141 -> 0 | AK181: 0 | AL181: 0 | AM181: 0 | AN181: 0 | AO181: 0 | AP181: 0 | AQ181: 0 | AR181: Units Sold (per year)
F182: 172 | I182: =#REF! ->  | K182: =#REF! ->  | AG182: Unit Cost | AH182: ='FE Project Database'!K143 ->  | AI182: =#REF! ->  | AJ182: =M143 -> 0 | AK182: 0 | AL182: 0 | AM182: 0 | AN182: 0 | AO182: 0 | AP182: 0 | AQ182: 0 | AR182: Unit Cost
F183: 173 | I183: =#REF! ->  | K183: =#REF! ->  | AG183: Escalation Relative to Inflation (or like Elec or Nat Gas | AH183: ='FE Project Database'!K144 ->  | AI183: =#REF! ->  | AJ183: 0 | AK183: 0 | AL183: 0 | AM183: 0 | AN183: 0 | AO183: 0 | AP183: 0 | AQ183: 0 | AR183: Annual Escalation Relative to Inflation
F184: 174 | I184: =#REF! ->  | K184: =#REF! ->  | AG184: Fuel Source | AH184: ='FE Project Database'!K$147 ->  | AI184: =#REF! ->  | AJ184: =M$147 -> 0 | AK184: 0 | AL184: 0 | AM184: 0 | AN184: 0 | AO184: 0 | AP184: 0 | AQ184: 0
F185: 175 | I185: =#REF! ->  | K185: =#REF! ->  | AE185: Revenue 5 | AG185: ='FE Project Database'!I148 ->  | AR185: Revenue 4
F186: 176 | I186: =#REF! ->  | K186: =#REF! ->  | AG186: Unit | AH186: ='FE Project Database'!K149 ->  | AI186: =#REF! ->  | AJ186: =M149 -> 0 | AK186: 0 | AL186: 0 | AM186: 0 | AN186: 0 | AO186: 0 | AP186: 0 | AQ186: 0 | AR186: Unit
F187: 177 | I187: =#REF! ->  | K187: =#REF! ->  | AG187: Taxable | AH187: ='FE Project Database'!K152 ->  | AI187: =#REF! ->  | AJ187: =M152 -> 0 | AK187: 0 | AL187: 0 | AM187: 0 | AN187: 0 | AO187: 0 | AP187: 0 | AQ187: 0 | AR187: Taxable
F188: 178 | I188: =#REF! ->  | K188: =#REF! ->  | AG188: Apply Operating | AH188: ='FE Project Database'!K$153 ->  | AI188: =#REF! ->  | AJ188: =M$153 -> 0 | AK188: 0 | AL188: 0 | AM188: 0 | AN188: 0 | AO188: 0 | AP188: 0 | AQ188: 0 | AR188: Apply Operating
F189: 179 | I189: =#REF! ->  | K189: =#REF! ->  | AG189: Units Sold (per year) | AH189: ='FE Project Database'!K148 ->  | AI189: =#REF! ->  | AJ189: =M148 -> 0 | AK189: 0 | AL189: 0 | AM189: 0 | AN189: 0 | AO189: 0 | AP189: 0 | AQ189: 0 | AR189: Units Sold (per year)
F190: 180 | I190: =#REF! ->  | K190: =#REF! ->  | AG190: Unit Cost | AH190: ='FE Project Database'!K150 ->  | AI190: =#REF! ->  | AJ190: =M150 -> 0 | AK190: 0 | AL190: 0 | AM190: 0 | AN190: 0 | AO190: 0 | AP190: 0 | AQ190: 0 | AR190: Unit Cost
F191: 181 | I191: =#REF! ->  | K191: =#REF! ->  | AG191: Annual Escalation Relative to Inflation | AH191: ='FE Project Database'!K151 ->  | AI191: =#REF! ->  | AJ191: 0 | AK191: 0 | AL191: 0 | AM191: 0 | AN191: 0 | AO191: 0 | AP191: 0 | AQ191: 0 | AR191: Annual Escalation Relative to Inflation
F192: 182 | I192: =#REF! ->  | K192: =#REF! ->  | AG192: Fuel Source | AH192: ='FE Project Database'!K154 ->  | AI192: =#REF! ->  | AJ192: =M154 -> 0 | AK192: 0 | AL192: 0 | AM192: 0 | AN192: 0 | AO192: 0 | AP192: 0 | AQ192: 0 | AR192: Blank
F193: 183 | I193: =#REF! ->  | K193: =#REF! ->  | AE193: Revenue 6 | AG193: ='FE Project Database'!I155 ->  | AR193: Revenue 6
F194: 184 | I194: =#REF! ->  | K194: =#REF! ->  | AG194: Unit | AH194: ='FE Project Database'!K156 ->  | AI194: =#REF! ->  | AJ194: =M156 -> 0 | AK194: 0 | AL194: 0 | AM194: 0 | AN194: 0 | AO194: 0 | AP194: 0 | AQ194: 0 | AR194: Unit
F195: 185 | I195: =#REF! ->  | K195: =#REF! ->  | AG195: Taxable | AH195: ='FE Project Database'!K159 ->  | AI195: =#REF! ->  | AJ195: =M159 -> 0 | AK195: 0 | AL195: 0 | AM195: 0 | AN195: 0 | AO195: 0 | AP195: 0 | AQ195: 0 | AR195: Taxable
F196: 186 | I196: =#REF! ->  | K196: =#REF! ->  | AG196: Apply Operating | AH196: ='FE Project Database'!K$160 ->  | AI196: =#REF! ->  | AJ196: =M$160 -> 0 | AK196: 0 | AL196: 0 | AM196: 0 | AN196: 0 | AO196: 0 | AP196: 0 | AQ196: 0 | AR196: Apply Operating
F197: 187 | I197: =#REF! ->  | K197: =#REF! ->  | AG197: Units Sold (per year) | AH197: ='FE Project Database'!K155 ->  | AI197: =#REF! ->  | AJ197: =M155 -> 0 | AK197: 0 | AL197: 0 | AM197: 0 | AN197: 0 | AO197: 0 | AP197: 0 | AQ197: 0 | AR197: Units Sold (per year)
F198: 188 | I198: =#REF! ->  | K198: =#REF! ->  | AG198: Unit Cost | AH198: ='FE Project Database'!K157 ->  | AI198: =#REF! ->  | AJ198: =M157 -> 0 | AK198: 0 | AL198: 0 | AM198: 0 | AN198: 0 | AO198: 0 | AP198: 0 | AQ198: 0 | AR198: Unit Cost
F199: 189 | H199: Purchases | I199: =#REF! ->  | J199: =#REF! ->  | K199: =#REF! ->  | AG199: Annual Escalation Relative to Inflation | AH199: ='FE Project Database'!K158 ->  | AI199: =#REF! ->  | AJ199: 0 | AK199: 0 | AL199: 0 | AM199: 0 | AN199: 0 | AO199: 0 | AP199: 0 | AQ199: 0 | AR199: Annual Escalation Relative to Inflation
F200: 190 | I200: =#REF! ->  | J200: =#REF! ->  | K200: =#REF! ->  | AG200: Fuel Source | AH200: ='FE Project Database'!K$161 ->  | AI200: =#REF! ->  | AJ200: =M$161 -> 0 | AK200: 0 | AL200: 0 | AM200: 0 | AN200: 0 | AO200: 0 | AP200: 0 | AQ200: 0 | AR200: Blank
... 375 more rows

Sheet CHP Project Database (hidden)
D1: CHAPSAT Project Database | J1: Model translation and set up to right --> | AB1: MODEL SET UP | AN1: =IF(ErrorLine1="","","ENABLE MACROS") ->  | AT1: INPUT (Edit) | AU1: RESULTS (No Edits)
J2: In general, do not insert columns and rows. Insert cells. Be aware of calculation areas to right. | AB2: SET UP INDEX. | AE2: RELCOST Options for CHAPSAT
AB3: 1. Options | AE3: Use EIA or Constant Inflation for Energy Sources | AF3: Constant
AB4: 2. Translation of project database to engine | AE4: Energy Calculations Include Operating Factor? | AF4: True
AB5: 3. Sensitivity analysis set up | AE5: Operation in Construction Year? | AF5: True
AB6: 4. Project Database (Main)
C7: Project Database Instructions | E7: Copy values from other tools only into light yellow cells. You may edit yellow cells as needed. The top two bright yellow cells will appear on scenario menus and figures and graphs. Edit as needed.
E8: Project developers only: To expand database, insert columns near end of range and copy columns across. Be sure to insert entire columns. Be sure to copy all fields down to orange line. Insert and copy corresponding areas in calc area to right and on Project Database (calc only) sheet
D9: CHP SECTIONS | E9: CHP INPUTS | F9: Paste values from GilMore or CHAPSAT | H9: ='Project Database (calcs only)'!L40 -> 3 | I9: ='Project Database (calcs only)'!M40 -> 4 | J9: ='Project Database (calcs only)'!N40 -> 5 | K9: ='Project Database (calcs only)'!O40 -> 6 | L9: ='Project Database (calcs only)'!P40 -> 7 | M9: ='Project Database (calcs only)'!Q40 -> 8 | N9: ='Project Database (calcs only)'!R40 -> 9 | O9: ='Project Database (calcs only)'!S40 -> 10 | AB9: Price Sensitivity analysis set up | AP9: DO NOT COPY PAST THIS COLUMN
B10: =B9+1 -> 1 | D10: General | E10: Name to Appear on Scenario Menus | F10: Scenario 1 | G10: Scenario 2 | H10: Scenario 3 | I10: Scenario 4 | J10: Scenario 5 | Y10: DO NOT COPY PROJECT DATABASE PAST THIS COLUMN
B11: 2 | E11: Scenario Description for Subtitles on Graphs, Tables and Proformas | F11: 1-633 kW Recip Engine, Electricity & Heat Sales, Full Load Output | G11: 1-850 kW Recip Engine, Electricity & Heat Sales, Use All Gas | H11: 1-633 kW Recip Engine, Electricity Sales, Full Load Output | I11: 1-850 kW Recip Engine, Electricity Sales, Use All Gas | J11: 1-633 kW Recip Engine, No Electricity or Heat Sales, Meet Electricity Needs | AB11: Revenues | AC11: Fuel Source | AD11: Set Up - Prices from Incentive Model | AE11: Labels on Sensitivity Pallette and Spider Diagrams | AF11: Referenced by "Incentive Model" and Reference to Sensitivity Factor on WhatIf Tab - Leave Blank if Not Linked | AG11: Reference From WhatIf Tab | AH11: Notes
B12: 3 | AA12: =Z174 -> Revenue 1 | AB12: =AB174 -> Baseline Electricity Purchases (Avoided), Not Including Demand | AC12: =AC181 -> Electricity | AE12: Electricity Price | AG12: =WhatIf!B82 -> 1
B13: 4 | AA13: =Z182 -> Revenue 2 | AB13: =AB182 -> Baseline Boiler Fuel Purchases (Avoided) | AC13: =AC36 -> Propane | AE13: =CONCATENATE(AC13," Price") -> Propane Price | AG13: =WhatIf!B83 -> 1
B14: 5 | E14: Facility Name | F14: Community Dairy Digester System with CHP, Janicke project demonstration | G14: Community Dairy Digester System with CHP, Janicke project demonstration | H14: Community Dairy Digester System with CHP, Janicke project demonstration | I14: Community Dairy Digester System with CHP, Janicke project demonstration | J14: Community Dairy Digester System with CHP, Janicke project demonstration | AA14: =Z190 -> Revenue 3 | AB14: =AB190 -> Electricity Sales | AC14: =AC197 -> Electricity Sales | AE14: Electricity Sales Price | AG14: =WhatIf!B84 -> 1
B15: 6 | E15: CHP Alternative Description | F15: 1-633 kW Recip Engine | G15: 1-850 kW Recip Engine | H15: 1-633 kW Recip Engine | I15: 1-850 kW Recip Engine | J15: 1-633 kW Recip Engine | AA15: =Z198 -> Revenue 4 | AB15: =AB198 -> Baseline Demand Charges (Avoided) | AC15: =AC205 -> Electricity Demand | AE15: Electricity Demand | AG15: =WhatIf!B85 -> 1
B16: 7 | E16: Location (City, State) | F16: 0 | G16: 0 | H16: 0 | I16: 0 | J16: 0 | AA16: =Z206 -> Revenue 5 | AB16: =AB206 -> Heat Savings (MMBtu) | AC16: =AC213 -> 0 | AE16: Heat Savings | AG16: =WhatIf!B86 -> 1
B17: 8 | E17: Altitude of location (feet) | F17: 300 | G17: 300 | H17: 300 | I17: 300 | J17: 300 | AA17: =Z214 -> Revenue 6 | AB17: =AB214 -> Heat Sales (MMBtu) | AC17: =AC221 -> Propane | AE17: Heat Sales | AG17: =WhatIf!B87 -> 1.3
B18: 9 | E18: Facility Type | F18: Agricultural: Dairy | G18: Agricultural: Dairy | H18: Agricultural: Dairy | I18: Agricultural: Dairy | J18: Agricultural: Dairy | AA18: =Z222 -> Revenue 7 | AB18: =AB222 -> 0 | AC18: =AC229 -> 0 | AE18: - | AG18: =WhatIf!B88 -> 1
B19: 10 | E19: Electric Utility | F19: Snohomish PUD | G19: Snohomish PUD | H19: Snohomish PUD | I19: Snohomish PUD | J19: Snohomish PUD | AA19: =Z230 -> Revenue 8 | AB19: =AB230 -> 0 | AC19: =AC237 -> 0 | AE19: - | AG19: =WhatIf!B89 -> 1
B20: 11 | E20: Fuel Utility | AA20: =Z238 -> Revenue 9 | AB20: =AB238 -> 0 | AC20: =AC245 -> 0 | AE20: - | AG20: =WhatIf!B90 -> 1
B21: 12 | E21: Average Demand / Peak Demand | F21: 500 / 500 | G21: 500 / 500 | H21: 500 / 500 | I21: 500 / 500 | J21: 500 / 500 | AA21: =Z246 -> Revenue 10 | AB21: =AB246 -> 0 | AC21: =AC253 -> 0 | AE21: - | AG21: =WhatIf!B91 -> 1
B22: 13 | E22: Floor Area, # of Units, or Other Indication of Size) | AA22: =Z254 -> Other Revenues | AB22: =AB254 -> OTHER INCOME CATEGORY | AC22: =AB254 -> OTHER INCOME CATEGORY | AE22: - | AG22: =WhatIf!B92 -> 1
B23: 14 | E23: If WWTF, Treatment Volume, MGD | AB23: Purchases | AE23: Title on Sensitivity Plot | AF23: Sens Ref to Incent Model
B24: 15 | E24: Analysis Type | F24: Annual | G24: Annual | H24: Annual | I24: Annual | J24: Annual | AA24: =Z287 -> Purchase 1 | AB24: =AB287 -> CHP Fuel | AC24: =AC37 -> Digester Gas | AE24: =IF(AC24>0,IF(AC24=$AC$13,CONCATENATE("Linked ",$AB$13),CONCATENATE(AC24," Price")),"-") -> Digester Gas Price | AG24: =WhatIf!B94 -> 1 | AH24: Linked to Baseline Fuel if the same
B25: 16 | D25: CHP System & Performance | E25: Prime Mover Type | F25: Recip Engine | G25: Recip Engine | H25: Recip Engine | I25: Recip Engine | J25: Recip Engine | AA25: =Z295 -> Purchase 2 | AB25: =AB295 -> CHP Electricity Purchases | AC25: =AC302 -> Electricity | AE25: Linked-CHP Electricity Purchases | AG25: =WhatIf!B95 -> 1 | AH25: Linked to Electricity Price
B26: 17 | E26: Prime Mover Description | F26: 633 kW J312 Biogas Hi Nox | G26: 850 kW J412 Biogas | H26: 633 kW J312 Biogas Hi Nox | I26: 850 kW J412 Biogas | J26: 850 kW J412 Biogas | AA26: =Z303 -> Purchase 3 | AB26: =AB303 -> Residual Boiler Fuel | AC26: =AC38 -> Digester Gas | AE26: =IF(AC26>0,IF(AC26=$AC$13,CONCATENATE("Linked ",$AE$13),CONCATENATE(AC26," Price")),"-") -> Digester Gas Price | AG26: =WhatIf!B96 -> 1 | AH26: Linked to Residual Boiler Fuel
B27: 18 | E27: Number of Units | F27: 1 | G27: 1 | H27: 1 | I27: 1 | J27: 1 | AA27: =Z311 -> Purchase 4 | AB27: =AB311 -> Standby Charges | AC27: =AC318 -> Electricity | AE27: Standby Charges | AG27: =WhatIf!B97 -> 1
B28: 19 | E28: CHP Rated Capacity, kW | F28: 633 | G28: 850 | H28: 633 | I28: 850 | J28: 633 | AA28: =Z319 -> Purchase 5 | AB28: =AB319 -> Alternative Demand Charges | AC28: =AC326 -> Electricity | AE28: Residual Demand | AG28: =WhatIf!B98 -> 1
B29: 20 | E29: CHP Net Electric Output, kW (derated) | F29: 613.1572867 | G29: 823.3549664 | H29: 613.1572867 | I29: 823.3549664 | J29: 613.1572867 | AA29: =Z327 -> Purchase 6 | AB29: =AB327 -> Biomass Boiler Fuel | AC29: =AC38 -> Digester Gas | AE29: Biomass Price | AG29: =WhatIf!B99 -> 1
B30: 21 | E30: Electric Heat Rate, Btu/kWh | F30: 9950.422864 | G30: 9443.137255 | H30: 9950.422864 | I30: 9443.137255 | J30: 9950.422864 | AA30: =Z335 -> Purchase 7 | AB30: =AB335 -> HRSG Fuel | AC30: ='Incentive Model'!F438 -> Natural Gas | AE30: =IF(AC30>0,IF(AC30=$AC$24,CONCATENATE("Linked ",$AB$24),CONCATENATE(AC30," Price")),"-") -> Natural Gas Price | AG30: =WhatIf!B100 -> 1 | AH30: Linked to CHP fuel if the same
B31: 22 | E31: Thermal Output, Btu/kWh | F31: 4243.28594 | G31: 3784.705882 | H31: 4243.28594 | I31: 3784.705882 | J31: 4243.28594 | AA31: =Z343 -> Purchase 8 | AB31: =AB343 -> Additional Boiler Fuel for Steam Turbine | AC31: =AC350 -> Natural Gas | AE31: ='Incentive Model'!P441 -> 0 | AG31: =WhatIf!B101 -> 1
B32: 23 | E32: Electric Efficiency, % | F32: 0.3429 | G32: 0.361320598 | H32: 0.3429 | I32: 0.361320598 | J32: 0.3429 | AA32: =Z351 -> Purchase 9 | AB32: =AB351 -> Fuel Use, Second System | AC32: =AC358 -> Digester Gas | AE32: ='Incentive Model'!P449 -> 0 | AG32: =WhatIf!B102 -> 1
B33: 24 | E33: CHP Efficiency (%) | F33: 0.7693427752 | G33: 0.7621096346 | H33: 0.7693427752 | I33: 0.7621096346 | J33: 0.7693427752 | AA33: =Z359 -> Purchase 10 | AB33: =AB359 -> 0 | AC33: =AC366 -> 0 | AE33: ='Incentive Model'!P457 -> 0 | AG33: =WhatIf!B103 -> 1
B34: 25 | D34: Loads | E34: Thermal Needs Served By CHP | J34: 0
B35: 26 | E35: Average Hourly Electric Demand (kW) | F35: 414.7514386 | G35: 414.7514386 | H35: 414.7514386 | I35: 414.7514386 | J35: 414.7514386 | AB35: SELECTED SCENARIO FUELS
B36: 27 | E36: Maximum Electric Demand | F36: 500 | G36: 500 | H36: 500 | I36: 500 | J36: 500 | AB36: ='Incentive Model'!E211 -> Fuel Source: Baseline Heating Source | AC36: ='Incentive Model'!F211 -> Propane
B37: 28 | E37: Minimum Electric Demand | F37: 500 | G37: 500 | H37: 500 | I37: 500 | J37: 500 | AB37: ='Incentive Model'!E212 -> Fuel Source: CHP Fuel | AC37: ='Incentive Model'!F212 -> Digester Gas
B38: 29 | E38: Average Hourly Thermal Demand (MMBtu/hr) | F38: 0.3717621553 | G38: 0.3717621553 | H38: 0.3717621553 | I38: 0.3717621553 | J38: 0.3717621553 | AB38: ='Incentive Model'!E213 -> Fuel Source: Biomass Boiler Fuel (Biomass Boiler Analysis) | AC38: ='Incentive Model'!F213 -> Digester Gas
B39: 30 | E39: Minimum Average Hourly Thermal Demand (MMBtu/hr) | F39: 1.306011872 | G39: 1.306011872 | H39: 1.306011872 | I39: 1.306011872 | J39: 1.306011872 | AB39: ='Incentive Model'!E214 -> Fuel Source: Residual Boiler Fuel | AC39: ='Incentive Model'!F214 -> Digester Gas
B40: 31 | D40: Operation | E40: Operating Hours | F40: 8295.72 | G40: 0 | H40: 0 | I40: 0 | J40: 0 | AB40: ='Incentive Model'!E215 -> Fuel Source: HRSG | AC40: ='Incentive Model'!F215 -> 0
B41: 32 | E41: CHP Availability (%) | F41: 0.947 | G41: 0.947 | H41: 0.947 | I41: 0.947 | J41: 0.947 | AB41: ='Incentive Model'!E216 -> 0 | AC41: ='Incentive Model'!F216 -> 0
B42: =B41+1 -> 33 | E42: Operation in First Year (%), as percent of availability | F42: 1 | G42: 1 | H42: 1 | I42: 1 | J42: 0
B43: 34 | E43: Offsetting Boiler Efficiency (%) | F43: 0.8 | G43: 0.8 | H43: 0.8 | I43: 0.8 | J43: 0.8
B44: 35 | E44: Operating Strategy | F44: Use All Gas Available | G44: Use All Gas Available | H44: Use All Gas Available | I44: Use All Gas Available | J44: Use All Gas Available
B45: 36 | E45: Average operation as percent of derated installed capacity | F45: 1 | G45: 0.8083539629 | H45: 1 | I45: 0.8083539629 | J45: 0.7457326995
B46: 37 | E46: Percent Electrical Loads Met | F46: 1.340963056 | G46: 1.378426392 | H46: 1.269892014 | I46: 1.378426392 | J46: 0.947
B47: 38 | E47: Percent Thermal Loads Met | F47: 2.082489392 | G47: 1.689037772 | H47: 2.082489392 | I47: 1.59951877 | J47: 1.150337254
B48: 39 | D48: Capital Costs | E48: Category for Other Capital Costs
B49: 40 | E49: Other Capital Cost 1 (to be subtracted from total in Sensitivtiy) | P49: =O49+O50+O51 -> 0
B50: 41 | E50: Other Capital Cost 2 (to be subtracted from total in Sensitivtiy)
B51: 42
B52: 43 | E52: Avoided Capital, $ (monthly only, included with other capital for annual)) | F52: 0 | G52: 0 | H52: 0 | I52: 0 | J52: 0
B53: 44 | E53: Installed Costs | F53: 3849895 | G53: 4500895 | H53: 3799895 | I53: 4450895 | J53: 3673295
B54: 45 | D54: O&M Costs | E54: Variable O&M Costs, $/kWh | F54: 0.02 | G54: 0.02 | H54: 0.02 | I54: 0.02 | J54: 0.02
B55: 46 | E55: Other Variable Costs, $ per year | F55: 0 | G55: 0 | H55: 0 | I55: 0 | J55: 0
B56: 47 | E56: Total O&M Costs, $ per year | F56: 101731.6233 | G56: 110426.3614 | H56: 101731.6233 | I56: 110426.3614 | J56: 75864.59809
B57: 48 | E57: Other Net Fixed Annual Costs and Revenues, $ per year | F57: 34788.46154 | G57: 34788.46154 | H57: 34788.46154 | I57: 34788.46154 | J57: 34788.46154
B58: 49 | D58: Demand & Standby Costs | E58: Baseline Demand Charges, $ (zero if melded baseline energy) | F58: 23760 | G58: 23760 | H58: 23760 | I58: 23760 | J58: 23760
B59: 50 | E59: Alternative Demand Charges, $ | F59: 5693.427333 | G59: 5693.427333 | H59: 5693.427333 | I59: 5693.427333 | J59: 5693.427333
B60: 51 | E60: Standby Charges, $ | F60: 0 | G60: 0 | H60: 0 | I60: 0 | J60: 0
B61: 52 | D61: Baseline Energy | E61: Fuel Source: Baseline Heating Source | F61: Propane | G61: Propane | H61: Propane | I61: Propane | J61: Propane
B62: 53 | E62: Baseline Purchased Electricity | F62: 3633222.602 | G62: 3633222.602 | H62: 3633222.602 | I62: 3633222.602 | J62: 3633222.602
B63: 54 | E63: Baseline: Boiler Fuel Use (MMBtu) | F63: 4070.7956 | G63: 4070.7956 | H63: 4070.7956 | I63: 4070.7956 | J63: 4070.7956
B64: 55 | D64: CHP Energy Results | E64: Fuel Source: CHP Fuel | F64: Digester Gas | G64: Digester Gas | H64: Digester Gas | I64: Digester Gas | J64: Digester Gas
B65: 56 | E65: Fuel Source: Biomass Boiler Fuel (Biomass Boiler Analysis) | F65: Digester Gas | G65: Digester Gas | H65: Digester Gas | I65: Digester Gas | J65: Digester Gas
B66: 57 | E66: Fuel Source: Residual Boiler Fuel | F66: Digester Gas | G66: Digester Gas | H66: Digester Gas | I66: Digester Gas | J66: Digester Gas | AB66: 2. TRANSLATION OF PROJECT DATABASE - "Breadboard wiring"
B67: 58 | E67: Fuel Source: HRSG | F67: 0 | G67: 0 | H67: 0 | I67: 0 | J67: 0
B68: 59 | E68: Generated Electricity (kWh) | F68: 5086581.167 | G68: 5521318.068 | H68: 5086581.167 | I68: 5521318.068 | J68: 3793229.905 | Z68: ENGINE SECTIONS | AB68: TRANSLATION TO ENGINE | AC68: Copy To Engine | AD68: 2 | AE68: =AD68+1 -> 3 | AF68: 4 | AG68: 5 | AH68: 6 | AI68: 7 | AJ68: 8 | AK68: 9 | AL68: 10 | AM68: GENERIC ENGINE KEY | AN68: ENGINE SECTIONS
B69: 60 | E69: CHP Purchased Electricity | F69: 212292.6979 | G69: 212292.6979 | H69: 212292.6979 | I69: 212292.6979 | J69: 212292.6979 | AB69: Name to Appear on Scenario Menus | AC69: =F10 -> Scenario 1 | AD69: Scenario 2 | AE69: Scenario 3 | AF69: Scenario 4 | AG69: Scenario 5 | AH69: 0 | AI69: 0 | AJ69: 0 | AK69: 0 | AL69: 0 | AM69: Name to Appear on Scenario Menus
B70: 61 | E70: Dispatched Electricity Sales (kWh) | F70: 1081058.564 | G70: 1515795.466 | H70: 1081058.564 | I70: 1515795.466 | J70: 0 | L70: 1081058.564 | M70: 1515795.466 | N70: 1081058.564 | O70: 1515795.466 | P70: 0 | AB70: Scenario Description for Subtitles on Graphs, Tables and Proformas | AC70: 1-633 kW Recip Engine, Electricity & Heat Sales, Full Load Output | AD70: 1-850 kW Recip Engine, Electricity & Heat Sales, Use All Gas | AE70: 1-633 kW Recip Engine, Electricity Sales, Full Load Output | AF70: 1-850 kW Recip Engine, Electricity Sales, Use All Gas | AG70: 1-633 kW Recip Engine, No Electricity or Heat Sales, Meet Electricity Needs | AH70: 0 | AI70: 0 | AJ70: 0 | AK70: 0 | AL70: 0 | AM70: Scenario Description for Subtitles on Graphs, Tables and Proformas
B71: 62 | E71: Purchased Fuel for CHP Plant (MMBtu) | F71: 53446.28674 | G71: 55056.56214 | H71: 53446.28674 | I71: 55056.56214 | J71: 39856.64368 | AB71: =E12 -> 0 | AC71: =IF(OR(F12=$H$484,F12=""),0,F12) -> 0 | AD71: 0 | AE71: 0 | AF71: 0 | AG71: 0 | AH71: 0 | AI71: 0 | AJ71: 0 | AK71: 0 | AL71: 0
B72: 63 | E72: Duct Burner Fuel, (MMBtu) | F72: 0 | G72: 0 | H72: 0 | I72: 0 | J72: 0 | AB72: =E13 -> 0 | AC72: =IF(OR(F13=$F$484,F13=""),0,F13) -> 0 | AD72: 0 | AE72: 0 | AF72: 0 | AG72: 0 | AH72: 0 | AI72: 0 | AJ72: 0 | AK72: 0 | AL72: 0
B73: 64 | E73: Biomass Boiler Fuel (Thermal Only System) for Unmet Thermal Needs (MMBtu) | F73: 0 | G73: 0 | H73: 0 | I73: 0 | J73: 0 | X73: ='Incentive Model'!B169 -> 2 | AA73: General | AB73: =E14 -> Facility Name | AC73: =F14 -> Community Dairy Digester System with CHP, Janicke project demonstration | AD73: Community Dairy Digester System with CHP, Janicke project demonstration | AE73: Community Dairy Digester System with CHP, Janicke project demonstration | AF73: Community Dairy Digester System with CHP, Janicke project demonstration | AG73: Community Dairy Digester System with CHP, Janicke project demonstration | AH73: 0 | AI73: 0 | AJ73: 0 | AK73: 0 | AL73: 0 | AM73: Plant Name | AN73: General
B74: =B73+1 -> 65 | E74: Residual Boiler Fuel for Unmet Thermal Needs (MMBtu) | F74: 740.0431528 | G74: 740.0431528 | H74: 740.0431528 | I74: 740.0431528 | J74: 740.0431528 | X74: ='Incentive Model'!B170 -> 3 | AB74: =E16 -> Location (City, State) | AC74: 0 | AD74: 0 | AE74: 0 | AF74: 0 | AG74: 0 | AH74: 0 | AI74: 0 | AJ74: 0 | AK74: 0 | AL74: 0 | AM74: Location
B75: 66 | E75: Additional Boiler Fuel for Steam Turbine, MMBtu | F75: 0 | G75: 0 | H75: 0 | I75: 0 | J75: 0 | X75: ='Incentive Model'!B171 -> 4 | AB75: =E15 -> CHP Alternative Description | AC75: 1-633 kW Recip Engine | AD75: 1-850 kW Recip Engine | AE75: 1-633 kW Recip Engine | AF75: 1-850 kW Recip Engine | AG75: 1-633 kW Recip Engine | AH75: 0 | AI75: 0 | AJ75: 0 | AK75: 0 | AL75: 0 | AM75: Project Description
B76: 67 | E76: Annual Heat Recovered by CHP (MMBTU/yr) | F76: 22029.46443 | G76: 17867.36473 | H76: 10578.42816 | I76: 10578.42816 | J76: 10578.42816 | X76: ='Incentive Model'!B172 -> 5 | AB76: =E17 -> Altitude of location (feet) | AC76: 300 | AD76: 300 | AE76: 300 | AF76: 300 | AG76: 300 | AH76: 0 | AI76: 0 | AJ76: 0 | AK76: 0 | AL76: 0 | AM76: Model Notes 1
B77: 68 | E77: Annual Electricity Savings (kWh/yr) | F77: 3420929.905 | G77: 3420929.905 | H77: 3420929.905 | I77: 3420929.905 | J77: 3420929.905 | X77: ='Incentive Model'!B173 -> 6 | AB77: Facility Type | AC77: Agricultural: Dairy | AD77: Agricultural: Dairy | AE77: Agricultural: Dairy | AF77: Agricultural: Dairy | AG77: Agricultural: Dairy | AH77: 0 | AI77: 0 | AJ77: 0 | AK77: 0 | AL77: 0 | AM77: Model Notes 2 | AY77: SENSITIVITY SET UP - REVENUES AND PURCHASES
B78: 69 | E78: Increased Fuel Use (MMBtu) | F78: 50115.53429 | G78: 51725.80969 | H78: 50115.53429 | I78: 51725.80969 | J78: 36525.89124 | X78: ='Incentive Model'!B174 -> 7 | AB78: =E22 -> Floor Area, # of Units, or Other Indication of Size) | AC78: 0 | AD78: 0 | AE78: 0 | AF78: 0 | AG78: 0 | AH78: 0 | AI78: 0 | AJ78: 0 | AK78: 0 | AL78: 0 | AM78: Model Notes 3
B79: 70 | D79: Unit Energy Costs (From CHP Screening Tool) | E79: Baseline Electricity Purchase Price, $/kWh, melded | F79: 0.07081143745 | G79: 0.07081143745 | H79: 0.07081143745 | I79: 0.07081143745 | J79: 0.07081143745 | X79: ='Incentive Model'!B175 -> 8 | AB79: Sector | AC79: =F102 -> Agricultural | AD79: Agricultural | AE79: Agricultural | AF79: Agricultural | AG79: Agricultural | AH79: 0 | AI79: 0 | AJ79: 0 | AK79: 0 | AL79: 0
B80: 71 | E80: Alternative Electricity Purchase Price, $/kWh, energy | F80: 0.08846385 | G80: 0.08846385 | H80: 0.08846385 | I80: 0.08846385 | J80: 0.08846385 | X80: ='Incentive Model'!B176 -> 9 | AB80: =E104 -> Project Life | AC80: 20 | AD80: 20 | AE80: 20 | AF80: 20 | AG80: 0 | AH80: 0 | AI80: 0 | AJ80: 0 | AK80: 0 | AL80: 0 | AM80: Project Life
B81: 72 | E81: Electricity Sales Price, $/kWh | F81: 0.065 | G81: 0.065 | H81: 0.065 | I81: 0.065 | J81: 0.065 | X81: ='Incentive Model'!B177 -> 10 | AB81: =E106 -> First Year of Project | AC81: 2016 | AD81: 2016 | AE81: 2016 | AF81: 2016 | AG81: 2016 | AH81: 0 | AI81: 0 | AJ81: 0 | AK81: 0 | AL81: 0 | AM81: First Year of Project
B82: 73 | E82: Baseline Fuel Price, $/MMBtu | F82: 16.37554585 | G82: 16.37554585 | H82: 16.37554585 | I82: 16.37554585 | J82: 16.37554585 | X82: ='Incentive Model'!B178 -> 11 | AB82: =E108 -> Taxable Entity? | AC82: True | AD82: True | AE82: True | AF82: True | AG82: True | AH82: 0 | AI82: 0 | AJ82: 0 | AK82: 0 | AL82: 0 | AM82: Taxable entity?
B83: 74 | E83: CHP Fuel Price, $/MMBtu | F83: 0 | G83: 0 | H83: 0 | I83: 0 | J83: 0 | X83: ='Incentive Model'!B179 -> 12 | AB83: =E103 -> Discount Rate | AC83: 0.03 | AD83: 0.03 | AE83: 0.03 | AF83: 0.03 | AG83: 0 | AH83: 0 | AI83: 0 | AJ83: 0 | AK83: 0 | AL83: 0 | AM83: Discount rate
B84: 75 | E84: Fuel Price, Additional Boiler Fuel for Steam Turbine | F84: 0 | G84: 0 | H84: 0 | I84: 0 | J84: 0 | X84: ='Incentive Model'!B180 -> 13 | AB84: =E105 -> General Inflation | AC84: 0.025 | AD84: 0.025 | AE84: 0.025 | AF84: 0.025 | AG84: 0.025 | AH84: 0 | AI84: 0 | AJ84: 0 | AK84: 0 | AL84: 0 | AM84: General inflation rate | AN84: Blanks for Model Specific Details
B85: 76 | E85: Fuel Price, Unmet Needs, Supplemental Fuel | F85: 0 | G85: 0 | H85: 0 | I85: 0 | J85: 0 | X85: ='Incentive Model'!B181 -> 14 | AA85: Blanks for Model Specific Details | AB85: =E25 -> Prime Mover Type | AC85: =F25 -> Recip Engine | AD85: =G25 -> Recip Engine | AE85: =H25 -> Recip Engine | AF85: =I25 -> Recip Engine | AG85: =J25 -> Recip Engine | AH85: =K25 -> 0 | AI85: =L25 -> 0 | AJ85: =M25 -> 0 | AK85: =N25 -> 0 | AL85: =O25 -> 0
B86: 77 | E86: Fuel Price, HRSG/Boiler | F86: 0 | G86: 0 | H86: 0 | I86: 0 | J86: 0 | X86: ='Incentive Model'!B182 -> 15 | AB86: Prime Mover Description | AC86: 633 kW J312 Biogas Hi Nox | AD86: 850 kW J412 Biogas | AE86: 633 kW J312 Biogas Hi Nox | AF86: 850 kW J412 Biogas | AG86: 850 kW J412 Biogas | AH86: 0 | AI86: 0 | AJ86: 0 | AK86: 0 | AL86: 0
B87: 78 | D87: Second System | E87: Description of 2nd system, Electricity | F87: WtP plant $9,000./kW, 2.8 MW | G87: 0 | H87: 0 | I87: 0 | J87: 0 | X87: ='Incentive Model'!B183 -> 16 | AB87: Number of Units | AC87: 1 | AD87: 1 | AE87: 1 | AF87: 1 | AG87: 1 | AH87: 0 | AI87: 0 | AJ87: 0 | AK87: 0 | AL87: 0
B88: 79 | E88: Capital Cost of 2nd System, Electricity | F88: 0 | G88: 0 | H88: 0 | I88: 0 | J88: 0 | X88: ='Incentive Model'!B184 -> 17 | AB88: CHP Rated Capacity, kW | AC88: 633 | AD88: 850 | AE88: 633 | AF88: 850 | AG88: 633 | AH88: 0 | AI88: 0 | AJ88: 0 | AK88: 0 | AL88: 0
B89: 80 | E89: Generated Electricity (kWh) (second system) | F89: 0 | G89: 0 | H89: 0 | I89: 0 | J89: 0 | X89: ='Incentive Model'!B185 -> 18 | AB89: CHP Net Electric Output, kW (derated) | AC89: 613.1572867 | AD89: 823.3549664 | AE89: 613.1572867 | AF89: 823.3549664 | AG89: 613.1572867 | AH89: 0 | AI89: 0 | AJ89: 0 | AK89: 0 | AL89: 0
B90: 81 | E90: Electricity savings or uses of second system (baseline) (kWh) | F90: 0 | G90: 0 | H90: 0 | I90: 0 | J90: 0 | X90: ='Incentive Model'!B186 -> 19 | AB90: Electric Heat Rate, Btu/kWh | AC90: 9950.422864 | AD90: 9443.137255 | AE90: 9950.422864 | AF90: 9443.137255 | AG90: 9950.422864 | AH90: 0 | AI90: 0 | AJ90: 0 | AK90: 0 | AL90: 0
B91: 82 | E91: Electricity savings or uses of second system (alternative) (kWh) | F91: 0 | G91: 0 | H91: 0 | I91: 0 | J91: 0 | X91: ='Incentive Model'!B187 -> 20 | AB91: Thermal Output, Btu/kWh | AC91: 4243.28594 | AD91: 3784.705882 | AE91: 4243.28594 | AF91: 3784.705882 | AG91: 4243.28594 | AH91: 0 | AI91: 0 | AJ91: 0 | AK91: 0 | AL91: 0
B92: 83 | E92: Sales price or production incentives of generation, second system ($/kWh) | F92: 0.055 | G92: 0 | H92: 0 | I92: 0 | J92: 0 | X92: ='Incentive Model'!B188 -> 21 | AB92: Electric Efficiency, % | AC92: 0.3429 | AD92: 0.361320598 | AE92: 0.3429 | AF92: 0.361320598 | AG92: 0.3429 | AH92: 0 | AI92: 0 | AJ92: 0 | AK92: 0 | AL92: 0
B93: 84 | E93: Fuel Use, MMBtu | F93: 0 | G93: 0 | H93: 0 | I93: 0 | J93: 0 | X93: ='Incentive Model'!B189 -> 22 | AB93: CHP Efficiency (%) | AC93: 0.7693427752 | AD93: 0.7621096346 | AE93: 0.7693427752 | AF93: 0.7621096346 | AG93: 0.7693427752 | AH93: 0 | AI93: 0 | AJ93: 0 | AK93: 0 | AL93: 0
B94: 85 | E94: Price of Fuel Used, $ per MMBtu | F94: 0 | G94: 0 | H94: 0 | I94: 0 | J94: 0 | X94: ='Incentive Model'!B190 -> 23 | AB94: Thermal Needs Served By CHP | AG94: 0 | AH94: 0 | AI94: 0 | AJ94: 0 | AK94: 0 | AL94: 0
B95: 86 | E95: Fuel Source: 2nd System Thermal Energy Source | F95: 0 | G95: 0 | H95: 0 | I95: 0 | J95: 0 | X95: ='Incentive Model'!B191 -> 24 | AB95: Average Hourly Electric Demand (kW) | AC95: 414.7514386 | AD95: 414.7514386 | AE95: 414.7514386 | AF95: 414.7514386 | AG95: 414.7514386 | AH95: 0 | AI95: 0 | AJ95: 0 | AK95: 0 | AL95: 0
B96: 87 | E96: Heat Savings or Generation (MMBtu) | F96: 35136.36 | G96: 0 | H96: 0 | I96: 0 | J96: 0 | X96: ='Incentive Model'!B192 -> 25 | AB96: Maximum Electric Demand | AC96: 500 | AD96: 500 | AE96: 500 | AF96: 500 | AG96: 500 | AH96: 0 | AI96: 0 | AJ96: 0 | AK96: 0 | AL96: 0
B97: 88 | E97: Price of Heat Savings or Generation ($/MMBtu) | F97: 3 | G97: 0 | H97: 0 | I97: 0 | J97: 0 | X97: ='Incentive Model'!B193 -> 26 | AB97: Minimum Electric Demand | AC97: 500 | AD97: 500 | AE97: 500 | AF97: 500 | AG97: 500 | AH97: 0 | AI97: 0 | AJ97: 0 | AK97: 0 | AL97: 0
B98: 89 | D98: Financial (CHP Screening Tool) | E98: Simple Payback, Years | F98: 11.49888793 | G98: 13.40781382 | H98: 12.84154338 | I98: 14.28722324 | J98: 14.92834084 | X98: ='Incentive Model'!B194 -> 27 | AB98: Average Hourly Thermal Demand (MMBtu/hr) | AC98: 0.3717621553 | AD98: 0.3717621553 | AE98: 0.3717621553 | AF98: 0.3717621553 | AG98: 0.3717621553 | AH98: 0 | AI98: 0 | AJ98: 0 | AK98: 0 | AL98: 0
B99: 90 | E99: Payback Includes Incentives? | F99: Yes | G99: Yes | H99: Yes | I99: Yes | J99: Yes | X99: ='Incentive Model'!B195 -> 28 | AB99: Minimum Average Hourly Thermal Demand (MMBtu/hr) | AC99: 1.306011872 | AD99: 1.306011872 | AE99: 1.306011872 | AF99: 1.306011872 | AG99: 1.306011872 | AH99: 0 | AI99: 0 | AJ99: 0 | AK99: 0 | AL99: 0
B100: 91 | E100: Grants | F100: 500000 | G100: 500000 | H100: 500000 | I100: 500000 | J100: 500000 | X100: ='Incentive Model'!B196 -> 29 | AB100: =E43 -> Offsetting Boiler Efficiency (%) | AC100: 0.8 | AD100: 0.8 | AE100: 0.8 | AF100: 0.8 | AG100: 0.8 | AH100: 0 | AI100: 0 | AJ100: 0 | AK100: 0 | AL100: 0
B101: 92 | E101: Production Incentives, $ per kWh | F101: 0 | G101: 0 | H101: 0 | I101: 0 | J101: 0 | X101: ='Incentive Model'!B197 -> 30 | AB101: Operating Strategy | AC101: Use All Gas Available | AD101: Use All Gas Available | AE101: Use All Gas Available | AF101: Use All Gas Available | AG101: Use All Gas Available | AH101: 0 | AI101: 0 | AJ101: 0 | AK101: 0 | AL101: 0
B102: 93 | E102: Sector | F102: Agricultural | G102: Agricultural | H102: Agricultural | I102: Agricultural | J102: Agricultural | X102: ='Incentive Model'!B198 -> 31 | AB102: Average operation as percent of derated installed capacity | AC102: 1 | AD102: 0.8083539629 | AE102: 1 | AF102: 0.8083539629 | AG102: 0.7457326995 | AH102: 0 | AI102: 0 | AJ102: 0 | AK102: 0 | AL102: 0
B103: 94 | E103: Discount Rate | F103: 0.03 | G103: 0.03 | H103: 0.03 | I103: 0.03 | J103: 0 | X103: ='Incentive Model'!B199 -> 32 | AB103: Percent Electrical Loads Met | AC103: 1.340963056 | AD103: 1.378426392 | AE103: 1.269892014 | AF103: 1.378426392 | AG103: 0.947 | AH103: 0 | AI103: 0 | AJ103: 0 | AK103: 0 | AL103: 0
B104: 95 | E104: Project Life | F104: 20 | G104: 20 | H104: 20 | I104: 20 | J104: 0 | X104: ='Incentive Model'!B200 -> 33 | AB104: Percent Thermal Loads Met | AC104: 2.082489392 | AD104: 1.689037772 | AE104: 2.082489392 | AF104: 1.59951877 | AG104: 1.150337254 | AH104: 0 | AI104: 0 | AJ104: 0 | AK104: 0 | AL104: 0
B105: 96 | E105: General Inflation | F105: 0.025 | G105: 0.025 | H105: 0.025 | I105: 0.025 | J105: 0.025 | X105: ='Incentive Model'!B201 -> 34 | AB105: Variable O&M | AC105: =F54 -> 0.02 | AD105: 0.02 | AE105: 0.02 | AF105: 0.02 | AG105: 0.02 | AH105: 0 | AI105: 0 | AJ105: 0 | AK105: 0 | AL105: 0
B106: 97 | E106: First Year of Project | F106: 2016 | G106: 2016 | H106: 2016 | I106: 2016 | J106: 2016 | X106: ='Incentive Model'!B202 -> 35 | AB106: CHP Electricity purchase price, $/kWh, melded | AC106: =IF(F69=0,F80,F80+F58/F69) -> 0.200384798 | AD106: 0.200384798 | AE106: 0.200384798 | AF106: 0.200384798 | AG106: 0.200384798 | AH106: 0 | AI106: 0 | AJ106: 0 | AK106: 0 | AL106: 0
B107: 98 | E107: Contingencies | F107: 0 | G107: 0 | H107: 0 | I107: 0 | J107: 0 | X107: ='Incentive Model'!B203 -> 36 | AB107: Baseline Demand, $ | AC107: =F59 -> 5693.427333 | AD107: 5693.427333 | AE107: 5693.427333 | AF107: 5693.427333 | AG107: 5693.427333 | AH107: 0 | AI107: 0 | AJ107: 0 | AK107: 0 | AL107: 0
B108: 99 | E108: Taxable Entity? | F108: True | G108: True | H108: True | I108: True | J108: True | X108: ='Incentive Model'!B204 -> 37 | AB108: Fuel Rate at Full Fire | AC108: =AC90*AC89/10^6 -> 6.101174285 | AD108: =AD90*AD89/10^6 -> 7.775053957 | AE108: 6.101174285 | AF108: 7.775053957 | AG108: 6.101174285 | AH108: 0 | AI108: 0 | AJ108: 0 | AK108: 0 | AL108: 0
B109: 100 | E109: Federal Tax Rate | F109: 0.35 | G109: 0.35 | H109: 0.35 | I109: 0.35 | J109: 0.35 | X109: ='Incentive Model'!B205 -> 38 | AB109: =E141 -> 0 | AC109: 0 | AD109: 0 | AE109: 0 | AF109: 0 | AG109: 0 | AH109: 0 | AI109: 0 | AJ109: 0 | AK109: 0 | AL109: 0
B110: 101 | E110: State Tax Rate | F110: 0.065 | G110: 0.065 | H110: 0.065 | I110: 0.065 | J110: 0.065 | X110: ='Incentive Model'!B206 -> 39
B111: 102 | E111: Federal Bonus Depreciation, Asset Class (Year) | F111: 5 | G111: 5 | H111: 5 | I111: 5 | J111: 5 | X111: ='Incentive Model'!B207 -> 40
B112: 103 | E112: Percent Depreciable, CHP Plant | F112: 0.7 | G112: 0.7 | H112: 0.7 | I112: 0.7 | J112: 0.7 | X112: ='Incentive Model'!B208 -> 41
B113: 104 | E113: Percent Salvage Value at End of Project, CHP Plant | F113: 0.2 | G113: 0.2 | H113: 0.2 | I113: 0.2 | J113: 0 | X113: ='Incentive Model'!B209 -> 42
B114: 105 | E114: Percent Depreciable, Other Costs | F114: 0.3 | G114: 0.3 | H114: 0.3 | I114: 0.3 | J114: 0.3 | X114: ='Incentive Model'!B210 -> 43
B115: 106 | E115: Percent Salvage Value at End of Project, Other Costs | F115: 0.2 | G115: 0.2 | H115: 0.2 | I115: 0.2 | J115: 0 | X115: ='Incentive Model'!B211 -> 44 | AA115: Fuel Sources | AB115: =E61 -> Fuel Source: Baseline Heating Source | AC115: Propane | AD115: Propane | AE115: Propane | AF115: Propane | AG115: Propane | AH115: 0 | AI115: 0 | AJ115: 0 | AK115: 0 | AL115: 0
B116: 107 | D116: Contacts | E116: Contact Name: | F116: Mr. Jeremy Visser, Natural Milk, LLC | G116: Mr. Jeremy Visser, Natural Milk, LLC | H116: Mr. Jeremy Visser, Natural Milk, LLC | I116: Mr. Jeremy Visser, Natural Milk, LLC | J116: Mr. Jeremy Visser, Natural Milk, LLC | X116: ='Incentive Model'!B212 -> 45 | AB116: =E64 -> Fuel Source: CHP Fuel | AC116: Digester Gas | AD116: Digester Gas | AE116: Digester Gas | AF116: Digester Gas | AG116: Digester Gas | AH116: 0 | AI116: 0 | AJ116: 0 | AK116: 0 | AL116: 0
B117: 108 | E117: Email Address: | F117: virtualmilkman@gmail.com | X117: ='Incentive Model'!B213 -> 46 | AB117: Fuel Source: Biomass Boiler Fuel (Biomass Boiler Analysis) | AC117: Digester Gas | AD117: Digester Gas | AE117: Digester Gas | AF117: Digester Gas | AG117: Digester Gas | AH117: 0 | AI117: 0 | AJ117: 0 | AK117: 0 | AL117: 0
B118: 109 | E118: Phone No. | F118: 360-410-8888 | X118: ='Incentive Model'!B214 -> 47 | AB118: Fuel Source: Residual Boiler Fuel | AC118: Digester Gas | AD118: Digester Gas | AE118: Digester Gas | AF118: Digester Gas | AG118: Digester Gas | AH118: 0 | AI118: 0 | AJ118: 0 | AK118: 0 | AL118: 0
B119: 110 | E119: Fax No. | F119: 0 | X119: ='Incentive Model'!B215 -> 48 | AB119: Fuel Source: HRSG | AC119: 0 | AD119: 0 | AE119: 0 | AF119: 0 | AG119: 0 | AH119: 0 | AI119: 0 | AJ119: 0 | AK119: 0 | AL119: 0
B120: 111 | D120: Analysis Version | E120: CHP Screening Tool Version/Filename | F120: CHP20171108~MASTER dairy digester.xlsm | G120: CHP20171108~MASTER dairy digester.xlsm | H120: CHP20171108~MASTER dairy digester.xlsm | I120: CHP20171108~MASTER dairy digester.xlsm | J120: CHP20171108~MASTER dairy digester.xlsm | X120: ='Incentive Model'!B216 -> 49
B121: 112 | E121: CHP Screening Tool Transfer Date | F121: 2018-01-26 | G121: 2018-01-26 | H121: 2018-01-26 | I121: 2018-01-26 | J121: 2018-01-26 | X121: ='Incentive Model'!B217 -> 50 | AA121: Operating Factor | AB121: =E40 -> Operating Hours | AC121: 8295.72 | AD121: 0 | AE121: 0 | AF121: 0 | AG121: 0 | AH121: 0 | AI121: 0 | AJ121: 0 | AK121: 0 | AL121: 0 | AM121: Operating Hours | AN121: Operating Factor
B122: 113 | E122: Time | F122: 43126.65081 | G122: 43126.65081 | H122: 43126.65081 | I122: 43126.65081 | J122: 43126.65081 | X122: ='Incentive Model'!B218 -> 51 | AB122: =AM122 -> Dispatch Factor, Year 0 | AC122: 1 | AD122: 1 | AE122: 1 | AF122: 1 | AG122: 1 | AH122: 1 | AI122: 1 | AJ122: 1 | AK122: 1 | AL122: 1 | AM122: Dispatch Factor, Year 0
B123: 114 | X123: ='Incentive Model'!B219 -> 52 | AB123: =E42 -> Operation in First Year (%), as percent of availability | AC123: 1 | AD123: 1 | AE123: 1 | AF123: 1 | AG123: 0 | AH123: 0 | AI123: 0 | AJ123: 0 | AK123: 0 | AL123: 0 | AM123: Availability, Year 0
B124: 115 | X124: ='Incentive Model'!B220 -> 53 | AB124: =AM124 -> Dispatch Factor, Year 1 | AC124: 1 | AD124: 1 | AE124: 1 | AF124: 1 | AG124: 1 | AH124: 1 | AI124: 1 | AJ124: 1 | AK124: 1 | AL124: 1 | AM124: Dispatch Factor, Year 1
B125: 116 | E125: Heat Sales, MMBtu | F125: 11451.03626 | G125: 7288.936566 | X125: ='Incentive Model'!B221 -> 54 | AB125: =E41 -> CHP Availability (%) | AC125: 0.947 | AD125: 0.947 | AE125: 0.947 | AF125: 0.947 | AG125: 0.947 | AH125: 0 | AI125: 0 | AJ125: 0 | AK125: 0 | AL125: 0 | AM125: Availability, Year 1
B126: 117 | E126: Heat Sales Price, $ per MMBtu | F126: 3 | G126: 3 | X126: ='Incentive Model'!B222 -> 55 | AB126: Resource Depletion Rate | AC126: 0 | AD126: 0 | AE126: 0 | AF126: 0 | AG126: 0 | AH126: 0 | AI126: 0 | AJ126: 0 | AK126: 0 | AL126: 0 | AM126: Resource Depletion Rate
B127: 118 | X127: ='Incentive Model'!B223 -> 56 | AA127: Incentive Data (Required) | AB127: Capacity (kW) | AC127: =AC87*AC88 -> 633 | AD127: 850 | AE127: 633 | AF127: 850 | AG127: 633 | AH127: 0 | AI127: 0 | AJ127: 0 | AK127: 0 | AL127: 0 | AM127: Generated Electricity
B128: 119 | X128: ='Incentive Model'!B224 -> 57 | AB128: Annual Electricity Savings (kWh/year) | AC128: =F77 -> 3420929.905 | AD128: 3420929.905 | AE128: 3420929.905 | AF128: 3420929.905 | AG128: 3420929.905 | AH128: 0 | AI128: 0 | AJ128: 0 | AK128: 0 | AL128: 0 | AM128: Offset Thermal Efficiency
B129: 120 | X129: ='Incentive Model'!B225 -> 58 | AB129: Annual Fuel Savings (MMBtu/year) | AC129: =-F78 -> -50115.53429 | AD129: -51725.80969 | AE129: -50115.53429 | AF129: -51725.80969 | AG129: -36525.89124 | AH129: 0 | AI129: 0 | AJ129: 0 | AK129: 0 | AL129: 0 | AM129: Purchased CHP Fuel
B130: 121 | X130: ='Incentive Model'!B226 -> 59 | AB130: Generated Electricity (kWh per year) | AC130: =F68 -> 5086581.167 | AD130: 5521318.068 | AE130: 5086581.167 | AF130: 5521318.068 | AG130: 3793229.905 | AH130: 0 | AI130: 0 | AJ130: 0 | AK130: 0 | AL130: 0 | AM130: Annual Heat Recovered | AO130: Capacity (kW)
B131: 122 | X131: ='Incentive Model'!B227 -> 60 | AB131: Offset Thermal Efficiency | AC131: =F43 -> 0.8 | AD131: 0.8 | AE131: 0.8 | AF131: 0.8 | AG131: 0.8 | AH131: 0 | AI131: 0 | AJ131: 0 | AK131: 0 | AL131: 0 | AO131: Annual Electricity Savings (kWh/year)
B132: 123 | X132: ='Incentive Model'!B228 -> 61 | AB132: Purchased CHP Fuel (MMBtu per year) | AC132: =F71 -> 53446.28674 | AD132: 55056.56214 | AE132: 53446.28674 | AF132: 55056.56214 | AG132: 39856.64368 | AH132: 0 | AI132: 0 | AJ132: 0 | AK132: 0 | AL132: 0 | AO132: Annual Fuel Savings (MMBtu/year)
B133: 124 | X133: ='Incentive Model'!B229 -> 62 | AB133: Annual Heat Recovered (MMBtu per year) | AC133: =F76 -> 22029.46443 | AD133: 17867.36473 | AE133: 10578.42816 | AF133: 10578.42816 | AG133: 10578.42816 | AH133: 0 | AI133: 0 | AJ133: 0 | AK133: 0 | AL133: 0 | AO133: Generated Electricity (kWh per year)
B134: 125 | X134: ='Incentive Model'!B230 -> 63 | AB134: Carbon Emissions Reductions (metric tonnes) | AC134: =F156-F157 -> 3093.131924 | AD134: 0 | AE134: 0 | AF134: 0 | AG134: 0 | AH134: 0 | AI134: 0 | AJ134: 0 | AK134: 0 | AL134: 0 | AO134: Offset Thermal Efficiency
B135: 126 | X135: ='Incentive Model'!B231 -> 64 | AB135: CHP Full Installed Cost | AC135: =F53 -> 3849895 | AD135: 4500895 | AE135: 3799895 | AF135: 4450895 | AG135: 3673295 | AH135: 0 | AI135: 0 | AJ135: 0 | AK135: 0 | AL135: 0 | AO135: Purchased CHP Fuel (MMBtu per year)
B136: 127 | X136: ='Incentive Model'!B232 -> 65 | Z136: CapEx 1 | AA136: Capital Expenditures | AB136: CHP Plant | AC136: True | AD136: True | AE136: True | AF136: True | AG136: True | AH136: True | AI136: True | AJ136: True | AK136: True | AL136: True | AM136: CapEx Category 1 Desc | AN136: Capital Expenditures | AO136: Annual Heat Recovered (MMBtu per year)
B137: 128 | X137: ='Incentive Model'!B233 -> 66 | Z137: 1 | AB137: CHP Plant Including Installation Minus Other Costs | AC137: =F53-SUM(AC149:AC158) -> 3849895 | AD137: 4500895 | AE137: 3799895 | AF137: 4450895 | AG137: 3673295 | AH137: 0 | AI137: 0 | AJ137: 0 | AK137: 0 | AL137: 0 | AM137: Cat 1 Item | AO137: Carbon Emissions Reductions (metric tons)
B138: =B137+1 -> 129 | X138: ='Incentive Model'!B234 -> 67 | Z138: 2 | AM138: Cat 1 Item | AO138: CHP Full Installed Cost
B139: 130 | X139: ='Incentive Model'!B235 -> 68 | Z139: 3 | AM139: Cat 1 Item
B140: 131 | X140: ='Incentive Model'!B236 -> 69 | Z140: 4 | AM140: Cat 1 Item
B141: 132 | X141: ='Incentive Model'!B237 -> 70 | Z141: 5 | AM141: Cat 1 Item
B142: 133 | X142: ='Incentive Model'!B238 -> 71 | Z142: 6 | AM142: Cat 1 Item
B143: 134 | X143: ='Incentive Model'!B239 -> 72 | Z143: 7 | AM143: Cat 1 Item
B144: 135 | X144: ='Incentive Model'!B240 -> 73 | Z144: 8 | AM144: Cat 1 Item
B145: 136 | X145: ='Incentive Model'!B241 -> 74 | Z145: 9 | AM145: Cat 1 Item
B146: 137 | X146: ='Incentive Model'!B242 -> 75 | Z146: 10 | AM146: Cat 1 Item
B147: 138 | X147: ='Incentive Model'!B243 -> 76 | AB147: Sensitivity
B148: 139 | F148: =F10 -> Scenario 1 | H148: Scenario 3 | I148: Scenario 4 | J148: Scenario 5 | K148: 0 | L148: 0 | M148: 0 | N148: 0 | O148: 0 | X148: ='Incentive Model'!B244 -> 77 | Z148: CapEx 1 | AB148: =IF(ISNONTEXT(HLOOKUP('Incentive Model'!F14,PrototypeResults,B48,FALSE)),"Other Costs",HLOOKUP('Incentive Model'!F14,PrototypeResults,B48,FALSE)) -> Other Costs | AC148: True | AD148: True | AE148: True | AF148: True | AG148: True | AH148: True | AI148: True | AJ148: True | AK148: True | AL148: True | AM148: CapEx Category 2 Desc
B149: 140 | X149: ='Incentive Model'!B245 -> 78 | Z149: 1 | AB149: Other Capital 1 | AC149: =F49 -> 0 | AD149: 0 | AE149: 0 | AF149: 0 | AG149: 0 | AH149: 0 | AI149: 0 | AJ149: 0 | AK149: 0 | AL149: 0 | AM149: Cat 2 Item
B150: 141 | X150: ='Incentive Model'!B246 -> 79 | Z150: 2 | AB150: Other Capital 2 | AC150: 0 | AD150: 0 | AE150: 0 | AF150: 0 | AG150: 0 | AH150: 0 | AI150: 0 | AJ150: 0 | AK150: 0 | AL150: 0 | AM150: Cat 2 Item
B151: 142 | X151: ='Incentive Model'!B247 -> 80 | Z151: 3 | AM151: Cat 2 Item
E152: CO2e Emissions Reductions, metric tonnes | F152: =F156-F157 -> 3093.131924 | H152: =H156-H157 -> 0 | I152: 0 | J152: 0 | K152: 0 | L152: 0 | M152: 0 | N152: 0 | O152: 0 | X152: ='Incentive Model'!B248 -> 81 | Z152: 4 | AM152: Cat 2 Item
E153: CO2 Emissions Reductions, metric tonnes | F153: =F158-F159 -> 3095.8052 | H153: =H158-H159 -> 0 | I153: 0 | J153: 0 | K153: 0 | L153: 0 | M153: 0 | N153: 0 | O153: 0 | X153: ='Incentive Model'!B249 -> 82 | Z153: 5 | AM153: Cat 2 Item
E154: NOx Emissions Reductions, metric tonnes | F154: =F164-F165 -> 2.036844725 | H154: =H164-H165 -> 0 | I154: 0 | J154: 0 | K154: 0 | L154: 0 | M154: 0 | N154: 0 | O154: 0 | X154: ='Incentive Model'!B250 -> 83 | Z154: 6 | AM154: Cat 2 Item
E155: SOx Emissions Reductions, metric tonnes | F155: =F166-F167 -> 61695.83864 | H155: =H166-H167 -> 0 | I155: 0 | J155: 0 | K155: 0 | L155: 0 | M155: 0 | N155: 0 | O155: 0 | X155: ='Incentive Model'!B251 -> 84 | Z155: 7 | AM155: Cat 2 Item
B156: =B151+1 -> 143 | E156: CO2e Emissions, Baseline (metric tonnes CO2e) | F156: 575086.1673 | X156: ='Incentive Model'!B252 -> 85 | Z156: 8 | AM156: Cat 2 Item
B157: 144 | E157: CO2e Emissions, Alternative (metric tonnes CO2e) | F157: 571993.0354 | X157: ='Incentive Model'!B253 -> 86 | Z157: 9 | AM157: Cat 2 Item
B158: 145 | E158: CO2 Emissions, Baseline (metric tonnes CO2) | F158: 574823.2456 | X158: ='Incentive Model'!B254 -> 87 | Z158: 10 | AM158: Cat 2 Item
B159: 146 | E159: CO2 Emissions, Alternative (metric tonnes CO2) | F159: 571727.4404 | X159: ='Incentive Model'!B255 -> 88 | AB159: Sensitivity
B160: 147 | E160: CH4 Emissions, Baseline (metric tonnes CH4) | F160: 5.000658458 | X160: ='Incentive Model'!B256 -> 89 | Z160: CapEx 1 | AB160: Avoided Capital Costs | AC160: True | AD160: True | AE160: True | AF160: True | AG160: True | AH160: True | AI160: True | AJ160: True | AK160: True | AL160: True | AM160: CapEx Category 3 Desc
B161: 148 | E161: CH4 Emissions, Alternative (metric tonnes CH4) | F161: 5.052864765 | X161: ='Incentive Model'!B257 -> 90 | Z161: 1 | AB161: Avoided Capital Costs | AC161: =-F52 -> 0 | AD161: 0 | AE161: 0 | AF161: 0 | AG161: 0 | AH161: 0 | AI161: 0 | AJ161: 0 | AK161: 0 | AL161: 0 | AM161: Cat 3 Item
B162: 149 | E162: N2O Emissions, Baseline (metric tonnes N2O) | F162: 0.4627690816 | X162: ='Incentive Model'!B258 -> 91 | Z162: 2 | AM162: Cat 3 Item
B163: 150 | E163: N2O Emissions, Alternative (metric tonnes N2O) | F163: 0.4673600816 | X163: ='Incentive Model'!B259 -> 92 | Z163: 3 | AM163: Cat 3 Item
B164: 151 | E164: NOx Emissions, Baseline (metric tonnes NOx) | F164: 872.2730696 | X164: ='Incentive Model'!B260 -> 93 | Z164: 4 | AM164: Cat 3 Item
B165: 152 | E165: NOx Emissions, Alternative (metric tonnes NOx) | F165: 870.2362249 | X165: ='Incentive Model'!B261 -> 94 | Z165: 5 | AM165: Cat 3 Item
B166: 153 | E166: SOx Emissions, Baseline (metric tonnes SOx) | F166: 3248901.639 | X166: ='Incentive Model'!B262 -> 95 | Z166: 6 | AM166: Cat 3 Item
B167: 154 | E167: SOx Emissions, Alternative (metric tonnes SOx) | F167: 3187205.801 | X167: ='Incentive Model'!B263 -> 96 | Z167: 7 | AM167: Cat 3 Item
B168: 155 | E168: Electricity Emissions Factor Source: Base Case | F168: Possible Future 950 lb CO2/kWh | X168: ='Incentive Model'!B264 -> 97 | Z168: 8 | AM168: Cat 3 Item
B169: 156 | E169: EPA eGrid Subregion | F169: NWPP | X169: ='Incentive Model'!B265 -> 98 | Z169: 9 | AM169: Cat 3 Item
B170: 157 | E170: Emissions Time Horizon | F170: 100 year (Kyoto) | X170: ='Incentive Model'!B266 -> 99 | Z170: 10 | AM170: Cat 3 Item
B171: 158 | E171: Pre-combustion Electricity Emissions | F171: 0 | X171: ='Incentive Model'!B267 -> 100 | AB171: Sensitivity
B172: 159 | E172: Transmission and Distribution Losses | F172: 4.79% (Western Interconnect, eGRID2014 released January 13, 2017) | X172: ='Incentive Model'!B268 -> 101 | Z172: Below the Line | AB172: Contractor Profit Factor | AC172: 0 | AD172: 0 | AE172: 0 | AF172: 0 | AG172: 0 | AH172: 0 | AI172: 0 | AJ172: 0 | AK172: 0 | AL172: 0 | AM172: Contractor Profit Factor
B173: 160 | E173: Off-site GHG Emissions of Natural Gas | F173: Not Included | X173: ='Incentive Model'!B269 -> 102 | AB173: Contingencies | AC173: 0 | AD173: 0 | AE173: 0 | AF173: 0 | AG173: 0 | AH173: 0 | AI173: 0 | AJ173: 0 | AK173: 0 | AL173: 0 | AM173: Contigencies
B174: 161 | E174: Baseline Natural Gas Technology 1 | F174: Existing Boiler (EPA Calculator) | X174: ='Incentive Model'!B270 -> 103 | Z174: Revenue 1 | AA174: Sales & Savings | AB174: Baseline Electricity Purchases (Avoided), Not Including Demand | AM174: Revenue 1 | AN174: Sales & Savings
B175: 162 | E175: Baseline Natural Gas Technology 2 | F175: 0 | X175: ='Incentive Model'!B271 -> 104 | AB175: Unit | AC175: kWh | AD175: kWh | AE175: kWh | AF175: kWh | AG175: kWh | AH175: kWh | AI175: kWh | AJ175: kWh | AK175: kWh | AL175: kWh | AM175: Unit
B176: 163 | E176: Alternative Natural Gas Technology 1 | F176: Existing Boiler (EPA Calculator) | X176: ='Incentive Model'!B272 -> 105 | AB176: Taxable | AC176: Taxable | AD176: Taxable | AE176: Taxable | AF176: Taxable | AG176: Taxable | AH176: Taxable | AI176: Taxable | AJ176: Taxable | AK176: Taxable | AL176: Taxable | AM176: Taxable
B177: 164 | E177: Alternative Natural Gas Technology 2 | F177: Stationary Recip Engine - Lean Burn (EPA Calculator) | X177: ='Incentive Model'!B273 -> 106 | AB177: Apply Operating | AC177: True | AD177: True | AE177: True | AF177: True | AG177: True | AH177: True | AI177: True | AJ177: True | AK177: True | AL177: True | AM177: Apply Operating
B178: 165 | E178: Calculator Version/Filename | F178: GHG_20170314~NWN Recip Prototypes, 100% HR.xlsm | X178: ='Incentive Model'!B274 -> 107 | AB178: Units Sold (per year) | AC178: =F62 -> 3633222.602 | AD178: 3633222.602 | AE178: 3633222.602 | AF178: 3633222.602 | AG178: 3633222.602 | AH178: 0 | AI178: 0 | AJ178: 0 | AK178: 0 | AL178: 0 | AM178: Units Sold (per year)
B179: 166 | E179: Results Transfer Date | F179: 2017-03-22 | X179: ='Incentive Model'!B275 -> 108 | AB179: Unit Cost | AC179: =F79 -> 0.07081143745 | AD179: 0.07081143745 | AE179: 0.07081143745 | AF179: 0.07081143745 | AG179: 0.07081143745 | AH179: 0 | AI179: 0 | AJ179: 0 | AK179: 0 | AL179: 0 | AM179: Unit Cost
B180: 167 | E180: CO2 Emissions Reductions | X180: ='Incentive Model'!B280 -> 113 | AB180: Escalation Relative to Inflation (or like Elec or Nat Gas | AC180: Like Electricity | AD180: Like Electricity | AE180: Like Electricity | AF180: Like Electricity | AG180: Like Electricity | AH180: Like Electricity | AI180: Like Electricity | AJ180: Like Electricity | AK180: Like Electricity | AL180: Like Electricity | AM180: Annual Escalation Relative to Inflation
B181: 168 | X181: ='Incentive Model'!B281 -> 114 | AB181: Fuel Source | AC181: Electricity | AD181: Electricity | AE181: Electricity | AF181: Electricity | AG181: Electricity | AH181: Electricity | AI181: Electricity | AJ181: Electricity | AK181: Electricity | AL181: Electricity | AM181: Blank
B182: 169 | X182: ='Incentive Model'!B282 -> 115 | Z182: Revenue 2 | AB182: Baseline Boiler Fuel Purchases (Avoided) | AM182: Revenue 2
B183: 170 | X183: ='Incentive Model'!B283 -> 116 | AB183: Unit | AC183: MMBtu | AD183: MMBtu | AE183: MMBtu | AF183: MMBtu | AG183: MMBtu | AH183: MMBtu | AI183: MMBtu | AJ183: MMBtu | AK183: MMBtu | AL183: MMBtu | AM183: Unit
B184: 171 | X184: ='Incentive Model'!B284 -> 117 | AB184: Taxable | AC184: Taxable | AD184: Taxable | AE184: Taxable | AF184: Taxable | AG184: Taxable | AH184: Taxable | AI184: Taxable | AJ184: Taxable | AK184: Taxable | AL184: Taxable | AM184: Taxable
B185: 172 | X185: ='Incentive Model'!B285 -> 118 | AB185: Apply Operating | AC185: True | AD185: True | AE185: True | AF185: True | AG185: True | AH185: True | AI185: True | AJ185: True | AK185: True | AL185: True | AM185: Apply Operating
B186: 173 | X186: ='Incentive Model'!B286 -> 119 | AB186: Units Sold (per year) | AC186: =F63 -> 4070.7956 | AD186: 4070.7956 | AE186: 4070.7956 | AF186: 4070.7956 | AG186: 4070.7956 | AH186: 0 | AI186: 0 | AJ186: 0 | AK186: 0 | AL186: 0 | AM186: Units Sold (per year)
B187: 174 | X187: ='Incentive Model'!B287 -> 120 | AB187: Unit Cost | AC187: =F82 -> 16.37554585 | AD187: 16.37554585 | AE187: 16.37554585 | AF187: 16.37554585 | AG187: 16.37554585 | AH187: 0 | AI187: 0 | AJ187: 0 | AK187: 0 | AL187: 0 | AM187: Unit Cost
B188: 175 | X188: ='Incentive Model'!B288 -> 121 | AB188: Escalation Relative to Inflation (or like Elec or Nat Gas | AC188: Like Natural Gas | AD188: Like Natural Gas | AE188: Like Natural Gas | AF188: Like Natural Gas | AG188: Like Natural Gas | AH188: Like Natural Gas | AI188: Like Natural Gas | AJ188: Like Natural Gas | AK188: Like Natural Gas | AL188: Like Natural Gas | AM188: Annual Escalation Relative to Inflation
B189: 176 | X189: ='Incentive Model'!B289 -> 122 | AB189: Fuel Source | AC189: =F61 -> Propane | AD189: Propane | AE189: Propane | AF189: Propane | AG189: Propane | AH189: 0 | AI189: 0 | AJ189: 0 | AK189: 0 | AL189: 0 | AM189: Blank
B190: 177 | X190: ='Incentive Model'!B290 -> 123 | Z190: Revenue 3 | AB190: Electricity Sales | AM190: Revenue 3
B191: 178 | X191: ='Incentive Model'!B291 -> 124 | AB191: Unit | AC191: kWh | AD191: kWh | AE191: kWh | AF191: kWh | AG191: kWh | AH191: kWh | AI191: kWh | AJ191: kWh | AK191: kWh | AL191: kWh | AM191: Unit
B192: 179 | X192: ='Incentive Model'!B292 -> 125 | AB192: Taxable | AC192: Taxable | AD192: Taxable | AE192: Taxable | AF192: Taxable | AG192: Taxable | AH192: Taxable | AI192: Taxable | AJ192: Taxable | AK192: Taxable | AL192: Taxable | AM192: Taxable
B193: 180 | X193: ='Incentive Model'!B293 -> 126 | AB193: Apply Operating | AC193: True | AD193: True | AE193: True | AF193: True | AG193: True | AH193: True | AI193: True | AJ193: True | AK193: True | AL193: True | AM193: Apply Operating
B194: 181 | X194: ='Incentive Model'!B294 -> 127 | AB194: Units Sold (per year) | AC194: =F70 -> 1081058.564 | AD194: 1515795.466 | AE194: 1081058.564 | AF194: 1515795.466 | AG194: 0 | AH194: 0 | AI194: 1081058.564 | AJ194: 1515795.466 | AK194: 1081058.564 | AL194: 1515795.466 | AM194: Units Sold (per year)
B195: 182 | X195: ='Incentive Model'!B295 -> 128 | AB195: Unit Cost | AC195: =F81 -> 0.065 | AD195: 0.065 | AE195: 0.065 | AF195: 0.065 | AG195: 0.065 | AH195: 0 | AI195: 0 | AJ195: 0 | AK195: 0 | AL195: 0 | AM195: Unit Cost
B196: 183 | X196: ='Incentive Model'!B296 -> 129 | AB196: Escalation Relative to Inflation (or like Elec or Nat Gas | AC196: Like Electricity Sales | AD196: Like Electricity Sales | AE196: Like Electricity Sales | AF196: Like Electricity Sales | AG196: Like Electricity Sales | AH196: Like Electricity Sales | AI196: Like Electricity Sales | AJ196: Like Electricity Sales | AK196: Like Electricity Sales | AL196: Like Electricity Sales | AM196: Annual Escalation Relative to Inflation
B197: 184 | X197: ='Incentive Model'!B297 -> 130 | AB197: Fuel Source | AC197: Electricity Sales | AD197: Electricity Sales | AE197: Electricity Sales | AF197: Electricity Sales | AG197: Electricity Sales | AH197: Electricity Sales | AI197: Electricity Sales | AJ197: Electricity Sales | AK197: Electricity Sales | AL197: Electricity Sales | AM197: Blank
B198: 185 | X198: ='Incentive Model'!B298 -> 131 | Z198: Revenue 4 | AB198: Baseline Demand Charges (Avoided) | AM198: Revenue 4
B199: 186 | X199: ='Incentive Model'!B299 -> 132 | AB199: Unit | AC199: Total | AD199: Total | AE199: Total | AF199: Total | AG199: Total | AH199: Total | AI199: Total | AJ199: Total | AK199: Total | AL199: Total | AM199: Unit
B200: 187 | X200: ='Incentive Model'!B300 -> 133 | AB200: Taxable | AC200: Taxable | AD200: Taxable | AE200: Taxable | AF200: Taxable | AG200: Taxable | AH200: Taxable | AI200: Taxable | AJ200: Taxable | AK200: Taxable | AL200: Taxable | AM200: Taxable
... 387 more rows

Sheet Overview
C1: RELCOST | F1: =IF(ErrorLine1<>"",ErrorLine1,"") -> 
C2: Financial Analysis of Energy Projects | F2: =IF(ErrorLine2<>"",ErrorLine2,"") -> 
C3: ©2019 Washington State University Extension Energy Program
B8: About RELCOST | F8: Getting Around...
B9: The RELCOST Financial model is spreadsheet template used to evaluate the financial viability of energy projects. RELCOST provides three general methods to evaluate the viability of a project: life cycle cost analysis, use of pro forma statements, and use of financial ratios. RELCOST is available for free download at the Northwest CHP Technical Assistance Partnership (http://www.northwestchptap.org) and is open-source software under a GNU General Public License. | F9: Tabs that are primarily used for data input are Yellow
B10: Input tabs (Yellow): Flexible user inputs include capital costs for construction, funding (equity, grants, and loans), operating costs (purchased fuels, labor, materials/expendables, etc.), taxes and fees (depreciation, tax credits, franchise costs, tax rates, etc.), cost escalation factors, revenues from from sales and savings, production-based incentives. | F10: Tabs and cells primarily used for results are Green. Reports and pro formas begin with O_
B11: Inputs can be made in any year of the project with project lives of up to 30 years. Space is provided for detailed, comprehensive analysis of complex projects, although preliminary analyses with a minimum of inputs can be performed. | F11: See Index
B12: WhatIf tab: Life cycle cost results and financial ratios are displayed on a Financial Scorecard in a stop-light chart (Red-Yellow-Green) for quick assessment. A palette of sensitivity factors for inputs is side by side with the Financial Scorecard to facilitate conducting “What If” evaluations. The “WhatIf” tab also contains graphs of information from pro forma statements.
B13: Pro formas and Reports (Green tabs beginning with O_): Pro forma financial statements (Income Statement, Cash Flow Statement, Balance Sheet, and Sources/Uses of Funds Statement) show financial details over a 30-year analysis period. | F13: Tool Tips...
B14: Spider Diagram: A “spider diagram” is a useful way to explore the sensitivity of project viability to uncertainty. A measure of life cycle cost (such as internal rate of return) is plotted as selected inputs (e.g. capital costs) are varied one by one. The more sensitive a project is to a parameter, the more attention that should be paid to narrowing its uncertainty. | F14: To open all comments to see tips on using this tool and background on topics, click...
B15: Decision Matrix: The Decision Matrix tab allows you to view life cycle cost results when up to three parameters at a time are varied. The Spider Diagram, in contrast, allows you to vary only one at a time. | F15: ... or hover your mouse over cells with a red triangle to see tool tips one at a time.
B16: Incentive Summary: Financial incentives that may be modeled are: grants, loans and equity investments, production-based incentives, investment tax credits and production tax credits. These are tabulated by source on the Incentve Summary tab.
B17: Scenarios
B18: Inputs for up to 10 scenarios can be defined on the Scenarios tab (optional feature). On most input sheets and on the WhatIf tab, a drop down "Scenario" menu allows you to easily switch between the scenarios you have defined.
B19: Note entries on the Scenarios tab do not automatically load into your input tabs. On each tab, you must make references that set up how you want inputs to vary in each scenario. For more, click on the "Show Tips" button at the top of the Scenarios sheet. | F19: Viewing Options...
B20: If you are considering only one case, we suggest you click the button "Hide Scenarios Option" on the General tab. This button will hide the Scenarios tab and hide all the scenario sections on input sheets. | F20: Buttons on the General tab are:
B21: Updates | F21: To hide or show the Scenarios tab and scenarios sections on input sheets, click...
B22: RELCOST is updated frequently. Start each project with the latest version available online by clicking on "RELCOST".
B23: http://www.northwestchptap.org/ResourcesSoftwareLinks/Software.aspx
B24: Getting Started | F24: To change the zoom of all sheets and go to the top of each sheet, click...
B25: Enable Macros
B26: By default macros are disabled in Excel unless you choose to enable them. Operation of RELCOST requres macros to be enabled. | F26: To select alternative cell colors, toggling between yellow or blue inputs and green or orange outputs, click...
B27: Each time you open RELCOST, you should see a message in red reminding you to enable macros and telling you how. This message will disappear once macros are enabled. When you close RELCOST, the reminder will reappear. Save again so the reminder will be there when you next open.
B29: Input Tabs | E29: Top | F29: To protect calculations from being overwritten (recommended), click...
B30: WORKSHEET | C30: INPUTS | D30: CALCULATED VALUES ON SHEET...
B31: General | C31: Enter project description, project life, discount rate, and inflation rate. | D31: Plant operating factors
C32: Enter dispatch factor and availabilty to determine plant operating factors for each year of the project.
B33: Capital Expenditures | C33: Enter capital expenditures in up to three user-defined categories in any year. | D33: Sub-totals of expenditures by category | F33: Utilities...
C34: Enter below-the-line expenses (contractor profit factor, contingency, value-added taxes) for each category as percents. | D34: Total expenditures , including inflation, escalation, plant operating factors, and sensitivity factor | F34: Buttons at the top of many sheets are:
B35: Funding Plan | C35: Enter amounts, source, schedule and other details for borrowed funds, equity investments, and grants. | D35: Funding totals by source | F35: To copy number formats from those you chose on the Scenarios tab to the scenarios sections on input sheets, click...
B36: Purchases | C36: Enter quantities and unit costs of purchases and if quantities should be multiplied by the operating factor. Identify quantities as fuel or non-fuel purchases for reporting. | D36: Purchase costs
B37: Sales & Savings | C37: Enter revenues (sales or savings) in up to nine user-defined categories. Identify if revenues are taxable and if quantities should be multiplied by the plant operating factor. | D37: Revenues from sales, including inflation, escalation, plant operating factors, and sensitivity factor | F37: To print pro formas and other forms over the life of the project, click...
B38: Production Incentives | C38: Enter production-based incentives (not tax credits), such as carbon offsets and renewable energy credits | D38: Revenues from production incentives, including inflation, escalation, plant operating factors | F38: To hide and show workspace near the top of the sheet for your custom calculations, click...
B39: O&M | C39: Enter non-fuel operation and maintenance expenses in up to fFour user-defined categories. | D39: Total O&M costs, including inflation, escalation, plant operating factors, and sensitivity factor | E39: Top
C40: Costs of operating labor, insurance, and property taxes may be entered separately. | F40: Workspace is also available below input areas.
C41: Enter deposits and withdrawals from the operating reserve account for accounting on the "Cash Accounts" tab
B42: Major Expenses | C42: Enter periodic expenses such as major overhauls | D42: Total major expenses, including inflation, escalation, plant operating factors, and sensitivity factor | F42: Hot Keys for Copying Between Files...
B43: Taxes & Fees | C43: Enter federal, state and local tax rates | D43: Income tax payments | F43: CTRL+N Paste copied formulas and number formats to a range.
C44: Enter franchise fees and royalty payments | F44: Removes any links to other files in formulas.
B45: Tax Credits | C45: Enter information on investment and production tax credits | F45: CTRL+M Paste copied values to a range
B46: Depreciation | C46: Enter depreciation base and salvage value. Select depreciation schedule from menu. | D46: Annual depreciation for tax and shareholder purposes | F46: CTRL+O Copy number format of a cell
C47: Depreciation schedules are defined on "Depreciation Factors" tab. | F47: CTRL+P Paste copied number format to a cell
C48: U.S. MACRS factors are built-in. Custom schedules can be defined on Depreciation Factors. | F48: CTRL+R Remove all links to other files in formulas.
B49: Dividends | C49: Enter maximum payout of dividends | D49: Dividend payments
C50: and percent of net profit after taxes
B51: Cost Escalation | C51: Enter escalation factors for likely, conservative and aggressive forecasts | D51: Total escalation factors including forecast factors & general inflation | F51: When Closing...
B52: Cost Allocation | C52: Enter allocation of costs to multiple revenue streams (used in calculating levelized costs on the WhatIf tab) | D52: -- | F52: Why does the red ENABLE MACROS message reappear when I close?
B53: Depreciation Factors | C53: Optionally enter depreciation factors of user-defined depreciation schedules. U.S. MACRS and straight-line factors are built-in. | F53: This reminder is restored when your file is closed, so it will be there the next time you open the file.
F54: Save the file again to save the reminder.
B56: Analyzing Results | E56: Top
B57: WORKSHEET | C57: RESULTS
B58: WhatIf | C58: The financial scorecard shows life cycle cost results, financial ratios and financial margins...
C59: Sensitivity factors on the palette to the left of results are used to easily change inputs and view results immediately to play "What If" sensitivity studies
C60: Save life cycle cost results using "Save As" buttons.
C61: The WhatIf tab includes graphs of data from pro-formas (such as the cash flow statement) and forms (such as the operating costs summary)
B62: Stop-Light Indicators | C62: Values at which the red-yellow-green stoplight colors change are set on the "Stop-Light Indicators" tab.
B63: Spider Diagram | C63: In a spider diagram, the selected measure of viability (e.g. internal rate of return) appears on the horizontal axis and the percent variation in parameters (e.g. capital costs) on the vertical axis. The flatter a line, the more sensitive project performance is to changes in that parameter and the more attention that should be paid to it. | E63: Top
C64: In the work area below the diagram select the performance measure used to assess project viability and up to five parameters to vary.
C65: Enter sensitivity factors for each parameter to determine how they vary from the most likely values entered elsewhere in the workbook.
B66: Decision Matrix | C66: The Decision Matrix allows investigating project performance when up to three parameters are varied at a time. | E66: Top
B68: Incentive Summary | C68: A summary of incentives by source gathered from several locations in the workbook...Grants and loans from the Funding Plan tab; Renewable Energy Credits, Carbon Offsets and other production-based incentives from the Prod Incentives tab. Investment and production tax credits from the Tax Credits tab. | E68: Top
B69: Funding Schedule | C69: • Amounts borrowed and annual payments on interest and principal of borrowed funds
C70: • Amounts of equity investments and grants
B71: Cash Accounts | C71: • Deposits, withdrawals and balances of cash account and operating reserve account
B74: Pro Formas and Reports | E74: Top
B75: WORKSHEET | C75: RESULTS
B76: Purchases Report | C76: Quantities and costs of purchases
C77: (escalated and non-escalated)
B78: Operating Costs Report | C78: Variable and fixed operating costs, including fuel purchases
C79: (escalated and non-escalated)
B80: Operating Income Report | C80: Income from sales, environmental credits and production incentives (escalated and non-escalated, with and without sensitivity factors)
B81: Income Statement (Tax) | C81: Income statement: gross income, operating income, net profit before and after tax with:
B82: Income Statement (Shareholders) | C82: • Sales income detail
C83: • Cost of sales detail
C84: • Operating expenses detail
B85: Balance Sheet (Tax) | C85: Assets, liabilities and shareholder funds
B86: BalanceSheet (Shareholders)
B87: Use of Funds | C87: Sources of funds
C88: Uses of funds
B89: Cash Flow | C89: Cash flow summary for operations and financing activities
B90: * The names of worksheets intended to be printed out as forms begin with “O_”.
B94: References | E94: Top
B95: "Financial Intelligence for Entrepreneurs" by Karen Berman and Joe Knight, Harvard Business Review Press, 2008
B97: "Finance" by A.A. Gropppelli and Ehsan Nikbakht, Barron's, 2006
B99: FAQs, Energy Information Agency, U.S. DOE
B100: http://www.eia.gov/tools/faqs/
B102: Online References on Financial Terms:
B103: Investopedia | C103: www.investopedia.com
B104: Business Dictionary | C104: http://www.businessdictionary.com/
B106: "Investment Analysis", Energy Star Building Manual: Chapter 3, U.S. Environmental Protection Agency, Revised July 2007
B107: A good summary of the fundamentals of financial analysis of energy projects.
B108: www.energystar.gov/buildings/sites/default/uploads/tools/EPA_BUM_CH3_InvestAnalysis.pdf
B110: "Best Practices Guide: Economic & Financial Evaluation of Renewable Energy Projects", United States Agency for International Development , June 2002
B111: http://pdf.usaid.gov/pdf_docs/PNADB613.pdf
B113: "Renewable Energy Cost Modeling: A Toolkit for Establishing Cost-Based Incentives in the United States", National Renewable Energy Laboratory, May 2011
B114: http://www.nrel.gov/docs/fy11osti/51093.pdf
B116: Database of State Incentives for Renewables and Efficiency (DSIRE)
B117: www.dsireusa.org
B119: "How to Depreciate Property", U.S. Internal Revenue Service
B120: http://www.irs.gov/publications/p946/index.html
B121: http://www.irs.gov/publications/p946/ar02.html
B123: Cost allocation for energy projects can be calculated in the same manner as emissions allocation.
B124: "Cogeneration: Options to Calculate Facility-Specific Efficiency Values", California Air Resources Board
B125: http://www.arb.ca.gov/cc/ccei/presentations/CogenerationOptions.pdf
B127: "Comparative Costs of California Central Station Electricity Generation", California Energy Commision, 2009
B128: Includes good review of cost analysis of energy projects, in addition to cost data
B129: http://www.energy.ca.gov/2009publications/CEC-200-2009-017/CEC-200-2009-017-SD.PDF
B131: "A Guide to Funding Resources", The U.S. Department of Agriculture
B132: www.nal.usda.gov/ric/ricpubs/fundguide.html
B134: "FASB Learning Guide", Financial Accounting Standards Board
B135: https://asc.fasb.org/cs/ContentServer?site=FAF&c=Document_C&sitepfx=FAF&pagename=FAF/Document_C/CodDocumentPage&cid=1175805121281
B137: "Development of Distributed Generation in the United States" , November 20, 2012
B138: http://www.hks.harvard.edu/hepg/Papers/2013/EPEBritEmb111912(JO)-2.pdf
B140: "Distributed Generation Primer", U.S. Department of Energy, May 2002
B141: http://www.casfcc.org/2/StationaryFuelCells/PDF/Distributed%20Generation%20Primer.pdf
B143: Renewable Energy Certificates website, U.S. Department of Energy
B144: http://apps3.eere.energy.gov/greenpower/markets/certificates.shtml?page=0
B146: GHG Offset Marketers website, U.S. Department of Energy
B147: http://apps3.eere.energy.gov/greenpower/markets/carbon.shtml?page=2
A176: Calculation Area
B177: Toggle_Comments | C177: Hidden
B180: Copied | C180: No
B181: Project

Sheet Grants & Loans (hidden)
B1: RELCOST: Incentive Structure Setup | F1: =IF(ErrorLine1="","","ENABLE MACROS") ->  | L1: INPUT (Edit) | M1: RESULTS (No Edits)
A2: NOTES: | B2: * Must have references to the "Incentive Model" sheet for parameters to be investigated.
B3: * "Grant & Loans" sheet must be referenced from the "Grant Calculators" sheet.
B4: * Be careful in setting up sensitivity factors to not double count them in the analysis.
B5: --- Reference senstivity factors on WhatIf sheet here
B6: --- Double check values on input sheets by varying sensitivity factors on WhatIf sheet and ensuring values on inputs sheets vary proportionately.
B7: * Check references to "Scenarios" sheet and to other input sheets. (e.g. "Prod Incentive" sheet.)
B9: GRANTS
B11: 1 | C11: 2 | D11: =C11+1 -> 3 | E11: =D11+1 -> 4 | F11: =E11+1 -> 5 | G11: =F11+1 -> 6
B12: GRANT | C12: Total Grants & Tax Credits Applied In Order
C13: =IF('Grant Calculators'!D6=0,"",'Grant Calculators'!D6) -> Scenario 1 | D13: =IF('Grant Calculators'!E6=0,"",'Grant Calculators'!E6) -> Scenario 2 | E13: =IF('Grant Calculators'!F6=0,"",'Grant Calculators'!F6) -> Scenario 3 | F13: =IF('Grant Calculators'!G6=0,"",'Grant Calculators'!G6) -> Scenario 4 | G13: =IF('Grant Calculators'!H6=0,"",'Grant Calculators'!H6) -> Scenario 5
A14: ='Grant Calculators'!B32 -> 1 | B14: ='Grant Calculators'!C32 ->  | C14: ='Grant Calculators'!D32 ->  | D14: ='Grant Calculators'!E32 ->  | E14: ='Grant Calculators'!F32 ->  | F14: ='Grant Calculators'!G32 ->  | G14: ='Grant Calculators'!H32 -> 
A15: ='Grant Calculators'!B33 -> 2 | B15: ='Grant Calculators'!C33 ->  | C15: ='Grant Calculators'!D33 ->  | D15: ='Grant Calculators'!E33 ->  | E15: ='Grant Calculators'!F33 ->  | F15: ='Grant Calculators'!G33 ->  | G15: ='Grant Calculators'!H33 -> 
A16: ='Grant Calculators'!B34 -> 3 | B16: ='Grant Calculators'!C34 ->  | C16: ='Grant Calculators'!D34 ->  | D16: ='Grant Calculators'!E34 ->  | E16: ='Grant Calculators'!F34 ->  | F16: ='Grant Calculators'!G34 ->  | G16: ='Grant Calculators'!H34 -> 
A17: ='Grant Calculators'!B35 -> 4 | B17: ='Grant Calculators'!C35 ->  | C17: ='Grant Calculators'!D35 ->  | D17: ='Grant Calculators'!E35 ->  | E17: ='Grant Calculators'!F35 ->  | F17: ='Grant Calculators'!G35 ->  | G17: ='Grant Calculators'!H35 -> 
A18: ='Grant Calculators'!B36 -> 5 | B18: ='Grant Calculators'!C36 -> REAP Grant | C18: ='Grant Calculators'!D36 -> 500000 | D18: ='Grant Calculators'!E36 -> 500000 | E18: ='Grant Calculators'!F36 -> 500000 | F18: ='Grant Calculators'!G36 -> 500000 | G18: ='Grant Calculators'!H36 -> 500000
A19: 6 | B19: ='Grant Calculators'!C37 ->  | C19: ='Grant Calculators'!D37 ->  | D19: ='Grant Calculators'!E37 ->  | E19: ='Grant Calculators'!F37 ->  | F19: ='Grant Calculators'!G37 ->  | G19: ='Grant Calculators'!H37 -> 
A20: 7 | B20: ='Grant Calculators'!C38 ->  | C20: ='Grant Calculators'!D38 ->  | D20: ='Grant Calculators'!E38 ->  | E20: ='Grant Calculators'!F38 ->  | F20: ='Grant Calculators'!G38 ->  | G20: ='Grant Calculators'!H38 -> 
A21: 8 | B21: ='Grant Calculators'!C39 ->  | C21: ='Grant Calculators'!D39 ->  | D21: ='Grant Calculators'!E39 ->  | E21: ='Grant Calculators'!F39 ->  | F21: ='Grant Calculators'!G39 ->  | G21: ='Grant Calculators'!H39 -> 
B22: =C12 -> Total Grants & Tax Credits Applied In Order | C22: ='Grant Calculators'!D40 -> 500000 | D22: ='Grant Calculators'!E40 -> 500000 | E22: ='Grant Calculators'!F40 -> 500000 | F22: ='Grant Calculators'!G40 -> 500000 | G22: ='Grant Calculators'!H40 -> 500000
B23: Installed Cost | C23: ='Grant Calculators'!D8 -> 3849895 | D23: ='Grant Calculators'!E8 -> 4500895 | E23: ='Grant Calculators'!F8 -> 3799895 | F23: ='Grant Calculators'!G8 -> 4450895 | G23: ='Grant Calculators'!H8 -> 3673295
B24: ='Grant Calculators'!C41 -> Remaining Cost | C24: ='Grant Calculators'!D41 -> 3349895 | D24: ='Grant Calculators'!E41 -> 4000895 | E24: ='Grant Calculators'!F41 -> 3299895 | F24: ='Grant Calculators'!G41 -> 3950895 | G24: ='Grant Calculators'!H41 -> 3173295
A25: 1 | B25: Loan 1 on Remaining Amount
A26: 2 | B26: Loan 2 on Remaining Amount
A34: Order of Application | D34: Apply
A35: =IF(D35="Yes",'Incentive Model'!G83,9) -> 9 | B35: ='Incentive Model'!E686 -> Federal ITC As Grant | C35: =B35 -> Federal ITC As Grant | D35: ='Incentive Model'!F82 -> No | E35: =IF(D35="Yes",1,0) -> 0 | G35: SENSITIVITY FACTORS
B36: Maximum System Size (kW) | C36: ='Incentive Model'!G86*H37 -> 0 | G36: Federal ITC As Grant | H36: =WhatIf!B118 -> 1 | I36: Do not reference this here. Echo only.
B37: Applicable Capacity (kW) | C37: ='Incentive Model'!G85 -> 15000 | G37: Federal ITC Maximum | H37: =IF(D35="No",0,WhatIf!B106) -> 0
B38: Percent of Installed Cost | C38: ='Incentive Model'!G84*H38 -> 0 | G38: Federal ITC Percent | H38: =IF(D35="No",0,WhatIf!B107) -> 0
D39: Apply | G39: http://www.gpo.gov/fdsys/pkg/USCODE-2011-title26/pdf/USCODE-2011-title26-subtitleA-chap1-subchapA-partIV-subpartE-sec48.pdf
A40: =IF(D40="Yes",'Incentive Model'!G78,9) -> 9 | B40: ='Incentive Model'!E76 -> ODOE State Tax Credit | C40: =B40 -> ODOE State Tax Credit | D40: ='Incentive Model'!F76 -> No | E40: =IFERROR(IF(D40="Yes",A53/E53+A35+1,0),A35+1) -> 0
B41: Percent of Installed Cost, Total | C41: ='Incentive Model'!F79 -> 0.35 | E41: =C41*H41 -> 0 | G41: ='Incentive Model'!E76 -> ODOE State Tax Credit | H41: =IF(D40="No",0,WhatIf!B108) -> 0
B42: Year 1 | C42: ='Incentive Model'!H$79 -> 0.1 | D42: 1 | E42: =C42*$H$41 -> 0
B43: Year 2 | C43: ='Incentive Model'!I$79 -> 0.1 | D43: 2 | E43: 0
B44: Year 3 | C44: ='Incentive Model'!J$79 -> 0.05 | D44: 3 | E44: 0
B45: Year 4 | C45: ='Incentive Model'!K$79 -> 0.05 | D45: 4 | E45: 0
B46: Year 5 | C46: ='Incentive Model'!L$79 -> 0.05 | D46: 5 | E46: 0
D47: 6 | E47: 0
B48: Maxiumum Amount | C48: ='Incentive Model'!G80 -> 5000000 | E48: =C48*H48 -> 0 | G48: ='Incentive Model'!E80 -> ODOE Tax Credit (Maximum) | H48: =IF(D40="No",0,WhatIf!B109) -> 0 | J48: Capacity Grant
B49: Incentive Type | C49: State Investment Tax Credit | J49: CO2e Incentive Grant
B50: Carry Forward (years) | C50: ='Incentive Model'!G81 -> 5 | J50: SB844 CO2e Annual Incentive
B51: If considered grant, period (years) | C51: 3 | D51: check how applied | J51: ETO Grant
D52: Apply | J52: ODOE EIP State Tax Credit
A53: =IF(D53="Yes",'Incentive Model'!G71,9) -> 9 | B53: ='Incentive Model'!E69 -> ETO CHP Grant (wrt grid) | C53: =B53 -> ETO CHP Grant (wrt grid) | D53: ='Incentive Model'!F69 -> No | E53: =IF(D53="Yes",A35+1,0) -> 0 | J53: Federal ITC As Grant
B54: Year of First Payment | C54: 1 | J54: Private Grant
B55: Payout Period | C55: ='Incentive Model'!G75 -> 1 | G55: Scenario | H55: ='Incentive Model'!Project -> 1
B56: Per Annual Electricity Savings ($/kWh) | C56: ='Incentive Model'!G72*H56 -> 0 | G56: =CONCATENATE(B53," ($/kWh)") -> ETO CHP Grant (wrt grid) ($/kWh) | H56: =IF(D53="No",0,WhatIf!B110) -> 0
B57: Maximum Amount | C57: ='Incentive Model'!G73*H57 -> 0 | G57: =CONCATENATE(B53," Maximum ($)") -> ETO CHP Grant (wrt grid) Maximum ($) | H57: =IF(D53="No",0,WhatIf!B111) -> 0
B58: Maximum as Percent of Installed Cost | C58: ='Incentive Model'!G74 -> 0.5
D66: Apply | E66: Proposed Order of Application
A67: =IF(D67="Yes",'Incentive Model'!G52,9) -> 9 | B67: ='Incentive Model'!E50 -> Grant ($100/kW) | C67: =B67 -> Grant ($100/kW) | D67: ='Incentive Model'!F50 -> No | E67: =IF(D67="Yes",MAX(A35,A40,A53,A72)+1,0) -> 0
B68: Maximum System Size (kW) | C68: ='Incentive Model'!G54 -> 0 | D68: check how applied
B69: Incentive per kW | C69: ='Incentive Model'!G53*H69 -> 0 | G69: ='Incentive Model'!E53 -> Grant $ per kW | H69: =IF(D67="No",0,WhatIf!B112) -> 0
B70: Maxiumum Amount | C70: ='Incentive Model'!G55 -> 100000
A72: =IF(D72="Yes",'Incentive Model'!G58,9) -> 9 | B72: ='Incentive Model'!E56 -> CO2e Grant | C72: =B72 -> CO2e Grant | D72: ='Incentive Model'!F56 -> No | E72: =IF(D72="Yes",MAX(A40:A53)+1,0) -> 0
B73: Lump Sum
B74: Incentive per kW
B75: Incentive per metric ton of CO2e | C75: ='Incentive Model'!G59*H75 -> 0 | D75: check how applied | G75: ='Incentive Model'!E59 -> Grant $/metric tons CO2e | H75: =IF(D72="No",0,WhatIf!B113) -> 0
B76: Percent of Installed Cost
B77: Percent of Annual Electricity Savings
B78: Maximum Amount | C78: ='Incentive Model'!G60 -> 0
B79: Maximum Amount per kW
B80: Maximum Amount, % Installed Cost
D81: Apply | E81: Proposed Order of Application
A82: =IF(D82="Yes",'Incentive Model'!G89,9) -> 5 | B82: ='Incentive Model'!E87 -> REAP Grant | C82: =B82 -> REAP Grant | D82: ='Incentive Model'!F87 -> Yes | E82: =IF(D82="Yes",MAX(A35,A40,A53,A72,A67)+1,0) -> 10
B83: Lump Sum | C83: ='Incentive Model'!G90*H83 -> 500000 | G83: =B83 -> Lump Sum | H83: =IF(D82="No",0,WhatIf!B114) -> 1
B84: Incentive per kW
B85: Incentive per short ton of CO2e
B86: Percent of Installed Cost
B87: Percent of Annual Electricity Savings
B88: Maximum Amount
B89: Maximum Amount per kW
B90: Maximum Amount, % Installed Cost
D91: Apply | E91: Proposed Order of Application
A92: =IF(D92="Yes",'Incentive Model'!G93,9) -> 9 | B92: ='Incentive Model'!E91 -> Grant | C92: =B92 -> Grant | D92: ='Incentive Model'!F91 -> No
B93: Lump Sum | C93: ='Incentive Model'!G94*H93 -> 0 | G93: =B93 -> Lump Sum | H93: =IF(D92="No",0,WhatIf!B115) -> 0
B94: Incentive per kW
B95: Incentive per short ton of CO2e
B96: Percent of Installed Cost
B97: Percent of Annual Electricity Savings
B98: Maximum Amount
B99: Maximum Amount per kW
B100: Maximum Amount, % Installed Cost
A104: =IF(D104="Yes",'Incentive Model'!G97,9) -> 9 | B104: ='Incentive Model'!E95 -> ODOE Incentive (100% upfront at 29% through Pass-Through Partner) Grant (29%) | C104: ='Incentive Model'!E95 -> ODOE Incentive (100% upfront at 29% through Pass-Through Partner) Grant (29%) | D104: ='Incentive Model'!F95 -> No | E104: =IF(D104="Yes",MAX(A35,A40,A53,A72,A67,A82)+1,0) -> 0
B105: Lump Sum
B106: Incentive per kW
B107: Incentive per short ton of CO2e
B108: Percent of Installed Cost | C108: ='Incentive Model'!G98*H108 -> 0 | G108: =CONCATENATE('Incentive Model'!G96, " Grant Percent") -> ODOE Incentive (100% upfront at 29% through Pass-Through Partner) Grant Percent | H108: =IF(D104="No",0,WhatIf!B116) -> 0
B109: Percent of Annual Electricity Savings
B110: Maximum Amount | C110: =IF(OR('Incentive Model'!G99="",'Incentive Model'!G99=0),10^9,'Incentive Model'!G99*H110) -> 1000000000 | G110: =CONCATENATE('Incentive Model'!G96," Grant Maximum") -> ODOE Incentive (100% upfront at 29% through Pass-Through Partner) Grant Maximum | H110: =IF(D104="No",0,WhatIf!B117) -> 0
B111: Maximum Amount per kW
B112: Maximum Amount, % Installed Cost
B115: ='Incentive Model'!E61 -> SB844 CO2e Production Incentive | C115: =B115 -> SB844 CO2e Production Incentive | D115: ='Incentive Model'!F61 -> No | E115: Incentive On
B116: Unit | C116: metric ton CO2e | E116: Incentive On For Scenario
B117: Incentive per unit | C117: ='Incentive Model'!G63 -> 25 | G117: ='Incentive Model'!E63 -> Pick Quantity from Menu | H117: =IF($D$115="Yes",WhatIf!B118,0) -> 0
B118: Maximum per Year | C118: ='Incentive Model'!G64 -> 1875000 | G118: ='Incentive Model'!E64 -> SB844 CO2e Production Incentive, Annual Maximum | H118: =IF($D$115="Yes",WhatIf!B119,0) -> 0
B119: Start Year Number | C119: ='Incentive Model'!G66 -> 1 | G119: ='Incentive Model'!E65 -> SB844 CO2e Maximum tonnes CO2e per year | H119: =IF($D$115="Yes",WhatIf!B121,0) -> 0
B120: End Year Number | C120: ='Incentive Model'!G67+C119-1 -> 10
B180: LOANS
B181: Do Loans Sum to Remaining Installed Cost after Grants? | C181: ='Incentive Model'!F103 -> Yes | G181: Installed Costs | H181: ='Grant Calculators'!D8 -> 3849895 | I181: ='Grant Calculators'!E8 -> 4500895 | J181: ='Grant Calculators'!F8 -> 3799895 | K181: ='Grant Calculators'!G8 -> 4450895 | L181: ='Grant Calculators'!H8 -> 3673295
G182: Amount of Grants | H182: =C22 -> 500000 | I182: =D22 -> 500000 | J182: =E22 -> 500000 | K182: =F22 -> 500000 | L182: =G22 -> 500000
G183: Remaining Installed Costs After Grants | H183: =C24 -> 3349895 | I183: =D24 -> 4000895 | J183: =E24 -> 3299895 | K183: =F24 -> 3950895 | L183: =G24 -> 3173295
G184: LOAN | H184: Loans Applied in Order
A185: Order of Application | D185: Apply | H185: =C13 -> Scenario 1 | I185: =D13 -> Scenario 2 | J185: =E13 -> Scenario 3 | K185: =F13 -> Scenario 4 | L185: =G13 -> Scenario 5
A186: =IF(A186=A195,1,'Incentive Model'!G106) -> 1 | B186: ='Incentive Model'!E104 -> Construction Loan (60%) | D186: ='Incentive Model'!F104 -> No | F186: 1 | G186: ='Loan Calculators'!C31 -> Construction Loan (60%) | H186: =H233 -> 0 | I186: 0 | J186: 0 | K186: 0 | L186: 0
B187: Percent of Installed Cost | C187: ='Incentive Model'!G107 -> 0.6 | F187: 2 | G187: ='Loan Calculators'!C36 ->  | H187: 0 | I187: 0 | J187: 0 | K187: 0 | L187: 0
B188: Maximum Amount | C188: =IF('Incentive Model'!G108="","",'Incentive Model'!G108) -> 500000 | G188: ='Loan Calculators'!C37 -> Total Loans | H188: =SUM(H186:H187) -> 0 | I188: =SUM(I186:I187) -> 0 | J188: =SUM(J186:J187) -> 0 | K188: =SUM(K186:K187) -> 0 | L188: =SUM(L186:L187) -> 0
B189: Project Year | C189: ='Incentive Model'!G109 -> 1 | G189: ='Loan Calculators'!C38 -> Remaining After Grants and Loans | H189: =H181-H182-H188 -> 3349895 | I189: =I181-I182-I188 -> 4000895 | J189: =J181-J182-J188 -> 3299895 | K189: =K181-K182-K188 -> 3950895 | L189: =L181-L182-L188 -> 3173295
B190: Loan Fees (% amount) | C190: ='Incentive Model'!G111 -> 0.01
B191: Annual Interest Rate | C191: ='Incentive Model'!G112 -> 0.04
B192: Term (months) | C192: ='Incentive Model'!G113 -> 12
D194: Apply
A195: =IF(A186=A195,2,'Incentive Model'!G116) -> 2 | B195: ='Incentive Model'!E114 -> Long Term Loan | D195: ='Incentive Model'!F114 -> No
B196: Amount of Loan | C196: ='Incentive Model'!G117 -> 1500000
B197: Project Year | C197: ='Incentive Model'!G118 -> 1
B198: Loan Fees (% amount) | C198: ='Incentive Model'!G120 -> 0.01
B199: Annual Interest Rate | C199: ='Incentive Model'!G121 -> 0.04
B200: Term (months) | C200: ='Incentive Model'!G122 -> 60
G202: Loan 1 If applied first
G203: Remaining Installed Cost | H203: =H183 -> 3349895 | I203: =I183 -> 4000895 | J203: =J183 -> 3299895 | K203: =K183 -> 3950895 | L203: =L183 -> 3173295
G204: Fraction of Costs for Loan | H204: =$C$187*H$183 -> 2009937 | I204: =$C$187*I$183 -> 2400537 | J204: =$C$187*J$183 -> 1979937 | K204: =$C$187*K$183 -> 2370537 | L204: =$C$187*L$183 -> 1903977
G205: Amount if Applied | H205: =IF($C$188<>"",IF(H204>$C$188,$C$188,H204),H204) -> 500000 | I205: =IF($C$188<>"",IF(I204>$C$188,$C$188,I204),I204) -> 500000 | J205: =IF($C$188<>"",IF(J204>$C$188,$C$188,J204),J204) -> 500000 | K205: =IF($C$188<>"",IF(K204>$C$188,$C$188,K204),K204) -> 500000 | L205: =IF($C$188<>"",IF(L204>$C$188,$C$188,L204),L204) -> 500000
G206: Amount | H206: =IF($D$186="Yes",H205,0) -> 0 | I206: =IF($D$186="Yes",I205,0) -> 0 | J206: =IF($D$186="Yes",J205,0) -> 0 | K206: =IF($D$186="Yes",K205,0) -> 0 | L206: =IF($D$186="Yes",L205,0) -> 0
G207: Amount (ensure it's positive) | H207: =IF(H206>0,H206,0) -> 0 | I207: =IF(I206>0,I206,0) -> 0 | J207: =IF(J206>0,J206,0) -> 0 | K207: =IF(K206>0,K206,0) -> 0 | L207: =IF(L206>0,L206,0) -> 0
G210: Loan 2 If applied Second
G211: Remaining Installed Cost | H211: =IF($C$181="Yes",H203-H207,H183) -> 3349895 | I211: =IF($C$181="Yes",I203-I207,I183) -> 4000895 | J211: =IF($C$181="Yes",J203-J207,J183) -> 3299895 | K211: =IF($C$181="Yes",K203-K207,K183) -> 3950895 | L211: =IF($C$181="Yes",L203-L207,L183) -> 3173295
G212: Maximum amount of loan | H212: =$C$196 -> 1500000 | I212: =$C$196 -> 1500000 | J212: =$C$196 -> 1500000 | K212: =$C$196 -> 1500000 | L212: =$C$196 -> 1500000
G213: Amount if Applied | H213: =MIN(H211:H212) -> 1500000 | I213: =MIN(I211:I212) -> 1500000 | J213: =MIN(J211:J212) -> 1500000 | K213: =MIN(K211:K212) -> 1500000 | L213: =MIN(L211:L212) -> 1500000
G214: Amount | H214: =IF($D$195="Yes",H213,0) -> 0 | I214: =IF($D$195="Yes",I213,0) -> 0 | J214: =IF($D$195="Yes",J213,0) -> 0 | K214: =IF($D$195="Yes",K213,0) -> 0 | L214: =IF($D$195="Yes",L213,0) -> 0
G215: Amount of Loan (ensure it's positive) | H215: =IF(H214>0,H214,0) -> 0 | I215: =IF(I214>0,I214,0) -> 0 | J215: =IF(J214>0,J214,0) -> 0 | K215: =IF(K214>0,K214,0) -> 0 | L215: =IF(L214>0,L214,0) -> 0
G217: Loan 1 If applied second
G218: Remaining Installed Cost | H218: =IF($C$181="Yes",H183-H230,H183) -> 3349895 | I218: =IF($C$181="Yes",I183-I230,I183) -> 4000895 | J218: =IF($C$181="Yes",J183-J230,J183) -> 3299895 | K218: =IF($C$181="Yes",K183-K230,K183) -> 3950895 | L218: =IF($C$181="Yes",L183-L230,L183) -> 3173295
G219: Maximum Amount of Loan | H219: =$C$187*H$183 -> 2009937 | I219: =$C$187*I$183 -> 2400537 | J219: =$C$187*J$183 -> 1979937 | K219: =$C$187*K$183 -> 2370537 | L219: =$C$187*L$183 -> 1903977
G220: Uncapped Amount | H220: =MIN(H218:H219) -> 2009937 | I220: =MIN(I218:I219) -> 2400537 | J220: =MIN(J218:J219) -> 1979937 | K220: =MIN(K218:K219) -> 2370537 | L220: =MIN(L218:L219) -> 1903977
G221: Amount if Applied | H221: =IF($C$188<>"",IF(H220>$C$188,$C$188,H220),H220) -> 500000 | I221: =IF($C$188<>"",IF(I220>$C$188,$C$188,I220),I220) -> 500000 | J221: =IF($C$188<>"",IF(J220>$C$188,$C$188,J220),J220) -> 500000 | K221: =IF($C$188<>"",IF(K220>$C$188,$C$188,K220),K220) -> 500000 | L221: =IF($C$188<>"",IF(L220>$C$188,$C$188,L220),L220) -> 500000
G222: Amount | H222: =IF($D$186="Yes",H221,0) -> 0 | I222: =IF($D$186="Yes",I221,0) -> 0 | J222: =IF($D$186="Yes",J221,0) -> 0 | K222: =IF($D$186="Yes",K221,0) -> 0 | L222: =IF($D$186="Yes",L221,0) -> 0
G223: Amount (ensure it's positive) | H223: =IF(H222>0,H222,0) -> 0 | I223: =IF(I222>0,I222,0) -> 0 | J223: =IF(J222>0,J222,0) -> 0 | K223: =IF(K222>0,K222,0) -> 0 | L223: =IF(L222>0,L222,0) -> 0
G225: Loan 2 If applied first
G226: Remaining Installed Cost | H226: =H183 -> 3349895 | I226: =I183 -> 4000895 | J226: =J183 -> 3299895 | K226: =K183 -> 3950895 | L226: =L183 -> 3173295
G227: Maximum amount of loan | H227: =$C$196 -> 1500000 | I227: =$C$196 -> 1500000 | J227: =$C$196 -> 1500000 | K227: =$C$196 -> 1500000 | L227: =$C$196 -> 1500000
G228: Amount if Applied | H228: =MIN(H226:H227) -> 1500000 | I228: =MIN(I226:I227) -> 1500000 | J228: =MIN(J226:J227) -> 1500000 | K228: =MIN(K226:K227) -> 1500000 | L228: =MIN(L226:L227) -> 1500000
G229: Amount | H229: =IF($D$186="Yes",H228,0) -> 0 | I229: =IF($D$186="Yes",I228,0) -> 0 | J229: =IF($D$186="Yes",J228,0) -> 0 | K229: =IF($D$186="Yes",K228,0) -> 0 | L229: =IF($D$186="Yes",L228,0) -> 0
G230: Amount of Loan (ensure it's positive) | H230: =IF(H229>0,H229,0) -> 0 | I230: =IF(I229>0,I229,0) -> 0 | J230: =IF(J229>0,J229,0) -> 0 | K230: =IF(K229>0,K229,0) -> 0 | L230: =IF(L229>0,L229,0) -> 0
E233: =A186 -> 1 | G233: =B186 -> Construction Loan (60%) | H233: =IF($E$233=1,H207,H223) -> 0 | I233: =IF($E$233=1,I207,I223) -> 0 | J233: =IF($E$233=1,J207,J223) -> 0 | K233: =IF($E$233=1,K207,K223) -> 0 | L233: =IF($E$233=1,L207,L223) -> 0
E234: =A195 -> 2 | G234: =B195 -> Long Term Loan | H234: =IF($E$234=2,H215,H230) -> 0 | I234: =IF($E$234=2,I215,I230) -> 0 | J234: =IF($E$234=2,J215,J230) -> 0 | K234: =IF($E$234=2,K215,K230) -> 0 | L234: =IF($E$234=2,L215,L230) -> 0
C268: DropDown_0to6
C270: 0
C271: 1
C272: 2
C273: 3
C274: 4
C275: 5
C276: 6

Sheet Grant Calculators (hidden)
B1: RELCOST: Grant Structure Templates | F1: =IF(ErrorLine1="","","ENABLE MACROS") ->  | M1: INPUT (Edit) | N1: RESULTS (No Edits)
C3: Carbon Emissions Reductions Sensitivity | D3: =WhatIf!B120 -> 1
B5: PROJECT DATA | D5: 0 | E5: =D5+1 -> 1 | F5: =E5+1 -> 2 | G5: =F5+1 -> 3 | H5: =G5+1 -> 4
C6: Description | D6: ='Incentive Model'!H14 -> Scenario 1 | E6: ='Incentive Model'!I14 -> Scenario 2 | F6: ='Incentive Model'!J14 -> Scenario 3 | G6: ='Incentive Model'!K14 -> Scenario 4 | H6: ='Incentive Model'!L14 -> Scenario 5
C7: Capacity | D7: =IF('Incentive Model'!H184<>"",'Incentive Model'!H184,0) -> 633 | E7: =IF('Incentive Model'!I184<>"",'Incentive Model'!I184,0) -> 850 | F7: =IF('Incentive Model'!J184<>"",'Incentive Model'!J184,0) -> 633 | G7: =IF('Incentive Model'!K184<>"",'Incentive Model'!K184,0) -> 850 | H7: =IF('Incentive Model'!L184<>"",'Incentive Model'!L184,0) -> 633 | I7: kW
C8: Full Installed Cost (not subtracting avoided costs) | D8: =IF('Incentive Model'!H231<>"",'Incentive Model'!H231,0) -> 3849895 | E8: =IF('Incentive Model'!I231<>"",'Incentive Model'!I231,0) -> 4500895 | F8: =IF('Incentive Model'!J231<>"",'Incentive Model'!J231,0) -> 3799895 | G8: =IF('Incentive Model'!K231<>"",'Incentive Model'!K231,0) -> 4450895 | H8: =IF('Incentive Model'!L231<>"",'Incentive Model'!L231,0) -> 3673295 | P8: Finish implementing Tax Credits & Payout Periods
C9: Annual Electricity Savings to facility | D9: =IF('Incentive Model'!H224<>"",'Incentive Model'!H224,0) -> 3420929.905 | E9: =IF('Incentive Model'!I224<>"",'Incentive Model'!I224,0) -> 3420929.905 | F9: =IF('Incentive Model'!J224<>"",'Incentive Model'!J224,0) -> 3420929.905 | G9: =IF('Incentive Model'!K224<>"",'Incentive Model'!K224,0) -> 3420929.905 | H9: =IF('Incentive Model'!L224<>"",'Incentive Model'!L224,0) -> 3420929.905 | I9: kWh | P9: Total can't exceed installed cost over payout
C10: Annual Electricity Savings Compared to Grid | D10: =IFERROR('Incentive Model'!H142,0) -> 1394749.815 | E10: =IFERROR('Incentive Model'!I142,0) -> 1063452.569 | F10: =IFERROR('Incentive Model'!J142,0) -> 275377.5342 | G10: =IFERROR('Incentive Model'!K142,0) -> 407039.6176 | H10: =IFERROR('Incentive Model'!L142,0) -> 627957.9819
C11: Annual Fuel Savings | D11: =IFERROR('Incentive Model'!F225,"") -> -50115.53429 | E11: =IFERROR(-'Incentive Model'!I276,"") ->  | F11: =IFERROR(-'Incentive Model'!J276,"") ->  | G11: =IFERROR(-'Incentive Model'!K276,"") ->  | H11: =IFERROR(-'Incentive Model'!L276,"") ->  | I11: MMBtu
C12: Installed Cost per kW | D12: =IFERROR(D$8/D$7,0) -> 6081.982622 | E12: =IFERROR(E$8/E$7,0) -> 5295.170588 | F12: =IFERROR(F$8/F$7,0) -> 6002.993681 | G12: =IFERROR(G$8/G$7,0) -> 5236.347059 | H12: =IFERROR(H$8/H$7,0) -> 5802.993681
C13: Carbon Emissions Reductions (metric tons) | D13: =IF('Incentive Model'!H230<>"",'Incentive Model'!H230,0)*$D$3 -> 3093.131924 | E13: =IF('Incentive Model'!I230<>"",'Incentive Model'!I230,0)*$D$3 -> 0 | F13: =IF('Incentive Model'!J230<>"",'Incentive Model'!J230,0)*$D$3 -> 0 | G13: =IF('Incentive Model'!K230<>"",'Incentive Model'!K230,0)*$D$3 -> 0 | H13: =IF('Incentive Model'!L230<>"",'Incentive Model'!L230,0)*$D$3 -> 0 | I13: tonnes CO2e per year
C14: Federal Tax Liability, First Year | D14: ='Taxes & Fees'!C113 -> 25000.46885 | E14: ='Taxes & Fees'!D113 -> 12650.2954 | F14: ='Taxes & Fees'!E113 -> 22525.77552 | G14: ='Taxes & Fees'!F113 -> 24475.90888 | H14: ='Taxes & Fees'!G113 -> 24955.77006
C15: State Tax Liability, First Year | D15: ='Taxes & Fees'!C114 -> 5428.673236 | E15: ='Taxes & Fees'!D114 -> 2746.921286 | F15: ='Taxes & Fees'!E114 -> 4891.311256 | G15: ='Taxes & Fees'!F114 -> 5314.768786 | H15: ='Taxes & Fees'!G114 -> 5418.967212
C16: Local Tax Liability, First Year | D16: ='Taxes & Fees'!C115 -> 0 | E16: ='Taxes & Fees'!D115 -> 0 | F16: ='Taxes & Fees'!E115 -> 0 | G16: ='Taxes & Fees'!F115 -> 0 | H16: ='Taxes & Fees'!G115 -> 0
B18: TOTALS
B19: Order of Application | C19: Grants | D19: 1st Year Amounts if Applied Individually
A20: 1 | B20: ='Grants & Loans'!A35 -> 9 | C20: =IF(C593=0,"",C593) ->  | D20: =IFERROR(IF(D593=0,"",D593),"") ->  | G20: =IFERROR(IF(G593=0,"",G593),"") -> 
A21: 2 | B21: ='Grants & Loans'!A53 -> 9
A22: 3 | B22: ='Grants & Loans'!A40 -> 9
A23: 4 | B23: ='Grants & Loans'!A67 -> 9
A24: 5 | B24: ='Grants & Loans'!A72 -> 9 | C24: REAP Grant | D24: 500000 | E24: 500000 | F24: 500000 | G24: 500000 | H24: 500000
A25: 6 | B25: ='Grants & Loans'!A82 -> 5
A26: 7 | B26: ='Grants & Loans'!A92 -> 9
A27: 8 | B27: ='Grants & Loans'!A92 -> 9 | C27: =IF(C600=0,"",C600) -> 
A28: 9 | B28: ='Grants & Loans'!A104 -> 9 | C28: =IF(C601=0,"",C601) -> 
C31: Grants | D31: 1st Year Amounts Applied in Order
B32: 1 | C32: =IF(C605=0,"",C605) ->  | D32: =IF($C32="","",D605) -> 
B33: 2
B34: 3
B35: 4
B36: 5 | C36: REAP Grant | D36: 500000 | E36: 500000 | F36: 500000 | G36: 500000 | H36: 500000
B37: 6
B38: 7
B39: 8
C40: Total 1st Year Grants & Tax Credits | D40: =SUM(D32:D39) -> 500000 | E40: =SUM(E32:E39) -> 500000 | F40: =SUM(F32:F39) -> 500000 | G40: =SUM(G32:G39) -> 500000 | H40: =SUM(H32:H39) -> 500000
C41: Remaining Cost | D41: =D8-D40 -> 3349895 | E41: =E8-E40 -> 4000895 | F41: =F8-F40 -> 3299895 | G41: =G8-G40 -> 3950895 | H41: =H8-H40 -> 3173295
A44: 1 | B44: =CONCATENATE("GRANT ",A44) -> GRANT 1 | C44: =D47 -> Federal ITC As Grant | D44: =IF(D98<0,0,D98*$K$47) -> 0 | E44: =IF(E98<0,0,E98*$K$47) -> 0 | F44: =IF(F98<0,0,F98*$K$47) -> 0 | G44: =IF(G98<0,0,G98*$K$47) -> 0 | H44: =IF(H98<0,0,H98*$K$47) -> 0
C46: TWO PART GRANT | J46: =C44 -> Federal ITC As Grant
C47: Description | D47: ='Incentive Model'!$E$82 -> Federal ITC As Grant | E47: ='Incentive Model'!$E$82 -> Federal ITC As Grant | F47: ='Incentive Model'!$E$82 -> Federal ITC As Grant | G47: ='Incentive Model'!$E$82 -> Federal ITC As Grant | H47: ='Incentive Model'!$E$82 -> Federal ITC As Grant | J47: =WhatIf!A105 -> Federal ITC As Grant | K47: =WhatIf!B105 -> 1
J48: Maximum System Size (kW) | K48: ='Grants & Loans'!C36 -> 0 | L48: kW
J49: Applicable Capacity (kW) | K49: ='Grants & Loans'!C37 -> 15000 | L49: kW
C50: Carry Forward | J50: Percent of Installed Cost | K50: ='Grants & Loans'!C38 -> 0
C51: Threshold Capacity (kW) (zero if none) | D51: =$K48 -> 0 | E51: =$K48 -> 0 | F51: =$K48 -> 0 | G51: =$K48 -> 0 | H51: =$K48 -> 0 | I51: kW | J51: =$D$6 -> Scenario 1 | K51: =D44 -> 0
C52: First Installment Year | J52: =$E$6 -> Scenario 2 | K52: =E44 -> 0
C53: Incentive Period (or Years Carry Forward) | D53: 1 | E53: 1 | F53: 1 | G53: 1 | H53: 1 | J53: =$F$6 -> Scenario 3 | K53: =F44 -> 0
C54: Interest Rate | D54: 0 | E54: 0 | F54: 0 | G54: 0 | H54: 0 | J54: =$H$6 -> Scenario 5 | K54: =G44 -> 0
C55: Loan Initiation | D55: 0 | E55: 0 | F55: 0 | G55: 0 | H55: 0 | J55: =$H$6 -> Scenario 5 | K55: =H44 -> 0
C57: For systems greater than or equal to threshold
B58: 1 | C58: Percent of Installed Cost | D58: 0 | E58: 0 | F58: 0 | G58: 0 | H58: 0
B59: 2 | C59: Per Annual Energy Savings Compared to Grid ($/kWh)
B60: 3 | C60: Lump Sum
B61: 4 | C61: Amount per kW | D61: 0 | E61: 0 | F61: 0 | G61: 0 | H61: 0
B62: 5 | C62: Amount per tons CO2e per year
B63: 1 | C63: Amount Calculated as Percent of Installed Cost | D63: =OFFSET(InstalledCost,0,D$5)*D58 -> 0 | E63: =OFFSET(InstalledCost,0,E$5)*E58 -> 0 | F63: =OFFSET(InstalledCost,0,F$5)*F58 -> 0 | G63: =OFFSET(InstalledCost,0,G$5)*G58 -> 0 | H63: =OFFSET(InstalledCost,0,H$5)*H58 -> 0
B64: 2 | C64: Amount Calculated as Percent of Energy Savings Compared to Grid | D64: =D59*D$10 -> 0 | E64: =E59*E$10 -> 0 | F64: =F59*F$10 -> 0 | G64: =G59*G$10 -> 0 | H64: =H59*H$10 -> 0
B65: 3 | C65: Lump Sum | D65: =D60 -> 0 | E65: =E60 -> 0 | F65: =F60 -> 0 | G65: =G60 -> 0 | H65: =H60 -> 0
B66: 4 | C66: Amount Calculated as Per kW | D66: =D61*OFFSET(Capacity,0,D$5) -> 0 | E66: =E61*OFFSET(Capacity,0,E$5) -> 0 | F66: =F61*OFFSET(Capacity,0,F$5) -> 0 | G66: =G61*OFFSET(Capacity,0,G$5) -> 0 | H66: =H61*OFFSET(Capacity,0,H$5) -> 0
B67: 5 | C67: Amount Calculated as Per tons CO2e per year | D67: =D62*OFFSET(OFFSET(OFFSET(CO2eShortTons,0,D$5),0,D$5),0,D$5) -> 0 | E67: =E62*OFFSET(OFFSET(OFFSET(CO2eShortTons,0,E$5),0,E$5),0,E$5) -> 0 | F67: =F62*OFFSET(OFFSET(OFFSET(CO2eShortTons,0,F$5),0,F$5),0,F$5) -> 0 | G67: =G62*OFFSET(OFFSET(OFFSET(CO2eShortTons,0,G$5),0,G$5),0,G$5) -> 0 | H67: =H62*OFFSET(OFFSET(OFFSET(CO2eShortTons,0,H$5),0,H$5),0,H$5) -> 0
C68: Calculated Amount, Sum | D68: =SUM(D63:D67) -> 0 | E68: =SUM(E63:E67) -> 0 | F68: =SUM(F63:F67) -> 0 | G68: =SUM(G63:G67) -> 0 | H68: =SUM(H63:H67) -> 0
B69: 1 | C69: Maximum Amount, Absolute
B70: 2 | C70: Maximum Amount per kW | D70: 0 | E70: 0 | F70: 0 | G70: 0 | H70: 0
B71: 3 | C71: Maximum Amount as Percent of Installed Cost
B72: 1 | C72: Maximum, Absolute | D72: =IF(OR(D69=0,D69="",D58>1),OFFSET(InstalledCost,0,D$5),D69) -> 3849895 | E72: =IF(OR(E69=0,E69="",E58>1),OFFSET(InstalledCost,0,E$5),E69) -> 4500895 | F72: =IF(OR(F69=0,F69="",F58>1),OFFSET(InstalledCost,0,F$5),F69) -> 3799895 | G72: =IF(OR(G69=0,G69="",G58>1),OFFSET(InstalledCost,0,G$5),G69) -> 4450895 | H72: =IF(OR(H69=0,H69="",H58>1),OFFSET(InstalledCost,0,H$5),H69) -> 3673295
B73: 2 | C73: Maximum Amount per kW | D73: =IF(OR(D70=0,D70="",D59>1),OFFSET(InstalledCost,0,D$5),D70*Capacity4) -> 3849895 | E73: =IF(OR(E70=0,E70="",E59>1),OFFSET(InstalledCost,0,E$5),E70*Capacity4) -> 4500895 | F73: =IF(OR(F70=0,F70="",F59>1),OFFSET(InstalledCost,0,F$5),F70*Capacity4) -> 3799895 | G73: =IF(OR(G70=0,G70="",G59>1),OFFSET(InstalledCost,0,G$5),G70*Capacity4) -> 4450895 | H73: =IF(OR(H70=0,H70="",H59>1),OFFSET(InstalledCost,0,H$5),H70*Capacity4) -> 3673295
B74: 3 | C74: Maximum as Percent of Installed Cost | D74: =IF(OR(D71=0,D71="",D58>1),OFFSET(InstalledCost,0,D$5),D71*InstalledCost4) -> 3849895 | E74: =IF(OR(E71=0,E71="",E58>1),OFFSET(InstalledCost,0,E$5),E71*InstalledCost4) -> 4500895 | F74: =IF(OR(F71=0,F71="",F58>1),OFFSET(InstalledCost,0,F$5),F71*InstalledCost4) -> 3799895 | G74: =IF(OR(G71=0,G71="",G58>1),OFFSET(InstalledCost,0,G$5),G71*InstalledCost4) -> 4450895 | H74: =IF(OR(H71=0,H71="",H58>1),OFFSET(InstalledCost,0,H$5),H71*InstalledCost4) -> 3673295
C75: Amount, Capped at Maximum | D75: =MIN(D68,D72:D73) -> 0 | E75: =MIN(E68,E72:E73) -> 0 | F75: =MIN(F68,F72:F73) -> 0 | G75: =MIN(G68,G72:G73) -> 0 | H75: =MIN(H68,H72:H73) -> 0
C77: For systems less than threshold (ignored if none)
B78: 1 | C78: Percent of Installed Cost | D78: =IF(D7<$K49,$K50,$K49/D7*$K50) -> 0 | E78: =IF(E7<$K49,$K50,$K49/E7*$K50) -> 0 | F78: =IF(F7<$K49,$K50,$K49/F7*$K50) -> 0 | G78: =IF(G7<$K49,$K50,$K49/G7*$K50) -> 0 | H78: =IF(H7<$K49,$K50,$K49/H7*$K50) -> 0
B79: 2 | C79: Per Annual Energy Savings Compared to Grid ($/kWh)
B80: 3 | C80: Lump Sum | D80: 0 | E80: 0 | F80: 0 | G80: 0 | H80: 0
B81: 4 | C81: Amount per kW | D81: 0 | E81: 0 | F81: 0 | G81: 0 | H81: 0
B82: 5 | C82: Amount per tons CO2e per year
B83: 1 | C83: Amount Calculated as Percent of Installed Cost | D83: =OFFSET(InstalledCost,0,D$5)*D78 -> 0 | E83: =OFFSET(InstalledCost,0,E$5)*E78 -> 0 | F83: =OFFSET(InstalledCost,0,F$5)*F78 -> 0 | G83: =OFFSET(InstalledCost,0,G$5)*G78 -> 0 | H83: =OFFSET(InstalledCost,0,H$5)*H78 -> 0
B84: 2 | C84: Amount Calculated as Percent of Energy Savings Compared to Grid | D84: =D79*D$10 -> 0 | E84: =E79*E$10 -> 0 | F84: =F79*F$10 -> 0 | G84: =G79*G$10 -> 0 | H84: =H79*H$10 -> 0
B85: 3 | C85: Lump Sum | D85: =D80 -> 0 | E85: =E80 -> 0 | F85: =F80 -> 0 | G85: =G80 -> 0 | H85: =H80 -> 0
B86: 4 | C86: Amount Calculated as Per kW | D86: =D81*OFFSET(Capacity,0,D$5) -> 0 | E86: =E81*OFFSET(Capacity,0,E$5) -> 0 | F86: =F81*OFFSET(Capacity,0,F$5) -> 0 | G86: =G81*OFFSET(Capacity,0,G$5) -> 0 | H86: =H81*OFFSET(Capacity,0,H$5) -> 0
B87: 5 | C87: Amount Calculated as Per tons CO2e per year | D87: =D82*OFFSET(OFFSET(OFFSET(CO2eShortTons,0,D$5),0,D$5),0,D$5) -> 0 | E87: =E82*OFFSET(OFFSET(OFFSET(CO2eShortTons,0,E$5),0,E$5),0,E$5) -> 0 | F87: =F82*OFFSET(OFFSET(OFFSET(CO2eShortTons,0,F$5),0,F$5),0,F$5) -> 0 | G87: =G82*OFFSET(OFFSET(OFFSET(CO2eShortTons,0,G$5),0,G$5),0,G$5) -> 0 | H87: =H82*OFFSET(OFFSET(OFFSET(CO2eShortTons,0,H$5),0,H$5),0,H$5) -> 0
C88: Calculated Amount, Sum | D88: =SUM(D83:D87) -> 0 | E88: =SUM(E83:E87) -> 0 | F88: =SUM(F83:F87) -> 0 | G88: =SUM(G83:G87) -> 0 | H88: =SUM(H83:H87) -> 0
B89: 1 | C89: Maximum Amount, Absolute | D89: 0 | E89: 0 | F89: 0 | G89: 0 | H89: 0
B90: 2 | C90: Maximum Amount per kW
B91: 3 | C91: Maximum Amount as Percent of Installed Cost | D91: 0 | E91: 0 | F91: 0 | G91: 0 | H91: 0
B92: 1 | C92: Maximum, Absolute | D92: =IF(OR(D89=0,D89="",D78>1),OFFSET(InstalledCost,0,D$5),D89) -> 3849895 | E92: =IF(OR(E89=0,E89="",E78>1),OFFSET(InstalledCost,0,E$5),E89) -> 4500895 | F92: =IF(OR(F89=0,F89="",F78>1),OFFSET(InstalledCost,0,F$5),F89) -> 3799895 | G92: =IF(OR(G89=0,G89="",G78>1),OFFSET(InstalledCost,0,G$5),G89) -> 4450895 | H92: =IF(OR(H89=0,H89="",H78>1),OFFSET(InstalledCost,0,H$5),H89) -> 3673295
B93: 2 | C93: Maximum Amount per kW | D93: =IF(OR(D90=0,D90="",D79>1),OFFSET(InstalledCost,0,D$5),D90*OFFSET(Capacity,0,D$5)) -> 3849895 | E93: =IF(OR(E90=0,E90="",E79>1),OFFSET(InstalledCost,0,E$5),E90*OFFSET(Capacity,0,E$5)) -> 4500895 | F93: =IF(OR(F90=0,F90="",F79>1),OFFSET(InstalledCost,0,F$5),F90*OFFSET(Capacity,0,F$5)) -> 3799895 | G93: =IF(OR(G90=0,G90="",G79>1),OFFSET(InstalledCost,0,G$5),G90*OFFSET(Capacity,0,G$5)) -> 4450895 | H93: =IF(OR(H90=0,H90="",H79>1),OFFSET(InstalledCost,0,H$5),H90*OFFSET(Capacity,0,H$5)) -> 3673295
B94: 3 | C94: Maximum as Percent of Installed Cost | D94: =IF(OR(D91=0,D91="",D78>1),OFFSET(InstalledCost,0,D$5),D91*OFFSET(InstalledCost,0,D$5)) -> 3849895 | E94: =IF(OR(E91=0,E91="",E78>1),OFFSET(InstalledCost,0,E$5),E91*OFFSET(InstalledCost,0,E$5)) -> 4500895 | F94: =IF(OR(F91=0,F91="",F78>1),OFFSET(InstalledCost,0,F$5),F91*OFFSET(InstalledCost,0,F$5)) -> 3799895 | G94: =IF(OR(G91=0,G91="",G78>1),OFFSET(InstalledCost,0,G$5),G91*OFFSET(InstalledCost,0,G$5)) -> 4450895 | H94: =IF(OR(H91=0,H91="",H78>1),OFFSET(InstalledCost,0,H$5),H91*OFFSET(InstalledCost,0,H$5)) -> 3673295
C95: First Year State Tax Liability
C96: Amount, Capped at Maximum | D96: =MIN(D88,D92,D94,D93) -> 0 | E96: =MIN(E88,E92,E94,E93) -> 0 | F96: =MIN(F88,F92,F94,F93) -> 0 | G96: =MIN(G88,G92,G94,G93) -> 0 | H96: =MIN(H88,H92,H94,H93) -> 0
C98: SELECTED AMOUNT | D98: =IF(OR(D51=0,D51=""),D75,IF(D$7<=D51,D96,D75)) -> 0 | E98: =IF(OR(E51=0,E51=""),E75,IF(E$7<=E51,E96,E75)) -> 0 | F98: =IF(OR(F51=0,F51=""),F75,IF(F$7<=F51,F96,F75)) -> 0 | G98: =IF(OR(G51=0,G51=""),G75,IF(G$7<=G51,G96,G75)) -> 0 | H98: =IF(OR(H51=0,H51=""),H75,IF(H$7<=H51,H96,H75)) -> 0
B100: DESCRIPTION OF INCENTIVE
A104: 2 | B104: =CONCATENATE("GRANT ",A104) -> GRANT 2 | C104: =D110 -> ETO CHP Grant (wrt grid) | D104: =IF(D108="No",0,IF(D160<0,0,D160)) -> 0 | E104: =IF(E108="No",0,IF(E160<0,0,E160)) -> 0 | F104: 0 | G104: 0 | H104: 0
D105: =IF(AND(D$6<>"",D$6<>0),D$6,"") -> Scenario 1 | E105: =IF(AND(E$6<>"",E$6<>0),E$6,"") -> Scenario 2 | F105: =IF(AND(F$6<>"",F$6<>0),F$6,"") -> Scenario 3 | G105: =IF(AND(G$6<>"",G$6<>0),G$6,"") -> Scenario 4 | H105: =IF(AND(H$6<>"",H$6<>0),H$6,"") -> Scenario 5
D106: Apply to Scenario?
C107: Scenario | D107: 1 | E107: =D107+1 -> 2 | F107: =E107+1 -> 3 | G107: =F107+1 -> 4 | H107: =G107+1 -> 5
C108: On? | D108: ='Incentive Model'!H70 -> Yes | E108: ='Incentive Model'!I70 -> Yes | F108: ='Incentive Model'!J70 -> Yes | G108: ='Incentive Model'!K70 -> Yes | H108: ='Incentive Model'!L70 -> Yes
C109: =$C$46 -> TWO PART GRANT | J109: ETO CHP Grant
C110: Description | D110: =$D110 -> ETO CHP Grant (wrt grid) | E110: ETO CHP Grant (wrt grid) | F110: =$D110 -> ETO CHP Grant (wrt grid) | G110: ETO CHP Grant (wrt grid) | H110: ETO CHP Grant (wrt grid) | J110: Year of First Payment | K110: ='Grants & Loans'!C54 -> 1
D111: 0 | E111: 0 | F111: 0 | G111: 0 | H111: 0 | J111: Payout Period | K111: ='Grants & Loans'!C55 -> 1
C112: Incentive Type | D112: Grant | E112: Grant | F112: Grant | G112: Grant | H112: Grant | J112: Per Annual Electricity Savings ($/kWh) | K112: ='Grants & Loans'!C56 -> 0
C113: Carry-Forward | D113: 0 | E113: 0 | F113: 0 | G113: 0 | H113: 0 | J113: Maximum Amount | K113: ='Grants & Loans'!C57 -> 0
C114: Threshold Capacity (zero if none) | D114: 0 | E114: 0 | F114: 0 | G114: 0 | H114: 0 | I114: kW | J114: Maximum as Percent of Installed Cost | K114: ='Grants & Loans'!C58 -> 0.5
C115: First Installment Year | D115: =$K110 -> 1 | E115: 1 | F115: 1 | G115: 1 | H115: 1 | J115: =$D$6 -> Scenario 1 | K115: =D104 -> 0
C116: Incentive Period (or Years Carry Forward) | D116: 1 | E116: 1 | F116: 1 | G116: 1 | H116: 1 | J116: =$E$6 -> Scenario 2 | K116: =E104 -> 0
J117: =$F$6 -> Scenario 3 | K117: =F104 -> 0
J118: =$H$6 -> Scenario 5 | K118: =G104 -> 0
J119: =$H$6 -> Scenario 5 | K119: =H104 -> 0
C120: For systems greater than or equal to threshold | K120: Scenario 1 | L120: Scenario 2 | M120: Scenario 3 | N120: Scenario 4
B121: 1 | C121: Percent of Installed Cost | D121: 0 | E121: 0 | F121: 0 | G121: 0 | H121: 0 | J121: Electricity Savings wrt Grid | K121: ='Incentive Model'!H142 -> 1394749.815 | L121: ='Incentive Model'!I142 -> 1063452.569 | M121: ='Incentive Model'!J142 -> 275377.5342 | N121: ='Incentive Model'!K142 -> 407039.6176
B122: 2 | C122: Per Annual Energy Savings Compared to Grid ($/kWh) | D122: =$K112 -> 0 | E122: =$K112 -> 0 | F122: =$K112 -> 0 | G122: =$K112 -> 0 | H122: =$K112 -> 0
B123: 3 | C123: Lump Sum
B124: 4 | C124: Amount per kW | D124: 0 | E124: 0 | F124: 0 | G124: 0 | H124: 0
B125: 5 | C125: Amount per tons CO2e per year
B126: 1 | C126: Amount Calculated as Percent of Installed Cost | D126: =OFFSET(InstalledCost,0,D$5)*D121 -> 0 | E126: =OFFSET(InstalledCost,0,E$5)*E121 -> 0 | F126: =OFFSET(InstalledCost,0,F$5)*F121 -> 0 | G126: =OFFSET(InstalledCost,0,G$5)*G121 -> 0 | H126: =OFFSET(InstalledCost,0,H$5)*H121 -> 0
B127: 2 | C127: Amount Calculated as Percent of Energy Savings Compared to Grid | D127: =D122*D$10 -> 0 | E127: =E122*E$10 -> 0 | F127: =F122*F$10 -> 0 | G127: =G122*G$10 -> 0 | H127: =H122*H$10 -> 0
B128: 3 | C128: Lump Sum | D128: =D123 -> 0 | E128: =E123 -> 0 | F128: =F123 -> 0 | G128: =G123 -> 0 | H128: =H123 -> 0
B129: 4 | C129: Amount Calculated as Per kW | D129: =D124*OFFSET(Capacity,0,D$5) -> 0 | E129: =E124*OFFSET(Capacity,0,E$5) -> 0 | F129: =F124*OFFSET(Capacity,0,F$5) -> 0 | G129: =G124*OFFSET(Capacity,0,G$5) -> 0 | H129: =H124*OFFSET(Capacity,0,H$5) -> 0
B130: 5 | C130: Amount Calculated as Per tons CO2e per year | D130: =D125*OFFSET(OFFSET(OFFSET(CO2eShortTons,0,D$5),0,D$5),0,D$5) -> 0 | E130: =E125*OFFSET(OFFSET(OFFSET(CO2eShortTons,0,E$5),0,E$5),0,E$5) -> 0 | F130: =F125*OFFSET(OFFSET(OFFSET(CO2eShortTons,0,F$5),0,F$5),0,F$5) -> 0 | G130: =G125*OFFSET(OFFSET(OFFSET(CO2eShortTons,0,G$5),0,G$5),0,G$5) -> 0 | H130: =H125*OFFSET(OFFSET(OFFSET(CO2eShortTons,0,H$5),0,H$5),0,H$5) -> 0
C131: Calculated Amount, Sum | D131: =SUM(D126:D130) -> 0 | E131: =SUM(E126:E130) -> 0 | F131: =SUM(F126:F130) -> 0 | G131: =SUM(G126:G130) -> 0 | H131: =SUM(H126:H130) -> 0
B132: 1 | C132: Maximum Amount, Absolute | D132: =$K113 -> 0 | E132: =$K113 -> 0 | F132: =$K113 -> 0 | G132: =$K113 -> 0 | H132: =$K113 -> 0
B133: 2 | C133: Maximum Amount per kW
B134: 3 | C134: Maximum Amount as Percent of Installed Cost | D134: =$K114 -> 0.5 | E134: =$K114 -> 0.5 | F134: =$K114 -> 0.5 | G134: =$K114 -> 0.5 | H134: =$K114 -> 0.5
B135: 1 | C135: Maximum, Absolute | D135: =IF(OR(D132=0,D132="",D121>1),OFFSET(InstalledCost,0,D$5),D132) -> 3849895 | E135: =IF(OR(E132=0,E132="",E121>1),OFFSET(InstalledCost,0,E$5),E132) -> 4500895 | F135: =IF(OR(F132=0,F132="",F121>1),OFFSET(InstalledCost,0,F$5),F132) -> 3799895 | G135: =IF(OR(G132=0,G132="",G121>1),OFFSET(InstalledCost,0,G$5),G132) -> 4450895 | H135: =IF(OR(H132=0,H132="",H121>1),OFFSET(InstalledCost,0,H$5),H132) -> 3673295
B136: 2 | C136: Maximum Amount per kW | D136: =IF(OR(D133=0,D133="",D122>1),OFFSET(InstalledCost,0,D$5),D133*OFFSET(Capacity,0,D$5)) -> 3849895 | E136: =IF(OR(E133=0,E133="",E122>1),OFFSET(InstalledCost,0,E$5),E133*OFFSET(Capacity,0,E$5)) -> 4500895 | F136: =IF(OR(F133=0,F133="",F122>1),OFFSET(InstalledCost,0,F$5),F133*OFFSET(Capacity,0,F$5)) -> 3799895 | G136: =IF(OR(G133=0,G133="",G122>1),OFFSET(InstalledCost,0,G$5),G133*OFFSET(Capacity,0,G$5)) -> 4450895 | H136: =IF(OR(H133=0,H133="",H122>1),OFFSET(InstalledCost,0,H$5),H133*OFFSET(Capacity,0,H$5)) -> 3673295
B137: 3 | C137: Maximum as Percent of Installed Cost | D137: =IF(OR(D134=0,D134="",D121>1),OFFSET(InstalledCost,0,D$5),D134*OFFSET(InstalledCost,0,D$5)) -> 1924947.5 | E137: =IF(OR(E134=0,E134="",E121>1),OFFSET(InstalledCost,0,E$5),E134*OFFSET(InstalledCost,0,E$5)) -> 2250447.5 | F137: =IF(OR(F134=0,F134="",F121>1),OFFSET(InstalledCost,0,F$5),F134*OFFSET(InstalledCost,0,F$5)) -> 1899947.5 | G137: =IF(OR(G134=0,G134="",G121>1),OFFSET(InstalledCost,0,G$5),G134*OFFSET(InstalledCost,0,G$5)) -> 2225447.5 | H137: =IF(OR(H134=0,H134="",H121>1),OFFSET(InstalledCost,0,H$5),H134*OFFSET(InstalledCost,0,H$5)) -> 1836647.5
C138: Amount, Capped at Maximum | D138: =MIN(D131,D135:D136) -> 0 | E138: =MIN(E131,E135:E136) -> 0 | F138: =MIN(F131,F135:F136) -> 0 | G138: =MIN(G131,G135:G136) -> 0 | H138: =MIN(H131,H135:H136) -> 0
C140: For systems less than threshold (ignored if none)
B141: 1 | C141: Percent of Installed Cost
B142: 2 | C142: Per Annual Energy Savings Compared to Grid ($/kWh)
B143: 3 | C143: Lump Sum | D143: 0 | E143: 0 | F143: 0 | G143: 0 | H143: 0
B144: 4 | C144: Amount per kW | D144: 0 | E144: 0 | F144: 0 | G144: 0 | H144: 0
B145: 5 | C145: Amount per tons CO2e per year
B146: 1 | C146: Amount Calculated as Percent of Installed Cost | D146: =OFFSET(InstalledCost,0,D$5)*D141 -> 0 | E146: =OFFSET(InstalledCost,0,E$5)*E141 -> 0 | F146: =OFFSET(InstalledCost,0,F$5)*F141 -> 0 | G146: =OFFSET(InstalledCost,0,G$5)*G141 -> 0 | H146: =OFFSET(InstalledCost,0,H$5)*H141 -> 0
B147: 2 | C147: Amount Calculated as Percent of Energy Savings Compared to Grid | D147: =D142*D$10 -> 0 | E147: =E142*E$10 -> 0 | F147: =F142*F$10 -> 0 | G147: =G142*G$10 -> 0 | H147: =H142*H$10 -> 0
B148: 3 | C148: Lump Sum | D148: =D143 -> 0 | E148: =E143 -> 0 | F148: =F143 -> 0 | G148: =G143 -> 0 | H148: =H143 -> 0
B149: 4 | C149: Amount Calculated as Per kW | D149: =D144*OFFSET(Capacity,0,D$5) -> 0 | E149: =E144*OFFSET(Capacity,0,E$5) -> 0 | F149: =F144*OFFSET(Capacity,0,F$5) -> 0 | G149: =G144*OFFSET(Capacity,0,G$5) -> 0 | H149: =H144*OFFSET(Capacity,0,H$5) -> 0
B150: 5 | C150: Amount Calculated as Per tons CO2e per year | D150: =D145*OFFSET(OFFSET(OFFSET(CO2eShortTons,0,D$5),0,D$5),0,D$5) -> 0 | E150: =E145*OFFSET(OFFSET(OFFSET(CO2eShortTons,0,E$5),0,E$5),0,E$5) -> 0 | F150: =F145*OFFSET(OFFSET(OFFSET(CO2eShortTons,0,F$5),0,F$5),0,F$5) -> 0 | G150: =G145*OFFSET(OFFSET(OFFSET(CO2eShortTons,0,G$5),0,G$5),0,G$5) -> 0 | H150: =H145*OFFSET(OFFSET(OFFSET(CO2eShortTons,0,H$5),0,H$5),0,H$5) -> 0
C151: Calculated Amount, Sum | D151: =SUM(D146:D150) -> 0 | E151: =SUM(E146:E150) -> 0 | F151: =SUM(F146:F150) -> 0 | G151: =SUM(G146:G150) -> 0 | H151: =SUM(H146:H150) -> 0
B152: 1 | C152: Maximum Amount, Absolute | D152: 0 | E152: 0 | F152: 0 | G152: 0 | H152: 0
B153: 2 | C153: Maximum Amount per kW
B154: 3 | C154: Maximum Amount as Percent of Installed Cost | D154: 0 | E154: 0 | F154: 0 | G154: 0 | H154: 0
B155: 1 | C155: Maximum, Absolute | D155: =IF(OR(D152=0,D152="",D141>1),OFFSET(InstalledCost,0,D$5),D152) -> 3849895 | E155: =IF(OR(E152=0,E152="",E141>1),OFFSET(InstalledCost,0,E$5),E152) -> 4500895 | F155: =IF(OR(F152=0,F152="",F141>1),OFFSET(InstalledCost,0,F$5),F152) -> 3799895 | G155: =IF(OR(G152=0,G152="",G141>1),OFFSET(InstalledCost,0,G$5),G152) -> 4450895 | H155: =IF(OR(H152=0,H152="",H141>1),OFFSET(InstalledCost,0,H$5),H152) -> 3673295
B156: 2 | C156: Maximum Amount per kW | D156: =IF(OR(D153=0,D153="",D142>1),OFFSET(InstalledCost,0,D$5),D153*OFFSET(Capacity,0,D$5)) -> 3849895 | E156: =IF(OR(E153=0,E153="",E142>1),OFFSET(InstalledCost,0,E$5),E153*OFFSET(Capacity,0,E$5)) -> 4500895 | F156: =IF(OR(F153=0,F153="",F142>1),OFFSET(InstalledCost,0,F$5),F153*OFFSET(Capacity,0,F$5)) -> 3799895 | G156: =IF(OR(G153=0,G153="",G142>1),OFFSET(InstalledCost,0,G$5),G153*OFFSET(Capacity,0,G$5)) -> 4450895 | H156: =IF(OR(H153=0,H153="",H142>1),OFFSET(InstalledCost,0,H$5),H153*OFFSET(Capacity,0,H$5)) -> 3673295
B157: 3 | C157: Maximum as Percent of Installed Cost | D157: =IF(OR(D154=0,D154="",D141>1),OFFSET(InstalledCost,0,D$5),D154*OFFSET(InstalledCost,0,D$5)) -> 3849895 | E157: =IF(OR(E154=0,E154="",E141>1),OFFSET(InstalledCost,0,E$5),E154*OFFSET(InstalledCost,0,E$5)) -> 4500895 | F157: =IF(OR(F154=0,F154="",F141>1),OFFSET(InstalledCost,0,F$5),F154*OFFSET(InstalledCost,0,F$5)) -> 3799895 | G157: =IF(OR(G154=0,G154="",G141>1),OFFSET(InstalledCost,0,G$5),G154*OFFSET(InstalledCost,0,G$5)) -> 4450895 | H157: =IF(OR(H154=0,H154="",H141>1),OFFSET(InstalledCost,0,H$5),H154*OFFSET(InstalledCost,0,H$5)) -> 3673295
C158: Amount, Capped at Maximum | D158: =MIN(D151,D155,D157,D156) -> 0 | E158: =MIN(E151,E155,E157,E156) -> 0 | F158: =MIN(F151,F155,F157,F156) -> 0 | G158: =MIN(G151,G155,G157,G156) -> 0 | H158: =MIN(H151,H155,H157,H156) -> 0
C160: SELECTED AMOUNT | D160: =IF(OR(D114=0,D114=""),D138,IF(D7<D114,D158,D138)) -> 0 | E160: =IF(OR(E114=0,E114=""),E138,IF(E7<E114,E158,E138)) -> 0 | F160: =IF(OR(F114=0,F114=""),F138,IF(F7<F114,F158,F138)) -> 0 | G160: =IF(OR(G114=0,G114=""),G138,IF(G7<G114,G158,G138)) -> 0 | H160: =IF(OR(H114=0,H114=""),H138,IF(H7<H114,H158,H138)) -> 0
B162: DESCRIPTION OF INCENTIVE
A168: 3 | B168: =CONCATENATE("GRANT ",A168) -> GRANT 3 | C168: =D171 -> State Tax Credit | D168: =IF(D223<0,0,D223) -> 0 | E168: =IF(E223<0,0,E223) -> 0 | F168: =IF(F223<0,0,F223) -> 0 | G168: =IF(G223<0,0,G223) -> 0 | H168: =IF(H223<0,0,H223) -> 0
B169: 28.5% up to a maximum of $5000000 | K169: Get annual amounts wired in here, rather than through scenarios sheet.
C170: =$C$46 -> TWO PART GRANT | J170: =C168 -> State Tax Credit
C171: Description | D171: =$D171 -> State Tax Credit | E171: State Tax Credit | F171: =$D171 -> State Tax Credit | G171: State Tax Credit | H171: State Tax Credit | J171: Percent of Installed Cost, Total | K171: ='Grants & Loans'!E41 -> 0
D172: 0 | E172: 0 | F172: 0 | G172: 0 | H172: 0 | J172: =CONCATENATE("Year ",L172) -> Year 1 | K172: ='Grants & Loans'!E42 -> 0 | L172: 1
C173: Incentive Type | D173: State Investment Tax Credit | E173: State Investment Tax Credit | F173: State Investment Tax Credit | G173: State Investment Tax Credit | H173: State Investment Tax Credit | J173: Year 2 | K173: ='Grants & Loans'!E43 -> 0 | L173: 2
C174: Carry Forward | D174: 5 | E174: 5 | F174: 5 | G174: 5 | H174: 5 | J174: Year 3 | K174: ='Grants & Loans'!E44 -> 0 | L174: 3
C175: Threshold Capacity (zero if none) | D175: 0 | E175: 0 | F175: 0 | G175: 0 | H175: 0 | I175: kW | J175: Year 4 | K175: ='Grants & Loans'!E45 -> 0 | L175: 4
C176: First Installment Year | J176: Year 5 | K176: ='Grants & Loans'!E46 -> 0 | L176: 5
C177: Incentive Period | D177: =$K$181 -> 3 | E177: =$K$181 -> 3 | F177: =$K$181 -> 3 | G177: =$K$181 -> 3 | H177: =$K$181 -> 3 | J177: Year 6 | K177: ='Grants & Loans'!E47 -> 0 | L177: 6
C178: Interest Rate | D178: 0 | E178: 0 | F178: 0 | G178: 0 | H178: 0 | J178: Maxiumum Amount | K178: ='Grants & Loans'!C48 -> 5000000
C179: Loan Initiation | D179: 0 | E179: 0 | F179: 0 | G179: 0 | H179: 0 | J179: Incentive Type | K179: ='Grants & Loans'!C49 -> State Investment Tax Credit
J180: Carry Forward (years) | K180: ='Grants & Loans'!C50 -> 5
J181: If considered grant, period (years) | K181: 3
C183: For systems greater than or equal to threshold
B184: 1 | C184: Percent of Installed Cost | D184: =$K171 -> 0 | E184: =$K171 -> 0 | F184: =$K171 -> 0 | G184: =$K171 -> 0 | H184: =$K171 -> 0
B185: 2 | C185: Per Annual Energy Savings Compared to Grid ($/kWh)
B186: 3 | C186: Lump Sum
B187: 4 | C187: Amount per kW | D187: 0 | E187: 0 | F187: 0 | G187: 0 | H187: 0
B188: 5 | C188: Amount per tons CO2e per year
B189: 1 | C189: Amount Calculated as Percent of Installed Cost | D189: =OFFSET(InstalledCost,0,D$5)*D184 -> 0 | E189: =OFFSET(InstalledCost,0,E$5)*E184 -> 0 | F189: =OFFSET(InstalledCost,0,F$5)*F184 -> 0 | G189: =OFFSET(InstalledCost,0,G$5)*G184 -> 0 | H189: =OFFSET(InstalledCost,0,H$5)*H184 -> 0
B190: 2 | C190: Amount Calculated as Percent of Energy Savings Compared to Grid | D190: =D185*D$10 -> 0 | E190: =E185*E$10 -> 0 | F190: =F185*F$10 -> 0 | G190: =G185*G$10 -> 0 | H190: =H185*H$10 -> 0
B191: 3 | C191: Lump Sum | D191: =D186 -> 0 | E191: =E186 -> 0 | F191: =F186 -> 0 | G191: =G186 -> 0 | H191: =H186 -> 0
B192: 4 | C192: Amount Calculated as Per kW | D192: =D187*OFFSET(Capacity,0,D$5) -> 0 | E192: =E187*OFFSET(Capacity,0,E$5) -> 0 | F192: =F187*OFFSET(Capacity,0,F$5) -> 0 | G192: =G187*OFFSET(Capacity,0,G$5) -> 0 | H192: =H187*OFFSET(Capacity,0,H$5) -> 0
B193: 5 | C193: Amount Calculated as Per tons CO2e per year | D193: =D188*OFFSET(OFFSET(OFFSET(CO2eShortTons,0,D$5),0,D$5),0,D$5) -> 0 | E193: =E188*OFFSET(OFFSET(OFFSET(CO2eShortTons,0,E$5),0,E$5),0,E$5) -> 0 | F193: =F188*OFFSET(OFFSET(OFFSET(CO2eShortTons,0,F$5),0,F$5),0,F$5) -> 0 | G193: =G188*OFFSET(OFFSET(OFFSET(CO2eShortTons,0,G$5),0,G$5),0,G$5) -> 0 | H193: =H188*OFFSET(OFFSET(OFFSET(CO2eShortTons,0,H$5),0,H$5),0,H$5) -> 0
C194: Calculated Amount, Sum | D194: =SUM(D189:D193) -> 0 | E194: =SUM(E189:E193) -> 0 | F194: =SUM(F189:F193) -> 0 | G194: =SUM(G189:G193) -> 0 | H194: =SUM(H189:H193) -> 0
B195: 1 | C195: Maximum Amount, Absolute | D195: =$K178 -> 5000000 | E195: =$K178 -> 5000000 | F195: =$K178 -> 5000000 | G195: =$K178 -> 5000000 | H195: =$K178 -> 5000000
B196: 2 | C196: Maximum Amount per kW
B197: 3 | C197: Maximum Amount as Percent of Installed Cost
B198: 1 | C198: Maximum, Absolute | D198: =IF(OR(D195=0,D195="",D184>1),OFFSET(InstalledCost,0,D$5),D195) -> 5000000 | E198: =IF(OR(E195=0,E195="",E184>1),OFFSET(InstalledCost,0,E$5),E195) -> 5000000 | F198: =IF(OR(F195=0,F195="",F184>1),OFFSET(InstalledCost,0,F$5),F195) -> 5000000 | G198: =IF(OR(G195=0,G195="",G184>1),OFFSET(InstalledCost,0,G$5),G195) -> 5000000 | H198: =IF(OR(H195=0,H195="",H184>1),OFFSET(InstalledCost,0,H$5),H195) -> 5000000
B199: 2 | C199: Maximum Amount per kW | D199: =IF(OR(D196=0,D196="",D185>1),OFFSET(InstalledCost,0,D$5),D196*OFFSET(Capacity,0,D$5)) -> 3849895 | E199: =IF(OR(E196=0,E196="",E185>1),OFFSET(InstalledCost,0,E$5),E196*OFFSET(Capacity,0,E$5)) -> 4500895 | F199: =IF(OR(F196=0,F196="",F185>1),OFFSET(InstalledCost,0,F$5),F196*OFFSET(Capacity,0,F$5)) -> 3799895 | G199: =IF(OR(G196=0,G196="",G185>1),OFFSET(InstalledCost,0,G$5),G196*OFFSET(Capacity,0,G$5)) -> 4450895 | H199: =IF(OR(H196=0,H196="",H185>1),OFFSET(InstalledCost,0,H$5),H196*OFFSET(Capacity,0,H$5)) -> 3673295
B200: 3 | C200: Maximum as Percent of Installed Cost | D200: =IF(OR(D197=0,D197="",D184>1),OFFSET(InstalledCost,0,D$5),D197*OFFSET(InstalledCost,0,D$5)) -> 3849895 | E200: =IF(OR(E197=0,E197="",E184>1),OFFSET(InstalledCost,0,E$5),E197*OFFSET(InstalledCost,0,E$5)) -> 4500895 | F200: =IF(OR(F197=0,F197="",F184>1),OFFSET(InstalledCost,0,F$5),F197*OFFSET(InstalledCost,0,F$5)) -> 3799895 | G200: =IF(OR(G197=0,G197="",G184>1),OFFSET(InstalledCost,0,G$5),G197*OFFSET(InstalledCost,0,G$5)) -> 4450895 | H200: =IF(OR(H197=0,H197="",H184>1),OFFSET(InstalledCost,0,H$5),H197*OFFSET(InstalledCost,0,H$5)) -> 3673295
C201: Amount, Capped at Maximum | D201: =MIN(D194,D198,D200,D199) -> 0 | E201: =MIN(E194,E198,E200,E199) -> 0 | F201: =MIN(F194,F198,F200,F199) -> 0 | G201: =MIN(G194,G198,G200,G199) -> 0 | H201: =MIN(H194,H198,H200,H199) -> 0
C203: For systems less than threshold (ignored if none)
B204: 1 | C204: Percent of Installed Cost | D204: =K176 -> 0 | E204: =L176 -> 5 | F204: =M176 -> 0 | G204: =N176 -> 0 | H204: =O176 -> 0
B205: 2 | C205: Per Annual Energy Savings Compared to Grid ($/kWh)
B206: 3 | C206: Lump Sum | D206: 0 | E206: 0 | F206: 0 | G206: 0 | H206: 0
B207: 4 | C207: Amount per kW | D207: 0 | E207: 0 | F207: 0 | G207: 0 | H207: 0
B208: 5 | C208: Amount per tons CO2e per year
B209: 1 | C209: Amount Calculated as Percent of Installed Cost | D209: =OFFSET(InstalledCost,0,D$5)*D204 -> 0 | E209: =OFFSET(InstalledCost,0,E$5)*E204 -> 22504475 | F209: =OFFSET(InstalledCost,0,F$5)*F204 -> 0 | G209: =OFFSET(InstalledCost,0,G$5)*G204 -> 0 | H209: =OFFSET(InstalledCost,0,H$5)*H204 -> 0
B210: 2 | C210: Amount Calculated as Percent of Energy Savings Compared to Grid | D210: =D205*D$10 -> 0 | E210: =E205*E$10 -> 0 | F210: =F205*F$10 -> 0 | G210: =G205*G$10 -> 0 | H210: =H205*H$10 -> 0
B211: 3 | C211: Lump Sum | D211: =D206 -> 0 | E211: =E206 -> 0 | F211: =F206 -> 0 | G211: =G206 -> 0 | H211: =H206 -> 0
B212: 4 | C212: Amount Calculated as Per kW | D212: =D207*OFFSET(Capacity,0,D$5) -> 0 | E212: =E207*OFFSET(Capacity,0,E$5) -> 0 | F212: =F207*OFFSET(Capacity,0,F$5) -> 0 | G212: =G207*OFFSET(Capacity,0,G$5) -> 0 | H212: =H207*OFFSET(Capacity,0,H$5) -> 0
B213: 5 | C213: Amount Calculated as Per tons CO2e per year | D213: =D208*OFFSET(OFFSET(OFFSET(CO2eShortTons,0,D$5),0,D$5),0,D$5) -> 0 | E213: =E208*OFFSET(OFFSET(OFFSET(CO2eShortTons,0,E$5),0,E$5),0,E$5) -> 0 | F213: =F208*OFFSET(OFFSET(OFFSET(CO2eShortTons,0,F$5),0,F$5),0,F$5) -> 0 | G213: =G208*OFFSET(OFFSET(OFFSET(CO2eShortTons,0,G$5),0,G$5),0,G$5) -> 0 | H213: =H208*OFFSET(OFFSET(OFFSET(CO2eShortTons,0,H$5),0,H$5),0,H$5) -> 0
C214: Calculated Amount, Sum | D214: =SUM(D209:D213) -> 0 | E214: =SUM(E209:E213) -> 22504475 | F214: =SUM(F209:F213) -> 0 | G214: =SUM(G209:G213) -> 0 | H214: =SUM(H209:H213) -> 0
B215: 1 | C215: Maximum Amount, Absolute | D215: 0 | E215: 0 | F215: 0 | G215: 0 | H215: 0
B216: 2 | C216: Maximum Amount per kW
B217: 3 | C217: Maximum Amount as Percent of Installed Cost | D217: 0 | E217: 0 | F217: 0 | G217: 0 | H217: 0
B218: 1 | C218: Maximum, Absolute | D218: =IF(OR(D215=0,D215="",D204>1),OFFSET(InstalledCost,0,D$5),D215) -> 3849895 | E218: =IF(OR(E215=0,E215="",E204>1),OFFSET(InstalledCost,0,E$5),E215) -> 4500895 | F218: =IF(OR(F215=0,F215="",F204>1),OFFSET(InstalledCost,0,F$5),F215) -> 3799895 | G218: =IF(OR(G215=0,G215="",G204>1),OFFSET(InstalledCost,0,G$5),G215) -> 4450895 | H218: =IF(OR(H215=0,H215="",H204>1),OFFSET(InstalledCost,0,H$5),H215) -> 3673295
B219: 2 | C219: Maximum Amount per kW | D219: =IF(OR(D216=0,D216="",D205>1),OFFSET(InstalledCost,0,D$5),D216*OFFSET(Capacity,0,D$5)) -> 3849895 | E219: =IF(OR(E216=0,E216="",E205>1),OFFSET(InstalledCost,0,E$5),E216*OFFSET(Capacity,0,E$5)) -> 4500895 | F219: =IF(OR(F216=0,F216="",F205>1),OFFSET(InstalledCost,0,F$5),F216*OFFSET(Capacity,0,F$5)) -> 3799895 | G219: =IF(OR(G216=0,G216="",G205>1),OFFSET(InstalledCost,0,G$5),G216*OFFSET(Capacity,0,G$5)) -> 4450895 | H219: =IF(OR(H216=0,H216="",H205>1),OFFSET(InstalledCost,0,H$5),H216*OFFSET(Capacity,0,H$5)) -> 3673295
B220: 3 | C220: Maximum as Percent of Installed Cost | D220: =IF(OR(D217=0,D217="",D204>1),OFFSET(InstalledCost,0,D$5),D217*OFFSET(InstalledCost,0,D$5)) -> 3849895 | E220: =IF(OR(E217=0,E217="",E204>1),OFFSET(InstalledCost,0,E$5),E217*OFFSET(InstalledCost,0,E$5)) -> 4500895 | F220: =IF(OR(F217=0,F217="",F204>1),OFFSET(InstalledCost,0,F$5),F217*OFFSET(InstalledCost,0,F$5)) -> 3799895 | G220: =IF(OR(G217=0,G217="",G204>1),OFFSET(InstalledCost,0,G$5),G217*OFFSET(InstalledCost,0,G$5)) -> 4450895 | H220: =IF(OR(H217=0,H217="",H204>1),OFFSET(InstalledCost,0,H$5),H217*OFFSET(InstalledCost,0,H$5)) -> 3673295
C221: Amount, Capped at Maximum | D221: =MIN(D214,D218,D220,D219) -> 0 | E221: =MIN(E214,E218,E220,E219) -> 4500895 | F221: =MIN(F214,F218,F220,F219) -> 0 | G221: =MIN(G214,G218,G220,G219) -> 0 | H221: =MIN(H214,H218,H220,H219) -> 0
C223: SELECTED AMOUNT | D223: =IF(OR(D177=0,D177=""),D201,IF(OFFSET(Capacity,0,D$5)<D177,D221,D201)) -> 0 | E223: =IF(OR(E177=0,E177=""),E201,IF(OFFSET(Capacity,0,E$5)<E177,E221,E201)) -> 0 | F223: =IF(OR(F177=0,F177=""),F201,IF(OFFSET(Capacity,0,F$5)<F177,F221,F201)) -> 0 | G223: =IF(OR(G177=0,G177=""),G201,IF(OFFSET(Capacity,0,G$5)<G177,G221,G201)) -> 0 | H223: =IF(OR(H177=0,H177=""),H201,IF(OFFSET(Capacity,0,H$5)<H177,H221,H201)) -> 0
B225: DESCRIPTION OF INCENTIVE
A231: 4 | B231: =CONCATENATE("GRANT ",A231) -> GRANT 4 | C231: =D234 -> Grant ($100/kW) | D231: =IF(D283<0,0,D283) -> 0 | E231: =IF(E283<0,0,E283) -> 0 | F231: =IF(F283<0,0,F283) -> 0 | G231: =IF(G283<0,0,G283) -> 0 | H231: =IF(H283<0,0,H283) -> 0
C233: =$C$46 -> TWO PART GRANT | J233: =C231 -> Grant ($100/kW)
... 289 more rows

Sheet Incentive Model (hidden)
C1: RELCOST CHP | I1: =IF(ErrorLine1="","","ENABLE MACROS") ->  | L1: INPUT (Edit) | M1: RESULTS (No Edits) | N1: INFO (No Edits)
F2: ='Project Database (calcs only)'!I3 -> CHAPSAT | G2: ='Decision Matrix'!Project2 -> 5
D3: SELECT SCENARIO | F3: 1 | H3: =F14 -> Scenario 1 | M3: Scenario: | N3: Include on Menu?
E4: Equity IRR | F4: =WhatIf!H14 -> NA
E5: Project IRR | F5: =WhatIf!H16 ->  | I5: ITC | J5: =G82 -> 0 | M5: 1 | N5: Yes | O5: =H14 -> Scenario 1
E6: Net Present Value | F6: =IFERROR(IF(F10="","",WhatIf!H17),"") ->  | I6: ETO | J6: =G69 -> 0 | M6: =M5+1 -> 2 | N6: Yes | O6: =I14 -> Scenario 2
E7: Benefit Cost Ratio (After Tax) | F7: =WhatIf!H18 ->  | I7: ODOE | J7: =G76 -> 0 | M7: =M6+1 -> 3 | N7: Yes | O7: =J14 -> Scenario 3
E8: After-Tax Discounted Payback | F8: =WhatIf!H19 -> 0 | I8: NWN | J8: =G61 -> 0 | K8: per year | M8: =M7+1 -> 4 | N8: Yes | O8: =K14 -> Scenario 4
E9: Incentives Included in LCCA | F9: =IFERROR(IF(F10="","",IF(F954>0,E943,"LCCA Is Before Incentives")),"") ->  | M9: =M8+1 -> 5 | N9: Yes | O9: =L14 -> Scenario 5
E10: =CONCATENATE(WhatIf!$F$23," Before Incentives") -> Before-Tax Simple Payback Before Incentives | F10: =IFERROR('_Calcs_LCC (rev 160414 enwave)'!C199,"") ->  | H10: 13.21519365 | I10: 15.08341563 | J10: 14.78729368 | K10: 16.09532283 | L10: 17.2805238
E11: =CONCATENATE(WhatIf!$F$23," With Incentives") -> Before-Tax Simple Payback With Incentives | F11: =IFERROR('_Calcs_LCC (rev 160414 enwave)'!C200,"") ->  | H11: 11.49888793 | I11: 13.40781382 | J11: 12.84154338 | K11: 14.28722324 | L11: 14.92834084
D13: SELECT PROJECTS & SET FINANCIAL PARAMETERS | F13: Selected Scenario | H13: Scenario 1 | I13: Scenario 2 | J13: Scenario 3 | K13: Scenario 4 | L13: Scenario 5 | N13: SCRATCH AREA
B14: 1 | D14: Project | E14: =E169 -> Facility Name | F14: =OFFSET(H14,0,Project-1) -> Scenario 1 | H14: Scenario 1 | I14: Scenario 2 | J14: Scenario 3 | K14: Scenario 4 | L14: Scenario 5 | N14: CHP Technology | P14: 1-633 kW Recip Engine | Q14: 1-850 kW Recip Engine | R14: 1-633 kW Recip Engine | S14: 1-850 kW Recip Engine | T14: 1-633 kW Recip Engine
B15: =B14+1 -> 2 | E15: Facility Name (to appear on Pro Forma titles) | F15: =IFERROR(HLOOKUP($F$14,$H$14:$L$98,B15,FALSE),"") -> Community Dairy Digester System with CHP, Janicke project demonstration | H15: =IFERROR(HLOOKUP(H$14,PrototypeResults,'Project Database (calcs only)'!$F45,FALSE),"") -> Community Dairy Digester System with CHP, Janicke project demonstration | I15: =IFERROR(HLOOKUP(I$14,PrototypeResults,'Project Database (calcs only)'!$F45,FALSE),"") -> Community Dairy Digester System with CHP, Janicke project demonstration | J15: =IFERROR(HLOOKUP(J$14,PrototypeResults,'Project Database (calcs only)'!$F45,FALSE),"") -> Community Dairy Digester System with CHP, Janicke project demonstration | K15: =IFERROR(HLOOKUP(K$14,PrototypeResults,'Project Database (calcs only)'!$F45,FALSE),"") -> Community Dairy Digester System with CHP, Janicke project demonstration | L15: =IFERROR(HLOOKUP(L$14,PrototypeResults,'Project Database (calcs only)'!$F45,FALSE),"") -> Community Dairy Digester System with CHP, Janicke project demonstration | N15: Scenario Description | P15: 1-633 kW Recip Engine, Electricity & Heat Sales | Q15: 1-850 kW Recip Engine, Electricity & Heat Sales | R15: 1-633 kW Recip Engine, Electricity Sales | S15: 1-850 kW Recip Engine, Electricity Sales | T15: 1-633 kW Recip Engine, No Electricity or Heat Sales
B16: =B15+1 -> 3 | E16: Scenario Desription (for subtitles on figures, tables and graphs) | F16: 1-633 kW Recip Engine, Electricity & Heat Sales, Full Load Output | H16: =IFERROR(HLOOKUP(H$14,PrototypeResults,'Project Database (calcs only)'!$F$42,FALSE),"") -> 1-633 kW Recip Engine, Electricity & Heat Sales, Full Load Output | I16: =IFERROR(HLOOKUP(I$14,PrototypeResults,'Project Database (calcs only)'!$F$42,FALSE),"") -> 1-850 kW Recip Engine, Electricity & Heat Sales, Use All Gas | J16: =IFERROR(HLOOKUP(J$14,PrototypeResults,'Project Database (calcs only)'!$F$42,FALSE),"") -> 1-633 kW Recip Engine, Electricity Sales, Full Load Output | K16: =IFERROR(HLOOKUP(K$14,PrototypeResults,'Project Database (calcs only)'!$F$42,FALSE),"") -> 1-850 kW Recip Engine, Electricity Sales, Use All Gas | L16: =IFERROR(HLOOKUP(L$14,PrototypeResults,'Project Database (calcs only)'!$F$42,FALSE),"") -> 1-633 kW Recip Engine, No Electricity or Heat Sales, Meet Electricity Needs | N16: Rated Electrical Capacity (kW) | P16: 633 | Q16: 850 | R16: 633 | S16: 850 | T16: 633
B17: =B16+1 -> 4 | E17: Location | F17: 0 | H17: =H170 -> 0 | I17: =I170 -> 0 | J17: =J170 -> 0 | K17: =K170 -> 0 | L17: =L170 -> 0 | N17: Electricity Generation, kWh/year | P17: 5086581.167 | Q17: 5521318.068 | R17: 5086581.167 | S17: 5521318.068 | T17: 3793229.905
B18: =B17+1 -> 5 | E18: General Inflation | F18: 0.025 | H18: 0.025 | I18: 0.025 | J18: 0.025 | K18: 0.025 | L18: 0.025 | N18: Rated CHP Thermal Output (MMBtu/h) | P18: 2.686 | Q18: 3.217 | R18: 2.686 | S18: 3.217 | T18: 2.686
B19: =B18+1 -> 6 | E19: Discount Rate | F19: 0.08 | H19: 0.08 | I19: 0.08 | J19: 0.08 | K19: 0.08 | L19: 0.08 | N19: Ave. CHP Thermal Output (MMBtu/h) | P19: 2.601801694 | Q19: 2.518957362 | R19: 2.601801694 | S19: 2.518957362 | T19: 1.940248601
B20: =B19+1 -> 7 | E20: Project Study Period (years) | F20: 30 | H20: 30 | I20: 30 | J20: 30 | K20: 30 | L20: 30 | N20: CHP Thermal Energy Used On Site (MMBtu/yr) | P20: 11170.46268 | Q20: 11170.46268 | R20: 11170.46268 | S20: 11170.46268 | T20: 11170.46268
B21: =B20+1 -> 8 | E21: Taxable Entity? | F21: False | H21: False | I21: False | J21: False | K21: False | L21: True | N21: Thermal Energy Exported (MMBtu/yr) | P21: 11451.03626 | Q21: 7288.936566 | R21: 0 | S21: 0 | T21: 0
B22: =B21+1 -> 9 | E22: First Year of Project | F22: 2019 | H22: 2019 | I22: 2017 | J22: 2017 | K22: 2017 | L22: 2017 | N22: Total Installed Cost | P22: 3849895 | Q22: 4500895 | R22: 3799895 | S22: 4450895 | T22: 3673295
B23: =B22+1 -> 10 | E23: Energy Calculations Include Operating Factor? | F23: True | H23: True | I23: True | J23: True | K23: True | L23: True | N23: Grants & Tax Credits | P23: 500000 | Q23: 500000 | R23: 500000 | S23: 500000 | T23: 500000
B24: =B23+1 -> 11 | E24: Operation in First Year? (construction year) | F24: False | H24: False | I24: False | J24: False | K24: False | L24: False | N24: Avoided Costs | P24: 0 | Q24: 0 | R24: 0 | S24: 0 | T24: 0
B25: =B24+1 -> 12 | D25: Escalation | E25: Electricity: Price Sector for Escalation Forecast | F25: Commercial | H25: Commercial | I25: Industrial | J25: Commercial | K25: Industrial | L25: Industrial | M25: ='Price Forecasts (NIST-BLCC)'!F2 -> -- | N25: Annual O&M Costs | P25: 136520.0849 | Q25: 145214.8229 | R25: 136520.0849 | S25: 145214.8229 | T25: 110653.0596
B26: =B25+1 -> 13 | E26: Electricity: Utility or EIA Region for Escalation Forecast | F26: Inflation Only | H26: Inflation Only | I26: Inflation Only | J26: Inflation Only | K26: Inflation Only | L26: Inflation Only | N26: Energy Use Cost Savings | P26: 323221.5583 | Q26: 323221.5583 | R26: 323221.5583 | S26: 323221.5583 | T26: 323221.5583
B27: =B26+1 -> 14 | E27: Fuel: Price Sector for Escalation Forecast | F27: Commercial | H27: Commercial | I27: Industrial | J27: Commercial | K27: Industrial | L27: Industrial | M27: ='Price Forecasts (NIST-BLCC)'!F4 -> -- | N27: Electricity Sales Revenue | P27: 70268.80667 | Q27: 98526.70527 | R27: 70268.80667 | S27: 98526.70527 | T27: 0
B28: =B27+1 -> 15 | E28: Fuel: Utility or EIA Region for Escalation Forecast | F28: Inflation Only | H28: Inflation Only | I28: Inflation Only | J28: Inflation Only | K28: Inflation Only | L28: Inflation Only | N28: Heat Sales Revenue | P28: 34353.10879 | Q28: 21866.8097 | R28: 0 | S28: 0 | T28: 0
B29: =B28+1 -> 16 | E29: Electricity Sales: Escalation | F29: Inflation Only | H29: Inflation Only | I29: Inflation Only | J29: Inflation Only | K29: Inflation Only | L29: Inflation Only | N29: Other Revenues | P29: 0 | Q29: 0 | R29: 0 | S29: 0 | T29: 0
B30: =B29+1 -> 17 | E30: Electricity Demand: Escalation | F30: Inflation Only | H30: Inflation Only | I30: Inflation Only | J30: Inflation Only | K30: Inflation Only | L30: Inflation Only | N30: Total Operating Savings | P30: 291323.3889 | Q30: 298400.2504 | R30: 256970.2801 | S30: 276533.4407 | T30: 212568.4987
B31: =B30+1 -> 18 | E31: O&M: Escalation | F31: Inflation Only | H31: Inflation Only | I31: Inflation Only | J31: Inflation Only | K31: Inflation Only | L31: Inflation Only | N31: Payback Before Incentives | P31: 13.21519365 | Q31: 15.08341563 | R31: 14.78729368 | S31: 16.09532283 | T31: 17.2805238
B32: =B31+1 -> 19 | D32: Rate Schedules | N32: Payback with Incentives | P32: 11.49888793 | Q32: 13.40781382 | R32: 12.84154338 | S32: 14.28722324 | T32: 14.92834084
B33: =B32+1 -> 20 | E33: Electric Utility | F33: PGE
B34: =B33+1 -> 21 | E34: Gas Schedule | F34: =IFERROR(HLOOKUP($F$14,$H$14:$L$98,B34,FALSE),"") -> Firm | H34: Firm | I34: Firm | J34: Firm | K34: Firm | L34: Interruptible
B35: =B34+1 -> 22 | D35: Select Row Number in Database | F35: Selected Unit Price | H35: User-Defined Prices | M35: User-Defined Price for Scenario | N35: User-Defined or Database Price?
B36: =B35+1 -> 23 | D36: ='Incentive Model'!B275 -> 108 | E36: =VLOOKUP($D36,$D$146:$H$166,2,FALSE) -> Baseline Electricity Purchases (Avoided), Not Including Demand | F36: =VLOOKUP($D36,$D$146:$H$166,3,FALSE) -> 0.07081143745 | M36: =IFERROR(HLOOKUP($F$14,$H$14:$L$98,B36,FALSE),"") -> 0 | N36: From Database
B37: =B36+1 -> 24 | D37: ='Incentive Model'!B396 -> 229 | E37: =VLOOKUP(D37,$D$146:$H$166,2,FALSE) -> CHP Electricity Purchases | F37: 0.08846385 | M37: 0 | N37: From Database
B38: =B37+1 -> 25 | D38: 132 | E38: Baseline Demand Charges (Avoided) | F38: 23760 | M38: 0 | N38: From Database
B39: =B38+1 -> 26 | D39: 253 | E39: Alternative Demand Charges | F39: 5693.427333 | M39: 0 | N39: From Database
B40: =B39+1 -> 27 | D40: 124 | E40: Electricity Sales | F40: 0.065 | M40: 0 | N40: From Database
B41: 28 | D41: 116 | E41: Baseline Boiler Fuel Purchases (Avoided) | F41: 16.37554585 | M41: 0 | N41: From Database
B42: 29 | D42: 221 | E42: CHP Fuel | F42: 0 | M42: 0 | N42: From Database
B43: 30 | D43: 237 | E43: Residual Boiler Fuel | F43: 0 | M43: 0 | N43: From Database
B44: 31 | D44: 269 | E44: HRSG Fuel | F44: 0 | M44: 0 | N44: From Database
B45: 32 | D45: 277 | E45: Additional Boiler Fuel for Steam Turbine | F45: 0 | M45: 0 | N45: From Database
B46: 33 | D46: 285 | E46: Second System Fuel Used | F46: 0 | N46: From Database
B47: 34 | D47: 140 | E47: Heat Savings | F47: =VLOOKUP($D47,$D$146:$H$166,3,FALSE) -> 0 | N47: From Database
B48: 35 | D48: 148 | E48: Heat Sales | F48: 3 | N48: From Database
B49: 36 | D49: DEFINE GRANTS AND TAX CREDITS | O49: Notes:
B50: 37 | C50: 1 | D50: CHP Capacity Grant | E50: =CONCATENATE(G51," Grant ($",ROUND(G53,0),"/kW)") -> Grant ($100/kW) | F50: No | G50: =IFERROR(HLOOKUP($F$14,$H$14:$L$100,B50,FALSE),0) -> 0 | H50: =H689 -> 0 | I50: =I689 -> 0 | J50: =J689 -> 0 | K50: =K689 -> 0 | L50: =L689 -> 0
B51: 38 | E51: Funder/Description
B52: 39 | E52: Grant Order | G52: 6
B53: 40 | E53: Grant $ per kW | G53: 100 | M53: ='Grants & Loans'!H69 -> 0
B54: =B53+1 -> 41 | E54: Applies Up to Maximum kW of:
B55: =B54+1 -> 42 | E55: Maximum Amount | G55: 100000
B56: =B55+1 -> 43 | C56: 2 | D56: CO2e Grant | E56: =CONCATENATE(G57," CO2e Grant") -> CO2e Grant | F56: No | G56: =IFERROR(HLOOKUP($F$14,$H$14:$L$100,B56,FALSE),0) -> 0 | H56: =H690 -> 0 | I56: =I690 -> 0 | J56: =J690 -> 0 | K56: =K690 -> 0 | L56: =L690 -> 0
B57: =B56+1 -> 44 | E57: Funder/Description
B58: =B57+1 -> 45 | E58: Grant Order | G58: 4
B59: =B58+1 -> 46 | E59: =CONCATENATE(G57," Grant $/metric tons CO2e") -> Grant $/metric tons CO2e | G59: 100 | M59: ='Grants & Loans'!H75 -> 0
B60: =B59+1 -> 47 | E60: CO2e Grant (Maximum) | G60: 0 | M60: =M59 -> 0
B61: =B60+1 -> 48 | C61: 3 | D61: Production Incentive | E61: =CONCATENATE(G62," Production Incentive") -> SB844 CO2e Production Incentive | F61: No | G61: ='Prod Incentives'!H27 -> 0 | H61: =IF(Project=H798,"per year","") -> per year
B62: =B61+1 -> 49 | E62: Funder/Description | G62: SB844 CO2e
A63: =A62+1 -> 1 | B63: 50 | E63: =IFERROR(CONCATENATE(G62, " $ per ",VLOOKUP('Prod Incentives'!$E$13,Table_QuantityProductionIncentive,$H$855,FALSE)," Production Incentive"),"Pick Quantity from Menu") -> Pick Quantity from Menu | G63: 25 | M63: ='Grants & Loans'!H117 -> 0
A64: 2 | B64: 51 | E64: =CONCATENATE(G62," Production Incentive, Annual Maximum") -> SB844 CO2e Production Incentive, Annual Maximum | G64: 1875000 | M64: ='Grants & Loans'!H118 -> 0
B65: =B64+1 -> 52 | E65: =CONCATENATE(G62," Maximum ",H864," per year") -> SB844 CO2e Maximum tonnes CO2e per year | F65: =IF(G65>0,"","No Cap") -> No Cap | M65: ='Grants & Loans'!H119 -> 0
A66: =A64+1 -> 3 | B66: =B65+1 -> 53 | E66: Starting Year | G66: 1
A67: 4 | B67: 54 | E67: =CONCATENATE("Number of Years, Starting in Year ",'Grants & Loans'!C119) -> Number of Years, Starting in Year 1 | G67: 10
A68: 5 | B68: 55 | E68: =CONCATENATE("Quantity (",IFERROR(VLOOKUP($G$68,Table_QuantityProductionIncentive,$H$855,FALSE),"-"),")") -> Quantity (tonnes CO2e) | F68: =IFERROR(VLOOKUP('Prod Incentives'!$E$13,Table_QuantityProductionIncentive,'Incentive Model'!$G$855,FALSE),"Use Menu") -> Use Menu | G68: Carbon Emissions Reductions (metric tonnes) | N68: Systems must meet or exceed a Fuel Chargeable to Power (FCP) heat rate of 6,120 Btu/kWh. This translates to a 56% FCP efficiency.
A69: 6 | B69: 56 | C69: 4 | D69: Energy Savings With Respect to Grid | E69: =CONCATENATE(G70," Grant (wrt grid)" ) -> ETO CHP Grant (wrt grid) | F69: No | G69: =IFERROR(HLOOKUP($F$14,$H$14:$L$100,B69,FALSE),0) -> 0 | H69: =H687 -> 0 | I69: =I687 -> 0 | J69: =J687 -> 0 | K69: =K687 -> 0 | L69: =L687 -> 0 | N69: ETO Incentives will be provided at a rate of $0.25/kWh, capped at 50% of eligible project costs.
A70: 7 | B70: 57 | E70: Funder/Description | G70: ETO CHP | H70: =IF(H181="Recip Engine","Yes","No") -> Yes | I70: =IF(I181="Recip Engine","Yes","No") -> Yes | J70: =IF(J181="Recip Engine","Yes","No") -> Yes | K70: =IF(K181="Recip Engine","Yes","No") -> Yes | L70: =IF(L181="Recip Engine","Yes","No") -> Yes | N70: Incentives > $500k require Board approval and must provide energy savings at a significantly better than average cost to Oregon ratepayers. Incentives will typically be negotiated at a lower rate than standard incentives detailed below.
A71: 8 | B71: 58 | E71: Grant Order | G71: 2
A72: 9 | B72: 59 | E72: $ per kWh electricity savings with respect to grid | G72: 0.25 | M72: ='Grants & Loans'!H56 -> 0
A73: 10 | B73: 60 | E73: =CONCATENATE(G70," Grant (Maximum)") -> ETO CHP Grant (Maximum) | G73: 500000 | M73: ='Grants & Loans'!H57 -> 0
A74: 11 | B74: 61 | E74: =CONCATENATE(G70," Grant (Maximum Percent)") -> ETO CHP Grant (Maximum Percent) | G74: 0.5
A75: 12 | B75: 62 | E75: Years Taken Over | G75: 1
A76: 13 | B76: 63 | C76: 5 | D76: State Investment Tax Credit | E76: =CONCATENATE(G77," State Tax Credit") -> ODOE State Tax Credit | F76: No | G76: =IFERROR(HLOOKUP($F$14,$H$14:$L$100,B76,FALSE),0) -> 0 | H76: =H688 -> 0 | I76: =I688 -> 0 | J76: =J688 -> 0 | K76: =K688 -> 0 | L76: =L688 -> 0 | M76: ='Grants & Loans'!H48 -> 0
A77: 14 | B77: 64 | E77: Funder/Description | G77: ODOE
A78: 15 | B78: 65 | E78: Grant Order | G78: 3 | H78: Year 1 | I78: Year 2 | J78: Year 3 | K78: Year 4 | L78: Year 5
A79: 16 | B79: 66 | E79: Maximum % of Installed Cost in Each of 5 Years | F79: =SUM(H79:L79) -> 0.35 | H79: 0.1 | I79: 0.1 | J79: 0.05 | K79: 0.05 | L79: 0.05
A80: 17 | B80: 67 | E80: =CONCATENATE(G77," Tax Credit (Maximum)") -> ODOE Tax Credit (Maximum) | G80: 5000000 | M80: ='Grants & Loans'!H48 -> 0
A81: 18 | B81: 68 | E81: Carry Forward (Years) | G81: 5
B82: =B81+1 -> 69 | C82: 6 | D82: Federal Investment Tax Credit | E82: =IF(G84<0.1,"Federal ITC As Pass-Through","Federal ITC As Grant") -> Federal ITC As Grant | F82: No | G82: =IFERROR(HLOOKUP($F$14,$H$14:$L$99,B82,FALSE),0) -> 0 | H82: =H686 -> 0 | I82: =I686 -> 0 | J82: =J686 -> 0 | K82: =K686 -> 0 | L82: =L686 -> 0 | M82: ='Grants & Loans'!H38 -> 0
B83: =B82+1 -> 70 | E83: Grant Order | G83: 1
B84: =B83+1 -> 71 | E84: Maximum % of Installed Cost | G84: 0.1
B85: =B84+1 -> 72 | E85: Applicable Capacity (kW) per 26 USC § 48 | G85: 15000 | M85: ='Grants & Loans'!H36 -> 1
B86: =B85+1 -> 73 | E86: Federal ITC Maximum Size (kW) | G86: 50000 | M86: ='Grants & Loans'!H37 -> 0
B87: =B86+1 -> 74 | C87: 7 | D87: Lump Sum Grant 1 | E87: =CONCATENATE(G88," Grant") -> REAP Grant | F87: Yes | G87: =IFERROR(HLOOKUP($F$14,$H$14:$L$100,B87,FALSE),0) -> 500000 | H87: =H691 -> 500000 | I87: =I691 -> 500000 | J87: =J691 -> 500000 | K87: =K691 -> 500000 | L87: =L691 -> 500000 | M87: ='Grants & Loans'!H83 -> 1
B88: =B87+1 -> 75 | E88: Funder/Description | G88: REAP
B89: =B88+1 -> 76 | E89: Grant Order | G89: 5
B90: =B89+1 -> 77 | E90: =CONCATENATE(E87," Amount") -> REAP Grant Amount | G90: 500000
B91: =B90+1 -> 78 | C91: 8 | D91: Lump Sum Grant 2 | E91: =IF(E87=" Grant"," Grant ",CONCATENATE(G92," Grant")) -> Grant | F91: No | G91: =IFERROR(HLOOKUP($F$14,$H$14:$L$100,B91,FALSE),0) -> 0 | H91: =H692 -> 0 | I91: =I692 -> 0 | J91: =J692 -> 0 | K91: =K692 -> 0 | L91: =L692 -> 0
B92: =B91+1 -> 79 | E92: Funder/Description
B93: =B92+1 -> 80 | E93: Grant Order | G93: 8
B94: =B93+1 -> 81 | E94: =CONCATENATE(E91," Amount") -> Grant Amount | G94: 400000
B95: =B94+1 -> 82 | C95: 9 | D95: Percent Grant | E95: =CONCATENATE(G96," Grant (",ROUND(G98*100,0),"%)") -> ODOE Incentive (100% upfront at 29% through Pass-Through Partner) Grant (29%) | F95: No | G95: =IFERROR(HLOOKUP($F$14,$H$14:$L$99,B95,FALSE),0) -> 0 | H95: =H693 -> 0 | I95: =I693 -> 0 | J95: =J693 -> 0 | K95: =K693 -> 0 | L95: =L693 -> 0
B96: =B95+1 -> 83 | E96: Funder/Description | G96: ODOE Incentive (100% upfront at 29% through Pass-Through Partner)
B97: =B96+1 -> 84 | E97: Grant Order | G97: 7
B98: =B97+1 -> 85 | E98: Percent of Installed Cost | G98: 0.29 | H98: ODOE Incentive (100% upfront at 29% through Pass-Through Partner) | M98: ='Grants & Loans'!H117 -> 0
B99: =B98+1 -> 86 | E99: Maximum | M99: ='Grants & Loans'!H118 -> 0
B100: =B99+1 -> 87 | E100: Total Grants | G100: =G50+G56+G69+G76+G82+G87+G91+G95 -> 500000 | H100: 500000 | I100: 500000 | J100: 500000 | K100: 500000 | L100: 500000
B101: =B100+1 -> 88 | E101: =IF(F61="Yes",CONCATENATE("Total ",E61," over project study period"),"No") -> No | G101: ='Prod Incentives'!G28 -> 0
B102: =B101+1 -> 89 | D102: DEFINE LOANS
B103: =B102+1 -> 90 | E103: Do Loans Sum to Remaining Installed Cost after Grants? | F103: Yes
A104: =A98+1 -> 1 | B104: 91 | D104: Loan as Percent of Remaining Installed Cost | E104: =CONCATENATE(G105," Loan (",ROUND(G107*100,0),"%)") -> Construction Loan (60%) | F104: No | G104: =IFERROR(HLOOKUP($F$14,$H$14:$K$122,B104,FALSE),"") -> 0 | H104: ='Grants & Loans'!H186 -> 0 | I104: ='Grants & Loans'!I186 -> 0 | J104: ='Grants & Loans'!J186 -> 0 | K104: ='Grants & Loans'!L186 -> 0 | L104: ='Grants & Loans'!N186 -> 0 | M104: =WhatIf!B63 -> 1
A105: =A104+1 -> 2 | B105: 92 | E105: Funder/Description | G105: Construction
A106: 3 | B106: 93 | E106: Loan Order | G106: 1
A107: 4 | B107: 94 | E107: Percent of Remaining Installed Cost | G107: 0.6
A108: 5 | B108: 95 | E108: Maximum Amount | G108: 500000
A109: 6 | B109: 96 | E109: Project Year | G109: 1
B110: 97 | E110: Project Month | G110: 12
A111: =A109+1 -> 7 | B111: 98 | E111: Loan Fees (% amount) | G111: 0.01
A112: 8 | B112: 99 | E112: Annual Interest Rate | G112: 0.04
A113: 9 | B113: 100 | E113: Term (months) | G113: 12
A114: 10 | B114: 101 | D114: Loan as Amount | E114: =CONCATENATE(G115," Loan") -> Long Term Loan | F114: No | G114: =IFERROR(HLOOKUP($F$14,$H$14:$K$122,B114,FALSE),"") -> 0 | H114: ='Grants & Loans'!H187 -> 0 | I114: ='Grants & Loans'!I187 -> 0 | J114: ='Grants & Loans'!J187 -> 0 | K114: ='Grants & Loans'!L187 -> 0 | L114: ='Grants & Loans'!N187 -> 0 | M114: =WhatIf!B64 -> 1
A115: 11 | B115: 102 | E115: Funder/Description | G115: Long Term
A116: 12 | B116: 103 | E116: Loan Order | G116: 2
A117: 13 | B117: 104 | E117: Amount of Loan | G117: 1500000
A118: 14 | B118: 105 | E118: Project Year | G118: 1
B119: 106 | G119: 12
A120: =A118+1 -> 15 | B120: 107 | E120: Loan Fees (% amount) | G120: 0.01
A121: 16 | B121: 108 | E121: Annual Interest Rate | G121: 0.04
A122: 17 | B122: 109 | E122: Term (months) | G122: 60
E124: Inflation | F124: =F18 -> 0.025 | G124: Escalation rates are relative to inflation
D125: USER-DEFINED ESCALATION RELATIVE TO INFLATION | F125: =H22 -> 2019 | G125: =IFERROR(F125+1,"") -> 2020 | H125: 2021 | I125: 2022 | J125: 2023 | K125: 2024 | L125: 2025 | M125: =IFERROR(L125+1,"") -> 2026 | N125: 2027 | O125: 2028 | P125: 2029 | Q125: 2030 | R125: 2031 | S125: 2032 | T125: 2033 | U125: 2034 | V125: 2035 | W125: 2036 | X125: 2037 | Y125: 2038 | Z125: 2039 | AA125: 2040 | AB125: 2041 | AC125: 2042 | AD125: 2043 | AE125: 2044 | AF125: 2045 | AG125: 2046 | AH125: 2047 | AI125: 2048 | AJ125: 2049
E126: Project Year | F126: 1 | G126: =F126+1 -> 2 | H126: 3 | I126: 4 | J126: 5 | K126: 6 | L126: 7 | M126: 8 | N126: 9 | O126: 10 | P126: 11 | Q126: 12 | R126: 13 | S126: 14 | T126: 15 | U126: 16 | V126: 17 | W126: 18 | X126: 19 | Y126: 20 | Z126: 21 | AA126: 22 | AB126: 23 | AC126: 24 | AD126: 25 | AE126: 26 | AF126: 27 | AG126: 28 | AH126: 29 | AI126: 30 | AJ126: 31
B127: User-Defined Escalation Factors Relative to Inflation | D127: Electricity | AJ127: =IFERROR(AVERAGE(F127:AI127),0) -> 0
D128: Natural Gas | AJ128: =IFERROR(AVERAGE(F128:AI128),0) -> 0
D129: Electricity Sales | AJ129: =IFERROR(AVERAGE(F129:AI129),0) -> 0
D130: Electricity Demand | AJ130: =IFERROR(AVERAGE(F130:AI130),0) -> 0
D131: O&M | AJ131: =IFERROR(AVERAGE(F131:AI131),0) -> 0
B132: Scratch Area | F132: Infl+Esc
E133: Electricity Sales | F133: 0.025
E134: O&M | F134: 0.02
D137: ENERGY SAVINGS COMPARED TO GRID
E138: Fuel Chargeable to Power (FCP) Heat Rate (Btu/kWh) | H138: =IFERROR(IF(H226=0,0,( H228*10^6- H229*10^6/H227)/H226),0) -> 5093.687755 | I138: =IFERROR(IF(I226=0,0,( I228*10^6- I229*10^6/I227)/I226),0) -> 5926.547941 | J138: =IFERROR(IF(J226=0,0,( J228*10^6- J229*10^6/J227)/J226),0) -> 7907.71841 | K138: =IFERROR(IF(K226=0,0,( K228*10^6- K229*10^6/K227)/K226),0) -> 7576.728314 | L138: =IFERROR(IF(L226=0,0,( L228*10^6- L229*10^6/L227)/L226),0) -> 7021.35361 | M138: Fuel Chargeable to Power [Btu/kWh] = Purchased CHP Fuel [Btu per year]- Annual Heat Recovered [Btu] /Offset Thermal Efficiency)/Generated Electricity [kWh per year]
E139: FCP Efficiency (%) | H139: =IFERROR(3412/H138,0) -> 0.6698486762 | I139: =IFERROR(3412/I138,0) -> 0.5757145701 | J139: =IFERROR(3412/J138,0) -> 0.431477175 | K139: =IFERROR(3412/K138,0) -> 0.4503262963 | L139: =IFERROR(3412/L138,0) -> 0.485946185 | N139: The Higher Heating Value (HHV) energy content of gas should be used for the FCP calculation.
E140: Total System Efficiency (%) | H140: =IFERROR(( H229*10^6/H227+H226*3412)/(H228*10*100000),0) -> 0.8399506909 | I140: =IFERROR(( I229*10^6/I227+I226*3412)/(I228*10*100000),0) -> 0.7478298963 | J140: =IFERROR(( J229*10^6/J227+J226*3412)/(J228*10*100000),0) -> 0.5721342306 | K140: =IFERROR(( K229*10^6/K227+K226*3412)/(K228*10*100000),0) -> 0.5823424348 | L140: =IFERROR(( L229*10^6/L227+L226*3412)/(L228*10*100000),0) -> 0.6564911948
E141: Average utility generation heat rate (BTU/kWh) | H141: 8600 | I141: 8600 | J141: 8600 | K141: 8600 | L141: 8600
E142: Annual Energy Savings Compared to Grid (kWh/yr) | H142: =IFERROR((1-H138/H141)*H224,0) -> 1394749.815 | I142: =IFERROR((1-I138/I141)*I224,0) -> 1063452.569 | J142: =IFERROR((1-J138/J141)*J224,0) -> 275377.5342 | K142: =IFERROR((1-K138/K141)*K224,0) -> 407039.6176 | L142: =IFERROR((1-L138/L141)*L224,0) -> 627957.9819 | M142: Energy Savings wrt Grid [kWh per year] =(1-Fuel Chargeable to Power Heat Rate [Btu/kWh] / Utility Generation Heat Rate [Btu/kWh])*Rated Capacity [kW]
D144: SELECTION OF UNIT PRICES
C145: Revenue No | D145: Row in Table | E145: Revenues | F145: SELECTED | G145: From Database | H145: User-Defined
B146: 1 | D146: =B275 -> 108 | E146: =E270 -> Baseline Electricity Purchases (Avoided), Not Including Demand | F146: =IF(I146>0,IF(I146="User-Defined",H146,G146),0) -> 0.07081143745 | G146: =HLOOKUP($F$168,$H$168:$L$684,$B275,FALSE) -> 0.07081143745 | H146: =IFERROR(VLOOKUP($D146,Section_UserDefinedUnitPrices,COLUMN($M$36)-COLUMN($D$36)+1,FALSE),0) -> 0 | I146: =IFERROR(VLOOKUP($D146,Section_UserDefinedUnitPrices,COLUMN($N$36)-COLUMN($D$36)+1,FALSE),0) -> From Database
B147: 2 | D147: =B283 -> 116 | E147: =E278 -> Baseline Boiler Fuel Purchases (Avoided) | F147: =IF(I147>0,IF(I147="User-Defined",H147,G147),0) -> 16.37554585 | G147: =HLOOKUP($F$168,$H$168:$L$684,$B283,FALSE) -> 16.37554585 | H147: 0 | I147: From Database
B148: 3 | D148: =B291 -> 124 | E148: =E286 -> Electricity Sales | F148: =IF(I148>0,IF(I148="User-Defined",H148,G148),0) -> 0.065 | G148: =HLOOKUP($F$168,$H$168:$L$684,$B291,FALSE) -> 0.065 | H148: 0 | I148: From Database
B149: 4 | D149: =B299 -> 132 | E149: =E294 -> Baseline Demand Charges (Avoided) | F149: =IF(I149>0,IF(I149="User-Defined",H149,G149),0) -> 23760 | G149: =HLOOKUP($F$168,$H$168:$L$684,$B299,FALSE) -> 23760 | H149: 0 | I149: From Database
B150: 5 | D150: =B307 -> 140 | E150: =E302 -> Heat Savings (MMBtu) | F150: =IF(I150>0,IF(I150="User-Defined",H150,G150),0) -> 0 | G150: =HLOOKUP($F$168,$H$168:$L$684,$B307,FALSE) -> 0 | H150: 0 | I150: From Database
B151: 6 | D151: =B315 -> 148 | E151: =E310 -> Heat Sales (MMBtu) | F151: 3 | G151: =HLOOKUP($F$168,$H$168:$L$684,$B315,FALSE) -> 3 | H151: 0 | I151: From Database
B152: 7 | D152: =B323 -> 156 | E152: =E318 -> 0 | F152: 0 | G152: =HLOOKUP($F$168,$H$168:$L$684,$B323,FALSE) -> 0 | H152: 0 | I152: 0
B153: 8 | D153: =B331 -> 164 | E153: =E326 -> 0 | F153: 0 | G153: =HLOOKUP($F$168,$H$168:$L$684,$B331,FALSE) -> 0 | H153: 0 | I153: 0
B154: 9 | D154: =B339 -> 172 | E154: =E334 -> 0 | F154: 0 | G154: =HLOOKUP($F$168,$H$168:$L$684,$B339,FALSE) -> 0 | H154: 0 | I154: 0
B155: 10 | D155: =B347 -> 180 | E155: =E342 -> 0 | F155: 0 | G155: =HLOOKUP($F$168,$H$168:$L$684,$B347,FALSE) -> 0 | H155: 0 | I155: 0
C156: Purchase No | D156: Row in Table | E156: Purchases | F156: SELECTED | G156: From Database | H156: User-Defined
B157: 1 | D157: =B388 -> 221 | E157: =E383 -> CHP Fuel | F157: =IF(I157>0,IF(I157="User-Defined",H157,G157),0) -> 0 | G157: =HLOOKUP($F$168,$H$168:$L$684,$B388,FALSE) -> 0 | H157: =IFERROR(VLOOKUP($D157,Section_UserDefinedUnitPrices,COLUMN($M$36)-COLUMN($D$36)+1,FALSE),0) -> 0 | I157: =IFERROR(VLOOKUP($D157,Section_UserDefinedUnitPrices,COLUMN($N$36)-COLUMN($D$36)+1,FALSE),0) -> From Database
B158: 2 | D158: =B396 -> 229 | E158: =E391 -> CHP Electricity Purchases | F158: 0.08846385 | G158: =HLOOKUP($F$168,$H$168:$L$684,$B396,FALSE) -> 0.08846385 | H158: 0 | I158: From Database
B159: 3 | D159: =B404 -> 237 | E159: =E399 -> Residual Boiler Fuel | F159: 0 | G159: =HLOOKUP($F$168,$H$168:$L$684,$B404,FALSE) -> 0 | H159: 0 | I159: From Database
B160: 4 | D160: =B412 -> 245 | E160: =E407 -> Standby Charges | F160: 0 | G160: =HLOOKUP($F$168,$H$168:$L$684,$B412,FALSE) -> 0 | H160: 0 | I160: 0
B161: 5 | D161: =B420 -> 253 | E161: =E415 -> Alternative Demand Charges | F161: 5693.427333 | G161: =HLOOKUP($F$168,$H$168:$L$684,$B420,FALSE) -> 5693.427333 | H161: 0 | I161: From Database
B162: 6 | D162: =B428 -> 261 | E162: =E423 -> Biomass Boiler Fuel | F162: =IF(I162>0,IF(I162="User-Defined",H162,G162),0) -> 0 | G162: =HLOOKUP($F$168,$H$168:$L$684,$B428,FALSE) -> 0 | H162: 0 | I162: 0
B163: 7 | D163: =B436 -> 269 | E163: =E431 -> HRSG Fuel | F163: 0 | G163: =HLOOKUP($F$168,$H$168:$L$684,$B436,FALSE) -> 0 | H163: 0 | I163: From Database
B164: 8 | D164: =B444 -> 277 | E164: =E439 -> Additional Boiler Fuel for Steam Turbine | F164: 0 | G164: =HLOOKUP($F$168,$H$168:$L$684,$B444,FALSE) -> 0 | H164: 0 | I164: From Database
B165: 9 | D165: =B452 -> 285 | E165: =E447 -> Fuel Use, Second System | F165: 0 | G165: =HLOOKUP($F$168,$H$168:$L$684,$B452,FALSE) -> 0 | H165: 0 | I165: From Database
B166: 10 | D166: =B460 -> 293 | E166: =E455 -> 0 | F166: 0 | G166: =HLOOKUP($F$168,$H$168:$L$684,$B460,FALSE) -> 0 | H166: 0 | I166: 0
D168: SECTION | E168: Selected | F168: =CONCATENATE("Scenario ",Scenarios!C19) -> Scenario 1 | H168: Scenario 1 | I168: Scenario 2 | J168: Scenario 3 | K168: Scenario 4 | L168: Scenario 5 | S168: Make gray out and state Needs Updating when changed
B169: 2 | D169: General | E169: ='Project Database (calcs only)'!I45 -> Facility Name | F169: =HLOOKUP($F$168,$H$168:$L$684,B169,FALSE) -> Community Dairy Digester System with CHP, Janicke project demonstration | H169: =IFERROR(HLOOKUP(H$14,PrototypeResults,'Project Database (calcs only)'!$F45,FALSE),"") -> Community Dairy Digester System with CHP, Janicke project demonstration | I169: =IFERROR(HLOOKUP(I$14,PrototypeResults,'Project Database (calcs only)'!$F45,FALSE),"") -> Community Dairy Digester System with CHP, Janicke project demonstration | J169: =IFERROR(HLOOKUP(J$14,PrototypeResults,'Project Database (calcs only)'!$F45,FALSE),"") -> Community Dairy Digester System with CHP, Janicke project demonstration | K169: =IFERROR(HLOOKUP(K$14,PrototypeResults,'Project Database (calcs only)'!$F45,FALSE),"") -> Community Dairy Digester System with CHP, Janicke project demonstration | L169: =IFERROR(HLOOKUP(L$14,PrototypeResults,'Project Database (calcs only)'!$F45,FALSE),"") -> Community Dairy Digester System with CHP, Janicke project demonstration
B170: =B169+1 -> 3 | E170: ='Project Database (calcs only)'!I46 -> Location (City, State) | F170: =HLOOKUP($F$168,$H$168:$L$684,B170,FALSE) -> 0 | H170: =IFERROR(HLOOKUP(H$14,PrototypeResults,'Project Database (calcs only)'!$F46,FALSE),"") -> 0 | I170: =IFERROR(HLOOKUP(I$14,PrototypeResults,'Project Database (calcs only)'!$F46,FALSE),"") -> 0 | J170: =IFERROR(HLOOKUP(J$14,PrototypeResults,'Project Database (calcs only)'!$F46,FALSE),"") -> 0 | K170: =IFERROR(HLOOKUP(K$14,PrototypeResults,'Project Database (calcs only)'!$F46,FALSE),"") -> 0 | L170: =IFERROR(HLOOKUP(L$14,PrototypeResults,'Project Database (calcs only)'!$F46,FALSE),"") -> 0
B171: 4 | E171: ='Project Database (calcs only)'!I47 -> CHP Alternative Description | F171: 1-633 kW Recip Engine | H171: =IFERROR(HLOOKUP(H$14,PrototypeResults,'Project Database (calcs only)'!$F47,FALSE),"") -> 1-633 kW Recip Engine | I171: =IFERROR(HLOOKUP(I$14,PrototypeResults,'Project Database (calcs only)'!$F47,FALSE),"") -> 1-850 kW Recip Engine | J171: =IFERROR(HLOOKUP(J$14,PrototypeResults,'Project Database (calcs only)'!$F47,FALSE),"") -> 1-633 kW Recip Engine | K171: =IFERROR(HLOOKUP(K$14,PrototypeResults,'Project Database (calcs only)'!$F47,FALSE),"") -> 1-850 kW Recip Engine | L171: =IFERROR(HLOOKUP(L$14,PrototypeResults,'Project Database (calcs only)'!$F47,FALSE),"") -> 1-633 kW Recip Engine
B172: 5 | E172: ='Project Database (calcs only)'!I48 -> Altitude of location (feet) | F172: 300 | H172: =IFERROR(HLOOKUP(H$14,PrototypeResults,'Project Database (calcs only)'!$F48,FALSE),"") -> 300 | I172: =IFERROR(HLOOKUP(I$14,PrototypeResults,'Project Database (calcs only)'!$F48,FALSE),"") -> 300 | J172: =IFERROR(HLOOKUP(J$14,PrototypeResults,'Project Database (calcs only)'!$F48,FALSE),"") -> 300 | K172: =IFERROR(HLOOKUP(K$14,PrototypeResults,'Project Database (calcs only)'!$F48,FALSE),"") -> 300 | L172: =IFERROR(HLOOKUP(L$14,PrototypeResults,'Project Database (calcs only)'!$F48,FALSE),"") -> 300 | S172: Yes
B173: 6 | E173: ='Project Database (calcs only)'!I49 -> Facility Type | F173: Agricultural: Dairy | H173: =IFERROR(HLOOKUP(H$14,PrototypeResults,'Project Database (calcs only)'!$F49,FALSE),"") -> Agricultural: Dairy | I173: =IFERROR(HLOOKUP(I$14,PrototypeResults,'Project Database (calcs only)'!$F49,FALSE),"") -> Agricultural: Dairy | J173: =IFERROR(HLOOKUP(J$14,PrototypeResults,'Project Database (calcs only)'!$F49,FALSE),"") -> Agricultural: Dairy | K173: =IFERROR(HLOOKUP(K$14,PrototypeResults,'Project Database (calcs only)'!$F49,FALSE),"") -> Agricultural: Dairy | L173: =IFERROR(HLOOKUP(L$14,PrototypeResults,'Project Database (calcs only)'!$F49,FALSE),"") -> Agricultural: Dairy
B174: 7 | E174: ='Project Database (calcs only)'!I50 -> Floor Area, # of Units, or Other Indication of Size) | F174: 0 | H174: =IFERROR(HLOOKUP(H$14,PrototypeResults,'Project Database (calcs only)'!$F50,FALSE),"") -> 0 | I174: =IFERROR(HLOOKUP(I$14,PrototypeResults,'Project Database (calcs only)'!$F50,FALSE),"") -> 0 | J174: =IFERROR(HLOOKUP(J$14,PrototypeResults,'Project Database (calcs only)'!$F50,FALSE),"") -> 0 | K174: =IFERROR(HLOOKUP(K$14,PrototypeResults,'Project Database (calcs only)'!$F50,FALSE),"") -> 0 | L174: =IFERROR(HLOOKUP(L$14,PrototypeResults,'Project Database (calcs only)'!$F50,FALSE),"") -> 0
B175: 8 | E175: ='Project Database (calcs only)'!I51 -> Sector | F175: Agricultural | H175: =IFERROR(HLOOKUP(H$14,PrototypeResults,'Project Database (calcs only)'!$F51,FALSE),"") -> Agricultural | I175: =IFERROR(HLOOKUP(I$14,PrototypeResults,'Project Database (calcs only)'!$F51,FALSE),"") -> Agricultural | J175: =IFERROR(HLOOKUP(J$14,PrototypeResults,'Project Database (calcs only)'!$F51,FALSE),"") -> Agricultural | K175: =IFERROR(HLOOKUP(K$14,PrototypeResults,'Project Database (calcs only)'!$F51,FALSE),"") -> Agricultural | L175: =IFERROR(HLOOKUP(L$14,PrototypeResults,'Project Database (calcs only)'!$F51,FALSE),"") -> Agricultural
B176: 9 | E176: ='Project Database (calcs only)'!I52 -> Project Life | F176: 20 | H176: =IFERROR(HLOOKUP(H$14,PrototypeResults,'Project Database (calcs only)'!$F52,FALSE),"") -> 20 | I176: =IFERROR(HLOOKUP(I$14,PrototypeResults,'Project Database (calcs only)'!$F52,FALSE),"") -> 20 | J176: =IFERROR(HLOOKUP(J$14,PrototypeResults,'Project Database (calcs only)'!$F52,FALSE),"") -> 20 | K176: =IFERROR(HLOOKUP(K$14,PrototypeResults,'Project Database (calcs only)'!$F52,FALSE),"") -> 20 | L176: =IFERROR(HLOOKUP(L$14,PrototypeResults,'Project Database (calcs only)'!$F52,FALSE),"") -> 0
B177: 10 | E177: ='Project Database (calcs only)'!I53 -> First Year of Project | F177: 2016 | H177: =IFERROR(HLOOKUP(H$14,PrototypeResults,'Project Database (calcs only)'!$F53,FALSE),"") -> 2016 | I177: =IFERROR(HLOOKUP(I$14,PrototypeResults,'Project Database (calcs only)'!$F53,FALSE),"") -> 2016 | J177: =IFERROR(HLOOKUP(J$14,PrototypeResults,'Project Database (calcs only)'!$F53,FALSE),"") -> 2016 | K177: =IFERROR(HLOOKUP(K$14,PrototypeResults,'Project Database (calcs only)'!$F53,FALSE),"") -> 2016 | L177: =IFERROR(HLOOKUP(L$14,PrototypeResults,'Project Database (calcs only)'!$F53,FALSE),"") -> 2016
B178: 11 | E178: ='Project Database (calcs only)'!I54 -> Taxable Entity? | F178: True | H178: =IFERROR(HLOOKUP(H$14,PrototypeResults,'Project Database (calcs only)'!$F54,FALSE),"") -> True | I178: =IFERROR(HLOOKUP(I$14,PrototypeResults,'Project Database (calcs only)'!$F54,FALSE),"") -> True | J178: =IFERROR(HLOOKUP(J$14,PrototypeResults,'Project Database (calcs only)'!$F54,FALSE),"") -> True | K178: =IFERROR(HLOOKUP(K$14,PrototypeResults,'Project Database (calcs only)'!$F54,FALSE),"") -> True | L178: =IFERROR(HLOOKUP(L$14,PrototypeResults,'Project Database (calcs only)'!$F54,FALSE),"") -> True
B179: 12 | E179: ='Project Database (calcs only)'!I55 -> Discount Rate | F179: 0.03 | H179: =IFERROR(HLOOKUP(H$14,PrototypeResults,'Project Database (calcs only)'!$F55,FALSE),"") -> 0.03 | I179: =IFERROR(HLOOKUP(I$14,PrototypeResults,'Project Database (calcs only)'!$F55,FALSE),"") -> 0.03 | J179: =IFERROR(HLOOKUP(J$14,PrototypeResults,'Project Database (calcs only)'!$F55,FALSE),"") -> 0.03 | K179: =IFERROR(HLOOKUP(K$14,PrototypeResults,'Project Database (calcs only)'!$F55,FALSE),"") -> 0.03 | L179: =IFERROR(HLOOKUP(L$14,PrototypeResults,'Project Database (calcs only)'!$F55,FALSE),"") -> 0
B180: 13 | E180: ='Project Database (calcs only)'!I56 -> General Inflation | F180: 0.025 | H180: =IFERROR(HLOOKUP(H$14,PrototypeResults,'Project Database (calcs only)'!$F56,FALSE),"") -> 0.025 | I180: =IFERROR(HLOOKUP(I$14,PrototypeResults,'Project Database (calcs only)'!$F56,FALSE),"") -> 0.025 | J180: =IFERROR(HLOOKUP(J$14,PrototypeResults,'Project Database (calcs only)'!$F56,FALSE),"") -> 0.025 | K180: =IFERROR(HLOOKUP(K$14,PrototypeResults,'Project Database (calcs only)'!$F56,FALSE),"") -> 0.025 | L180: =IFERROR(HLOOKUP(L$14,PrototypeResults,'Project Database (calcs only)'!$F56,FALSE),"") -> 0.025
B181: 14 | D181: Model Information | E181: ='Project Database (calcs only)'!I57 -> Prime Mover Type | F181: Recip Engine | H181: =IFERROR(HLOOKUP(H$14,PrototypeResults,'Project Database (calcs only)'!$F57,FALSE),"") -> Recip Engine | I181: =IFERROR(HLOOKUP(I$14,PrototypeResults,'Project Database (calcs only)'!$F57,FALSE),"") -> Recip Engine | J181: =IFERROR(HLOOKUP(J$14,PrototypeResults,'Project Database (calcs only)'!$F57,FALSE),"") -> Recip Engine | K181: =IFERROR(HLOOKUP(K$14,PrototypeResults,'Project Database (calcs only)'!$F57,FALSE),"") -> Recip Engine | L181: =IFERROR(HLOOKUP(L$14,PrototypeResults,'Project Database (calcs only)'!$F57,FALSE),"") -> Recip Engine
B182: 15 | E182: ='Project Database (calcs only)'!I58 -> Prime Mover Description | F182: 633 kW J312 Biogas Hi Nox | H182: =IFERROR(HLOOKUP(H$14,PrototypeResults,'Project Database (calcs only)'!$F58,FALSE),"") -> 633 kW J312 Biogas Hi Nox | I182: =IFERROR(HLOOKUP(I$14,PrototypeResults,'Project Database (calcs only)'!$F58,FALSE),"") -> 850 kW J412 Biogas | J182: =IFERROR(HLOOKUP(J$14,PrototypeResults,'Project Database (calcs only)'!$F58,FALSE),"") -> 633 kW J312 Biogas Hi Nox | K182: =IFERROR(HLOOKUP(K$14,PrototypeResults,'Project Database (calcs only)'!$F58,FALSE),"") -> 850 kW J412 Biogas | L182: =IFERROR(HLOOKUP(L$14,PrototypeResults,'Project Database (calcs only)'!$F58,FALSE),"") -> 850 kW J412 Biogas
B183: 16 | E183: ='Project Database (calcs only)'!I59 -> Number of Units | F183: 1 | H183: =IFERROR(HLOOKUP(H$14,PrototypeResults,'Project Database (calcs only)'!$F59,FALSE),"") -> 1 | I183: =IFERROR(HLOOKUP(I$14,PrototypeResults,'Project Database (calcs only)'!$F59,FALSE),"") -> 1 | J183: =IFERROR(HLOOKUP(J$14,PrototypeResults,'Project Database (calcs only)'!$F59,FALSE),"") -> 1 | K183: =IFERROR(HLOOKUP(K$14,PrototypeResults,'Project Database (calcs only)'!$F59,FALSE),"") -> 1 | L183: =IFERROR(HLOOKUP(L$14,PrototypeResults,'Project Database (calcs only)'!$F59,FALSE),"") -> 1
B184: 17 | E184: ='Project Database (calcs only)'!I60 -> CHP Rated Capacity, kW | F184: 633 | H184: =IFERROR(HLOOKUP(H$14,PrototypeResults,'Project Database (calcs only)'!$F60,FALSE),"") -> 633 | I184: =IFERROR(HLOOKUP(I$14,PrototypeResults,'Project Database (calcs only)'!$F60,FALSE),"") -> 850 | J184: =IFERROR(HLOOKUP(J$14,PrototypeResults,'Project Database (calcs only)'!$F60,FALSE),"") -> 633 | K184: =IFERROR(HLOOKUP(K$14,PrototypeResults,'Project Database (calcs only)'!$F60,FALSE),"") -> 850 | L184: =IFERROR(HLOOKUP(L$14,PrototypeResults,'Project Database (calcs only)'!$F60,FALSE),"") -> 633
B185: 18 | E185: ='Project Database (calcs only)'!I61 -> CHP Net Electric Output, kW (derated) | F185: 613.1572867 | H185: =IFERROR(HLOOKUP(H$14,PrototypeResults,'Project Database (calcs only)'!$F61,FALSE),"") -> 613.1572867 | I185: =IFERROR(HLOOKUP(I$14,PrototypeResults,'Project Database (calcs only)'!$F61,FALSE),"") -> 823.3549664 | J185: =IFERROR(HLOOKUP(J$14,PrototypeResults,'Project Database (calcs only)'!$F61,FALSE),"") -> 613.1572867 | K185: =IFERROR(HLOOKUP(K$14,PrototypeResults,'Project Database (calcs only)'!$F61,FALSE),"") -> 823.3549664 | L185: =IFERROR(HLOOKUP(L$14,PrototypeResults,'Project Database (calcs only)'!$F61,FALSE),"") -> 613.1572867
B186: 19 | E186: ='Project Database (calcs only)'!I62 -> Electric Heat Rate, Btu/kWh | F186: 9950.422864 | H186: =IFERROR(HLOOKUP(H$14,PrototypeResults,'Project Database (calcs only)'!$F62,FALSE),"") -> 9950.422864 | I186: =IFERROR(HLOOKUP(I$14,PrototypeResults,'Project Database (calcs only)'!$F62,FALSE),"") -> 9443.137255 | J186: =IFERROR(HLOOKUP(J$14,PrototypeResults,'Project Database (calcs only)'!$F62,FALSE),"") -> 9950.422864 | K186: =IFERROR(HLOOKUP(K$14,PrototypeResults,'Project Database (calcs only)'!$F62,FALSE),"") -> 9443.137255 | L186: =IFERROR(HLOOKUP(L$14,PrototypeResults,'Project Database (calcs only)'!$F62,FALSE),"") -> 9950.422864
B187: 20 | E187: ='Project Database (calcs only)'!I63 -> Thermal Output, Btu/kWh | F187: 4243.28594 | H187: =IFERROR(HLOOKUP(H$14,PrototypeResults,'Project Database (calcs only)'!$F63,FALSE),"") -> 4243.28594 | I187: =IFERROR(HLOOKUP(I$14,PrototypeResults,'Project Database (calcs only)'!$F63,FALSE),"") -> 3784.705882 | J187: =IFERROR(HLOOKUP(J$14,PrototypeResults,'Project Database (calcs only)'!$F63,FALSE),"") -> 4243.28594 | K187: =IFERROR(HLOOKUP(K$14,PrototypeResults,'Project Database (calcs only)'!$F63,FALSE),"") -> 3784.705882 | L187: =IFERROR(HLOOKUP(L$14,PrototypeResults,'Project Database (calcs only)'!$F63,FALSE),"") -> 4243.28594
B188: 21 | E188: ='Project Database (calcs only)'!I64 -> Electric Efficiency, % | F188: 0.3429 | H188: =IFERROR(HLOOKUP(H$14,PrototypeResults,'Project Database (calcs only)'!$F64,FALSE),"") -> 0.3429 | I188: =IFERROR(HLOOKUP(I$14,PrototypeResults,'Project Database (calcs only)'!$F64,FALSE),"") -> 0.361320598 | J188: =IFERROR(HLOOKUP(J$14,PrototypeResults,'Project Database (calcs only)'!$F64,FALSE),"") -> 0.3429 | K188: =IFERROR(HLOOKUP(K$14,PrototypeResults,'Project Database (calcs only)'!$F64,FALSE),"") -> 0.361320598 | L188: =IFERROR(HLOOKUP(L$14,PrototypeResults,'Project Database (calcs only)'!$F64,FALSE),"") -> 0.3429
B189: 22 | E189: ='Project Database (calcs only)'!I65 -> CHP Efficiency (%) | F189: 0.7693427752 | H189: =IFERROR(HLOOKUP(H$14,PrototypeResults,'Project Database (calcs only)'!$F65,FALSE),"") -> 0.7693427752 | I189: =IFERROR(HLOOKUP(I$14,PrototypeResults,'Project Database (calcs only)'!$F65,FALSE),"") -> 0.7621096346 | J189: =IFERROR(HLOOKUP(J$14,PrototypeResults,'Project Database (calcs only)'!$F65,FALSE),"") -> 0.7693427752 | K189: =IFERROR(HLOOKUP(K$14,PrototypeResults,'Project Database (calcs only)'!$F65,FALSE),"") -> 0.7621096346 | L189: =IFERROR(HLOOKUP(L$14,PrototypeResults,'Project Database (calcs only)'!$F65,FALSE),"") -> 0.7693427752
B190: 23 | E190: ='Project Database (calcs only)'!I66 -> Thermal Needs Served By CHP | H190: =IFERROR(HLOOKUP(H$14,PrototypeResults,'Project Database (calcs only)'!$F66,FALSE),"") ->  | I190: =IFERROR(HLOOKUP(I$14,PrototypeResults,'Project Database (calcs only)'!$F66,FALSE),"") ->  | J190: =IFERROR(HLOOKUP(J$14,PrototypeResults,'Project Database (calcs only)'!$F66,FALSE),"") ->  | K190: =IFERROR(HLOOKUP(K$14,PrototypeResults,'Project Database (calcs only)'!$F66,FALSE),"") ->  | L190: =IFERROR(HLOOKUP(L$14,PrototypeResults,'Project Database (calcs only)'!$F66,FALSE),"") -> 0
B191: 24 | E191: ='Project Database (calcs only)'!I67 -> Average Hourly Electric Demand (kW) | F191: 414.7514386 | H191: =IFERROR(HLOOKUP(H$14,PrototypeResults,'Project Database (calcs only)'!$F67,FALSE),"") -> 414.7514386 | I191: =IFERROR(HLOOKUP(I$14,PrototypeResults,'Project Database (calcs only)'!$F67,FALSE),"") -> 414.7514386 | J191: =IFERROR(HLOOKUP(J$14,PrototypeResults,'Project Database (calcs only)'!$F67,FALSE),"") -> 414.7514386 | K191: =IFERROR(HLOOKUP(K$14,PrototypeResults,'Project Database (calcs only)'!$F67,FALSE),"") -> 414.7514386 | L191: =IFERROR(HLOOKUP(L$14,PrototypeResults,'Project Database (calcs only)'!$F67,FALSE),"") -> 414.7514386
B192: 25 | E192: ='Project Database (calcs only)'!I68 -> Maximum Electric Demand | F192: 500 | H192: =IFERROR(HLOOKUP(H$14,PrototypeResults,'Project Database (calcs only)'!$F68,FALSE),"") -> 500 | I192: =IFERROR(HLOOKUP(I$14,PrototypeResults,'Project Database (calcs only)'!$F68,FALSE),"") -> 500 | J192: =IFERROR(HLOOKUP(J$14,PrototypeResults,'Project Database (calcs only)'!$F68,FALSE),"") -> 500 | K192: =IFERROR(HLOOKUP(K$14,PrototypeResults,'Project Database (calcs only)'!$F68,FALSE),"") -> 500 | L192: =IFERROR(HLOOKUP(L$14,PrototypeResults,'Project Database (calcs only)'!$F68,FALSE),"") -> 500
B193: 26 | E193: ='Project Database (calcs only)'!I69 -> Minimum Electric Demand | F193: 500 | H193: =IFERROR(HLOOKUP(H$14,PrototypeResults,'Project Database (calcs only)'!$F69,FALSE),"") -> 500 | I193: =IFERROR(HLOOKUP(I$14,PrototypeResults,'Project Database (calcs only)'!$F69,FALSE),"") -> 500 | J193: =IFERROR(HLOOKUP(J$14,PrototypeResults,'Project Database (calcs only)'!$F69,FALSE),"") -> 500 | K193: =IFERROR(HLOOKUP(K$14,PrototypeResults,'Project Database (calcs only)'!$F69,FALSE),"") -> 500 | L193: =IFERROR(HLOOKUP(L$14,PrototypeResults,'Project Database (calcs only)'!$F69,FALSE),"") -> 500
B194: 27 | E194: ='Project Database (calcs only)'!I70 -> Average Hourly Thermal Demand (MMBtu/hr) | F194: 0.3717621553 | H194: =IFERROR(HLOOKUP(H$14,PrototypeResults,'Project Database (calcs only)'!$F70,FALSE),"") -> 0.3717621553 | I194: =IFERROR(HLOOKUP(I$14,PrototypeResults,'Project Database (calcs only)'!$F70,FALSE),"") -> 0.3717621553 | J194: =IFERROR(HLOOKUP(J$14,PrototypeResults,'Project Database (calcs only)'!$F70,FALSE),"") -> 0.3717621553 | K194: =IFERROR(HLOOKUP(K$14,PrototypeResults,'Project Database (calcs only)'!$F70,FALSE),"") -> 0.3717621553 | L194: =IFERROR(HLOOKUP(L$14,PrototypeResults,'Project Database (calcs only)'!$F70,FALSE),"") -> 0.3717621553
B195: 28 | E195: ='Project Database (calcs only)'!I71 -> Minimum Average Hourly Thermal Demand (MMBtu/hr) | F195: 1.306011872 | H195: =IFERROR(HLOOKUP(H$14,PrototypeResults,'Project Database (calcs only)'!$F71,FALSE),"") -> 1.306011872 | I195: =IFERROR(HLOOKUP(I$14,PrototypeResults,'Project Database (calcs only)'!$F71,FALSE),"") -> 1.306011872 | J195: =IFERROR(HLOOKUP(J$14,PrototypeResults,'Project Database (calcs only)'!$F71,FALSE),"") -> 1.306011872 | K195: =IFERROR(HLOOKUP(K$14,PrototypeResults,'Project Database (calcs only)'!$F71,FALSE),"") -> 1.306011872 | L195: =IFERROR(HLOOKUP(L$14,PrototypeResults,'Project Database (calcs only)'!$F71,FALSE),"") -> 1.306011872
B196: 29 | E196: ='Project Database (calcs only)'!I72 -> Offsetting Boiler Efficiency (%) | F196: 0.8 | H196: =IFERROR(HLOOKUP(H$14,PrototypeResults,'Project Database (calcs only)'!$F72,FALSE),"") -> 0.8 | I196: =IFERROR(HLOOKUP(I$14,PrototypeResults,'Project Database (calcs only)'!$F72,FALSE),"") -> 0.8 | J196: =IFERROR(HLOOKUP(J$14,PrototypeResults,'Project Database (calcs only)'!$F72,FALSE),"") -> 0.8 | K196: =IFERROR(HLOOKUP(K$14,PrototypeResults,'Project Database (calcs only)'!$F72,FALSE),"") -> 0.8 | L196: =IFERROR(HLOOKUP(L$14,PrototypeResults,'Project Database (calcs only)'!$F72,FALSE),"") -> 0.8
B197: 30 | E197: ='Project Database (calcs only)'!I73 -> Operating Strategy | F197: Use All Gas Available | H197: =IFERROR(HLOOKUP(H$14,PrototypeResults,'Project Database (calcs only)'!$F73,FALSE),"") -> Use All Gas Available | I197: =IFERROR(HLOOKUP(I$14,PrototypeResults,'Project Database (calcs only)'!$F73,FALSE),"") -> Use All Gas Available | J197: =IFERROR(HLOOKUP(J$14,PrototypeResults,'Project Database (calcs only)'!$F73,FALSE),"") -> Use All Gas Available | K197: =IFERROR(HLOOKUP(K$14,PrototypeResults,'Project Database (calcs only)'!$F73,FALSE),"") -> Use All Gas Available | L197: =IFERROR(HLOOKUP(L$14,PrototypeResults,'Project Database (calcs only)'!$F73,FALSE),"") -> Use All Gas Available
B198: 31 | E198: ='Project Database (calcs only)'!I74 -> Average operation as percent of derated installed capacity | F198: 1 | H198: =IFERROR(HLOOKUP(H$14,PrototypeResults,'Project Database (calcs only)'!$F74,FALSE),"") -> 1 | I198: =IFERROR(HLOOKUP(I$14,PrototypeResults,'Project Database (calcs only)'!$F74,FALSE),"") -> 0.8083539629 | J198: =IFERROR(HLOOKUP(J$14,PrototypeResults,'Project Database (calcs only)'!$F74,FALSE),"") -> 1 | K198: =IFERROR(HLOOKUP(K$14,PrototypeResults,'Project Database (calcs only)'!$F74,FALSE),"") -> 0.8083539629 | L198: =IFERROR(HLOOKUP(L$14,PrototypeResults,'Project Database (calcs only)'!$F74,FALSE),"") -> 0.7457326995
B199: 32 | E199: ='Project Database (calcs only)'!I75 -> Percent Electrical Loads Met | F199: 1.340963056 | H199: =IFERROR(HLOOKUP(H$14,PrototypeResults,'Project Database (calcs only)'!$F75,FALSE),"") -> 1.340963056 | I199: =IFERROR(HLOOKUP(I$14,PrototypeResults,'Project Database (calcs only)'!$F75,FALSE),"") -> 1.378426392 | J199: =IFERROR(HLOOKUP(J$14,PrototypeResults,'Project Database (calcs only)'!$F75,FALSE),"") -> 1.269892014 | K199: =IFERROR(HLOOKUP(K$14,PrototypeResults,'Project Database (calcs only)'!$F75,FALSE),"") -> 1.378426392 | L199: =IFERROR(HLOOKUP(L$14,PrototypeResults,'Project Database (calcs only)'!$F75,FALSE),"") -> 0.947
B200: 33 | E200: ='Project Database (calcs only)'!I76 -> Percent Thermal Loads Met | F200: 2.082489392 | H200: =IFERROR(HLOOKUP(H$14,PrototypeResults,'Project Database (calcs only)'!$F76,FALSE),"") -> 2.082489392 | I200: =IFERROR(HLOOKUP(I$14,PrototypeResults,'Project Database (calcs only)'!$F76,FALSE),"") -> 1.689037772 | J200: =IFERROR(HLOOKUP(J$14,PrototypeResults,'Project Database (calcs only)'!$F76,FALSE),"") -> 2.082489392 | K200: =IFERROR(HLOOKUP(K$14,PrototypeResults,'Project Database (calcs only)'!$F76,FALSE),"") -> 1.59951877 | L200: =IFERROR(HLOOKUP(L$14,PrototypeResults,'Project Database (calcs only)'!$F76,FALSE),"") -> 1.150337254
B201: 34 | E201: ='Project Database (calcs only)'!I77 -> Variable O&M | F201: 0.02 | H201: =IFERROR(HLOOKUP(H$14,PrototypeResults,'Project Database (calcs only)'!$F77,FALSE),"") -> 0.02 | I201: =IFERROR(HLOOKUP(I$14,PrototypeResults,'Project Database (calcs only)'!$F77,FALSE),"") -> 0.02 | J201: =IFERROR(HLOOKUP(J$14,PrototypeResults,'Project Database (calcs only)'!$F77,FALSE),"") -> 0.02 | K201: =IFERROR(HLOOKUP(K$14,PrototypeResults,'Project Database (calcs only)'!$F77,FALSE),"") -> 0.02 | L201: =IFERROR(HLOOKUP(L$14,PrototypeResults,'Project Database (calcs only)'!$F77,FALSE),"") -> 0.02
B202: 35 | E202: ='Project Database (calcs only)'!I78 -> CHP Electricity purchase price, $/kWh, melded | F202: 0.200384798 | H202: =IFERROR(HLOOKUP(H$14,PrototypeResults,'Project Database (calcs only)'!$F78,FALSE),"") -> 0.200384798 | I202: =IFERROR(HLOOKUP(I$14,PrototypeResults,'Project Database (calcs only)'!$F78,FALSE),"") -> 0.200384798 | J202: =IFERROR(HLOOKUP(J$14,PrototypeResults,'Project Database (calcs only)'!$F78,FALSE),"") -> 0.200384798 | K202: =IFERROR(HLOOKUP(K$14,PrototypeResults,'Project Database (calcs only)'!$F78,FALSE),"") -> 0.200384798 | L202: =IFERROR(HLOOKUP(L$14,PrototypeResults,'Project Database (calcs only)'!$F78,FALSE),"") -> 0.200384798
B203: 36 | E203: ='Project Database (calcs only)'!I79 -> Baseline Demand, $ | F203: 5693.427333 | H203: =IFERROR(HLOOKUP(H$14,PrototypeResults,'Project Database (calcs only)'!$F79,FALSE),"") -> 5693.427333 | I203: =IFERROR(HLOOKUP(I$14,PrototypeResults,'Project Database (calcs only)'!$F79,FALSE),"") -> 5693.427333 | J203: =IFERROR(HLOOKUP(J$14,PrototypeResults,'Project Database (calcs only)'!$F79,FALSE),"") -> 5693.427333 | K203: =IFERROR(HLOOKUP(K$14,PrototypeResults,'Project Database (calcs only)'!$F79,FALSE),"") -> 5693.427333 | L203: =IFERROR(HLOOKUP(L$14,PrototypeResults,'Project Database (calcs only)'!$F79,FALSE),"") -> 5693.427333
B204: 37 | E204: ='Project Database (calcs only)'!I80 -> Fuel Rate at Full Fire | F204: 6.101174285 | H204: =IFERROR(HLOOKUP(H$14,PrototypeResults,'Project Database (calcs only)'!$F80,FALSE),"") -> 6.101174285 | I204: =IFERROR(HLOOKUP(I$14,PrototypeResults,'Project Database (calcs only)'!$F80,FALSE),"") -> 7.775053957 | J204: =IFERROR(HLOOKUP(J$14,PrototypeResults,'Project Database (calcs only)'!$F80,FALSE),"") -> 6.101174285 | K204: =IFERROR(HLOOKUP(K$14,PrototypeResults,'Project Database (calcs only)'!$F80,FALSE),"") -> 7.775053957 | L204: =IFERROR(HLOOKUP(L$14,PrototypeResults,'Project Database (calcs only)'!$F80,FALSE),"") -> 6.101174285
B205: 38 | E205: ='Project Database (calcs only)'!I81 -> 0 | F205: 0 | H205: =IFERROR(HLOOKUP(H$14,PrototypeResults,'Project Database (calcs only)'!$F81,FALSE),"") -> 0 | I205: =IFERROR(HLOOKUP(I$14,PrototypeResults,'Project Database (calcs only)'!$F81,FALSE),"") -> 0 | J205: =IFERROR(HLOOKUP(J$14,PrototypeResults,'Project Database (calcs only)'!$F81,FALSE),"") -> 0 | K205: =IFERROR(HLOOKUP(K$14,PrototypeResults,'Project Database (calcs only)'!$F81,FALSE),"") -> 0 | L205: =IFERROR(HLOOKUP(L$14,PrototypeResults,'Project Database (calcs only)'!$F81,FALSE),"") -> 0
B206: 39 | E206: ='Project Database (calcs only)'!I82 -> 0 | F206: 0 | H206: =IFERROR(HLOOKUP(H$14,PrototypeResults,'Project Database (calcs only)'!$F82,FALSE),"") -> 0 | I206: =IFERROR(HLOOKUP(I$14,PrototypeResults,'Project Database (calcs only)'!$F82,FALSE),"") -> 0 | J206: =IFERROR(HLOOKUP(J$14,PrototypeResults,'Project Database (calcs only)'!$F82,FALSE),"") -> 0 | K206: =IFERROR(HLOOKUP(K$14,PrototypeResults,'Project Database (calcs only)'!$F82,FALSE),"") -> 0 | L206: =IFERROR(HLOOKUP(L$14,PrototypeResults,'Project Database (calcs only)'!$F82,FALSE),"") -> 0
... 629 more rows

Sheet General
D1: RELCOST
D2: Financial Analysis of Energy Projects
D3: Updated April 2019
D4: ©2019 Washington State University Extension Energy Program
C5: INPUT (Edit) | P5: CTRL-N = Paste formulas & number formats (without links to other sheets)
C6: RESULTS (No Edits) | P6: Do not cut and paste to move cells. Always copy and paste to maintain formulas.
C8: PROJECT SUMMARY | T8: =IF(Toggle_Scenario="Hidden","SCENARIOS - Click Show Scenarios button to show this option","SCENARIOS") -> SCENARIOS - Click Show Scenarios button to show this option
C9: Plant Name | T9: =IFERROR(IF(Scenarios!B9="","",IFERROR(CONCATENATE(Scenarios!A9," ",VLOOKUP(Scenarios!A9,Scenarios!$A$9:$B$18,2,FALSE)),"")),"") -> 1 Scenario 1
C10: Location | T10: =IFERROR(IF(Scenarios!B10="","",IFERROR(CONCATENATE(Scenarios!A10," ",VLOOKUP(Scenarios!A10,Scenarios!$A$9:$B$18,2,FALSE)),"")),"") -> 2 Scenario 2
C11: Project Description | T11: =IFERROR(IF(Scenarios!B11="","",IFERROR(CONCATENATE(Scenarios!A11," ",VLOOKUP(Scenarios!A11,Scenarios!$A$9:$B$18,2,FALSE)),"")),"") -> 
T12: =IFERROR(IF(Scenarios!B12="","",IFERROR(CONCATENATE(Scenarios!A12," ",VLOOKUP(Scenarios!A12,Scenarios!$A$9:$B$18,2,FALSE)),"")),"") -> 
T13: =IFERROR(IF(Scenarios!B13="","",IFERROR(CONCATENATE(Scenarios!A13," ",VLOOKUP(Scenarios!A13,Scenarios!$A$9:$B$18,2,FALSE)),"")),"") -> 
C14: Model Notes: | T14: =IFERROR(IF(Scenarios!B14="","",IFERROR(CONCATENATE(Scenarios!A14," ",VLOOKUP(Scenarios!A14,Scenarios!$A$9:$B$18,2,FALSE)),"")),"") -> 
T15: =IFERROR(IF(Scenarios!B15="","",IFERROR(CONCATENATE(Scenarios!A15," ",VLOOKUP(Scenarios!A15,Scenarios!$A$9:$B$18,2,FALSE)),"")),"") -> 
T16: =IFERROR(IF(Scenarios!B16="","",IFERROR(CONCATENATE(Scenarios!A16," ",VLOOKUP(Scenarios!A16,Scenarios!$A$9:$B$18,2,FALSE)),"")),"") -> 
T17: =IFERROR(IF(Scenarios!B17="","",IFERROR(CONCATENATE(Scenarios!A17," ",VLOOKUP(Scenarios!A17,Scenarios!$A$9:$B$18,2,FALSE)),"")),"") -> 
T18: =IF(Scenarios!B18="","",IFERROR(CONCATENATE(Scenarios!A18," ",VLOOKUP(Scenarios!A18,Scenarios!$A$9:$B$18,2,FALSE)),"")) -> 
C19: GENERAL
C20: Project Study Period | E20: years
C21: First Year of Study Period
C22: Taxable entity? | D22: True
C25: FINANCIAL ASSUMPTIONS
C26: Discount rate
C27: General inflation rate
C29: OPTIONS
C30: Energy Calculations Include Operating Factor? | D30: False
C31: Operation in Construction Year? | D31: True
D32: =+D21 -> 0 | E32: =IFERROR(+D32+1,"") -> 1 | F32: =IFERROR(+E32+1,"") -> 2 | G32: 3 | H32: 4 | I32: 5 | J32: 6 | K32: 7 | L32: 8 | M32: 9 | N32: 10 | O32: 11 | P32: 12 | Q32: 13 | R32: 14 | S32: 15 | T32: 16 | U32: 17 | V32: 18 | W32: 19 | X32: 20 | Y32: 21 | Z32: 22 | AA32: 23 | AB32: 24 | AC32: 25 | AD32: 26 | AE32: 27 | AF32: 28 | AG32: 29 | AH32: 30
C33: Project Year | D33: 1 | E33: =+D33+1 -> 2 | F33: =+E33+1 -> 3 | G33: =+F33+1 -> 4 | H33: =+G33+1 -> 5 | I33: =+H33+1 -> 6 | J33: =+I33+1 -> 7 | K33: 8 | L33: 9 | M33: 10 | N33: 11 | O33: 12 | P33: 13 | Q33: 14 | R33: 15 | S33: 16 | T33: 17 | U33: 18 | V33: 19 | W33: 20 | X33: 21 | Y33: 22 | Z33: 23 | AA33: 24 | AB33: 25 | AC33: 26 | AD33: 27 | AE33: 28 | AF33: 29 | AG33: 30 | AH33: 31
C34: PLANT OPERATING FACTOR
C35: Dispatch Factor (a)
C36: Availability (capacity) Factor (b)
C37: Plant Operating Factor | D37: =IF(AND($D$30="True",$D$31="True"),1,IF($D$31="False",0,D$35*D$36)) -> 0 | E37: =IF($D$30="True",1,E$35*E$36) -> 0 | F37: =IF($D$30="True",1,F$35*F$36) -> 0 | G37: 0 | H37: 0 | I37: 0 | J37: 0 | K37: 0 | L37: 0 | M37: 0 | N37: 0 | O37: 0 | P37: 0 | Q37: 0 | R37: 0 | S37: 0 | T37: 0 | U37: 0 | V37: 0 | W37: 0 | X37: 0 | Y37: 0 | Z37: 0 | AA37: 0 | AB37: 0 | AC37: 0 | AD37: 0 | AE37: 0 | AF37: 0 | AG37: 0 | AH37: 0
C38: Plant Operating Factor (with sensitivity) | D38: =MIN(1,D37*Sens_PlantOpFactor) -> 0 | E38: 0 | F38: 0 | G38: 0 | H38: 0 | I38: 0 | J38: 0 | K38: 0 | L38: 0 | M38: 0 | N38: 0 | O38: 0 | P38: 0 | Q38: 0 | R38: 0 | S38: 0 | T38: 0 | U38: 0 | V38: 0 | W38: 0 | X38: 0 | Y38: 0 | Z38: 0 | AA38: 0 | AB38: 0 | AC38: 0 | AD38: 0 | AE38: 0 | AF38: 0 | AG38: 0 | AH38: 0
C39: Notes | D39: =IF(D30="True","Energy calculations already include availability. Set operating factor to 100%.","-") -> -
A43: S | C43: FACTORS AFFECTING DISPATCH FACTOR (Optional, use in formulas above)
A44: S | C44: Curtailment factor (a)
A45: S
A46: S | C46: FACTORS AFFECTING AVAILABILITY (Optional, use in formulas above)
A47: S | C47: Parasitic plant losses (b)
A48: S | C48: Partial year operation factor (b)
A49: S | C49: Resource depletion (b)
A50: S | C50: Transmission loss (b)
A51: S | C51: Scheduled maintenance (b)
A52: S | C52: Dispatch Factor = 1- Curtailment Factor
A53: S | C53: Availability = (1-Parasitic Plant Losses) * Partial Year Operation Factor * (1-Resource Depletion) * (1-Transmission Loss) * (1-Scheduled Maintenance)
C56: LIFE CYCLE COST ANALYSIS - Summary
C57: Net Present Value | D57: =IFERROR(+WhatIf!H17,"") -> 0
C58: Project IRR | D58: =IFERROR(+WhatIf!H16,"") -> 
C59: Discounted Payback (After-Tax, years) | D59: =IFERROR(+WhatIf!H19,"") -> 0
C60: Benefit-to-Cost Ratio (After Tax) | D60: =IFERROR(+WhatIf!H18,"") -> 
C63: REFERENCES
C64: Construction times: Comparative Costs of California Central Station Electricity Generation, California Energy Commission, August 2009, | E64: http://www.energy.ca.gov/2009publications/CEC-200-2009-017/CEC-200-2009-017-SD.PDF
C65: Plant operating factors of community scale RE projects: Building and Community Scale Renewable Technology Costs, KEMA, 2009, | E65: http://www.energy.ca.gov/2009_energypolicy/documents/2009-08-25_workshop/presentations/05_KEMA_Building_and_Community_Scale_Renewable_Technology_Costs.PDF
C66: Federal discount rate | E66: www.newyorkfed.org/markets/statistics/dlyrates/fedrate.html
C67: General inflation rate | E67: ftp://ftp.bls.gov/pub/special.requests/cpi/cpiai.txt
C68: Availability: Technology Characterization: Gas Turbines", EPA, 2013, p. 15 | E68: http://www.meede.org/wp-content/uploads/Commercial-and-Industrial-CHP-Technology-Cost-and-Performance-Data-Analysis-for-EIA_June-2010.pdf
C69: Availability: Technology Characterization: Reciprocating Engines", EPA, 2008, p. 19 | E69: http://www.epa.gov/chp/documents/catalog_chptech_reciprocating_engines.pdf
C73: WORKSPACE & MODEL NOTES
C138: CALCULATION AREA
C139: Toggle_Comments | D139: Hidden
C140: Toggle_Scenario | D140: Hidden
C141: Toggle_ProtectIntermediateCalcs | D141: Unprotected
C142: Copied | D142: No
D143: MacroRunning_ProjectOrOption
C144: Project or Option Macro Running | D144: Not Running
C147: Discount rate | D147: =D26*WhatIf!B78 -> 0
C148: General inflation rate | D148: =D27*WhatIf!B79 -> 0
C149: Project Life | D149: =ROUND(D20*WhatIf!B80,0) -> 0

Sheet WhatIf
A1: RELCOST: Summary Results & Sensitivities | F1: =IF(ErrorLine1="","","ENABLE MACROS") ->  | L1: INPUT (Edit)
A2: =+General!C9 -> Plant Name | B2: =General!D9 -> 0
A3: Project Description | B3: =General!D11 -> 0
A6: SENSITIVITY FACTORS | F6: SELECT SCENARIO
A7: Escalation Forecast Type | B7: Likely | F7: Project Description | G7: =IFERROR(VLOOKUP(WhatIf!Project,Scenarios!$A$9:$C$18,2,FALSE),General!D11) -> Scenario 1
A8: Production Incentive Prices | B8: 1.2 | C8: 1st Yr Unit Costs | E8: Notes | F8: Scenario Description
A9: =IF(A456>0,A456,"") ->  | B9: 1 | C9: ='Prod Incentives'!G235 -> 0 | D9: =+'Prod Incentives'!F21 -> $/tonnes CO2e | F9: Scenario | G9: 1
A10: =IF(A457>0,A457,"") ->  | B10: 1 | C10: ='Prod Incentives'!G236 -> 0 | D10: =+'Prod Incentives'!F31 -> $/MWh
A11: =IF(A458>0,A458,"") ->  | B11: 1 | C11: ='Prod Incentives'!G237 -> 0 | D11: ='Prod Incentives'!F40 -> $/MWh | F11: LIFE CYCLE COST RESULTS
A12: =IF(A459>0,A459,"") ->  | B12: 1 | C12: ='Prod Incentives'!G238 -> 0 | D12: ='Prod Incentives'!F49 -> $/MWh | F12: Project Life | G12: =+General!D149 -> 0 | H12: Years
A13: =IF(A460>0,A460,"") ->  | B13: 1 | C13: ='Prod Incentives'!G239 -> 0 | D13: ='Prod Incentives'!F58 -> $/MWh | F13: Life Cycle Cost Analysis (With Incentives) | H13: Value
A14: Taxes | C14: 2nd Yr | F14: Equity IRR | G14: =IFERROR(IF(H14="NA","",'Stop-Light Indicators'!C10),"") ->  | H14: ='_Calcs_LCC (rev 160414 enwave)'!C14 -> NA
A15: Federal Tax Rate Applied | B15: 1 | C15: ='Taxes & Fees'!D30 -> 0 | F15: Equity Net Present Value | H15: ='_Calcs_LCC (rev 160414 enwave)'!C13 -> 0
A16: Depreciation Base | B16: 1 | C16: =IFERROR(Depreciation!D75,"") -> 0 | D16: 1st yr shareholder | F16: Project IRR | G16: =IFERROR(+'Stop-Light Indicators'!C11,0) ->  | H16: ='_Calcs_LCC (rev 160414 enwave)'!C15 -> 
A17: =A464 -> Federal PTC Description | B17: 1 | C17: ='Tax Credits'!E35*Sens_FedTaxCreditPTC -> 0 | D17: =+'Tax Credits'!C36 -> $/0 | F17: Project Net Present Value | H17: ='_Calcs_LCC (rev 160414 enwave)'!C12 -> 0
A18: State PTC Description | B18: 1 | C18: ='Tax Credits'!E45*Sens_StateTaxCreditPTC1 -> 0 | D18: =+'Tax Credits'!C45 -> $/0 | F18: =IF(General!$D$22=FALSE,"Benefit Cost Ratio","Benefit Cost Ratio (After Tax)") -> Benefit Cost Ratio (After Tax) | H18: ='_Calcs_LCC (rev 160414 enwave)'!C10 -> 
A19: State PTC Description | B19: 1 | C19: ='Tax Credits'!E54*Sens_StateTaxCreditPTC2 -> 0 | D19: ='Tax Credits'!C53 -> 0 | F19: =IF(General!$D$22="False","Discounted Payback","After-Tax Discounted Payback") -> After-Tax Discounted Payback | H19: ='_Calcs_LCC (rev 160414 enwave)'!C11 -> 0 | I19: =IF(H19="Exceeds Project Life","","years") -> years
A20: Federal ITC | B20: 1 | C20: =SUM('Tax Credits'!D67:M67)*Sens_FedTaxCredit -> 0 | F20: Simple Paybacks With Incentives | H20: Value
A21: State ITC | B21: 1 | C21: =SUM('Tax Credits'!D70:M70)*Sens_StateTaxCredit -> 0 | F21: Before-Tax Non-Discounted (Simple) Payback | H21: ='_Calcs_LCC (rev 160414 enwave)'!C16 ->  | I21: years
A22: Local ITC | B22: 1 | C22: =SUM('Tax Credits'!D72:M72)*Sens_LocalTaxCredit -> 0 | F22: After-Tax Non-Discounted (Simple) Payback | H22: ='_Calcs_LCC (rev 160414 enwave)'!C17 -> Exceeds Project Life | I22: years
A23: Sales & Savings | C23: 2nd Yr | F23: =IF(General!$D$22="False","Simple Payback","Before-Tax Simple Payback") -> Before-Tax Simple Payback | H23: ='_Calcs_LCC (rev 160414 enwave)'!C19 -> 
A24: 0 | B24: 1 | C24: =IFERROR('Sales & Savings'!H23/'Sales & Savings'!H20/G82,0) -> 0 | D24: ='Sales & Savings'!F19 -> 0 | E24: ='Cost Escalation'!E310 ->  | F24: FINANCIAL SCORECARD
A25: =A472 -> 0 | B25: 1 | C25: =IFERROR('Sales & Savings'!H32/'Sales & Savings'!H29/G83,0) -> 0 | D25: ='Sales & Savings'!F28 -> 0 | F25: Scorecard Year | G25: 5
A26: 0 | B26: 1 | C26: =IFERROR('Sales & Savings'!H41/'Sales & Savings'!H38/G84,0) -> 0 | D26: ='Sales & Savings'!F37 -> kWh | F26: Profitability Ratios (Margins) | H26: Value
A27: =A474 -> 0 | B27: 1 | C27: =IFERROR('Sales & Savings'!H50/'Sales & Savings'!H47/G85,0) -> 0 | D27: ='Sales & Savings'!F46 -> Total | F27: Gross Margin | G27: =IFERROR(+'Stop-Light Indicators'!C17,"") -> G | H27: =IFERROR(+'Stop-Light Indicators'!B17,"") -> NA
A28: 0 | B28: 1 | C28: =IFERROR('Sales & Savings'!G59/'Sales & Savings'!H56/G86,0) -> 0 | D28: ='Sales & Savings'!F55 -> Total | F28: Operating Margin | G28: =IFERROR(+'Stop-Light Indicators'!C18,"") -> G | H28: =IFERROR(+'Stop-Light Indicators'!B18,"") -> NA
A29: =A476 -> 0 | B29: 1 | C29: =IFERROR('Sales & Savings'!H68/'Sales & Savings'!H65/G87,0) -> 0 | D29: ='Sales & Savings'!F64 -> MMBtu | F29: Pre - Tax Margin | G29: =IFERROR(+'Stop-Light Indicators'!C19,"") -> G | H29: =IFERROR(+'Stop-Light Indicators'!B19,"") -> NA
A30: 0 | B30: 1 | C30: =IFERROR('Sales & Savings'!H73/H88,0) -> 0 | D30: ='Sales & Savings'!F73 -> 0 | F30: After - Tax Margin | G30: =IFERROR(+'Stop-Light Indicators'!C20,"") -> G | H30: =IFERROR(+'Stop-Light Indicators'!B20,"") -> NA | V30: Project Year | W30: =+Scorecard_Year -> 5
A31: =A478 -> 0 | B31: 1 | C31: =IFERROR('Sales & Savings'!H84/'Sales & Savings'!H81/G89,0) -> 0 | D31: ='Sales & Savings'!F80 -> 0 | F31: Liquidity Measures | H31: Value
A32: =A479 -> 0 | B32: 1 | C32: =IFERROR('Sales & Savings'!H91/'Sales & Savings'!H88/G90,0) -> 0 | D32: ='Sales & Savings'!F87 -> 0 | F32: Current Ratio | G32: =IFERROR(+'Stop-Light Indicators'!C22,"") -> NA | H32: =IFERROR(+'Stop-Light Indicators'!B22,"") -> NA
A33: =A480 -> 0 | B33: 1 | C33: =IFERROR('Sales & Savings'!H92/'Sales & Savings'!H89/G91,0) -> 0 | D33: ='Sales & Savings'!F88 -> $/0 | F33: Acid Test Ratio | G33: =IFERROR(+'Stop-Light Indicators'!C23,"") -> NA | H33: =IFERROR(+'Stop-Light Indicators'!B23,"") -> NA
A34: =A481 -> OTHER INCOME CATEGORY | B34: 1 | C34: ='Sales & Savings'!H122 -> 0 | F34: Cash Flow Ratios | H34: Value
A35: =A482 -> Purchased Quantities | C35: 2nd Yr | F35: Debt Service Coverage Ratio | G35: =+'Stop-Light Indicators'!C25 -> NA | H35: =+'Stop-Light Indicators'!B25 -> NA
A36: =IF(A483="Qty 0","",A483) ->  | B36: 1 | C36: =IFERROR(Purchases!G66/Purchases!G31/G94,0)/'Cost Escalation'!E346 -> 0 | D36: =Purchases!E20 -> 0 | F36: Leverage Ratios | H36: Value
B37: 1 | C37: =IFERROR(Purchases!G67/Purchases!G32/G95,0)/'Cost Escalation'!E347 ->  | D37: =Purchases!E21 -> 0 | F37: Debt to Equity | G37: =IFERROR(IF(H37="NA","",'Stop-Light Indicators'!C27),"") ->  | H37: =IFERROR('Stop-Light Indicators'!B27,"") -> NA
B38: 1 | C38: =IFERROR(Purchases!FG8/Purchases!G33/G96,0)/'Cost Escalation'!E348 -> 0 | D38: =Purchases!E22 -> 0 | F38: Debt Ratio | G38: =IFERROR(+'Stop-Light Indicators'!C28,"N/A") -> G | H38: =IFERROR(+'Stop-Light Indicators'!B28,"N/A ") -> 0
B39: 1 | C39: =IFERROR(Purchases!G69/Purchases!G34/G97,0)/'Cost Escalation'!E349 -> 0 | D39: =Purchases!E23 -> 0 | F39: Equity Ratio | G39: =IFERROR(+'Stop-Light Indicators'!C29,"N/A") -> G | H39: =IFERROR(+'Stop-Light Indicators'!B29,"N/A ") -> 1
B40: 1 | C40: =IFERROR(Purchases!G70/Purchases!G35/G98,0)/'Cost Escalation'!E350 -> 0 | D40: =Purchases!E24 -> 0 | F40: Debt-Asset Ratio | G40: =IFERROR(+'Stop-Light Indicators'!C30,"") -> R | H40: =IFERROR(+'Stop-Light Indicators'!B30,"") -> NA
B41: 1 | C41: =IFERROR(Purchases!F71/Purchases!F36/G99,0)/'Cost Escalation'!E351 -> 0 | D41: =Purchases!E25 -> 0 | F41: =+'Stop-Light Indicators'!A31 -> Interest Coverage | G41: =+'Stop-Light Indicators'!C31 -> NA | H41: =+'Stop-Light Indicators'!B31 -> NA
B42: 1 | C42: =IFERROR(Purchases!F72/Purchases!F37/G100,0)/'Cost Escalation'!E352 -> 0 | D42: =Purchases!E26 -> 0 | F42: Cash Flow and Profit in Scorecard Year | H42: Value
B43: 1 | C43: =IFERROR(Purchases!F73/Purchases!F38/G101,0)/'Cost Escalation'!E353 -> 0 | D43: =Purchases!E27 -> 0 | F43: =O_CashFlow!B30 -> Net Cash Flow (Discounted) | H43: =IFERROR(HLOOKUP(Scorecard_Year,CashFlowStatement,24,FALSE),"") -> 0
A44: =IF(A491="Qty 0","",A491) ->  | B44: 1 | C44: =IFERROR(Purchases!F74/Purchases!F39/G102,0)/'Cost Escalation'!E354 -> 0 | D44: =Purchases!E28 -> 0 | F44: =O_CashFlow!B32 -> Cash Balance | H44: =IFERROR(HLOOKUP(Scorecard_Year,CashFlowStatement,26,FALSE),"") -> 0
A45: =IF(A492="Qty 0","",A492) ->  | B45: 1 | C45: =IFERROR(Purchases!F75/Purchases!F40/G103,0)/'Cost Escalation'!E355 -> 0 | D45: =Purchases!E29 -> 0 | F45: ='O_IncomeStatement (Tax)'!B11 -> Gross Income (Profit) | H45: =HLOOKUP(Scorecard_Year,IncomeStatementSH,5,FALSE) -> 0
A46: Capital Expenses | C46: Totals | F46: ='O_IncomeStatement (Tax)'!B15 -> Operating Income (EBIT) | H46: =HLOOKUP(Scorecard_Year,IncomeStatementSH,9,FALSE) -> 0
A47: Total CapEx | B47: 1 | C47: ='Capital Expenditures'!D96 -> 0 | F47: ='O_IncomeStatement (SH)'!B21 -> Net Profit After Taxes | H47: =IFERROR(HLOOKUP(Scorecard_Year,IncomeStatementSH,15,FALSE),"") -> 0
A48: =CONCATENATE("CapEx, ",'Capital Expenditures'!C18) -> CapEx, Plant Costs | B48: 1 | C48: ='Capital Expenditures'!D38 -> 0 | F48: Levelized Costs (Taxes + franchise fees included)
A49: =CONCATENATE("CapEx, ",'Capital Expenditures'!C19) -> CapEx, Engineering & Design | B49: 1 | C49: ='Capital Expenditures'!D51 -> 0 | F49: Over first | G49: =CONCATENATE(Scorecard_Year," years") -> 5 years
A50: =CONCATENATE("CapEx, ",'Capital Expenditures'!C20) -> CapEx, Other Costs | B50: 1 | C50: ='Capital Expenditures'!D64 -> 0 | F50: =IF(A24="","",CONCATENATE("Levelized Cost: ",A24)) -> Levelized Cost: 0 | G50: =IFERROR(+'Stop-Light Indicators'!C38,"") -> G | H50: =IFERROR(+'Stop-Light Indicators'!B38,"") -> 0 | I50: =IF(+'Calcs_Financial Indicators'!B47=0,"",'Calcs_Financial Indicators'!B47) -> 
A51: =IF(OR('Project Database (calcs only)'!J605=0,'Project Database (calcs only)'!J605=""),"",'Project Database (calcs only)'!J605) ->  | C51: =IF(A51="","",C48*C49) ->  | F51: Levelized Cost: 0 | G51: =IFERROR(+'Stop-Light Indicators'!C39,"") ->  | H51: =IFERROR(+'Stop-Light Indicators'!B39,"") -> 0 | I51: =IF(+'Calcs_Financial Indicators'!B48=0,"",'Calcs_Financial Indicators'!B48) -> 
A52: =IF(OR('Project Database (calcs only)'!J606=0,'Project Database (calcs only)'!J606=""),"",'Project Database (calcs only)'!J606) ->  | C52: =IF(A52="","",C47+C48+C49) ->  | F52: Levelized Cost: 0 | G52: =IFERROR(+'Stop-Light Indicators'!C40,"") ->  | H52: =IFERROR(+'Stop-Light Indicators'!B40,"") -> 0 | I52: =IF(+'Calcs_Financial Indicators'!B49=0,"",'Calcs_Financial Indicators'!B49) -> $/kWh
A53: Operating Expenses | F53: Levelized Cost: 0 | G53: =IFERROR(+'Stop-Light Indicators'!C41,"") ->  | H53: =IFERROR(+'Stop-Light Indicators'!B41,"") -> 0 | I53: =IF(+'Calcs_Financial Indicators'!B50=0,"",'Calcs_Financial Indicators'!B50) -> $/Total
A54: =A495 -> Major Expenses | B54: 1 | C54: =+SUM('Major Expenses'!C36:G36) -> 0 | D54: Total | F54: Levelized Cost: 0 | G54: =IFERROR(+'Stop-Light Indicators'!C42,"") ->  | H54: =IFERROR(+'Stop-Light Indicators'!B42,"") -> 0 | I54: =IF(+'Calcs_Financial Indicators'!B51=0,"",'Calcs_Financial Indicators'!B51) -> $/Total
A55: O&M (Cost of Sales) | B55: 1 | C55: =IFERROR('O&M'!E39+'O&M'!E49+'O&M'!E59+'O&M'!E69,"") -> 0 | D55: 1st year | F55: Levelized Cost: 0 | G55: =+'Stop-Light Indicators'!C43 ->  | H55: =+'Stop-Light Indicators'!B43 -> 0 | I55: =IF(+'Calcs_Financial Indicators'!B55=0,"",'Calcs_Financial Indicators'!B55) -> $/0
A56: Misc Operating Expenses | B56: 1 | C56: =IFERROR(+AVERAGE(O_Operating_Costs!C12:G12),"") ->  | D56: Ave. | F56: Levelized Cost: 0 | G56: =+'Stop-Light Indicators'!C44 ->  | H56: =+'Stop-Light Indicators'!B44 -> 0
A57: Operating Labor | B57: 1 | C57: =IFERROR(+AVERAGE(O_Operating_Costs!C24:G24),"") -> 0 | D57: Ave. | F57: Levelized Cost: 0 | G57: =+'Stop-Light Indicators'!C45 ->  | H57: =+'Stop-Light Indicators'!B45 -> 0
A58: Insurance Expense | B58: 1 | C58: =+AVERAGE(O_Operating_Costs!C26:G26) -> 0 | D58: Ave | F58: Levelized Cost: 0 | G58: =+'Stop-Light Indicators'!C46 ->  | H58: =+'Stop-Light Indicators'!B46 -> 0
A59: Property Taxes | B59: 1 | C59: =+AVERAGE(O_Operating_Costs!C25:G25) -> 0 | D59: Ave. | F59: Define red, yellow and green indicators on "Stop-Light Colors" tab
A60: Operation | C60: 1st 5 Years
A61: Plant Operating Factor | B61: 1 | C61: =AVERAGE(General!D38:W38) -> 0
A62: Borrowed Funds
A63: Loan 1 | B63: 1 | C63: =+'Funding Plan'!C84 -> 0 | D63: =IF('Funding Plan'!C$20<>"",'Funding Plan'!C$20,"") -> 
A64: Loan 2 | B64: 1 | C64: =+'Funding Plan'!D84 -> 0 | D64: =IF('Funding Plan'!D$20<>"",'Funding Plan'!D$20,"") -> 
A65: Loan 3 | B65: 1 | C65: ='Funding Plan'!E84 -> 0 | D65: =IF('Funding Plan'!E$20<>"",'Funding Plan'!E$20,"") -> 
A66: Interest Rate, Loan 1 | B66: 1 | C66: =+'Funding Plan'!C87 -> 0 | D66: =IF(+'Funding Plan'!C$20<>"",+'Funding Plan'!C$20,"") -> 
A67: Interest Rate, Loan 2 | B67: 1 | C67: =+'Funding Plan'!D87 -> 0 | D67: =IF(+'Funding Plan'!D$20<>"",+'Funding Plan'!D$20,"") -> 
A68: Interest Rate, Loan 3 | B68: 1 | C68: ='Funding Plan'!E87 -> 0 | D68: =IF(+'Funding Plan'!E$20<>"",+'Funding Plan'!E$20,"") -> 
A69: Equity Investments
A70: Equity 1 | B70: 1 | C70: ='Funding Plan'!C85 -> 0 | D70: =IF('Funding Plan'!C$32<>"",'Funding Plan'!C$32,"") -> 
A71: Equity Investment 2 | B71: 1 | C71: =+'Funding Plan'!D85 -> 0 | D71: =IF('Funding Plan'!D$32<>"",'Funding Plan'!D$32,"") -> 
A72: Equity Investment 3 | B72: 1 | C72: ='Funding Plan'!E85 -> 0 | D72: =IF('Funding Plan'!E$32<>"",'Funding Plan'!E$32,"") -> 
A73: Grants
A74: Grant 1 | B74: 1 | C74: ='Funding Plan'!C86 -> 0 | D74: =IF(+'Funding Plan'!C$40<>"",+'Funding Plan'!C$40,"") -> 
A75: Grant 2 | B75: 1 | C75: ='Funding Plan'!D86 -> 0 | D75: =IF(+'Funding Plan'!D$40<>"",+'Funding Plan'!D$40,"") -> 
A76: Grant 3 | B76: 1 | C76: ='Funding Plan'!E86 -> 0 | D76: =IF(+'Funding Plan'!E$40<>"",+'Funding Plan'!E$40,"") -> 
A77: Financial Assumptions
A78: Discount Rate | B78: 1 | C78: =IFERROR(Discount_rate,0) -> 0
A79: Inflation Rate | B79: 1 | C79: =IFERROR(Inflation,0) -> 0
A80: Project Life | B80: 1 | C80: =ProjectLife -> 0 | D80: years | E80: Price Sensitivity Analysis Set Up on Project Database Sheets
A81: Prices of Revenues (Text on Menus & Figures) | C81: 2nd Year Price | D81: 1st Year Revenue | E81: Revenues | G81: To Sales & Savings
A82: =IF(OR(E82="",E82=0),"",CONCATENATE(E82,", Price")) ->  | B82: 1 | C82: =IFERROR('Sales & Savings'!H244/'Sales & Savings'!H231/B24,0)/'Cost Escalation'!E310 ->  | D82: ='O_IncomeStatement (Tax)'!C25 -> 0 | E82: ='O_IncomeStatement (Tax)'!B25 ->  | G82: =B82*B24 -> 1 | H82: ='Project Database (calcs only)'!M15 -> 0
B83: 1 | C83: =IFERROR('Sales & Savings'!H245/'Sales & Savings'!H232/B25,0)/'Cost Escalation'!E311 -> 0 | D83: ='O_IncomeStatement (Tax)'!C26 -> 0 | E83: ='O_IncomeStatement (Tax)'!B26 ->  | G83: 1 | H83: ='Project Database (calcs only)'!M16 -> 0
B84: 1 | C84: =IFERROR('Sales & Savings'!H246/'Sales & Savings'!H233/B26,0)/'Cost Escalation'!E312 -> 0 | D84: ='O_IncomeStatement (Tax)'!C27 -> 0 | E84: ='O_IncomeStatement (Tax)'!B27 ->  | G84: 1 | H84: ='Project Database (calcs only)'!M17 -> 0
A85: =IF(OR(E85="",E85=0),"",CONCATENATE(E85,", Price")) ->  | B85: 1 | C85: =IFERROR('Sales & Savings'!H247/'Sales & Savings'!H234/B27,0)/'Cost Escalation'!E313 -> 0 | D85: ='O_IncomeStatement (Tax)'!C28 -> 0 | E85: ='O_IncomeStatement (Tax)'!B28 ->  | G85: 1 | H85: ='Project Database (calcs only)'!M18 -> 0
A86: =IF(OR(E86="",E86=0),"",CONCATENATE(E86,", Price")) ->  | B86: 1 | C86: =IFERROR('Sales & Savings'!H248/'Sales & Savings'!H235/B28,0)/'Cost Escalation'!E314 -> 0 | D86: ='O_IncomeStatement (Tax)'!C29 -> 0 | E86: ='O_IncomeStatement (Tax)'!B29 ->  | G86: 1 | H86: ='Project Database (calcs only)'!M19 -> 0
B87: 1.3 | C87: =IFERROR('Sales & Savings'!H249/'Sales & Savings'!H236/B29,0)/'Cost Escalation'!E315 -> 0 | D87: ='O_IncomeStatement (Tax)'!C30 -> 0 | E87: ='O_IncomeStatement (Tax)'!B30 ->  | G87: 1.3 | H87: ='Project Database (calcs only)'!M20 -> 0
B88: 1 | C88: =IFERROR('Sales & Savings'!H250/'Sales & Savings'!H237/B30,0)/'Cost Escalation'!E316 -> 0 | D88: ='O_IncomeStatement (Tax)'!C31 -> 0 | E88: ='O_IncomeStatement (Tax)'!B31 ->  | G88: 1 | H88: ='Project Database (calcs only)'!M21 -> 0
B89: 1 | C89: =IFERROR('Sales & Savings'!H251/'Sales & Savings'!H238/B31,0)/'Cost Escalation'!E317 -> 0 | D89: ='O_IncomeStatement (Tax)'!C32 -> 0 | E89: ='O_IncomeStatement (Tax)'!B32 ->  | G89: 1 | H89: ='Project Database (calcs only)'!M22 -> 0
B90: 1 | C90: =IFERROR('Sales & Savings'!H252/'Sales & Savings'!H239/B32,0)/'Cost Escalation'!E318 -> 0 | D90: ='O_IncomeStatement (Tax)'!C33 -> 0 | E90: ='O_IncomeStatement (Tax)'!B33 ->  | G90: 1 | H90: ='Project Database (calcs only)'!M23 -> 0
B91: 1 | C91: =IFERROR('Sales & Savings'!H253/'Sales & Savings'!H240/B33,0)/'Cost Escalation'!E319 -> 0 | D91: ='O_IncomeStatement (Tax)'!C34 -> 0 | E91: ='O_IncomeStatement (Tax)'!B34 ->  | G91: 1 | H91: ='Project Database (calcs only)'!M24 -> 0
A92: OTHER INCOME CATEGORY, Price | B92: 1 | C92: =IFERROR('Sales & Savings'!H254/'Sales & Savings'!H241/B34,0) -> 0 | D92: ='O_IncomeStatement (Tax)'!C35 -> 0 | E92: ='O_IncomeStatement (Tax)'!B35 -> OTHER INCOME CATEGORY | G92: 1 | H92: ='Project Database (calcs only)'!M25 -> 0
A93: Prices of Purchases (Text on Menus & Figures) | C93: 1st Year | D93: 1st Year Cost | E93: Purchases | G93: To Purchases
A94: =IF(OR(E94="",E94=0),"",CONCATENATE(E94,", Price")) ->  | B94: 1 | C94: =IF(A94<>0,Purchases!F31*G94,0) -> 0 | D94: =Purchases!F66 -> 0 | E94: =Purchases!$D31 -> 0 | G94: =B94*B36 -> 1 | H94: ='Project Database (calcs only)'!M27 -> Linked to Baseline Fuel if the same
B95: 1 | C95: =IF(A95<>0,Purchases!F32*G95,0) -> 0 | D95: =Purchases!F67 -> 0 | E95: =Purchases!$D32 -> 0 | G95: 1 | H95: ='Project Database (calcs only)'!M28 -> Linked to Electricity Price
B96: 1 | C96: =IF(A96<>0,Purchases!F33*G96,0) -> 0 | D96: =Purchases!F68 -> 0 | E96: =Purchases!$D33 -> 0 | G96: 1 | H96: ='Project Database (calcs only)'!M29 -> Linked to Residual Boiler Fuel
B97: 1 | C97: =IF(A97<>0,Purchases!F34*G97,0) -> 0 | D97: =Purchases!F69 -> 0 | E97: =Purchases!$D34 -> 0 | G97: 1 | H97: ='Project Database (calcs only)'!M30 -> 0
B98: 1 | C98: =IF(A98<>0,Purchases!F35*G98,0) -> 0 | D98: =Purchases!F70 -> 0 | E98: =Purchases!$D35 -> 0 | G98: 1 | H98: ='Project Database (calcs only)'!M31 -> 0
B99: 1 | C99: =IF(A99<>0,Purchases!F36*G99,0) -> 0 | D99: =Purchases!F71 -> 0 | E99: =Purchases!$D36 -> 0 | G99: 1 | H99: ='Project Database (calcs only)'!M32 -> 0
B100: 1 | C100: =IF(A100<>0,Purchases!F37*G100,0) -> 0 | D100: =Purchases!F72 -> 0 | E100: =Purchases!$D37 -> 0 | G100: 1 | H100: ='Project Database (calcs only)'!M33 -> Linked to CHP fuel if the same
B101: 1 | C101: =IF(A101<>0,Purchases!F38*G101,0) -> 0 | D101: =Purchases!F73 -> 0 | E101: =Purchases!$D38 -> 0 | G101: 1 | H101: ='Project Database (calcs only)'!M34 -> 0
B102: 1 | C102: =IF(A102<>0,Purchases!F39*G102,0) -> 0 | D102: =Purchases!F74 -> 0 | E102: =Purchases!$D39 -> 0 | G102: 1 | H102: ='Project Database (calcs only)'!M35 -> 0
B103: 1 | C103: =IF(A103<>0,Purchases!F40*G103,0) -> 0 | D103: =Purchases!F75 -> 0 | E103: =Purchases!$D40 -> 0 | G103: 1 | H103: ='Project Database (calcs only)'!M36 -> 0
A104: Sensitivity Factors, Funding Plan | C104: 1st Year
A105: Federal ITC As Grant | B105: 1 | C105: ='Funding Plan'!H43 -> 0
A106: Federal ITC Maximum | B106: 1 | C106: ='Grants & Loans'!C36 -> 0
A107: Federal ITC Percent | B107: 1 | C107: ='Grants & Loans'!C38 -> 0
A108: ='Incentive Model'!E76 -> ODOE State Tax Credit | B108: 1 | C108: ='Grants & Loans'!E41 -> 0
A109: ='Incentive Model'!E80 -> ODOE Tax Credit (Maximum) | B109: 1 | C109: ='Tax Credits'!L14*'Tax Credits'!N14 -> 0
A110: =CONCATENATE('Incentive Model'!E69, ", $/kWh") -> ETO CHP Grant (wrt grid), $/kWh | B110: 1 | C110: ='Grants & Loans'!C56 -> 0
A111: =CONCATENATE('Incentive Model'!E69, ", Maximum ($)") -> ETO CHP Grant (wrt grid), Maximum ($) | B111: 1 | C111: ='Grants & Loans'!C57 -> 0
A112: ='Incentive Model'!E50 -> Grant ($100/kW) | B112: 1 | C112: ='Grants & Loans'!C69 -> 0
A113: ='Incentive Model'!E56 -> CO2e Grant | B113: 1 | C113: ='Incentive Model'!G56 -> 0 | E113: ='Incentive Model'!F$56 -> No
A114: ='Incentive Model'!E87 -> REAP Grant | B114: 1 | C114: ='Incentive Model'!G87 -> 500000 | E114: ='Incentive Model'!F$61 -> No
A115: ='Incentive Model'!E91 -> Grant | B115: 1 | C115: ='Funding Plan'!I43 -> 0
A116: ='Incentive Model'!E95 -> ODOE Incentive (100% upfront at 29% through Pass-Through Partner) Grant (29%) | B116: 1 | C116: ='Grants & Loans'!C108 -> 0
A117: ='Grants & Loans'!G110 -> ODOE Incentive (100% upfront at 29% through Pass-Through Partner) Grant Maximum | B117: 1 | C117: ='Grants & Loans'!C110 -> 1000000000
A118: Production Incentive | B118: 1 | C118: ='Prod Incentives'!G21 -> 0
A119: Production Incentive, Annual Maximum | B119: 1 | C119: ='Prod Incentives'!G22 -> 0
A120: Carbon Emissions | B120: 1 | C120: ='Prod Incentives'!G20 -> 0
A121: Maximum Carbon Emissions Incentivized | B121: 1 | C121: ='Prod Incentives'!G23 -> 0
A122: User Defined Factors
G123: =IF(AND(A123<>"",C123=""),"Value must be entered in 3rd column to appear on spider diagram. Link to where used.","") -> 
G124: =IF(AND(A124<>"",C124=""),"Value must be entered in 3rd column to appear on spider diagram. Link to where used.","") -> 
G125: =IF(AND(A125<>"",C125=""),"Value must be entered in 3rd column to appear on spider diagram. Link to where used.","") -> 
G126: =IF(AND(A126<>"",C126=""),"Value must be entered in 3rd column to appear on spider diagram. Link to where used.","") -> 
G127: =IF(AND(A127<>"",C127=""),"Value must be entered in 3rd column to appear on spider diagram. Link to where used.","") -> 
A128: User-Defined Multipliers (Optional)
A234: REFERENCES
A235: Levelized Costs | B235: http://www.eia.gov/conference/2013/pdf/presentations/namovicz.pdf
A315: Chart Data Below this line
A316: Toggle_Comments | B316: Hidden
A317: CopyingEverywhere | B317: Yes
A318: Copied | B318: No
B333: =FirstYear_0or1 -> 1 | C333: =+B333+1 -> 2 | D333: 3 | E333: =+D333+1 -> 4 | F333: =+E333+1 -> 5 | G333: 6 | H333: 7 | I333: =+H333+1 -> 8 | J333: =+I333+1 -> 9 | K333: =+J333+1 -> 10 | L333: =+K333+1 -> 11 | M333: 12 | N333: 13 | O333: 14 | P333: 15 | Q333: 16 | R333: 17 | S333: 18 | T333: =+S333+1 -> 19 | U333: 20 | V333: 21 | W333: 22 | X333: 23 | Y333: 24 | Z333: 25 | AA333: 26 | AB333: 27 | AC333: 28 | AD333: =+AC333+1 -> 29 | AE333: 30 | AF333: 31
A334: Discounted cash flow ($1000) | B334: =+O_CashFlow!C30/1000 -> 0 | C334: =+O_CashFlow!D30/1000 -> 0 | D334: =+O_CashFlow!E30/1000 -> 0 | E334: =+O_CashFlow!F30/1000 -> 0 | F334: =+O_CashFlow!G30/1000 -> 0 | G334: =+O_CashFlow!H30/1000 -> 0 | H334: =+O_CashFlow!I30/1000 -> 0 | I334: =+O_CashFlow!J30/1000 -> 0 | J334: =+O_CashFlow!K30/1000 -> 0 | K334: =+O_CashFlow!L30/1000 -> 0 | L334: =+O_CashFlow!M30/1000 -> 0 | M334: =+O_CashFlow!N30/1000 -> 0 | N334: =+O_CashFlow!O30/1000 -> 0 | O334: =+O_CashFlow!P30/1000 -> 0 | P334: =+O_CashFlow!Q30/1000 -> 0 | Q334: =+O_CashFlow!R30/1000 -> 0 | R334: =+O_CashFlow!S30/1000 -> 0 | S334: =+O_CashFlow!T30/1000 -> 0 | T334: =+O_CashFlow!U30/1000 -> 0 | U334: =+O_CashFlow!V30/1000 -> 0 | V334: =+O_CashFlow!W30/1000 -> 0 | W334: =+O_CashFlow!X30/1000 -> 0 | X334: =+O_CashFlow!Y30/1000 -> 0 | Y334: =+O_CashFlow!Z30/1000 -> -2.6 | Z334: =+O_CashFlow!AA30/1000 -> -2.6 | AA334: =+O_CashFlow!AB30/1000 -> 0 | AB334: =+O_CashFlow!AC30/1000 -> 0 | AC334: =+O_CashFlow!AD30/1000 -> 0 | AD334: =+O_CashFlow!AE30/1000 -> 0 | AE334: =+O_CashFlow!AF30/1000 -> 0 | AF334: =+O_CashFlow!AG30/1000 -> 0
B335: =+B333 -> 1 | C335: 2 | D335: 3 | E335: 4 | F335: 5 | G335: 6 | H335: 7 | I335: 8 | J335: 9 | K335: =+K333 -> 10 | L335: 11 | M335: 12 | N335: 13 | O335: 14 | P335: 15 | Q335: 16 | R335: 17 | S335: 18 | T335: =+T333 -> 19 | U335: 20 | V335: 21 | W335: 22 | X335: 23 | Y335: 24 | Z335: 25 | AA335: 26 | AB335: 27 | AC335: 28 | AD335: 29 | AE335: 30 | AF335: =+AF333 -> 31
A336: =IF(General!D22="True","Fixed Costs, Including Depreciation ($1000)","Fixed Costs ($1000)") -> Fixed Costs, Including Depreciation ($1000) | B336: =+O_Operating_Costs!C10/1000 -> 0 | C336: =+O_Operating_Costs!D10/1000 -> 0 | D336: =+O_Operating_Costs!E10/1000 -> 0 | E336: =+O_Operating_Costs!F10/1000 -> 0 | F336: =+O_Operating_Costs!G10/1000 -> 0 | G336: =+O_Operating_Costs!H10/1000 -> 0 | H336: =+O_Operating_Costs!I10/1000 -> 0 | I336: =+O_Operating_Costs!J10/1000 -> 0 | J336: =+O_Operating_Costs!K10/1000 -> 0 | K336: =+O_Operating_Costs!L10/1000 -> 0 | L336: =+O_Operating_Costs!M10/1000 -> 0 | M336: =+O_Operating_Costs!N10/1000 -> 0 | N336: =+O_Operating_Costs!O10/1000 -> 0 | O336: =+O_Operating_Costs!P10/1000 -> 0 | P336: =+O_Operating_Costs!Q10/1000 -> 0 | Q336: =+O_Operating_Costs!R10/1000 -> 0 | R336: =+O_Operating_Costs!S10/1000 -> 0 | S336: =+O_Operating_Costs!T10/1000 -> 0 | T336: =+O_Operating_Costs!U10/1000 -> 0 | U336: =+O_Operating_Costs!V10/1000 -> 0 | V336: =+O_Operating_Costs!W10/1000 -> 0 | W336: =+O_Operating_Costs!X10/1000 -> 0 | X336: =+O_Operating_Costs!Y10/1000 -> 0 | Y336: =+O_Operating_Costs!Z10/1000 -> 2.6 | Z336: =+O_Operating_Costs!AA10/1000 -> 2.6 | AA336: =+O_Operating_Costs!AB10/1000 -> 0 | AB336: =+O_Operating_Costs!AC10/1000 -> 0 | AC336: =+O_Operating_Costs!AD10/1000 -> 0 | AD336: =+O_Operating_Costs!AE10/1000 -> 0 | AE336: =+O_Operating_Costs!AF10/1000 -> 0 | AF336: =+O_Operating_Costs!AG10/1000 -> 0
A337: Variable Cost ($1000) | B337: =+O_Operating_Costs!C9/1000 -> 0 | C337: =+O_Operating_Costs!D9/1000 -> 0 | D337: =+O_Operating_Costs!E9/1000 -> 0 | E337: =+O_Operating_Costs!F9/1000 -> 0 | F337: =+O_Operating_Costs!G9/1000 -> 0 | G337: =+O_Operating_Costs!H9/1000 -> 0 | H337: =+O_Operating_Costs!I9/1000 -> 0 | I337: =+O_Operating_Costs!J9/1000 -> 0 | J337: =+O_Operating_Costs!K9/1000 -> 0 | K337: =+O_Operating_Costs!L9/1000 -> 0 | L337: =+O_Operating_Costs!M9/1000 -> 0 | M337: =+O_Operating_Costs!N9/1000 -> 0 | N337: =+O_Operating_Costs!O9/1000 -> 0 | O337: =+O_Operating_Costs!P9/1000 -> 0 | P337: =+O_Operating_Costs!Q9/1000 -> 0 | Q337: =+O_Operating_Costs!R9/1000 -> 0 | R337: =+O_Operating_Costs!S9/1000 -> 0 | S337: =+O_Operating_Costs!T9/1000 -> 0 | T337: =+O_Operating_Costs!U9/1000 -> 0 | U337: =+O_Operating_Costs!V9/1000 -> 0 | V337: =+O_Operating_Costs!W9/1000 -> 0 | W337: =+O_Operating_Costs!X9/1000 -> 0 | X337: =+O_Operating_Costs!Y9/1000 -> 0 | Y337: =+O_Operating_Costs!Z9/1000 -> 0 | Z337: =+O_Operating_Costs!AA9/1000 -> 0 | AA337: =+O_Operating_Costs!AB9/1000 -> 0 | AB337: =+O_Operating_Costs!AC9/1000 -> 0 | AC337: =+O_Operating_Costs!AD9/1000 -> 0 | AD337: =+O_Operating_Costs!AE9/1000 -> 0 | AE337: =+O_Operating_Costs!AF9/1000 -> 0 | AF337: =+O_Operating_Costs!AG9/1000 -> 0
B339: =FirstYear_0or1 -> 1 | C339: 2 | D339: 3 | E339: 4 | F339: 5 | G339: 6 | H339: 7 | I339: 8 | J339: 9 | K339: 10 | L339: 11 | M339: 12 | N339: 13 | O339: 14 | P339: 15 | Q339: 16 | R339: 17 | S339: 18 | T339: 18 | U339: 18 | V339: 18 | W339: 18 | X339: 18 | Y339: 18 | Z339: 18 | AA339: 18 | AB339: 18 | AC339: 18 | AD339: 18 | AE339: 18 | AF339: 18
A340: =A419 -> Purchased Fuels | B340: =B419/1000 -> 0 | C340: 0 | D340: 0 | E340: 0 | F340: 0 | G340: 0 | H340: 0 | I340: 0 | J340: 0 | K340: 0 | L340: 0 | M340: 0 | N340: 0 | O340: 0 | P340: 0 | Q340: 0 | R340: 0 | S340: 0 | T340: 0 | U340: 0 | V340: 0 | W340: 0 | X340: 0 | Y340: 0 | Z340: 0 | AA340: 0 | AB340: 0 | AC340: 0 | AD340: 0 | AE340: 0 | AF340: 0
A341: =A420 -> Non-Fuel Purchases | B341: =B420/1000 -> 0 | C341: 0 | D341: 0 | E341: 0 | F341: 0 | G341: 0 | H341: 0 | I341: 0 | J341: 0 | K341: 0 | L341: 0 | M341: 0 | N341: 0 | O341: 0 | P341: 0 | Q341: 0 | R341: 0 | S341: 0 | T341: 0 | U341: 0 | V341: 0 | W341: 0 | X341: 0 | Y341: 0 | Z341: 0 | AA341: 0 | AB341: 0 | AC341: 0 | AD341: 0 | AE341: 0 | AF341: 0
A343: Purchased Fuels
A344: =IF(Purchases!D240="","",Purchases!D240) -> 0 | B344: =Purchases!E240/1000 -> 0 | C344: =Purchases!F240/1000 -> 0 | D344: =Purchases!G240/1000 -> 0 | E344: =Purchases!H240/1000 -> 0 | F344: =Purchases!I240/1000 -> 0 | G344: =Purchases!J240/1000 -> 0 | H344: =Purchases!K240/1000 -> 0 | I344: =Purchases!L240/1000 -> 0 | J344: =Purchases!M240/1000 -> 0 | K344: =Purchases!N240/1000 -> 0 | L344: =Purchases!O240/1000 -> 0 | M344: =Purchases!P240/1000 -> 0 | N344: =Purchases!Q240/1000 -> 0 | O344: =Purchases!R240/1000 -> 0 | P344: =Purchases!S240/1000 -> 0 | Q344: =Purchases!T240/1000 -> 0 | R344: =Purchases!U240/1000 -> 0 | S344: =Purchases!V240/1000 -> 0 | T344: =Purchases!W240/1000 -> 0 | U344: =Purchases!X240/1000 -> 0 | V344: =Purchases!Y240/1000 -> 0 | W344: =Purchases!Z240/1000 -> 0 | X344: =Purchases!AA240/1000 -> 0 | Y344: =Purchases!AB240/1000 -> 0 | Z344: =Purchases!AC240/1000 -> 0 | AA344: =Purchases!AD240/1000 -> 0 | AB344: =Purchases!AE240/1000 -> 0 | AC344: =Purchases!AF240/1000 -> 0 | AD344: =Purchases!AG240/1000 -> 0 | AE344: =Purchases!AH240/1000 -> 0 | AF344: =Purchases!AI240/1000 -> 0
A345: =IF(Purchases!D241="","",Purchases!D241) ->  | B345: =Purchases!E241/1000 -> 0 | C345: =Purchases!F241/1000 -> 0 | D345: =Purchases!G241/1000 -> 0 | E345: =Purchases!H241/1000 -> 0 | F345: =Purchases!I241/1000 -> 0 | G345: =Purchases!J241/1000 -> 0 | H345: =Purchases!K241/1000 -> 0 | I345: =Purchases!L241/1000 -> 0 | J345: =Purchases!M241/1000 -> 0 | K345: =Purchases!N241/1000 -> 0 | L345: =Purchases!O241/1000 -> 0 | M345: =Purchases!P241/1000 -> 0 | N345: =Purchases!Q241/1000 -> 0 | O345: =Purchases!R241/1000 -> 0 | P345: =Purchases!S241/1000 -> 0 | Q345: =Purchases!T241/1000 -> 0 | R345: =Purchases!U241/1000 -> 0 | S345: =Purchases!V241/1000 -> 0 | T345: =Purchases!W241/1000 -> 0 | U345: =Purchases!X241/1000 -> 0 | V345: =Purchases!Y241/1000 -> 0 | W345: =Purchases!Z241/1000 -> 0 | X345: =Purchases!AA241/1000 -> 0 | Y345: =Purchases!AB241/1000 -> 0 | Z345: =Purchases!AC241/1000 -> 0 | AA345: =Purchases!AD241/1000 -> 0 | AB345: =Purchases!AE241/1000 -> 0 | AC345: =Purchases!AF241/1000 -> 0 | AD345: =Purchases!AG241/1000 -> 0 | AE345: =Purchases!AH241/1000 -> 0 | AF345: =Purchases!AI241/1000 -> 0
A346: =IF(Purchases!D242="","",Purchases!D242) -> 0 | B346: =Purchases!E242/1000 -> 0 | C346: =Purchases!F242/1000 -> 0 | D346: =Purchases!G242/1000 -> 0 | E346: =Purchases!H242/1000 -> 0 | F346: =Purchases!I242/1000 -> 0 | G346: =Purchases!J242/1000 -> 0 | H346: =Purchases!K242/1000 -> 0 | I346: =Purchases!L242/1000 -> 0 | J346: =Purchases!M242/1000 -> 0 | K346: =Purchases!N242/1000 -> 0 | L346: =Purchases!O242/1000 -> 0 | M346: =Purchases!P242/1000 -> 0 | N346: =Purchases!Q242/1000 -> 0 | O346: =Purchases!R242/1000 -> 0 | P346: =Purchases!S242/1000 -> 0 | Q346: =Purchases!T242/1000 -> 0 | R346: =Purchases!U242/1000 -> 0 | S346: =Purchases!V242/1000 -> 0 | T346: =Purchases!W242/1000 -> 0 | U346: =Purchases!X242/1000 -> 0 | V346: =Purchases!Y242/1000 -> 0 | W346: =Purchases!Z242/1000 -> 0 | X346: =Purchases!AA242/1000 -> 0 | Y346: =Purchases!AB242/1000 -> 0 | Z346: =Purchases!AC242/1000 -> 0 | AA346: =Purchases!AD242/1000 -> 0 | AB346: =Purchases!AE242/1000 -> 0 | AC346: =Purchases!AF242/1000 -> 0 | AD346: =Purchases!AG242/1000 -> 0 | AE346: =Purchases!AH242/1000 -> 0 | AF346: =Purchases!AI242/1000 -> 0
A347: =IF(Purchases!D243="","",Purchases!D243) ->  | B347: =Purchases!E243/1000 -> 0 | C347: =Purchases!F243/1000 -> 0 | D347: =Purchases!G243/1000 -> 0 | E347: =Purchases!H243/1000 -> 0 | F347: =Purchases!I243/1000 -> 0 | G347: =Purchases!J243/1000 -> 0 | H347: =Purchases!K243/1000 -> 0 | I347: =Purchases!L243/1000 -> 0 | J347: =Purchases!M243/1000 -> 0 | K347: =Purchases!N243/1000 -> 0 | L347: =Purchases!O243/1000 -> 0 | M347: =Purchases!P243/1000 -> 0 | N347: =Purchases!Q243/1000 -> 0 | O347: =Purchases!R243/1000 -> 0 | P347: =Purchases!S243/1000 -> 0 | Q347: =Purchases!T243/1000 -> 0 | R347: =Purchases!U243/1000 -> 0 | S347: =Purchases!V243/1000 -> 0 | T347: =Purchases!W243/1000 -> 0 | U347: =Purchases!X243/1000 -> 0 | V347: =Purchases!Y243/1000 -> 0 | W347: =Purchases!Z243/1000 -> 0 | X347: =Purchases!AA243/1000 -> 0 | Y347: =Purchases!AB243/1000 -> 0 | Z347: =Purchases!AC243/1000 -> 0 | AA347: =Purchases!AD243/1000 -> 0 | AB347: =Purchases!AE243/1000 -> 0 | AC347: =Purchases!AF243/1000 -> 0 | AD347: =Purchases!AG243/1000 -> 0 | AE347: =Purchases!AH243/1000 -> 0 | AF347: =Purchases!AI243/1000 -> 0
A348: =IF(Purchases!D244="","",Purchases!D244) ->  | B348: =Purchases!E244/1000 -> 0 | C348: =Purchases!F244/1000 -> 0 | D348: =Purchases!G244/1000 -> 0 | E348: =Purchases!H244/1000 -> 0 | F348: =Purchases!I244/1000 -> 0 | G348: =Purchases!J244/1000 -> 0 | H348: =Purchases!K244/1000 -> 0 | I348: =Purchases!L244/1000 -> 0 | J348: =Purchases!M244/1000 -> 0 | K348: =Purchases!N244/1000 -> 0 | L348: =Purchases!O244/1000 -> 0 | M348: =Purchases!P244/1000 -> 0 | N348: =Purchases!Q244/1000 -> 0 | O348: =Purchases!R244/1000 -> 0 | P348: =Purchases!S244/1000 -> 0 | Q348: =Purchases!T244/1000 -> 0 | R348: =Purchases!U244/1000 -> 0 | S348: =Purchases!V244/1000 -> 0 | T348: =Purchases!W244/1000 -> 0 | U348: =Purchases!X244/1000 -> 0 | V348: =Purchases!Y244/1000 -> 0 | W348: =Purchases!Z244/1000 -> 0 | X348: =Purchases!AA244/1000 -> 0 | Y348: =Purchases!AB244/1000 -> 0 | Z348: =Purchases!AC244/1000 -> 0 | AA348: =Purchases!AD244/1000 -> 0 | AB348: =Purchases!AE244/1000 -> 0 | AC348: =Purchases!AF244/1000 -> 0 | AD348: =Purchases!AG244/1000 -> 0 | AE348: =Purchases!AH244/1000 -> 0 | AF348: =Purchases!AI244/1000 -> 0
A349: =IF(OR(Purchases!D245="",Purchases!D245=0),"",Purchases!D245) ->  | B349: =Purchases!E245/1000 -> 0 | C349: =Purchases!F245/1000 -> 0 | D349: =Purchases!G245/1000 -> 0 | E349: =Purchases!H245/1000 -> 0 | F349: =Purchases!I245/1000 -> 0 | G349: =Purchases!J245/1000 -> 0 | H349: =Purchases!K245/1000 -> 0 | I349: =Purchases!L245/1000 -> 0 | J349: =Purchases!M245/1000 -> 0 | K349: =Purchases!N245/1000 -> 0 | L349: =Purchases!O245/1000 -> 0 | M349: =Purchases!P245/1000 -> 0 | N349: =Purchases!Q245/1000 -> 0 | O349: =Purchases!R245/1000 -> 0 | P349: =Purchases!S245/1000 -> 0 | Q349: =Purchases!T245/1000 -> 0 | R349: =Purchases!U245/1000 -> 0 | S349: =Purchases!V245/1000 -> 0 | T349: =Purchases!W245/1000 -> 0 | U349: =Purchases!X245/1000 -> 0 | V349: =Purchases!Y245/1000 -> 0 | W349: =Purchases!Z245/1000 -> 0 | X349: =Purchases!AA245/1000 -> 0 | Y349: =Purchases!AB245/1000 -> 0 | Z349: =Purchases!AC245/1000 -> 0 | AA349: =Purchases!AD245/1000 -> 0 | AB349: =Purchases!AE245/1000 -> 0 | AC349: =Purchases!AF245/1000 -> 0 | AD349: =Purchases!AG245/1000 -> 0 | AE349: =Purchases!AH245/1000 -> 0 | AF349: =Purchases!AI245/1000 -> 0
A350: =IF(OR(Purchases!D246="",Purchases!D246=0),"",Purchases!D246) ->  | B350: =Purchases!E246/1000 -> 0 | C350: =Purchases!F246/1000 -> 0 | D350: =Purchases!G246/1000 -> 0 | E350: =Purchases!H246/1000 -> 0 | F350: =Purchases!I246/1000 -> 0 | G350: =Purchases!J246/1000 -> 0 | H350: =Purchases!K246/1000 -> 0 | I350: =Purchases!L246/1000 -> 0 | J350: =Purchases!M246/1000 -> 0 | K350: =Purchases!N246/1000 -> 0 | L350: =Purchases!O246/1000 -> 0 | M350: =Purchases!P246/1000 -> 0 | N350: =Purchases!Q246/1000 -> 0 | O350: =Purchases!R246/1000 -> 0 | P350: =Purchases!S246/1000 -> 0 | Q350: =Purchases!T246/1000 -> 0 | R350: =Purchases!U246/1000 -> 0 | S350: =Purchases!V246/1000 -> 0 | T350: =Purchases!W246/1000 -> 0 | U350: =Purchases!X246/1000 -> 0 | V350: =Purchases!Y246/1000 -> 0 | W350: =Purchases!Z246/1000 -> 0 | X350: =Purchases!AA246/1000 -> 0 | Y350: =Purchases!AB246/1000 -> 0 | Z350: =Purchases!AC246/1000 -> 0 | AA350: =Purchases!AD246/1000 -> 0 | AB350: =Purchases!AE246/1000 -> 0 | AC350: =Purchases!AF246/1000 -> 0 | AD350: =Purchases!AG246/1000 -> 0 | AE350: =Purchases!AH246/1000 -> 0 | AF350: =Purchases!AI246/1000 -> 0
A351: =IF(OR(Purchases!D247="",Purchases!D247=0),"",Purchases!D247) ->  | B351: =Purchases!E247/1000 -> 0 | C351: =Purchases!F247/1000 -> 0 | D351: =Purchases!G247/1000 -> 0 | E351: =Purchases!H247/1000 -> 0 | F351: =Purchases!I247/1000 -> 0 | G351: =Purchases!J247/1000 -> 0 | H351: =Purchases!K247/1000 -> 0 | I351: =Purchases!L247/1000 -> 0 | J351: =Purchases!M247/1000 -> 0 | K351: =Purchases!N247/1000 -> 0 | L351: =Purchases!O247/1000 -> 0 | M351: =Purchases!P247/1000 -> 0 | N351: =Purchases!Q247/1000 -> 0 | O351: =Purchases!R247/1000 -> 0 | P351: =Purchases!S247/1000 -> 0 | Q351: =Purchases!T247/1000 -> 0 | R351: =Purchases!U247/1000 -> 0 | S351: =Purchases!V247/1000 -> 0 | T351: =Purchases!W247/1000 -> 0 | U351: =Purchases!X247/1000 -> 0 | V351: =Purchases!Y247/1000 -> 0 | W351: =Purchases!Z247/1000 -> 0 | X351: =Purchases!AA247/1000 -> 0 | Y351: =Purchases!AB247/1000 -> 0 | Z351: =Purchases!AC247/1000 -> 0 | AA351: =Purchases!AD247/1000 -> 0 | AB351: =Purchases!AE247/1000 -> 0 | AC351: =Purchases!AF247/1000 -> 0 | AD351: =Purchases!AG247/1000 -> 0 | AE351: =Purchases!AH247/1000 -> 0 | AF351: =Purchases!AI247/1000 -> 0
A352: =IF(OR(Purchases!D248="",Purchases!D248=0),"",Purchases!D248) ->  | B352: =Purchases!E248/1000 -> 0 | C352: =Purchases!F248/1000 -> 0 | D352: =Purchases!G248/1000 -> 0 | E352: =Purchases!H248/1000 -> 0 | F352: =Purchases!I248/1000 -> 0 | G352: =Purchases!J248/1000 -> 0 | H352: =Purchases!K248/1000 -> 0 | I352: =Purchases!L248/1000 -> 0 | J352: =Purchases!M248/1000 -> 0 | K352: =Purchases!N248/1000 -> 0 | L352: =Purchases!O248/1000 -> 0 | M352: =Purchases!P248/1000 -> 0 | N352: =Purchases!Q248/1000 -> 0 | O352: =Purchases!R248/1000 -> 0 | P352: =Purchases!S248/1000 -> 0 | Q352: =Purchases!T248/1000 -> 0 | R352: =Purchases!U248/1000 -> 0 | S352: =Purchases!V248/1000 -> 0 | T352: =Purchases!W248/1000 -> 0 | U352: =Purchases!X248/1000 -> 0 | V352: =Purchases!Y248/1000 -> 0 | W352: =Purchases!Z248/1000 -> 0 | X352: =Purchases!AA248/1000 -> 0 | Y352: =Purchases!AB248/1000 -> 0 | Z352: =Purchases!AC248/1000 -> 0 | AA352: =Purchases!AD248/1000 -> 0 | AB352: =Purchases!AE248/1000 -> 0 | AC352: =Purchases!AF248/1000 -> 0 | AD352: =Purchases!AG248/1000 -> 0 | AE352: =Purchases!AH248/1000 -> 0 | AF352: =Purchases!AI248/1000 -> 0
A353: =IF(OR(Purchases!D249="",Purchases!D249=0),"",Purchases!D249) ->  | B353: =Purchases!E249/1000 -> 0 | C353: =Purchases!F249/1000 -> 0 | D353: =Purchases!G249/1000 -> 0 | E353: =Purchases!H249/1000 -> 0 | F353: =Purchases!I249/1000 -> 0 | G353: =Purchases!J249/1000 -> 0 | H353: =Purchases!K249/1000 -> 0 | I353: =Purchases!L249/1000 -> 0 | J353: =Purchases!M249/1000 -> 0 | K353: =Purchases!N249/1000 -> 0 | L353: =Purchases!O249/1000 -> 0 | M353: =Purchases!P249/1000 -> 0 | N353: =Purchases!Q249/1000 -> 0 | O353: =Purchases!R249/1000 -> 0 | P353: =Purchases!S249/1000 -> 0 | Q353: =Purchases!T249/1000 -> 0 | R353: =Purchases!U249/1000 -> 0 | S353: =Purchases!V249/1000 -> 0 | T353: =Purchases!W249/1000 -> 0 | U353: =Purchases!X249/1000 -> 0 | V353: =Purchases!Y249/1000 -> 0 | W353: =Purchases!Z249/1000 -> 0 | X353: =Purchases!AA249/1000 -> 0 | Y353: =Purchases!AB249/1000 -> 0 | Z353: =Purchases!AC249/1000 -> 0 | AA353: =Purchases!AD249/1000 -> 0 | AB353: =Purchases!AE249/1000 -> 0 | AC353: =Purchases!AF249/1000 -> 0 | AD353: =Purchases!AG249/1000 -> 0 | AE353: =Purchases!AH249/1000 -> 0 | AF353: =Purchases!AI249/1000 -> 0
A355: Revenues
A356: =IF(O_Operating_Income!B45="","",O_Operating_Income!B45) -> 0 | B356: =IF(O_Operating_Income!D26="",0,O_Operating_Income!D26)/1000 -> 0 | C356: =IF(O_Operating_Income!E26="",0,O_Operating_Income!E26)/1000 -> 0 | D356: =IF(O_Operating_Income!F26="",0,O_Operating_Income!F26)/1000 -> 0 | E356: =IF(O_Operating_Income!G26="",0,O_Operating_Income!G26)/1000 -> 0 | F356: =IF(O_Operating_Income!H26="",0,O_Operating_Income!H26)/1000 -> 0 | G356: =IF(O_Operating_Income!I26="",0,O_Operating_Income!I26)/1000 -> 0 | H356: =IF(O_Operating_Income!J26="",0,O_Operating_Income!J26)/1000 -> 0 | I356: =IF(O_Operating_Income!K26="",0,O_Operating_Income!K26)/1000 -> 0 | J356: =IF(O_Operating_Income!L26="",0,O_Operating_Income!L26)/1000 -> 0 | K356: =IF(O_Operating_Income!M26="",0,O_Operating_Income!M26)/1000 -> 0 | L356: =IF(O_Operating_Income!N26="",0,O_Operating_Income!N26)/1000 -> 0 | M356: =IF(O_Operating_Income!O26="",0,O_Operating_Income!O26)/1000 -> 0 | N356: =IF(O_Operating_Income!P26="",0,O_Operating_Income!P26)/1000 -> 0 | O356: =IF(O_Operating_Income!Q26="",0,O_Operating_Income!Q26)/1000 -> 0 | P356: =IF(O_Operating_Income!R26="",0,O_Operating_Income!R26)/1000 -> 0 | Q356: =IF(O_Operating_Income!S26="",0,O_Operating_Income!S26)/1000 -> 0 | R356: =IF(O_Operating_Income!T26="",0,O_Operating_Income!T26)/1000 -> 0 | S356: =IF(O_Operating_Income!U26="",0,O_Operating_Income!U26)/1000 -> 0 | T356: =IF(O_Operating_Income!V26="",0,O_Operating_Income!V26)/1000 -> 0 | U356: =IF(O_Operating_Income!W26="",0,O_Operating_Income!W26)/1000 -> 0 | V356: =IF(O_Operating_Income!X26="",0,O_Operating_Income!X26)/1000 -> 0 | W356: =IF(O_Operating_Income!Y26="",0,O_Operating_Income!Y26)/1000 -> 0 | X356: =IF(O_Operating_Income!Z26="",0,O_Operating_Income!Z26)/1000 -> 0 | Y356: =IF(O_Operating_Income!AA26="",0,O_Operating_Income!AA26)/1000 -> 0 | Z356: =IF(O_Operating_Income!AB26="",0,O_Operating_Income!AB26)/1000 -> 0 | AA356: =IF(O_Operating_Income!AC26="",0,O_Operating_Income!AC26)/1000 -> 0 | AB356: =IF(O_Operating_Income!AD26="",0,O_Operating_Income!AD26)/1000 -> 0 | AC356: =IF(O_Operating_Income!AE26="",0,O_Operating_Income!AE26)/1000 -> 0 | AD356: =IF(O_Operating_Income!AF26="",0,O_Operating_Income!AF26)/1000 -> 0 | AE356: =IF(O_Operating_Income!AG26="",0,O_Operating_Income!AG26)/1000 -> 0 | AF356: =IF(O_Operating_Income!AH26="",0,O_Operating_Income!AH26)/1000 -> 0
A357: =IF(O_Operating_Income!B46="","",O_Operating_Income!B46) -> 0 | B357: =IF(O_Operating_Income!D27="",0,O_Operating_Income!D27)/1000 -> 0 | C357: =IF(O_Operating_Income!E27="",0,O_Operating_Income!E27)/1000 -> 0 | D357: =IF(O_Operating_Income!F27="",0,O_Operating_Income!F27)/1000 -> 0 | E357: =IF(O_Operating_Income!G27="",0,O_Operating_Income!G27)/1000 -> 0 | F357: =IF(O_Operating_Income!H27="",0,O_Operating_Income!H27)/1000 -> 0 | G357: =IF(O_Operating_Income!I27="",0,O_Operating_Income!I27)/1000 -> 0 | H357: =IF(O_Operating_Income!J27="",0,O_Operating_Income!J27)/1000 -> 0 | I357: =IF(O_Operating_Income!K27="",0,O_Operating_Income!K27)/1000 -> 0 | J357: =IF(O_Operating_Income!L27="",0,O_Operating_Income!L27)/1000 -> 0 | K357: =IF(O_Operating_Income!M27="",0,O_Operating_Income!M27)/1000 -> 0 | L357: =IF(O_Operating_Income!N27="",0,O_Operating_Income!N27)/1000 -> 0 | M357: =IF(O_Operating_Income!O27="",0,O_Operating_Income!O27)/1000 -> 0 | N357: =IF(O_Operating_Income!P27="",0,O_Operating_Income!P27)/1000 -> 0 | O357: =IF(O_Operating_Income!Q27="",0,O_Operating_Income!Q27)/1000 -> 0 | P357: =IF(O_Operating_Income!R27="",0,O_Operating_Income!R27)/1000 -> 0 | Q357: =IF(O_Operating_Income!S27="",0,O_Operating_Income!S27)/1000 -> 0 | R357: =IF(O_Operating_Income!T27="",0,O_Operating_Income!T27)/1000 -> 0 | S357: =IF(O_Operating_Income!U27="",0,O_Operating_Income!U27)/1000 -> 0 | T357: =IF(O_Operating_Income!V27="",0,O_Operating_Income!V27)/1000 -> 0 | U357: =IF(O_Operating_Income!W27="",0,O_Operating_Income!W27)/1000 -> 0 | V357: =IF(O_Operating_Income!X27="",0,O_Operating_Income!X27)/1000 -> 0 | W357: =IF(O_Operating_Income!Y27="",0,O_Operating_Income!Y27)/1000 -> 0 | X357: =IF(O_Operating_Income!Z27="",0,O_Operating_Income!Z27)/1000 -> 0 | Y357: =IF(O_Operating_Income!AA27="",0,O_Operating_Income!AA27)/1000 -> 0 | Z357: =IF(O_Operating_Income!AB27="",0,O_Operating_Income!AB27)/1000 -> 0 | AA357: =IF(O_Operating_Income!AC27="",0,O_Operating_Income!AC27)/1000 -> 0 | AB357: =IF(O_Operating_Income!AD27="",0,O_Operating_Income!AD27)/1000 -> 0 | AC357: =IF(O_Operating_Income!AE27="",0,O_Operating_Income!AE27)/1000 -> 0 | AD357: =IF(O_Operating_Income!AF27="",0,O_Operating_Income!AF27)/1000 -> 0 | AE357: =IF(O_Operating_Income!AG27="",0,O_Operating_Income!AG27)/1000 -> 0 | AF357: =IF(O_Operating_Income!AH27="",0,O_Operating_Income!AH27)/1000 -> 0
A358: =IF(O_Operating_Income!B47="","",O_Operating_Income!B47) -> 0 | B358: =IF(O_Operating_Income!D28="",0,O_Operating_Income!D28)/1000 -> 0 | C358: =IF(O_Operating_Income!E28="",0,O_Operating_Income!E28)/1000 -> 0 | D358: =IF(O_Operating_Income!F28="",0,O_Operating_Income!F28)/1000 -> 0 | E358: =IF(O_Operating_Income!G28="",0,O_Operating_Income!G28)/1000 -> 0 | F358: =IF(O_Operating_Income!H28="",0,O_Operating_Income!H28)/1000 -> 0 | G358: =IF(O_Operating_Income!I28="",0,O_Operating_Income!I28)/1000 -> 0 | H358: =IF(O_Operating_Income!J28="",0,O_Operating_Income!J28)/1000 -> 0 | I358: =IF(O_Operating_Income!K28="",0,O_Operating_Income!K28)/1000 -> 0 | J358: =IF(O_Operating_Income!L28="",0,O_Operating_Income!L28)/1000 -> 0 | K358: =IF(O_Operating_Income!M28="",0,O_Operating_Income!M28)/1000 -> 0 | L358: =IF(O_Operating_Income!N28="",0,O_Operating_Income!N28)/1000 -> 0 | M358: =IF(O_Operating_Income!O28="",0,O_Operating_Income!O28)/1000 -> 0 | N358: =IF(O_Operating_Income!P28="",0,O_Operating_Income!P28)/1000 -> 0 | O358: =IF(O_Operating_Income!Q28="",0,O_Operating_Income!Q28)/1000 -> 0 | P358: =IF(O_Operating_Income!R28="",0,O_Operating_Income!R28)/1000 -> 0 | Q358: =IF(O_Operating_Income!S28="",0,O_Operating_Income!S28)/1000 -> 0 | R358: =IF(O_Operating_Income!T28="",0,O_Operating_Income!T28)/1000 -> 0 | S358: =IF(O_Operating_Income!U28="",0,O_Operating_Income!U28)/1000 -> 0 | T358: =IF(O_Operating_Income!V28="",0,O_Operating_Income!V28)/1000 -> 0 | U358: =IF(O_Operating_Income!W28="",0,O_Operating_Income!W28)/1000 -> 0 | V358: =IF(O_Operating_Income!X28="",0,O_Operating_Income!X28)/1000 -> 0 | W358: =IF(O_Operating_Income!Y28="",0,O_Operating_Income!Y28)/1000 -> 0 | X358: =IF(O_Operating_Income!Z28="",0,O_Operating_Income!Z28)/1000 -> 0 | Y358: =IF(O_Operating_Income!AA28="",0,O_Operating_Income!AA28)/1000 -> 0 | Z358: =IF(O_Operating_Income!AB28="",0,O_Operating_Income!AB28)/1000 -> 0 | AA358: =IF(O_Operating_Income!AC28="",0,O_Operating_Income!AC28)/1000 -> 0 | AB358: =IF(O_Operating_Income!AD28="",0,O_Operating_Income!AD28)/1000 -> 0 | AC358: =IF(O_Operating_Income!AE28="",0,O_Operating_Income!AE28)/1000 -> 0 | AD358: =IF(O_Operating_Income!AF28="",0,O_Operating_Income!AF28)/1000 -> 0 | AE358: =IF(O_Operating_Income!AG28="",0,O_Operating_Income!AG28)/1000 -> 0 | AF358: =IF(O_Operating_Income!AH28="",0,O_Operating_Income!AH28)/1000 -> 0
A359: =IF(O_Operating_Income!B48="","",O_Operating_Income!B48) -> 0 | B359: =IF(O_Operating_Income!D29="",0,O_Operating_Income!D29)/1000 -> 0 | C359: =IF(O_Operating_Income!E29="",0,O_Operating_Income!E29)/1000 -> 0 | D359: =IF(O_Operating_Income!F29="",0,O_Operating_Income!F29)/1000 -> 0 | E359: =IF(O_Operating_Income!G29="",0,O_Operating_Income!G29)/1000 -> 0 | F359: =IF(O_Operating_Income!H29="",0,O_Operating_Income!H29)/1000 -> 0 | G359: =IF(O_Operating_Income!I29="",0,O_Operating_Income!I29)/1000 -> 0 | H359: =IF(O_Operating_Income!J29="",0,O_Operating_Income!J29)/1000 -> 0 | I359: =IF(O_Operating_Income!K29="",0,O_Operating_Income!K29)/1000 -> 0 | J359: =IF(O_Operating_Income!L29="",0,O_Operating_Income!L29)/1000 -> 0 | K359: =IF(O_Operating_Income!M29="",0,O_Operating_Income!M29)/1000 -> 0 | L359: =IF(O_Operating_Income!N29="",0,O_Operating_Income!N29)/1000 -> 0 | M359: =IF(O_Operating_Income!O29="",0,O_Operating_Income!O29)/1000 -> 0 | N359: =IF(O_Operating_Income!P29="",0,O_Operating_Income!P29)/1000 -> 0 | O359: =IF(O_Operating_Income!Q29="",0,O_Operating_Income!Q29)/1000 -> 0 | P359: =IF(O_Operating_Income!R29="",0,O_Operating_Income!R29)/1000 -> 0 | Q359: =IF(O_Operating_Income!S29="",0,O_Operating_Income!S29)/1000 -> 0 | R359: =IF(O_Operating_Income!T29="",0,O_Operating_Income!T29)/1000 -> 0 | S359: =IF(O_Operating_Income!U29="",0,O_Operating_Income!U29)/1000 -> 0 | T359: =IF(O_Operating_Income!V29="",0,O_Operating_Income!V29)/1000 -> 0 | U359: =IF(O_Operating_Income!W29="",0,O_Operating_Income!W29)/1000 -> 0 | V359: =IF(O_Operating_Income!X29="",0,O_Operating_Income!X29)/1000 -> 0 | W359: =IF(O_Operating_Income!Y29="",0,O_Operating_Income!Y29)/1000 -> 0 | X359: =IF(O_Operating_Income!Z29="",0,O_Operating_Income!Z29)/1000 -> 0 | Y359: =IF(O_Operating_Income!AA29="",0,O_Operating_Income!AA29)/1000 -> 0 | Z359: =IF(O_Operating_Income!AB29="",0,O_Operating_Income!AB29)/1000 -> 0 | AA359: =IF(O_Operating_Income!AC29="",0,O_Operating_Income!AC29)/1000 -> 0 | AB359: =IF(O_Operating_Income!AD29="",0,O_Operating_Income!AD29)/1000 -> 0 | AC359: =IF(O_Operating_Income!AE29="",0,O_Operating_Income!AE29)/1000 -> 0 | AD359: =IF(O_Operating_Income!AF29="",0,O_Operating_Income!AF29)/1000 -> 0 | AE359: =IF(O_Operating_Income!AG29="",0,O_Operating_Income!AG29)/1000 -> 0 | AF359: =IF(O_Operating_Income!AH29="",0,O_Operating_Income!AH29)/1000 -> 0
A360: =IF(O_Operating_Income!B49="","",O_Operating_Income!B49) -> 0 | B360: =IF(O_Operating_Income!D30="",0,O_Operating_Income!D30)/1000 -> 0 | C360: =IF(O_Operating_Income!E30="",0,O_Operating_Income!E30)/1000 -> 0 | D360: =IF(O_Operating_Income!F30="",0,O_Operating_Income!F30)/1000 -> 0 | E360: =IF(O_Operating_Income!G30="",0,O_Operating_Income!G30)/1000 -> 0 | F360: =IF(O_Operating_Income!H30="",0,O_Operating_Income!H30)/1000 -> 0 | G360: =IF(O_Operating_Income!I30="",0,O_Operating_Income!I30)/1000 -> 0 | H360: =IF(O_Operating_Income!J30="",0,O_Operating_Income!J30)/1000 -> 0 | I360: =IF(O_Operating_Income!K30="",0,O_Operating_Income!K30)/1000 -> 0 | J360: =IF(O_Operating_Income!L30="",0,O_Operating_Income!L30)/1000 -> 0 | K360: =IF(O_Operating_Income!M30="",0,O_Operating_Income!M30)/1000 -> 0 | L360: =IF(O_Operating_Income!N30="",0,O_Operating_Income!N30)/1000 -> 0 | M360: =IF(O_Operating_Income!O30="",0,O_Operating_Income!O30)/1000 -> 0 | N360: =IF(O_Operating_Income!P30="",0,O_Operating_Income!P30)/1000 -> 0 | O360: =IF(O_Operating_Income!Q30="",0,O_Operating_Income!Q30)/1000 -> 0 | P360: =IF(O_Operating_Income!R30="",0,O_Operating_Income!R30)/1000 -> 0 | Q360: =IF(O_Operating_Income!S30="",0,O_Operating_Income!S30)/1000 -> 0 | R360: =IF(O_Operating_Income!T30="",0,O_Operating_Income!T30)/1000 -> 0 | S360: =IF(O_Operating_Income!U30="",0,O_Operating_Income!U30)/1000 -> 0 | T360: =IF(O_Operating_Income!V30="",0,O_Operating_Income!V30)/1000 -> 0 | U360: =IF(O_Operating_Income!W30="",0,O_Operating_Income!W30)/1000 -> 0 | V360: =IF(O_Operating_Income!X30="",0,O_Operating_Income!X30)/1000 -> 0 | W360: =IF(O_Operating_Income!Y30="",0,O_Operating_Income!Y30)/1000 -> 0 | X360: =IF(O_Operating_Income!Z30="",0,O_Operating_Income!Z30)/1000 -> 0 | Y360: =IF(O_Operating_Income!AA30="",0,O_Operating_Income!AA30)/1000 -> 0 | Z360: =IF(O_Operating_Income!AB30="",0,O_Operating_Income!AB30)/1000 -> 0 | AA360: =IF(O_Operating_Income!AC30="",0,O_Operating_Income!AC30)/1000 -> 0 | AB360: =IF(O_Operating_Income!AD30="",0,O_Operating_Income!AD30)/1000 -> 0 | AC360: =IF(O_Operating_Income!AE30="",0,O_Operating_Income!AE30)/1000 -> 0 | AD360: =IF(O_Operating_Income!AF30="",0,O_Operating_Income!AF30)/1000 -> 0 | AE360: =IF(O_Operating_Income!AG30="",0,O_Operating_Income!AG30)/1000 -> 0 | AF360: =IF(O_Operating_Income!AH30="",0,O_Operating_Income!AH30)/1000 -> 0
A361: =IF(O_Operating_Income!B50="","",O_Operating_Income!B50) -> 0 | B361: =IF(O_Operating_Income!D31="",0,O_Operating_Income!D31)/1000 -> 0 | C361: =IF(O_Operating_Income!E31="",0,O_Operating_Income!E31)/1000 -> 0 | D361: =IF(O_Operating_Income!F31="",0,O_Operating_Income!F31)/1000 -> 0 | E361: =IF(O_Operating_Income!G31="",0,O_Operating_Income!G31)/1000 -> 0 | F361: =IF(O_Operating_Income!H31="",0,O_Operating_Income!H31)/1000 -> 0 | G361: =IF(O_Operating_Income!I31="",0,O_Operating_Income!I31)/1000 -> 0 | H361: =IF(O_Operating_Income!J31="",0,O_Operating_Income!J31)/1000 -> 0 | I361: =IF(O_Operating_Income!K31="",0,O_Operating_Income!K31)/1000 -> 0 | J361: =IF(O_Operating_Income!L31="",0,O_Operating_Income!L31)/1000 -> 0 | K361: =IF(O_Operating_Income!M31="",0,O_Operating_Income!M31)/1000 -> 0 | L361: =IF(O_Operating_Income!N31="",0,O_Operating_Income!N31)/1000 -> 0 | M361: =IF(O_Operating_Income!O31="",0,O_Operating_Income!O31)/1000 -> 0 | N361: =IF(O_Operating_Income!P31="",0,O_Operating_Income!P31)/1000 -> 0 | O361: =IF(O_Operating_Income!Q31="",0,O_Operating_Income!Q31)/1000 -> 0 | P361: =IF(O_Operating_Income!R31="",0,O_Operating_Income!R31)/1000 -> 0 | Q361: =IF(O_Operating_Income!S31="",0,O_Operating_Income!S31)/1000 -> 0 | R361: =IF(O_Operating_Income!T31="",0,O_Operating_Income!T31)/1000 -> 0 | S361: =IF(O_Operating_Income!U31="",0,O_Operating_Income!U31)/1000 -> 0 | T361: =IF(O_Operating_Income!V31="",0,O_Operating_Income!V31)/1000 -> 0 | U361: =IF(O_Operating_Income!W31="",0,O_Operating_Income!W31)/1000 -> 0 | V361: =IF(O_Operating_Income!X31="",0,O_Operating_Income!X31)/1000 -> 0 | W361: =IF(O_Operating_Income!Y31="",0,O_Operating_Income!Y31)/1000 -> 0 | X361: =IF(O_Operating_Income!Z31="",0,O_Operating_Income!Z31)/1000 -> 0 | Y361: =IF(O_Operating_Income!AA31="",0,O_Operating_Income!AA31)/1000 -> 0 | Z361: =IF(O_Operating_Income!AB31="",0,O_Operating_Income!AB31)/1000 -> 0 | AA361: =IF(O_Operating_Income!AC31="",0,O_Operating_Income!AC31)/1000 -> 0 | AB361: =IF(O_Operating_Income!AD31="",0,O_Operating_Income!AD31)/1000 -> 0 | AC361: =IF(O_Operating_Income!AE31="",0,O_Operating_Income!AE31)/1000 -> 0 | AD361: =IF(O_Operating_Income!AF31="",0,O_Operating_Income!AF31)/1000 -> 0 | AE361: =IF(O_Operating_Income!AG31="",0,O_Operating_Income!AG31)/1000 -> 0 | AF361: =IF(O_Operating_Income!AH31="",0,O_Operating_Income!AH31)/1000 -> 0
A362: =IF(O_Operating_Income!B51="","",O_Operating_Income!B51) -> 0 | B362: =IF(O_Operating_Income!D32="",0,O_Operating_Income!D32)/1000 -> 0 | C362: =IF(O_Operating_Income!E32="",0,O_Operating_Income!E32)/1000 -> 0 | D362: =IF(O_Operating_Income!F32="",0,O_Operating_Income!F32)/1000 -> 0 | E362: =IF(O_Operating_Income!G32="",0,O_Operating_Income!G32)/1000 -> 0 | F362: =IF(O_Operating_Income!H32="",0,O_Operating_Income!H32)/1000 -> 0 | G362: =IF(O_Operating_Income!I32="",0,O_Operating_Income!I32)/1000 -> 0 | H362: =IF(O_Operating_Income!J32="",0,O_Operating_Income!J32)/1000 -> 0 | I362: =IF(O_Operating_Income!K32="",0,O_Operating_Income!K32)/1000 -> 0 | J362: =IF(O_Operating_Income!L32="",0,O_Operating_Income!L32)/1000 -> 0 | K362: =IF(O_Operating_Income!M32="",0,O_Operating_Income!M32)/1000 -> 0 | L362: =IF(O_Operating_Income!N32="",0,O_Operating_Income!N32)/1000 -> 0 | M362: =IF(O_Operating_Income!O32="",0,O_Operating_Income!O32)/1000 -> 0 | N362: =IF(O_Operating_Income!P32="",0,O_Operating_Income!P32)/1000 -> 0 | O362: =IF(O_Operating_Income!Q32="",0,O_Operating_Income!Q32)/1000 -> 0 | P362: =IF(O_Operating_Income!R32="",0,O_Operating_Income!R32)/1000 -> 0 | Q362: =IF(O_Operating_Income!S32="",0,O_Operating_Income!S32)/1000 -> 0 | R362: =IF(O_Operating_Income!T32="",0,O_Operating_Income!T32)/1000 -> 0 | S362: =IF(O_Operating_Income!U32="",0,O_Operating_Income!U32)/1000 -> 0 | T362: =IF(O_Operating_Income!V32="",0,O_Operating_Income!V32)/1000 -> 0 | U362: =IF(O_Operating_Income!W32="",0,O_Operating_Income!W32)/1000 -> 0 | V362: =IF(O_Operating_Income!X32="",0,O_Operating_Income!X32)/1000 -> 0 | W362: =IF(O_Operating_Income!Y32="",0,O_Operating_Income!Y32)/1000 -> 0 | X362: =IF(O_Operating_Income!Z32="",0,O_Operating_Income!Z32)/1000 -> 0 | Y362: =IF(O_Operating_Income!AA32="",0,O_Operating_Income!AA32)/1000 -> 0 | Z362: =IF(O_Operating_Income!AB32="",0,O_Operating_Income!AB32)/1000 -> 0 | AA362: =IF(O_Operating_Income!AC32="",0,O_Operating_Income!AC32)/1000 -> 0 | AB362: =IF(O_Operating_Income!AD32="",0,O_Operating_Income!AD32)/1000 -> 0 | AC362: =IF(O_Operating_Income!AE32="",0,O_Operating_Income!AE32)/1000 -> 0 | AD362: =IF(O_Operating_Income!AF32="",0,O_Operating_Income!AF32)/1000 -> 0 | AE362: =IF(O_Operating_Income!AG32="",0,O_Operating_Income!AG32)/1000 -> 0 | AF362: =IF(O_Operating_Income!AH32="",0,O_Operating_Income!AH32)/1000 -> 0
A363: =IF(O_Operating_Income!B52="","",O_Operating_Income!B52) -> 0 | B363: =IF(O_Operating_Income!D33="",0,O_Operating_Income!D33)/1000 -> 0 | C363: =IF(O_Operating_Income!E33="",0,O_Operating_Income!E33)/1000 -> 0 | D363: =IF(O_Operating_Income!F33="",0,O_Operating_Income!F33)/1000 -> 0 | E363: =IF(O_Operating_Income!G33="",0,O_Operating_Income!G33)/1000 -> 0 | F363: =IF(O_Operating_Income!H33="",0,O_Operating_Income!H33)/1000 -> 0 | G363: =IF(O_Operating_Income!I33="",0,O_Operating_Income!I33)/1000 -> 0 | H363: =IF(O_Operating_Income!J33="",0,O_Operating_Income!J33)/1000 -> 0 | I363: =IF(O_Operating_Income!K33="",0,O_Operating_Income!K33)/1000 -> 0 | J363: =IF(O_Operating_Income!L33="",0,O_Operating_Income!L33)/1000 -> 0 | K363: =IF(O_Operating_Income!M33="",0,O_Operating_Income!M33)/1000 -> 0 | L363: =IF(O_Operating_Income!N33="",0,O_Operating_Income!N33)/1000 -> 0 | M363: =IF(O_Operating_Income!O33="",0,O_Operating_Income!O33)/1000 -> 0 | N363: =IF(O_Operating_Income!P33="",0,O_Operating_Income!P33)/1000 -> 0 | O363: =IF(O_Operating_Income!Q33="",0,O_Operating_Income!Q33)/1000 -> 0 | P363: =IF(O_Operating_Income!R33="",0,O_Operating_Income!R33)/1000 -> 0 | Q363: =IF(O_Operating_Income!S33="",0,O_Operating_Income!S33)/1000 -> 0 | R363: =IF(O_Operating_Income!T33="",0,O_Operating_Income!T33)/1000 -> 0 | S363: =IF(O_Operating_Income!U33="",0,O_Operating_Income!U33)/1000 -> 0 | T363: =IF(O_Operating_Income!V33="",0,O_Operating_Income!V33)/1000 -> 0 | U363: =IF(O_Operating_Income!W33="",0,O_Operating_Income!W33)/1000 -> 0 | V363: =IF(O_Operating_Income!X33="",0,O_Operating_Income!X33)/1000 -> 0 | W363: =IF(O_Operating_Income!Y33="",0,O_Operating_Income!Y33)/1000 -> 0 | X363: =IF(O_Operating_Income!Z33="",0,O_Operating_Income!Z33)/1000 -> 0 | Y363: =IF(O_Operating_Income!AA33="",0,O_Operating_Income!AA33)/1000 -> 0 | Z363: =IF(O_Operating_Income!AB33="",0,O_Operating_Income!AB33)/1000 -> 0 | AA363: =IF(O_Operating_Income!AC33="",0,O_Operating_Income!AC33)/1000 -> 0 | AB363: =IF(O_Operating_Income!AD33="",0,O_Operating_Income!AD33)/1000 -> 0 | AC363: =IF(O_Operating_Income!AE33="",0,O_Operating_Income!AE33)/1000 -> 0 | AD363: =IF(O_Operating_Income!AF33="",0,O_Operating_Income!AF33)/1000 -> 0 | AE363: =IF(O_Operating_Income!AG33="",0,O_Operating_Income!AG33)/1000 -> 0 | AF363: =IF(O_Operating_Income!AH33="",0,O_Operating_Income!AH33)/1000 -> 0
A364: =IF(O_Operating_Income!B53="","",O_Operating_Income!B53) -> 0 | B364: =IF(O_Operating_Income!D34="",0,O_Operating_Income!D34)/1000 -> 0 | C364: =IF(O_Operating_Income!E34="",0,O_Operating_Income!E34)/1000 -> 0 | D364: =IF(O_Operating_Income!F34="",0,O_Operating_Income!F34)/1000 -> 0 | E364: =IF(O_Operating_Income!G34="",0,O_Operating_Income!G34)/1000 -> 0 | F364: =IF(O_Operating_Income!H34="",0,O_Operating_Income!H34)/1000 -> 0 | G364: =IF(O_Operating_Income!I34="",0,O_Operating_Income!I34)/1000 -> 0 | H364: =IF(O_Operating_Income!J34="",0,O_Operating_Income!J34)/1000 -> 0 | I364: =IF(O_Operating_Income!K34="",0,O_Operating_Income!K34)/1000 -> 0 | J364: =IF(O_Operating_Income!L34="",0,O_Operating_Income!L34)/1000 -> 0 | K364: =IF(O_Operating_Income!M34="",0,O_Operating_Income!M34)/1000 -> 0 | L364: =IF(O_Operating_Income!N34="",0,O_Operating_Income!N34)/1000 -> 0 | M364: =IF(O_Operating_Income!O34="",0,O_Operating_Income!O34)/1000 -> 0 | N364: =IF(O_Operating_Income!P34="",0,O_Operating_Income!P34)/1000 -> 0 | O364: =IF(O_Operating_Income!Q34="",0,O_Operating_Income!Q34)/1000 -> 0 | P364: =IF(O_Operating_Income!R34="",0,O_Operating_Income!R34)/1000 -> 0 | Q364: =IF(O_Operating_Income!S34="",0,O_Operating_Income!S34)/1000 -> 0 | R364: =IF(O_Operating_Income!T34="",0,O_Operating_Income!T34)/1000 -> 0 | S364: =IF(O_Operating_Income!U34="",0,O_Operating_Income!U34)/1000 -> 0 | T364: =IF(O_Operating_Income!V34="",0,O_Operating_Income!V34)/1000 -> 0 | U364: =IF(O_Operating_Income!W34="",0,O_Operating_Income!W34)/1000 -> 0 | V364: =IF(O_Operating_Income!X34="",0,O_Operating_Income!X34)/1000 -> 0 | W364: =IF(O_Operating_Income!Y34="",0,O_Operating_Income!Y34)/1000 -> 0 | X364: =IF(O_Operating_Income!Z34="",0,O_Operating_Income!Z34)/1000 -> 0 | Y364: =IF(O_Operating_Income!AA34="",0,O_Operating_Income!AA34)/1000 -> 0 | Z364: =IF(O_Operating_Income!AB34="",0,O_Operating_Income!AB34)/1000 -> 0 | AA364: =IF(O_Operating_Income!AC34="",0,O_Operating_Income!AC34)/1000 -> 0 | AB364: =IF(O_Operating_Income!AD34="",0,O_Operating_Income!AD34)/1000 -> 0 | AC364: =IF(O_Operating_Income!AE34="",0,O_Operating_Income!AE34)/1000 -> 0 | AD364: =IF(O_Operating_Income!AF34="",0,O_Operating_Income!AF34)/1000 -> 0 | AE364: =IF(O_Operating_Income!AG34="",0,O_Operating_Income!AG34)/1000 -> 0 | AF364: =IF(O_Operating_Income!AH34="",0,O_Operating_Income!AH34)/1000 -> 0
A365: =IF(O_Operating_Income!B54="","",O_Operating_Income!B54) -> 0 | B365: =IF(O_Operating_Income!D35="",0,O_Operating_Income!D35)/1000 -> 0 | C365: =IF(O_Operating_Income!E35="",0,O_Operating_Income!E35)/1000 -> 0 | D365: =IF(O_Operating_Income!F35="",0,O_Operating_Income!F35)/1000 -> 0 | E365: =IF(O_Operating_Income!G35="",0,O_Operating_Income!G35)/1000 -> 0 | F365: =IF(O_Operating_Income!H35="",0,O_Operating_Income!H35)/1000 -> 0 | G365: =IF(O_Operating_Income!I35="",0,O_Operating_Income!I35)/1000 -> 0 | H365: =IF(O_Operating_Income!J35="",0,O_Operating_Income!J35)/1000 -> 0 | I365: =IF(O_Operating_Income!K35="",0,O_Operating_Income!K35)/1000 -> 0 | J365: =IF(O_Operating_Income!L35="",0,O_Operating_Income!L35)/1000 -> 0 | K365: =IF(O_Operating_Income!M35="",0,O_Operating_Income!M35)/1000 -> 0 | L365: =IF(O_Operating_Income!N35="",0,O_Operating_Income!N35)/1000 -> 0 | M365: =IF(O_Operating_Income!O35="",0,O_Operating_Income!O35)/1000 -> 0 | N365: =IF(O_Operating_Income!P35="",0,O_Operating_Income!P35)/1000 -> 0 | O365: =IF(O_Operating_Income!Q35="",0,O_Operating_Income!Q35)/1000 -> 0 | P365: =IF(O_Operating_Income!R35="",0,O_Operating_Income!R35)/1000 -> 0 | Q365: =IF(O_Operating_Income!S35="",0,O_Operating_Income!S35)/1000 -> 0 | R365: =IF(O_Operating_Income!T35="",0,O_Operating_Income!T35)/1000 -> 0 | S365: =IF(O_Operating_Income!U35="",0,O_Operating_Income!U35)/1000 -> 0 | T365: =IF(O_Operating_Income!V35="",0,O_Operating_Income!V35)/1000 -> 0 | U365: =IF(O_Operating_Income!W35="",0,O_Operating_Income!W35)/1000 -> 0 | V365: =IF(O_Operating_Income!X35="",0,O_Operating_Income!X35)/1000 -> 0 | W365: =IF(O_Operating_Income!Y35="",0,O_Operating_Income!Y35)/1000 -> 0 | X365: =IF(O_Operating_Income!Z35="",0,O_Operating_Income!Z35)/1000 -> 0 | Y365: =IF(O_Operating_Income!AA35="",0,O_Operating_Income!AA35)/1000 -> 0 | Z365: =IF(O_Operating_Income!AB35="",0,O_Operating_Income!AB35)/1000 -> 0 | AA365: =IF(O_Operating_Income!AC35="",0,O_Operating_Income!AC35)/1000 -> 0 | AB365: =IF(O_Operating_Income!AD35="",0,O_Operating_Income!AD35)/1000 -> 0 | AC365: =IF(O_Operating_Income!AE35="",0,O_Operating_Income!AE35)/1000 -> 0 | AD365: =IF(O_Operating_Income!AF35="",0,O_Operating_Income!AF35)/1000 -> 0 | AE365: =IF(O_Operating_Income!AG35="",0,O_Operating_Income!AG35)/1000 -> 0 | AF365: =IF(O_Operating_Income!AH35="",0,O_Operating_Income!AH35)/1000 -> 0
A366: =IF(O_Operating_Income!B55="","",O_Operating_Income!B55) -> OTHER INCOME CATEGORY | B366: =IF(O_Operating_Income!D36="",0,O_Operating_Income!D36)/1000 -> 0 | C366: =IF(O_Operating_Income!E36="",0,O_Operating_Income!E36)/1000 -> 0 | D366: =IF(O_Operating_Income!F36="",0,O_Operating_Income!F36)/1000 -> 0 | E366: =IF(O_Operating_Income!G36="",0,O_Operating_Income!G36)/1000 -> 0 | F366: =IF(O_Operating_Income!H36="",0,O_Operating_Income!H36)/1000 -> 0 | G366: =IF(O_Operating_Income!I36="",0,O_Operating_Income!I36)/1000 -> 0 | H366: =IF(O_Operating_Income!J36="",0,O_Operating_Income!J36)/1000 -> 0 | I366: =IF(O_Operating_Income!K36="",0,O_Operating_Income!K36)/1000 -> 0 | J366: =IF(O_Operating_Income!L36="",0,O_Operating_Income!L36)/1000 -> 0 | K366: =IF(O_Operating_Income!M36="",0,O_Operating_Income!M36)/1000 -> 0 | L366: =IF(O_Operating_Income!N36="",0,O_Operating_Income!N36)/1000 -> 0 | M366: =IF(O_Operating_Income!O36="",0,O_Operating_Income!O36)/1000 -> 0 | N366: =IF(O_Operating_Income!P36="",0,O_Operating_Income!P36)/1000 -> 0 | O366: =IF(O_Operating_Income!Q36="",0,O_Operating_Income!Q36)/1000 -> 0 | P366: =IF(O_Operating_Income!R36="",0,O_Operating_Income!R36)/1000 -> 0 | Q366: =IF(O_Operating_Income!S36="",0,O_Operating_Income!S36)/1000 -> 0 | R366: =IF(O_Operating_Income!T36="",0,O_Operating_Income!T36)/1000 -> 0 | S366: =IF(O_Operating_Income!U36="",0,O_Operating_Income!U36)/1000 -> 0 | T366: =IF(O_Operating_Income!V36="",0,O_Operating_Income!V36)/1000 -> 0 | U366: =IF(O_Operating_Income!W36="",0,O_Operating_Income!W36)/1000 -> 0 | V366: =IF(O_Operating_Income!X36="",0,O_Operating_Income!X36)/1000 -> 0 | W366: =IF(O_Operating_Income!Y36="",0,O_Operating_Income!Y36)/1000 -> 0 | X366: =IF(O_Operating_Income!Z36="",0,O_Operating_Income!Z36)/1000 -> 0 | Y366: =IF(O_Operating_Income!AA36="",0,O_Operating_Income!AA36)/1000 -> 0 | Z366: =IF(O_Operating_Income!AB36="",0,O_Operating_Income!AB36)/1000 -> 0 | AA366: =IF(O_Operating_Income!AC36="",0,O_Operating_Income!AC36)/1000 -> 0 | AB366: =IF(O_Operating_Income!AD36="",0,O_Operating_Income!AD36)/1000 -> 0 | AC366: =IF(O_Operating_Income!AE36="",0,O_Operating_Income!AE36)/1000 -> 0 | AD366: =IF(O_Operating_Income!AF36="",0,O_Operating_Income!AF36)/1000 -> 0 | AE366: =IF(O_Operating_Income!AG36="",0,O_Operating_Income!AG36)/1000 -> 0 | AF366: =IF(O_Operating_Income!AH36="",0,O_Operating_Income!AH36)/1000 -> 0
A367: =IF(O_Operating_Income!B56="","",O_Operating_Income!B56) -> 0 | B367: =IF(O_Operating_Income!D37="",0,O_Operating_Income!D37)/1000 -> 0 | C367: =IF(O_Operating_Income!E37="",0,O_Operating_Income!E37)/1000 -> 0 | D367: =IF(O_Operating_Income!F37="",0,O_Operating_Income!F37)/1000 -> 0 | E367: =IF(O_Operating_Income!G37="",0,O_Operating_Income!G37)/1000 -> 0 | F367: =IF(O_Operating_Income!H37="",0,O_Operating_Income!H37)/1000 -> 0 | G367: =IF(O_Operating_Income!I37="",0,O_Operating_Income!I37)/1000 -> 0 | H367: =IF(O_Operating_Income!J37="",0,O_Operating_Income!J37)/1000 -> 0 | I367: =IF(O_Operating_Income!K37="",0,O_Operating_Income!K37)/1000 -> 0 | J367: =IF(O_Operating_Income!L37="",0,O_Operating_Income!L37)/1000 -> 0 | K367: =IF(O_Operating_Income!M37="",0,O_Operating_Income!M37)/1000 -> 0 | L367: =IF(O_Operating_Income!N37="",0,O_Operating_Income!N37)/1000 -> 0 | M367: =IF(O_Operating_Income!O37="",0,O_Operating_Income!O37)/1000 -> 0 | N367: =IF(O_Operating_Income!P37="",0,O_Operating_Income!P37)/1000 -> 0 | O367: =IF(O_Operating_Income!Q37="",0,O_Operating_Income!Q37)/1000 -> 0 | P367: =IF(O_Operating_Income!R37="",0,O_Operating_Income!R37)/1000 -> 0 | Q367: =IF(O_Operating_Income!S37="",0,O_Operating_Income!S37)/1000 -> 0 | R367: =IF(O_Operating_Income!T37="",0,O_Operating_Income!T37)/1000 -> 0 | S367: =IF(O_Operating_Income!U37="",0,O_Operating_Income!U37)/1000 -> 0 | T367: =IF(O_Operating_Income!V37="",0,O_Operating_Income!V37)/1000 -> 0 | U367: =IF(O_Operating_Income!W37="",0,O_Operating_Income!W37)/1000 -> 0 | V367: =IF(O_Operating_Income!X37="",0,O_Operating_Income!X37)/1000 -> 0 | W367: =IF(O_Operating_Income!Y37="",0,O_Operating_Income!Y37)/1000 -> 0 | X367: =IF(O_Operating_Income!Z37="",0,O_Operating_Income!Z37)/1000 -> 0 | Y367: =IF(O_Operating_Income!AA37="",0,O_Operating_Income!AA37)/1000 -> 0 | Z367: =IF(O_Operating_Income!AB37="",0,O_Operating_Income!AB37)/1000 -> 0 | AA367: =IF(O_Operating_Income!AC37="",0,O_Operating_Income!AC37)/1000 -> 0 | AB367: =IF(O_Operating_Income!AD37="",0,O_Operating_Income!AD37)/1000 -> 0 | AC367: =IF(O_Operating_Income!AE37="",0,O_Operating_Income!AE37)/1000 -> 0 | AD367: =IF(O_Operating_Income!AF37="",0,O_Operating_Income!AF37)/1000 -> 0 | AE367: =IF(O_Operating_Income!AG37="",0,O_Operating_Income!AG37)/1000 -> 0 | AF367: =IF(O_Operating_Income!AH37="",0,O_Operating_Income!AH37)/1000 -> 0
A368: =IF(O_Operating_Income!B57="","",O_Operating_Income!B57) -> 0 | B368: =IF(O_Operating_Income!D38="",0,O_Operating_Income!D38)/1000 -> 0 | C368: =IF(O_Operating_Income!E38="",0,O_Operating_Income!E38)/1000 -> 0 | D368: =IF(O_Operating_Income!F38="",0,O_Operating_Income!F38)/1000 -> 0 | E368: =IF(O_Operating_Income!G38="",0,O_Operating_Income!G38)/1000 -> 0 | F368: =IF(O_Operating_Income!H38="",0,O_Operating_Income!H38)/1000 -> 0 | G368: =IF(O_Operating_Income!I38="",0,O_Operating_Income!I38)/1000 -> 0 | H368: =IF(O_Operating_Income!J38="",0,O_Operating_Income!J38)/1000 -> 0 | I368: =IF(O_Operating_Income!K38="",0,O_Operating_Income!K38)/1000 -> 0 | J368: =IF(O_Operating_Income!L38="",0,O_Operating_Income!L38)/1000 -> 0 | K368: =IF(O_Operating_Income!M38="",0,O_Operating_Income!M38)/1000 -> 0 | L368: =IF(O_Operating_Income!N38="",0,O_Operating_Income!N38)/1000 -> 0 | M368: =IF(O_Operating_Income!O38="",0,O_Operating_Income!O38)/1000 -> 0 | N368: =IF(O_Operating_Income!P38="",0,O_Operating_Income!P38)/1000 -> 0 | O368: =IF(O_Operating_Income!Q38="",0,O_Operating_Income!Q38)/1000 -> 0 | P368: =IF(O_Operating_Income!R38="",0,O_Operating_Income!R38)/1000 -> 0 | Q368: =IF(O_Operating_Income!S38="",0,O_Operating_Income!S38)/1000 -> 0 | R368: =IF(O_Operating_Income!T38="",0,O_Operating_Income!T38)/1000 -> 0 | S368: =IF(O_Operating_Income!U38="",0,O_Operating_Income!U38)/1000 -> 0 | T368: =IF(O_Operating_Income!V38="",0,O_Operating_Income!V38)/1000 -> 0 | U368: =IF(O_Operating_Income!W38="",0,O_Operating_Income!W38)/1000 -> 0 | V368: =IF(O_Operating_Income!X38="",0,O_Operating_Income!X38)/1000 -> 0 | W368: =IF(O_Operating_Income!Y38="",0,O_Operating_Income!Y38)/1000 -> 0 | X368: =IF(O_Operating_Income!Z38="",0,O_Operating_Income!Z38)/1000 -> 0 | Y368: =IF(O_Operating_Income!AA38="",0,O_Operating_Income!AA38)/1000 -> 0 | Z368: =IF(O_Operating_Income!AB38="",0,O_Operating_Income!AB38)/1000 -> 0 | AA368: =IF(O_Operating_Income!AC38="",0,O_Operating_Income!AC38)/1000 -> 0 | AB368: =IF(O_Operating_Income!AD38="",0,O_Operating_Income!AD38)/1000 -> 0 | AC368: =IF(O_Operating_Income!AE38="",0,O_Operating_Income!AE38)/1000 -> 0 | AD368: =IF(O_Operating_Income!AF38="",0,O_Operating_Income!AF38)/1000 -> 0 | AE368: =IF(O_Operating_Income!AG38="",0,O_Operating_Income!AG38)/1000 -> 0 | AF368: =IF(O_Operating_Income!AH38="",0,O_Operating_Income!AH38)/1000 -> 0
A369: =IF(O_Operating_Income!B58="","",O_Operating_Income!B58) -> 0 | B369: =IF(O_Operating_Income!D39="",0,O_Operating_Income!D39)/1000 -> 0 | C369: =IF(O_Operating_Income!E39="",0,O_Operating_Income!E39)/1000 -> 0 | D369: =IF(O_Operating_Income!F39="",0,O_Operating_Income!F39)/1000 -> 0 | E369: =IF(O_Operating_Income!G39="",0,O_Operating_Income!G39)/1000 -> 0 | F369: =IF(O_Operating_Income!H39="",0,O_Operating_Income!H39)/1000 -> 0 | G369: =IF(O_Operating_Income!I39="",0,O_Operating_Income!I39)/1000 -> 0 | H369: =IF(O_Operating_Income!J39="",0,O_Operating_Income!J39)/1000 -> 0 | I369: =IF(O_Operating_Income!K39="",0,O_Operating_Income!K39)/1000 -> 0 | J369: =IF(O_Operating_Income!L39="",0,O_Operating_Income!L39)/1000 -> 0 | K369: =IF(O_Operating_Income!M39="",0,O_Operating_Income!M39)/1000 -> 0 | L369: =IF(O_Operating_Income!N39="",0,O_Operating_Income!N39)/1000 -> 0 | M369: =IF(O_Operating_Income!O39="",0,O_Operating_Income!O39)/1000 -> 0 | N369: =IF(O_Operating_Income!P39="",0,O_Operating_Income!P39)/1000 -> 0 | O369: =IF(O_Operating_Income!Q39="",0,O_Operating_Income!Q39)/1000 -> 0 | P369: =IF(O_Operating_Income!R39="",0,O_Operating_Income!R39)/1000 -> 0 | Q369: =IF(O_Operating_Income!S39="",0,O_Operating_Income!S39)/1000 -> 0 | R369: =IF(O_Operating_Income!T39="",0,O_Operating_Income!T39)/1000 -> 0 | S369: =IF(O_Operating_Income!U39="",0,O_Operating_Income!U39)/1000 -> 0 | T369: =IF(O_Operating_Income!V39="",0,O_Operating_Income!V39)/1000 -> 0 | U369: =IF(O_Operating_Income!W39="",0,O_Operating_Income!W39)/1000 -> 0 | V369: =IF(O_Operating_Income!X39="",0,O_Operating_Income!X39)/1000 -> 0 | W369: =IF(O_Operating_Income!Y39="",0,O_Operating_Income!Y39)/1000 -> 0 | X369: =IF(O_Operating_Income!Z39="",0,O_Operating_Income!Z39)/1000 -> 0 | Y369: =IF(O_Operating_Income!AA39="",0,O_Operating_Income!AA39)/1000 -> 0 | Z369: =IF(O_Operating_Income!AB39="",0,O_Operating_Income!AB39)/1000 -> 0 | AA369: =IF(O_Operating_Income!AC39="",0,O_Operating_Income!AC39)/1000 -> 0 | AB369: =IF(O_Operating_Income!AD39="",0,O_Operating_Income!AD39)/1000 -> 0 | AC369: =IF(O_Operating_Income!AE39="",0,O_Operating_Income!AE39)/1000 -> 0 | AD369: =IF(O_Operating_Income!AF39="",0,O_Operating_Income!AF39)/1000 -> 0 | AE369: =IF(O_Operating_Income!AG39="",0,O_Operating_Income!AG39)/1000 -> 0 | AF369: =IF(O_Operating_Income!AH39="",0,O_Operating_Income!AH39)/1000 -> 0
A370: =IF(O_Operating_Income!B59="","",O_Operating_Income!B59) -> 0 | B370: =IF(O_Operating_Income!D40="",0,O_Operating_Income!D40)/1000 -> 0 | C370: =IF(O_Operating_Income!E40="",0,O_Operating_Income!E40)/1000 -> 0 | D370: =IF(O_Operating_Income!F40="",0,O_Operating_Income!F40)/1000 -> 0 | E370: =IF(O_Operating_Income!G40="",0,O_Operating_Income!G40)/1000 -> 0 | F370: =IF(O_Operating_Income!H40="",0,O_Operating_Income!H40)/1000 -> 0 | G370: =IF(O_Operating_Income!I40="",0,O_Operating_Income!I40)/1000 -> 0 | H370: =IF(O_Operating_Income!J40="",0,O_Operating_Income!J40)/1000 -> 0 | I370: =IF(O_Operating_Income!K40="",0,O_Operating_Income!K40)/1000 -> 0 | J370: =IF(O_Operating_Income!L40="",0,O_Operating_Income!L40)/1000 -> 0 | K370: =IF(O_Operating_Income!M40="",0,O_Operating_Income!M40)/1000 -> 0 | L370: =IF(O_Operating_Income!N40="",0,O_Operating_Income!N40)/1000 -> 0 | M370: =IF(O_Operating_Income!O40="",0,O_Operating_Income!O40)/1000 -> 0 | N370: =IF(O_Operating_Income!P40="",0,O_Operating_Income!P40)/1000 -> 0 | O370: =IF(O_Operating_Income!Q40="",0,O_Operating_Income!Q40)/1000 -> 0 | P370: =IF(O_Operating_Income!R40="",0,O_Operating_Income!R40)/1000 -> 0 | Q370: =IF(O_Operating_Income!S40="",0,O_Operating_Income!S40)/1000 -> 0 | R370: =IF(O_Operating_Income!T40="",0,O_Operating_Income!T40)/1000 -> 0 | S370: =IF(O_Operating_Income!U40="",0,O_Operating_Income!U40)/1000 -> 0 | T370: =IF(O_Operating_Income!V40="",0,O_Operating_Income!V40)/1000 -> 0 | U370: =IF(O_Operating_Income!W40="",0,O_Operating_Income!W40)/1000 -> 0 | V370: =IF(O_Operating_Income!X40="",0,O_Operating_Income!X40)/1000 -> 0 | W370: =IF(O_Operating_Income!Y40="",0,O_Operating_Income!Y40)/1000 -> 0 | X370: =IF(O_Operating_Income!Z40="",0,O_Operating_Income!Z40)/1000 -> 0 | Y370: =IF(O_Operating_Income!AA40="",0,O_Operating_Income!AA40)/1000 -> 0 | Z370: =IF(O_Operating_Income!AB40="",0,O_Operating_Income!AB40)/1000 -> 0 | AA370: =IF(O_Operating_Income!AC40="",0,O_Operating_Income!AC40)/1000 -> 0 | AB370: =IF(O_Operating_Income!AD40="",0,O_Operating_Income!AD40)/1000 -> 0 | AC370: =IF(O_Operating_Income!AE40="",0,O_Operating_Income!AE40)/1000 -> 0 | AD370: =IF(O_Operating_Income!AF40="",0,O_Operating_Income!AF40)/1000 -> 0 | AE370: =IF(O_Operating_Income!AG40="",0,O_Operating_Income!AG40)/1000 -> 0 | AF370: =IF(O_Operating_Income!AH40="",0,O_Operating_Income!AH40)/1000 -> 0
